Workbook

Sheet SYS_Template (hidden)
B2: =SYS_Admin!$B$2 -> [PROJECT MODEL] - 001.001 | F2: Sheet Integrity checks: | K2: Financial Year
B3: =MID(CELL("filename",A1),FIND("]",CELL("filename",A1))+1,255) -> SYS_Template | F3: Sheet Warnings: | K3: Year
B4: =SYS_Checks!$B$4 -> INTEGRITY ERROR: Refer to checks | K4: Period Start Date
B5: =SYS_Checks!$B$5 -> No Warnings | K5: Period End Date
B6: =IF(sysMacro=0,"All Macros Run", "WARNING! Macros not run") -> WARNING! Macros not run | K6: Annual Period
F8: Units | G8: Call | H8: Calc. | I8: Check | J8: Warning | K8: Total
B10: =MAX(B$9:B9)+1 -> 1 | D10: Sheet Flags

Sheet COVER

Sheet MAP (hidden)
B2: =SYS_Admin!$B$2 -> [PROJECT MODEL] - 001.001
B3: =MID(CELL("filename",A1),FIND("]",CELL("filename",A1))+1,255) -> MAP
B4: =SYS_Checks!$B$4 -> INTEGRITY ERROR: Refer to checks
B5: =SYS_Checks!$B$5 -> No Warnings
B6: =IF(sysMacro=0,"All Macros Run", "WARNING! Macros not run") -> WARNING! Macros not run
B10: =MAX(B$9:B9)+1 -> 1 | D10: KEY MODEL WORKSHEETS
B60: =MAX(B$9:B59)+1 -> 2 | D60: OTHER MODEL WORKSHEETS
B105: =MAX(B$9:B104)+1 -> 3 | D105: CELL CONVENTIONS

Sheet Key Outputs >>> (hidden)
B2: DELIBERATELY BLANK

Sheet Scenario Manager (hidden)
B2: =SYS_Admin!$B$2 -> [PROJECT MODEL] - 001.001 | H2: Selected | I2: =INDEX($M$2:$V$2,1,dcScenario) -> [SCENARIO MANAGER NOT CALIBRATED] | K2: Scenario description | M2: [SCENARIO MANAGER NOT CALIBRATED]
B3: =MID(CELL("filename",A1),FIND("]",CELL("filename",A1))+1,255) -> Scenario Manager
B4: =SYS_Checks!$B$4 -> INTEGRITY ERROR: Refer to checks
B5: =SYS_Checks!$B$5 -> No Warnings
B6: =IF(sysMacro=0,"All Macros Run", "WARNING! Macros not run") -> WARNING! Macros not run
H8: Selected | I8: =INDEX($M$8:$V$8,1,dcScenario) -> 1 | K8: Scenario | M8: =MAX($L8:L8)+1 -> 1 | N8: =MAX($L8:M8)+1 -> 2 | O8: =MAX($L8:N8)+1 -> 3 | P8: =MAX($L8:O8)+1 -> 4 | Q8: =MAX($L8:P8)+1 -> 5 | R8: =MAX($L8:Q8)+1 -> 6 | S8: =MAX($L8:R8)+1 -> 7 | T8: =MAX($L8:S8)+1 -> 8 | U8: =MAX($L8:T8)+1 -> 9 | V8: =MAX($L8:U8)+1 -> 10
B10: =MAX(B$9:B9)+1 -> 1 | D10: SCENARIO SELECTION
D12: Scenario Selected: | F12: # | G12: 1
B14: =MAX(B$9:B13)+1 -> 2 | D14: SCENARIO CALIBRATION

Sheet Dashboard (hidden)
C3: =SYS_Admin!$B$2 -> [PROJECT MODEL] - 001.001 | O3: Select Scenario: | AV3: Worthing SSHP Town Centre FFM - 001.003 | BH3: Select Scenario:
C4: =MID(CELL("filename",A1),FIND("]",CELL("filename",A1))+1,255) -> Dashboard | AV4: Dashboard
C5: =SYS_Checks!$B$4 -> INTEGRITY ERROR: Refer to checks | O5: Scenario Selected: | T5: =INDEX('Scenario Manager'!$M$2:$V$7,1,dcScenario) -> [SCENARIO MANAGER NOT CALIBRATED] | AV5: No Integrity Errors | BH5: Scenario Selected: | BM5: BEIS Grant
C6: =IF(sysWarning=0,"No Warnings","Warnings present - review checks") -> No Warnings | AV6: No Warnings
C7: =IF(sysMacro=0,"All Macros Run", "WARNING! Macros not run") -> WARNING! Macros not run | AV7: WARNING! Macros not run
C11: PROJECT METRICS UNDER SCENARIO ASSUMPTIONS | AV11: PROJECT METRICS UNDER SCENARIO ASSUMPTIONS
C13: RETURNS | X13: Money terms: | AE13: Real | AJ13: Graph Start Period: | AO13: 2021 | AV13: RETURNS | BQ13: Money terms: | BX13: Real | CC13: Graph Start Period: | CH13: 2020
K14: Pre-tax (R) | N14: Pre-tax (N) | Q14: Post-tax (R) | T14: Post-tax (N) | AJ14: Graph End Period: | AO14: 2035 | BD14: Pre-tax (R) | BG14: Pre-tax (N) | BJ14: Post-tax (R) | BM14: Post-tax (N) | CC14: Graph End Period: | CH14: 2050
C15: Project hurdle rate | I15: % | K15: 0.035 | N15: =(1+K15)*1.025-1 -> 0.060875 | Q15: =K15*0.8 -> 0.028 | T15: =(1+Q15)*1.025-1 -> 0.0537 | AV15: Project hurdle rate | BB15: % | BD15: 0.035 | BG15: 0.060875 | BJ15: 0.028 | BM15: 0.0537
C16: Assessment period | I16: Years | K16: 40 | N16: 40 | Q16: 40 | T16: 40 | AV16: Assessment period | BB16: Years | BD16: 40
C18: Project IRR (pre-grant) | I18: % | K18: =CALC_Project_ANN!H6053 -> n/a | N18: =CALC_Project_ANN!H6124 -> n/a | Q18: =CALC_Project_ANN!H6204 -> n/a | T18: =CALC_Project_ANN!H6284 -> n/a | Y18: GRAPH 1 | AV18: Project IRR (pre-grant) | BB18: % | BD18: 0.03438164481 | BG18: 0.04989736949 | BJ18: 0.009929610164 | BM18: 0.02854651346 | BR18: GRAPH 1 | CV18: =IFERROR((K18-BD18)/K18,0) -> 0 | CY18: =IFERROR((N18-BG18)/N18,0) -> 0 | DB18: =IFERROR((Q18-BJ18)/Q18,0) -> 0 | DE18: =IFERROR((T18-BM18)/T18,0) -> 0
C19: Project IRR (post-grant) | I19: % | K19: =CALC_Project_ANN!H6097 -> n/a | N19: =CALC_Project_ANN!H6168 -> n/a | Q19: =CALC_Project_ANN!H6248 -> n/a | T19: =CALC_Project_ANN!H6328 -> n/a
C20: Social IRR (pre-grant) | I20: % | K20: =CALC_Project_ANN!H6076 -> n/a | N20: =CALC_Project_ANN!H6147 -> n/a | Q20: =CALC_Project_ANN!H6227 -> n/a | T20: =CALC_Project_ANN!H6307 -> n/a | AV20: Social IRR (pre-grant) | BB20: % | BD20: 0.336208634 | BG20: 0.3562517635 | BJ20: 0.3562517635 | BM20: 0.3562517635 | CV20: =IFERROR((K20-BD20)/K20,0) -> 0 | CY20: =IFERROR((N20-BG20)/N20,0) -> 0 | DB20: =IFERROR((Q20-BJ20)/Q20,0) -> 0 | DE20: =IFERROR((T20-BM20)/T20,0) -> 0
C21: Project NPV (pre-grant) | I21: £000 | K21: =CALC_Project_ANN!K6052 -> 0 | N21: =CALC_Project_ANN!K6123 -> 0 | Q21: =CALC_Project_ANN!K6203 -> 0 | T21: =CALC_Project_ANN!K6283 -> 0 | AV21: Project NPV (pre-grant) | BB21: £000 | BD21: -114.0482808 | BG21: -1736.990975 | BJ21: -3594.772013 | BM21: -4365.031238 | CV21: 0 | CY21: 0 | DB21: 0 | DE21: 0
C22: Project NPV (post-grant) | I22: £000 | K22: =CALC_Project_ANN!K6096 -> 0 | N22: =CALC_Project_ANN!K6167 -> 0 | Q22: =CALC_Project_ANN!K6247 -> 0 | T22: =CALC_Project_ANN!K6327 -> 0
C23: Social NPV (pre-grant) | I23: £000 | K23: =CALC_Project_ANN!K6075 -> 0 | N23: =CALC_Project_ANN!K6146 -> 0 | Q23: =CALC_Project_ANN!K6226 -> 0 | T23: =CALC_Project_ANN!K6306 -> 0 | AV23: Social NPV (pre-grant) | BB23: £000 | BD23: 60455.34219 | BG23: 50198.34389 | BJ23: 50198.34389 | BM23: 50198.34389 | CV23: 0 | CY23: 0 | DB23: 0 | DE23: 0
C24: Payback (pre-grant) | I24: Years | K24: =CALC_Project_ANN!H6062 -> 0 | N24: =CALC_Project_ANN!H6133 -> 0 | Q24: =CALC_Project_ANN!H6213 -> 0 | T24: =CALC_Project_ANN!H6293 -> 0 | AV24: Undiscounted payback | BB24: Years | BD24: 20.67845881 | BG24: 18.61620369 | BJ24: 35.64482473 | BM24: 29.83117217 | CV24: 0 | CY24: 0 | DB24: 0 | DE24: 0
C25: Payback (post-grant) | I25: Years | K25: =CALC_Project_ANN!H6106 -> 0 | N25: =CALC_Project_ANN!H6177 -> 0 | Q25: =CALC_Project_ANN!H6257 -> 0 | T25: =CALC_Project_ANN!H6337 -> 0
C26: Disc. Payback (pre-grant) | I26: Years | K26: =CALC_Project_ANN!H6071 -> 0 | N26: =CALC_Project_ANN!H6142 -> 0 | Q26: =CALC_Project_ANN!H6222 -> 0 | T26: =CALC_Project_ANN!H6302 -> 0 | Y26: Graph of project cash flows and cumulative PIRR with hudle rate | AV26: Discounted payback | BB26: Years | BD26: 40.56795135 | BG26: n/a | BJ26: n/a | BM26: n/a | BR26: Graph of project cash flows and cumulative PIRR with hudle rate | CV26: 0 | CY26: 0 | DB26: 0 | DE26: 0
C27: Disc. Payback (post-grant) | K27: =CALC_Project_ANN!H6115 -> 0 | N27: =CALC_Project_ANN!H6186 -> 0 | Q27: =CALC_Project_ANN!H6266 -> 0 | T27: =CALC_Project_ANN!H6346 -> 0
C28: Social payback (pre-grant) | I28: Years | K28: =CALC_Project_ANN!H6085 -> 0 | N28: =CALC_Project_ANN!H6156 -> 0 | Q28: =CALC_Project_ANN!H6236 -> 0 | T28: =CALC_Project_ANN!H6316 -> 0 | AV28: Social payback | BB28: Years | BD28: 4.768012123 | BG28: 4.745160948 | BJ28: 4.800503543 | BM28: 4.77602298 | CV28: 0 | CY28: 0 | DB28: 0 | DE28: 0
R29: R = Real; N = Nominal | BK29: R = Real; N = Nominal
C31: ="Levelised Cost of "&S31 -> Levelised Cost of LTHW | N31: Select energy type: | S31: LTHW | AV31: Levelised Cost of LTHW | BG31: Select energy type: | BL31: LTHW
R32: Express levelised cost in whole life terms or T0 terms?* | S32: Whole life | BK32: Express levelised cost in whole life terms or T0 terms?* | BL32: Whole life
R33: Money terms of levelised cost+: | S33: Real | BK33: Money terms of levelised cost+: | BL33: Real
C35: Years over which LCOE calcualted: | M35: 15 | O35: 25 | Q35: 35 | S35: 40 | U35: 60 | AV35: Years over which LCOE calcualted: | BF35: 15 | BH35: 25 | BJ35: 35 | BL35: 40 | BN35: 60
C37: ="Non-" &S31&" income" -> Non-LTHW income | K37: p/kWh | M37: =CALC_Project_ANN!G6517 -> 0 | O37: =CALC_Project_ANN!H6517 -> 0 | Q37: =CALC_Project_ANN!I6517 -> 0 | S37: =CALC_Project_ANN!J6517 -> 0 | U37: =CALC_Project_ANN!K6517 -> 0 | AV37: Non-LTHW income | BD37: p/kWh | BF37: -1.097722479 | BH37: -0.6813488612 | BJ37: -0.5369612074 | BL37: -0.4964694818 | BN37: -0.4484891365 | CX37: =IFERROR((M37-BF37)/M37,0) -> 0 | CZ37: =IFERROR((O37-BH37)/O37,0) -> 0 | DB37: =IFERROR((Q37-BJ37)/Q37,0) -> 0 | DD37: =IFERROR((S37-BL37)/S37,0) -> 0 | DF37: =IFERROR((U37-BN37)/U37,0) -> 0
C38: Grant | K38: p/kWh | M38: =CALC_Project_ANN!G6518 -> 0 | O38: =CALC_Project_ANN!H6518 -> 0 | Q38: =CALC_Project_ANN!I6518 -> 0 | S38: =CALC_Project_ANN!J6518 -> 0 | U38: =CALC_Project_ANN!K6518 -> 0
C39: Capex | K39: p/kWh | M39: =CALC_Project_ANN!G6519 -> 0 | O39: =CALC_Project_ANN!H6519 -> 0 | Q39: =CALC_Project_ANN!I6519 -> 0 | S39: =CALC_Project_ANN!J6519 -> 0 | U39: =CALC_Project_ANN!K6519 -> 0 | AV39: Capex | BD39: p/kWh | BF39: 6.215145191 | BH39: 4.468301376 | BJ39: 3.550655713 | BL39: 3.282904198 | BN39: 3.161638396 | CX39: 0 | CZ39: 0 | DB39: 0 | DD39: 0 | DF39: 0
C40: Fuel costs | K40: p/kWh | M40: =CALC_Project_ANN!G6520 -> 0 | O40: =CALC_Project_ANN!H6520 -> 0 | Q40: =CALC_Project_ANN!I6520 -> 0 | S40: =CALC_Project_ANN!J6520 -> 0 | U40: =CALC_Project_ANN!K6520 -> 0 | AV40: Fuel costs | BD40: p/kWh | BF40: 6.501925507 | BH40: 6.476066695 | BJ40: 6.467099524 | BL40: 6.464584793 | BN40: 6.461604982 | CX40: 0 | CZ40: 0 | DB40: 0 | DD40: 0 | DF40: 0
C41: O&M | K41: p/kWh | M41: =CALC_Project_ANN!G6521 -> 0 | O41: =CALC_Project_ANN!H6521 -> 0 | Q41: =CALC_Project_ANN!I6521 -> 0 | S41: =CALC_Project_ANN!J6521 -> 0 | U41: =CALC_Project_ANN!K6521 -> 0 | AV41: O&M | BD41: p/kWh | BF41: 0.9648505453 | BH41: 0.9167130979 | BJ41: 0.9000202701 | BL41: 0.8953389737 | BN41: 0.8897919091 | CX41: 0 | CZ41: 0 | DB41: 0 | DD41: 0 | DF41: 0
C42: Taxes, Levies & working capital | K42: p/kWh | M42: =CALC_Project_ANN!G6522 -> 0 | O42: =CALC_Project_ANN!H6522 -> 0 | Q42: =CALC_Project_ANN!I6522 -> 0 | S42: =CALC_Project_ANN!J6522 -> 0 | U42: =CALC_Project_ANN!K6522 -> 0 | AV42: Levies | BD42: p/kWh | BF42: 0 | BH42: 0 | BJ42: 0 | BL42: 0 | BN42: 0 | CX42: 0 | CZ42: 0 | DB42: 0 | DD42: 0 | DF42: 0
C44: Levelised cost of energy | K44: p/kWh | M44: =SUM(M37:N42) -> 0 | O44: =SUM(O37:P42) -> 0 | Q44: =SUM(Q37:R42) -> 0 | S44: =SUM(S37:T42) -> 0 | U44: =SUM(U37:V42) -> 0 | AV44: Levelised cost of energy | BD44: p/kWh | BF44: 12.58419876 | BH44: 11.17973231 | BJ44: 10.3808143 | BL44: 10.14635848 | BN44: 10.06454615 | CX44: =IFERROR((M44-BF44)/M44,0) -> 0 | CZ44: =IFERROR((O44-BH44)/O44,0) -> 0 | DB44: =IFERROR((Q44-BJ44)/Q44,0) -> 0 | DD44: =IFERROR((S44-BL44)/S44,0) -> 0 | DF44: =IFERROR((U44-BN44)/U44,0) -> 0
C46: Levelised value of connection | K46: p/kWh | M46: =CALC_Project_ANN!G6611 -> 0 | O46: =CALC_Project_ANN!H6611 -> 0 | Q46: =CALC_Project_ANN!I6611 -> 0 | S46: =CALC_Project_ANN!J6611 -> 0 | U46: =CALC_Project_ANN!K6611 -> 0
C47: Levelised value of fixed charge | K47: p/kWh | M47: =CALC_Project_ANN!G6612 -> 0 | O47: =CALC_Project_ANN!H6612 -> 0 | Q47: =CALC_Project_ANN!I6612 -> 0 | S47: =CALC_Project_ANN!J6612 -> 0 | U47: =CALC_Project_ANN!K6612 -> 0 | AV47: Levelised value of fixed charge | BD47: p/kWh | BF47: 0 | BH47: 0 | BJ47: 0 | BL47: 0 | BN47: 0 | CX47: =IFERROR((M47-BF47)/M47,0) -> 0 | CZ47: =IFERROR((O47-BH47)/O47,0) -> 0 | DB47: =IFERROR((Q47-BJ47)/Q47,0) -> 0 | DD47: =IFERROR((S47-BL47)/S47,0) -> 0 | DF47: =IFERROR((U47-BN47)/U47,0) -> 0
C48: Levelised value of variable charge | K48: p/kWh | M48: =CALC_Project_ANN!G6613 -> 0 | O48: =CALC_Project_ANN!H6613 -> 0 | Q48: =CALC_Project_ANN!I6613 -> 0 | S48: =CALC_Project_ANN!J6613 -> 0 | U48: =CALC_Project_ANN!K6613 -> 0 | AV48: Levelised value of variable charge | BD48: p/kWh | BF48: 10.17542064 | BH48: 10.14027523 | BJ48: 10.12808514 | BL48: 10.12466667 | BN48: 10.12061355 | CX48: =IFERROR((M48-BF48)/M48,0) -> 0 | CZ48: =IFERROR((O48-BH48)/O48,0) -> 0 | DB48: =IFERROR((Q48-BJ48)/Q48,0) -> 0 | DD48: =IFERROR((S48-BL48)/S48,0) -> 0 | DF48: =IFERROR((U48-BN48)/U48,0) -> 0
C50: Levelised tariff | K50: p/kWh | M50: =SUM(M46:N48) -> 0 | O50: =SUM(O46:P48) -> 0 | Q50: =SUM(Q46:R48) -> 0 | S50: =SUM(S46:T48) -> 0 | U50: =SUM(U46:V48) -> 0 | AV50: Levelised tariff | BD50: p/kWh | BF50: 10.17542064 | BH50: 10.14027523 | BJ50: 10.12808514 | BL50: 10.12466667 | BN50: 10.12061355 | CX50: =IFERROR((M50-BF50)/M50,0) -> 0 | CZ50: =IFERROR((O50-BH50)/O50,0) -> 0 | DB50: =IFERROR((Q50-BJ50)/Q50,0) -> 0 | DD50: =IFERROR((S50-BL50)/S50,0) -> 0 | DF50: =IFERROR((U50-BN50)/U50,0) -> 0
C52: CAPEX ANLAYSIS | AV52: CAPEX ANLAYSIS
C54: FIRST PHASE OF CONSTRUCITON | AE54: WHOLE LIFE | AV54: FIRST PHASE OF CONSTRUCITON | BX54: WHOLE LIFE
C56: Start year | H56: Year | J56: =CALC_Project_ANN!H2193 -> 0 | Q56: Select detailed capex item for break down | AL56: =J59 -> Real | AO56: Discounted | AV56: Start year | BA56: Year | BC56: 2021 | BJ56: Select detailed capex item for break down | CE56: Real | CH56: Discounted
C57: End year | H57: Year | J57: 2029 | AE57: =SYS_Admin!D241 -> Generation | AJ57: £000 | AL57: =SUM(CALC_Graph_Ann!$E$892:$E$893) -> 0 | AO57: =CALC_Graph_Ann!K898 -> 0 | AV57: End year | BA57: Year | BC57: 2025 | BX57: Generation | CC57: £000 | CE57: 22501.46261 | CH57: 14820.35685 | DW57: =IFERROR((AL57-CE57)/AL57,0) -> 0 | DZ57: =IFERROR((AO57-CH57)/AO57,0) -> 0
C58: Duration | H58: Years | J58: =J57-J56 -> 2029 | AE58: =SYS_Admin!D242 -> Distribution | AJ58: £000 | AL58: =CALC_Graph_Ann!$E$894 -> 0 | AO58: =CALC_Graph_Ann!K899 -> 0 | AV58: Duration | BA58: Years | BC58: 4 | BX58: Distribution | CC58: £000 | CE58: 4049.191006 | CH58: 3580.828016 | DW58: =IFERROR((AL58-CE58)/AL58,0) -> 0 | DZ58: =IFERROR((AO58-CH58)/AO58,0) -> 0
C59: Money terms: | J59: Real | AE59: =SYS_Admin!D243 -> Retail | AJ59: £000 | AL59: =CALC_Graph_Ann!$E$895 -> 0 | AO59: =CALC_Graph_Ann!K900 -> 0 | AV59: Money terms: | BC59: Real | BX59: Retail | CC59: £000 | CE59: 0 | CH59: 0 | DW59: =IFERROR((AL59-CE59)/AL59,0) -> 0 | DZ59: =IFERROR((AO59-CH59)/AO59,0) -> 0
AE60: Total | AJ60: £000 | AL60: =SUM(AL57:AN59) -> 0 | AO60: =SUM(AO57:AQ59) -> 0 | BX60: Total | CC60: £000 | CE60: 26550.65362 | CH60: 18401.18486 | DW60: =IFERROR((AL60-CE60)/AL60,0) -> 0 | DZ60: =IFERROR((AO60-CH60)/AO60,0) -> 0
J61: =J59 -> Real | M61: Discounted | BC61: Real | BF61: Discounted
C62: =SYS_Admin!D241 -> Generation | H62: £000 | J62: =SUM(CALC_Graph_Ann!E866:E867) -> 0 | M62: =CALC_Graph_Ann!K884 -> 0 | X62: =J59 -> Real | AA62: Discounted | AV62: Generation | BA62: £000 | BC62: 12262.1636 | BF62: 11198.14445 | BO62: 0.1426646817 | BQ62: Real | BT62: Discounted | CU62: =IFERROR((J62-BC62)/J62,0) -> 0 | CX62: =IFERROR((M62-BF62)/M62,0) -> 0
C63: =SYS_Admin!D242 -> Distribution | H63: £000 | J63: =CALC_Graph_Ann!E868 -> 0 | M63: =CALC_Graph_Ann!K885 -> 0 | Q63: =IF(CALC_Graph_Ann!D943=0,"",CALC_Graph_Ann!D943) ->  | W63: £000 | X63: =IF(CALC_Graph_Ann!$D943=0,"",CALC_Graph_Ann!I943) ->  | AA63: =IF(CALC_Graph_Ann!$D943=0,"",CALC_Graph_Ann!J943) ->  | AV63: Distribution | BA63: £000 | BC63: 4049.191006 | BF63: 3580.828016 | BJ63: Heat distribution - installation and civils | BP63: £000 | BQ63: 3210.164 | BT63: 2839.114183 | CU63: =IFERROR((J63-BC63)/J63,0) -> 0 | CX63: =IFERROR((M63-BF63)/M63,0) -> 0 | DI63: =IFERROR((X63-BQ63)/X63,0) -> 0 | DL63: =IFERROR((AA63-BT63)/AA63,0) -> 0
C64: =SYS_Admin!D243 -> Retail | H64: £000 | J64: =CALC_Graph_Ann!E869 -> 0 | M64: =CALC_Graph_Ann!K886 -> 0 | Q64: =IF(CALC_Graph_Ann!D944=0,"",CALC_Graph_Ann!D944) ->  | W64: £000 | X64: =IF(CALC_Graph_Ann!$D944=0,"",CALC_Graph_Ann!I944) ->  | AA64: =IF(CALC_Graph_Ann!$D944=0,"",CALC_Graph_Ann!J944) ->  | AV64: Retail | BA64: £000 | BC64: 0 | BF64: 0 | BJ64: Chill distribution - installation and civils | BP64: £000 | BQ64: 0 | BT64: 0 | CU64: =IFERROR((J64-BC64)/J64,0) -> 0 | CX64: =IFERROR((M64-BF64)/M64,0) -> 0 | DI64: 0 | DL64: 0
C65: Total first phase | H65: £000 | J65: =SUM(J62:L64) -> 0 | M65: =SUM(M62:O64) -> 0 | Q65: =IF(CALC_Graph_Ann!D945=0,"",CALC_Graph_Ann!D945) ->  | W65: £000 | X65: =IF(CALC_Graph_Ann!$D945=0,"",CALC_Graph_Ann!I945) ->  | AA65: =IF(CALC_Graph_Ann!$D945=0,"",CALC_Graph_Ann!J945) ->  | AF65: GRAPH 16: | AV65: Total first phase | BA65: £000 | BC65: 16311.35461 | BF65: 14778.97246 | BJ65: Heat distribution directional drills or auger bores | BP65: £000 | BQ65: 0 | BT65: 0 | BY65: GRAPH 16: | CU65: =IFERROR((J65-BC65)/J65,0) -> 0 | CX65: =IFERROR((M65-BF65)/M65,0) -> 0 | DI65: 0 | DL65: 0
Q66: =IF(CALC_Graph_Ann!D946=0,"",CALC_Graph_Ann!D946) ->  | W66: £000 | X66: =IF(CALC_Graph_Ann!$D946=0,"",CALC_Graph_Ann!I946) ->  | AA66: =IF(CALC_Graph_Ann!$D946=0,"",CALC_Graph_Ann!J946) ->  | AF66: Whole life capex | BJ66: Chill distribution directional drills or auger bores | BP66: £000 | BQ66: 0 | BT66: 0 | BY66: Whole life capex | DI66: 0 | DL66: 0
Q67: =IF(CALC_Graph_Ann!D947=0,"",CALC_Graph_Ann!D947) ->  | W67: £000 | X67: =IF(CALC_Graph_Ann!$D947=0,"",CALC_Graph_Ann!I947) ->  | AA67: =IF(CALC_Graph_Ann!$D947=0,"",CALC_Graph_Ann!J947) ->  | BP67: £000 | DI67: 0 | DL67: 0
Q68: =IF(CALC_Graph_Ann!D948=0,"",CALC_Graph_Ann!D948) ->  | W68: £000 | X68: =IF(CALC_Graph_Ann!$D948=0,"",CALC_Graph_Ann!I948) ->  | AA68: =IF(CALC_Graph_Ann!$D948=0,"",CALC_Graph_Ann!J948) ->  | BP68: £000 | DI68: 0 | DL68: 0
E69: CHART 15 | Q69: =IF(CALC_Graph_Ann!D949=0,"",CALC_Graph_Ann!D949) ->  | W69: £000 | X69: =IF(CALC_Graph_Ann!$D949=0,"",CALC_Graph_Ann!I949) ->  | AA69: =IF(CALC_Graph_Ann!$D949=0,"",CALC_Graph_Ann!J949) ->  | AX69: CHART 15 | BP69: £000 | DI69: 0 | DL69: 0
E70: INITIAL PHASE PIE CHART | Q70: =IF(CALC_Graph_Ann!D950=0,"",CALC_Graph_Ann!D950) ->  | W70: £000 | X70: =IF(CALC_Graph_Ann!$D950=0,"",CALC_Graph_Ann!I950) ->  | AA70: =IF(CALC_Graph_Ann!$D950=0,"",CALC_Graph_Ann!J950) ->  | AX70: INITIAL PHASE PIE CHART | BP70: £000 | DI70: 0 | DL70: 0
Q71: =IF(CALC_Graph_Ann!D951=0,"",CALC_Graph_Ann!D951) ->  | W71: £000 | X71: =IF(CALC_Graph_Ann!$D951=0,"",CALC_Graph_Ann!I951) ->  | AA71: =IF(CALC_Graph_Ann!$D951=0,"",CALC_Graph_Ann!J951) ->  | BP71: £000 | DI71: 0 | DL71: 0
Q72: =IF(CALC_Graph_Ann!D952=0,"",CALC_Graph_Ann!D952) ->  | W72: £000 | X72: =IF(CALC_Graph_Ann!$D952=0,"",CALC_Graph_Ann!I952) ->  | AA72: =IF(CALC_Graph_Ann!$D952=0,"",CALC_Graph_Ann!J952) ->  | BP72: £000 | DI72: 0 | DL72: 0
Q73: =IF(CALC_Graph_Ann!D953=0,"",CALC_Graph_Ann!D953) ->  | W73: £000 | X73: =IF(CALC_Graph_Ann!$D953=0,"",CALC_Graph_Ann!I953) ->  | AA73: =IF(CALC_Graph_Ann!$D953=0,"",CALC_Graph_Ann!J953) ->  | BP73: £000 | DI73: 0 | DL73: 0
Q74: =IF(CALC_Graph_Ann!D954=0,"",CALC_Graph_Ann!D954) ->  | W74: £000 | X74: =IF(CALC_Graph_Ann!$D954=0,"",CALC_Graph_Ann!I954) ->  | AA74: =IF(CALC_Graph_Ann!$D954=0,"",CALC_Graph_Ann!J954) ->  | BP74: £000 | DI74: 0 | DL74: 0
Q75: =IF(CALC_Graph_Ann!D955=0,"",CALC_Graph_Ann!D955) ->  | W75: £000 | X75: =IF(CALC_Graph_Ann!$D955=0,"",CALC_Graph_Ann!I955) ->  | AA75: =IF(CALC_Graph_Ann!$D955=0,"",CALC_Graph_Ann!J955) ->  | BP75: £000 | DI75: 0 | DL75: 0
Q76: =IF(CALC_Graph_Ann!D956=0,"",CALC_Graph_Ann!D956) ->  | W76: £000 | X76: =IF(CALC_Graph_Ann!$D956=0,"",CALC_Graph_Ann!I956) ->  | AA76: =IF(CALC_Graph_Ann!$D956=0,"",CALC_Graph_Ann!J956) ->  | BP76: £000 | DI76: 0 | DL76: 0
Q77: =IF(CALC_Graph_Ann!D957=0,"",CALC_Graph_Ann!D957) ->  | W77: £000 | X77: =IF(CALC_Graph_Ann!$D957=0,"",CALC_Graph_Ann!I957) ->  | AA77: =IF(CALC_Graph_Ann!$D957=0,"",CALC_Graph_Ann!J957) ->  | BP77: £000 | DI77: 0 | DL77: 0
Q79: Total | W79: £000 | X79: =SUM(X63:Z77) -> 0 | AA79: =SUM(AA63:AC77) -> 0 | BJ79: Total | BP79: £000 | BQ79: 3210.164 | BT79: 2839.114183 | DI79: =IFERROR((X79-BQ79)/X79,0) -> 0 | DL79: =IFERROR((AA79-BT79)/AA79,0) -> 0
C81: TARIFF ANALYSIS | AV81: TARIFF ANALYSIS
C83: TARIFF CALIBRATION
C85: KEY TARIFF VALUES
V86: ="LEVELISED TARIFF ("&M137&", " &M135&"YR, "&M136&")" -> LEVELISED TARIFF (Whole life, 40YR, Real)
C87: Tariff | K87: Energy Type | O87: Demand | R87: Customers | V87: Connection | Y87: Fixed | AB87: Variable | AE87: Total | AI87: Connection | AL87: Fixed | AO87: Av. Variable
K88: Energy | O88: MWh/y | R88: # | V88: ="p/kWh (" & $S$33 & ")" -> p/kWh (Real) | Y88: ="p/kWh (" & $S$33 & ")" -> p/kWh (Real) | AB88: ="p/kWh (" & $S$33 & ")" -> p/kWh (Real) | AE88: ="p/kWh (" & $S$33 & ")" -> p/kWh (Real) | AI88: £000/con. | AL88: £/Day | AO88: p/kWh
C89: =INDEX(INP_EnergyTypes!$D$59:$D$88,AT89,1) -> 0 | K89: =INDEX(INP_EnergyTypes!$E$59:$E$88,AT89,1) -> 0 | O89: =SUMIF(CALC_Customers_ANN!$G$180:$G$329,C89,CALC_Customers_ANN!$K$180:$K$329)/10^3 -> 0 | R89: =SUMIF(CALC_Project_ANN!$H$3186:$H$3335,C89,CALC_Project_ANN!$K$3186:$K$3335)*(C89<>0) -> 0 | V89: =INDEX(CALC_Project_ANN!$M8524:$Q8524,1,$AT$148) -> 0 | Y89: =INDEX(CALC_Project_ANN!$S8524:$W8524,1,$AT$148) -> 0 | AB89: =INDEX(CALC_Project_ANN!$Y8524:$AC8524,1,$AT$148) -> 0 | AE89: =INDEX(CALC_Project_ANN!$G8524:$K8524,1,$AT$148) -> 0 | AI89: =INDEX(INP_EnergyTypes!$J$59:$J$88,$AT89,1) -> 0 | AL89: =INDEX(SYS_Sensitivity!$H$84:$H$113,$AT89,1) -> 0 | AO89: =INDEX(SYS_Sensitivity!$H$51:$H$80,AT89,1) -> 0 | AT89: =MAX(AT$88:AT88)+1 -> 1
C90: =INDEX(INP_EnergyTypes!$D$59:$D$88,AT90,1) -> 0 | K90: =INDEX(INP_EnergyTypes!$E$59:$E$88,AT90,1) -> 0 | O90: =SUMIF(CALC_Customers_ANN!$G$180:$G$329,C90,CALC_Customers_ANN!$K$180:$K$329)/10^3 -> 0 | R90: =SUMIF(CALC_Project_ANN!$H$3186:$H$3335,C90,CALC_Project_ANN!$K$3186:$K$3335)*(C90<>0) -> 0 | V90: =INDEX(CALC_Project_ANN!$M8525:$Q8525,1,$AT$148) -> 0 | Y90: =INDEX(CALC_Project_ANN!$S8525:$W8525,1,$AT$148) -> 0 | AB90: =INDEX(CALC_Project_ANN!$Y8525:$AC8525,1,$AT$148) -> 0 | AE90: =INDEX(CALC_Project_ANN!$G8525:$K8525,1,$AT$148) -> 0 | AI90: =INDEX(INP_EnergyTypes!$J$59:$J$88,$AT90,1) -> 0 | AL90: =INDEX(SYS_Sensitivity!$H$84:$H$113,$AT90,1) -> 0 | AO90: =INDEX(SYS_Sensitivity!$H$51:$H$80,AT90,1) -> 0 | AT90: =MAX(AT$88:AT89)+1 -> 2
C91: =INDEX(INP_EnergyTypes!$D$59:$D$88,AT91,1) -> 0 | K91: =INDEX(INP_EnergyTypes!$E$59:$E$88,AT91,1) -> 0 | O91: =SUMIF(CALC_Customers_ANN!$G$180:$G$329,C91,CALC_Customers_ANN!$K$180:$K$329)/10^3 -> 0 | R91: =SUMIF(CALC_Project_ANN!$H$3186:$H$3335,C91,CALC_Project_ANN!$K$3186:$K$3335)*(C91<>0) -> 0 | V91: =INDEX(CALC_Project_ANN!$M8526:$Q8526,1,$AT$148) -> 0 | Y91: =INDEX(CALC_Project_ANN!$S8526:$W8526,1,$AT$148) -> 0 | AB91: =INDEX(CALC_Project_ANN!$Y8526:$AC8526,1,$AT$148) -> 0 | AE91: =INDEX(CALC_Project_ANN!$G8526:$K8526,1,$AT$148) -> 0 | AI91: =INDEX(INP_EnergyTypes!$J$59:$J$88,$AT91,1) -> 0 | AL91: =INDEX(SYS_Sensitivity!$H$84:$H$113,$AT91,1) -> 0 | AO91: =INDEX(SYS_Sensitivity!$H$51:$H$80,AT91,1) -> 0 | AT91: =MAX(AT$88:AT90)+1 -> 3
C92: =INDEX(INP_EnergyTypes!$D$59:$D$88,AT92,1) -> 0 | K92: =INDEX(INP_EnergyTypes!$E$59:$E$88,AT92,1) -> 0 | O92: =SUMIF(CALC_Customers_ANN!$G$180:$G$329,C92,CALC_Customers_ANN!$K$180:$K$329)/10^3 -> 0 | R92: =SUMIF(CALC_Project_ANN!$H$3186:$H$3335,C92,CALC_Project_ANN!$K$3186:$K$3335)*(C92<>0) -> 0 | V92: =INDEX(CALC_Project_ANN!$M8527:$Q8527,1,$AT$148) -> 0 | Y92: =INDEX(CALC_Project_ANN!$S8527:$W8527,1,$AT$148) -> 0 | AB92: =INDEX(CALC_Project_ANN!$Y8527:$AC8527,1,$AT$148) -> 0 | AE92: =INDEX(CALC_Project_ANN!$G8527:$K8527,1,$AT$148) -> 0 | AI92: =INDEX(INP_EnergyTypes!$J$59:$J$88,$AT92,1) -> 0 | AL92: =INDEX(SYS_Sensitivity!$H$84:$H$113,$AT92,1) -> 0 | AO92: =INDEX(SYS_Sensitivity!$H$51:$H$80,AT92,1) -> 0 | AT92: =MAX(AT$88:AT91)+1 -> 4
C93: =INDEX(INP_EnergyTypes!$D$59:$D$88,AT93,1) -> 0 | K93: =INDEX(INP_EnergyTypes!$E$59:$E$88,AT93,1) -> 0 | O93: =SUMIF(CALC_Customers_ANN!$G$180:$G$329,C93,CALC_Customers_ANN!$K$180:$K$329)/10^3 -> 0 | R93: =SUMIF(CALC_Project_ANN!$H$3186:$H$3335,C93,CALC_Project_ANN!$K$3186:$K$3335)*(C93<>0) -> 0 | V93: =INDEX(CALC_Project_ANN!$M8528:$Q8528,1,$AT$148) -> 0 | Y93: =INDEX(CALC_Project_ANN!$S8528:$W8528,1,$AT$148) -> 0 | AB93: =INDEX(CALC_Project_ANN!$Y8528:$AC8528,1,$AT$148) -> 0 | AE93: =INDEX(CALC_Project_ANN!$G8528:$K8528,1,$AT$148) -> 0 | AI93: =INDEX(INP_EnergyTypes!$J$59:$J$88,$AT93,1) -> 0 | AL93: =INDEX(SYS_Sensitivity!$H$84:$H$113,$AT93,1) -> 0 | AO93: =INDEX(SYS_Sensitivity!$H$51:$H$80,AT93,1) -> 0 | AT93: =MAX(AT$88:AT92)+1 -> 5
C94: =INDEX(INP_EnergyTypes!$D$59:$D$88,AT94,1) -> 0 | K94: =INDEX(INP_EnergyTypes!$E$59:$E$88,AT94,1) -> 0 | O94: =SUMIF(CALC_Customers_ANN!$G$180:$G$329,C94,CALC_Customers_ANN!$K$180:$K$329)/10^3 -> 0 | R94: =SUMIF(CALC_Project_ANN!$H$3186:$H$3335,C94,CALC_Project_ANN!$K$3186:$K$3335)*(C94<>0) -> 0 | V94: =INDEX(CALC_Project_ANN!$M8529:$Q8529,1,$AT$148) -> 0 | Y94: =INDEX(CALC_Project_ANN!$S8529:$W8529,1,$AT$148) -> 0 | AB94: =INDEX(CALC_Project_ANN!$Y8529:$AC8529,1,$AT$148) -> 0 | AE94: =INDEX(CALC_Project_ANN!$G8529:$K8529,1,$AT$148) -> 0 | AI94: =INDEX(INP_EnergyTypes!$J$59:$J$88,$AT94,1) -> 0 | AL94: =INDEX(SYS_Sensitivity!$H$84:$H$113,$AT94,1) -> 0 | AO94: =INDEX(SYS_Sensitivity!$H$51:$H$80,AT94,1) -> 0 | AT94: =MAX(AT$88:AT93)+1 -> 6
C95: =INDEX(INP_EnergyTypes!$D$59:$D$88,AT95,1) -> 0 | K95: =INDEX(INP_EnergyTypes!$E$59:$E$88,AT95,1) -> 0 | O95: =SUMIF(CALC_Customers_ANN!$G$180:$G$329,C95,CALC_Customers_ANN!$K$180:$K$329)/10^3 -> 0 | R95: =SUMIF(CALC_Project_ANN!$H$3186:$H$3335,C95,CALC_Project_ANN!$K$3186:$K$3335)*(C95<>0) -> 0 | V95: =INDEX(CALC_Project_ANN!$M8530:$Q8530,1,$AT$148) -> 0 | Y95: =INDEX(CALC_Project_ANN!$S8530:$W8530,1,$AT$148) -> 0 | AB95: =INDEX(CALC_Project_ANN!$Y8530:$AC8530,1,$AT$148) -> 0 | AE95: =INDEX(CALC_Project_ANN!$G8530:$K8530,1,$AT$148) -> 0 | AI95: =INDEX(INP_EnergyTypes!$J$59:$J$88,$AT95,1) -> 0 | AL95: =INDEX(SYS_Sensitivity!$H$84:$H$113,$AT95,1) -> 0 | AO95: =INDEX(SYS_Sensitivity!$H$51:$H$80,AT95,1) -> 0 | AT95: =MAX(AT$88:AT94)+1 -> 7
C96: =INDEX(INP_EnergyTypes!$D$59:$D$88,AT96,1) -> 0 | K96: =INDEX(INP_EnergyTypes!$E$59:$E$88,AT96,1) -> 0 | O96: =SUMIF(CALC_Customers_ANN!$G$180:$G$329,C96,CALC_Customers_ANN!$K$180:$K$329)/10^3 -> 0 | R96: =SUMIF(CALC_Project_ANN!$H$3186:$H$3335,C96,CALC_Project_ANN!$K$3186:$K$3335)*(C96<>0) -> 0 | V96: =INDEX(CALC_Project_ANN!$M8531:$Q8531,1,$AT$148) -> 0 | Y96: =INDEX(CALC_Project_ANN!$S8531:$W8531,1,$AT$148) -> 0 | AB96: =INDEX(CALC_Project_ANN!$Y8531:$AC8531,1,$AT$148) -> 0 | AE96: =INDEX(CALC_Project_ANN!$G8531:$K8531,1,$AT$148) -> 0 | AI96: =INDEX(INP_EnergyTypes!$J$59:$J$88,$AT96,1) -> 0 | AL96: =INDEX(SYS_Sensitivity!$H$84:$H$113,$AT96,1) -> 0 | AO96: =INDEX(SYS_Sensitivity!$H$51:$H$80,AT96,1) -> 0 | AT96: =MAX(AT$88:AT95)+1 -> 8
C97: =INDEX(INP_EnergyTypes!$D$59:$D$88,AT97,1) -> 0 | K97: =INDEX(INP_EnergyTypes!$E$59:$E$88,AT97,1) -> 0 | O97: =SUMIF(CALC_Customers_ANN!$G$180:$G$329,C97,CALC_Customers_ANN!$K$180:$K$329)/10^3 -> 0 | R97: =SUMIF(CALC_Project_ANN!$H$3186:$H$3335,C97,CALC_Project_ANN!$K$3186:$K$3335)*(C97<>0) -> 0 | V97: =INDEX(CALC_Project_ANN!$M8532:$Q8532,1,$AT$148) -> 0 | Y97: =INDEX(CALC_Project_ANN!$S8532:$W8532,1,$AT$148) -> 0 | AB97: =INDEX(CALC_Project_ANN!$Y8532:$AC8532,1,$AT$148) -> 0 | AE97: =INDEX(CALC_Project_ANN!$G8532:$K8532,1,$AT$148) -> 0 | AI97: =INDEX(INP_EnergyTypes!$J$59:$J$88,$AT97,1) -> 0 | AL97: =INDEX(SYS_Sensitivity!$H$84:$H$113,$AT97,1) -> 0 | AO97: =INDEX(SYS_Sensitivity!$H$51:$H$80,AT97,1) -> 0 | AT97: =MAX(AT$88:AT96)+1 -> 9
C98: =INDEX(INP_EnergyTypes!$D$59:$D$88,AT98,1) -> 0 | K98: =INDEX(INP_EnergyTypes!$E$59:$E$88,AT98,1) -> 0 | O98: =SUMIF(CALC_Customers_ANN!$G$180:$G$329,C98,CALC_Customers_ANN!$K$180:$K$329)/10^3 -> 0 | R98: =SUMIF(CALC_Project_ANN!$H$3186:$H$3335,C98,CALC_Project_ANN!$K$3186:$K$3335)*(C98<>0) -> 0 | V98: =INDEX(CALC_Project_ANN!$M8533:$Q8533,1,$AT$148) -> 0 | Y98: =INDEX(CALC_Project_ANN!$S8533:$W8533,1,$AT$148) -> 0 | AB98: =INDEX(CALC_Project_ANN!$Y8533:$AC8533,1,$AT$148) -> 0 | AE98: =INDEX(CALC_Project_ANN!$G8533:$K8533,1,$AT$148) -> 0 | AI98: =INDEX(INP_EnergyTypes!$J$59:$J$88,$AT98,1) -> 0 | AL98: =INDEX(SYS_Sensitivity!$H$84:$H$113,$AT98,1) -> 0 | AO98: =INDEX(SYS_Sensitivity!$H$51:$H$80,AT98,1) -> 0 | AT98: =MAX(AT$88:AT97)+1 -> 10
C99: =INDEX(INP_EnergyTypes!$D$59:$D$88,AT99,1) -> 0 | K99: =INDEX(INP_EnergyTypes!$E$59:$E$88,AT99,1) -> 0 | O99: =SUMIF(CALC_Customers_ANN!$G$180:$G$329,C99,CALC_Customers_ANN!$K$180:$K$329)/10^3 -> 0 | R99: =SUMIF(CALC_Project_ANN!$H$3186:$H$3335,C99,CALC_Project_ANN!$K$3186:$K$3335)*(C99<>0) -> 0 | V99: =INDEX(CALC_Project_ANN!$M8534:$Q8534,1,$AT$148) -> 0 | Y99: =INDEX(CALC_Project_ANN!$S8534:$W8534,1,$AT$148) -> 0 | AB99: =INDEX(CALC_Project_ANN!$Y8534:$AC8534,1,$AT$148) -> 0 | AE99: =INDEX(CALC_Project_ANN!$G8534:$K8534,1,$AT$148) -> 0 | AI99: =INDEX(INP_EnergyTypes!$J$59:$J$88,$AT99,1) -> 0 | AL99: =INDEX(SYS_Sensitivity!$H$84:$H$113,$AT99,1) -> 0 | AO99: =INDEX(SYS_Sensitivity!$H$51:$H$80,AT99,1) -> 0 | AT99: =MAX(AT$88:AT98)+1 -> 11
C100: =INDEX(INP_EnergyTypes!$D$59:$D$88,AT100,1) -> 0 | K100: =INDEX(INP_EnergyTypes!$E$59:$E$88,AT100,1) -> 0 | O100: =SUMIF(CALC_Customers_ANN!$G$180:$G$329,C100,CALC_Customers_ANN!$K$180:$K$329)/10^3 -> 0 | R100: =SUMIF(CALC_Project_ANN!$H$3186:$H$3335,C100,CALC_Project_ANN!$K$3186:$K$3335)*(C100<>0) -> 0 | V100: =INDEX(CALC_Project_ANN!$M8535:$Q8535,1,$AT$148) -> 0 | Y100: =INDEX(CALC_Project_ANN!$S8535:$W8535,1,$AT$148) -> 0 | AB100: =INDEX(CALC_Project_ANN!$Y8535:$AC8535,1,$AT$148) -> 0 | AE100: =INDEX(CALC_Project_ANN!$G8535:$K8535,1,$AT$148) -> 0 | AI100: =INDEX(INP_EnergyTypes!$J$59:$J$88,$AT100,1) -> 0 | AL100: =INDEX(SYS_Sensitivity!$H$84:$H$113,$AT100,1) -> 0 | AO100: =INDEX(SYS_Sensitivity!$H$51:$H$80,AT100,1) -> 0 | AT100: =MAX(AT$88:AT99)+1 -> 12
C101: =INDEX(INP_EnergyTypes!$D$59:$D$88,AT101,1) -> 0 | K101: =INDEX(INP_EnergyTypes!$E$59:$E$88,AT101,1) -> 0 | O101: =SUMIF(CALC_Customers_ANN!$G$180:$G$329,C101,CALC_Customers_ANN!$K$180:$K$329)/10^3 -> 0 | R101: =SUMIF(CALC_Project_ANN!$H$3186:$H$3335,C101,CALC_Project_ANN!$K$3186:$K$3335)*(C101<>0) -> 0 | V101: =INDEX(CALC_Project_ANN!$M8536:$Q8536,1,$AT$148) -> 0 | Y101: =INDEX(CALC_Project_ANN!$S8536:$W8536,1,$AT$148) -> 0 | AB101: =INDEX(CALC_Project_ANN!$Y8536:$AC8536,1,$AT$148) -> 0 | AE101: =INDEX(CALC_Project_ANN!$G8536:$K8536,1,$AT$148) -> 0 | AI101: =INDEX(INP_EnergyTypes!$J$59:$J$88,$AT101,1) -> 0 | AL101: =INDEX(SYS_Sensitivity!$H$84:$H$113,$AT101,1) -> 0 | AO101: =INDEX(SYS_Sensitivity!$H$51:$H$80,AT101,1) -> 0 | AT101: =MAX(AT$88:AT100)+1 -> 13
C102: =INDEX(INP_EnergyTypes!$D$59:$D$88,AT102,1) -> 0 | K102: =INDEX(INP_EnergyTypes!$E$59:$E$88,AT102,1) -> 0 | O102: =SUMIF(CALC_Customers_ANN!$G$180:$G$329,C102,CALC_Customers_ANN!$K$180:$K$329)/10^3 -> 0 | R102: =SUMIF(CALC_Project_ANN!$H$3186:$H$3335,C102,CALC_Project_ANN!$K$3186:$K$3335)*(C102<>0) -> 0 | V102: =INDEX(CALC_Project_ANN!$M8537:$Q8537,1,$AT$148) -> 0 | Y102: =INDEX(CALC_Project_ANN!$S8537:$W8537,1,$AT$148) -> 0 | AB102: =INDEX(CALC_Project_ANN!$Y8537:$AC8537,1,$AT$148) -> 0 | AE102: =INDEX(CALC_Project_ANN!$G8537:$K8537,1,$AT$148) -> 0 | AI102: =INDEX(INP_EnergyTypes!$J$59:$J$88,$AT102,1) -> 0 | AL102: =INDEX(SYS_Sensitivity!$H$84:$H$113,$AT102,1) -> 0 | AO102: =INDEX(SYS_Sensitivity!$H$51:$H$80,AT102,1) -> 0 | AT102: =MAX(AT$88:AT101)+1 -> 14
C103: =INDEX(INP_EnergyTypes!$D$59:$D$88,AT103,1) -> 0 | K103: =INDEX(INP_EnergyTypes!$E$59:$E$88,AT103,1) -> 0 | O103: =SUMIF(CALC_Customers_ANN!$G$180:$G$329,C103,CALC_Customers_ANN!$K$180:$K$329)/10^3 -> 0 | R103: =SUMIF(CALC_Project_ANN!$H$3186:$H$3335,C103,CALC_Project_ANN!$K$3186:$K$3335)*(C103<>0) -> 0 | V103: =INDEX(CALC_Project_ANN!$M8538:$Q8538,1,$AT$148) -> 0 | Y103: =INDEX(CALC_Project_ANN!$S8538:$W8538,1,$AT$148) -> 0 | AB103: =INDEX(CALC_Project_ANN!$Y8538:$AC8538,1,$AT$148) -> 0 | AE103: =INDEX(CALC_Project_ANN!$G8538:$K8538,1,$AT$148) -> 0 | AI103: =INDEX(INP_EnergyTypes!$J$59:$J$88,$AT103,1) -> 0 | AL103: =INDEX(SYS_Sensitivity!$H$84:$H$113,$AT103,1) -> 0 | AO103: =INDEX(SYS_Sensitivity!$H$51:$H$80,AT103,1) -> 0 | AT103: =MAX(AT$88:AT102)+1 -> 15
C104: =INDEX(INP_EnergyTypes!$D$59:$D$88,AT104,1) -> 0 | K104: =INDEX(INP_EnergyTypes!$E$59:$E$88,AT104,1) -> 0 | O104: =SUMIF(CALC_Customers_ANN!$G$180:$G$329,C104,CALC_Customers_ANN!$K$180:$K$329)/10^3 -> 0 | R104: =SUMIF(CALC_Project_ANN!$H$3186:$H$3335,C104,CALC_Project_ANN!$K$3186:$K$3335)*(C104<>0) -> 0 | V104: =INDEX(CALC_Project_ANN!$M8539:$Q8539,1,$AT$148) -> 0 | Y104: =INDEX(CALC_Project_ANN!$S8539:$W8539,1,$AT$148) -> 0 | AB104: =INDEX(CALC_Project_ANN!$Y8539:$AC8539,1,$AT$148) -> 0 | AE104: =INDEX(CALC_Project_ANN!$G8539:$K8539,1,$AT$148) -> 0 | AI104: =INDEX(INP_EnergyTypes!$J$59:$J$88,$AT104,1) -> 0 | AL104: =INDEX(SYS_Sensitivity!$H$84:$H$113,$AT104,1) -> 0 | AO104: =INDEX(SYS_Sensitivity!$H$51:$H$80,AT104,1) -> 0 | AT104: =MAX(AT$88:AT103)+1 -> 16
C105: =INDEX(INP_EnergyTypes!$D$59:$D$88,AT105,1) -> 0 | K105: =INDEX(INP_EnergyTypes!$E$59:$E$88,AT105,1) -> 0 | O105: =SUMIF(CALC_Customers_ANN!$G$180:$G$329,C105,CALC_Customers_ANN!$K$180:$K$329)/10^3 -> 0 | R105: =SUMIF(CALC_Project_ANN!$H$3186:$H$3335,C105,CALC_Project_ANN!$K$3186:$K$3335)*(C105<>0) -> 0 | V105: =INDEX(CALC_Project_ANN!$M8540:$Q8540,1,$AT$148) -> 0 | Y105: =INDEX(CALC_Project_ANN!$S8540:$W8540,1,$AT$148) -> 0 | AB105: =INDEX(CALC_Project_ANN!$Y8540:$AC8540,1,$AT$148) -> 0 | AE105: =INDEX(CALC_Project_ANN!$G8540:$K8540,1,$AT$148) -> 0 | AI105: =INDEX(INP_EnergyTypes!$J$59:$J$88,$AT105,1) -> 0 | AL105: =INDEX(SYS_Sensitivity!$H$84:$H$113,$AT105,1) -> 0 | AO105: =INDEX(SYS_Sensitivity!$H$51:$H$80,AT105,1) -> 0 | AT105: =MAX(AT$88:AT104)+1 -> 17
C106: =INDEX(INP_EnergyTypes!$D$59:$D$88,AT106,1) -> 0 | K106: =INDEX(INP_EnergyTypes!$E$59:$E$88,AT106,1) -> 0 | O106: =SUMIF(CALC_Customers_ANN!$G$180:$G$329,C106,CALC_Customers_ANN!$K$180:$K$329)/10^3 -> 0 | R106: =SUMIF(CALC_Project_ANN!$H$3186:$H$3335,C106,CALC_Project_ANN!$K$3186:$K$3335)*(C106<>0) -> 0 | V106: =INDEX(CALC_Project_ANN!$M8541:$Q8541,1,$AT$148) -> 0 | Y106: =INDEX(CALC_Project_ANN!$S8541:$W8541,1,$AT$148) -> 0 | AB106: =INDEX(CALC_Project_ANN!$Y8541:$AC8541,1,$AT$148) -> 0 | AE106: =INDEX(CALC_Project_ANN!$G8541:$K8541,1,$AT$148) -> 0 | AI106: =INDEX(INP_EnergyTypes!$J$59:$J$88,$AT106,1) -> 0 | AL106: =INDEX(SYS_Sensitivity!$H$84:$H$113,$AT106,1) -> 0 | AO106: =INDEX(SYS_Sensitivity!$H$51:$H$80,AT106,1) -> 0 | AT106: =MAX(AT$88:AT105)+1 -> 18
C107: =INDEX(INP_EnergyTypes!$D$59:$D$88,AT107,1) -> 0 | K107: =INDEX(INP_EnergyTypes!$E$59:$E$88,AT107,1) -> 0 | O107: =SUMIF(CALC_Customers_ANN!$G$180:$G$329,C107,CALC_Customers_ANN!$K$180:$K$329)/10^3 -> 0 | R107: =SUMIF(CALC_Project_ANN!$H$3186:$H$3335,C107,CALC_Project_ANN!$K$3186:$K$3335)*(C107<>0) -> 0 | V107: =INDEX(CALC_Project_ANN!$M8542:$Q8542,1,$AT$148) -> 0 | Y107: =INDEX(CALC_Project_ANN!$S8542:$W8542,1,$AT$148) -> 0 | AB107: =INDEX(CALC_Project_ANN!$Y8542:$AC8542,1,$AT$148) -> 0 | AE107: =INDEX(CALC_Project_ANN!$G8542:$K8542,1,$AT$148) -> 0 | AI107: =INDEX(INP_EnergyTypes!$J$59:$J$88,$AT107,1) -> 0 | AL107: =INDEX(SYS_Sensitivity!$H$84:$H$113,$AT107,1) -> 0 | AO107: =INDEX(SYS_Sensitivity!$H$51:$H$80,AT107,1) -> 0 | AT107: =MAX(AT$88:AT106)+1 -> 19
C108: =INDEX(INP_EnergyTypes!$D$59:$D$88,AT108,1) -> 0 | K108: =INDEX(INP_EnergyTypes!$E$59:$E$88,AT108,1) -> 0 | O108: =SUMIF(CALC_Customers_ANN!$G$180:$G$329,C108,CALC_Customers_ANN!$K$180:$K$329)/10^3 -> 0 | R108: =SUMIF(CALC_Project_ANN!$H$3186:$H$3335,C108,CALC_Project_ANN!$K$3186:$K$3335)*(C108<>0) -> 0 | V108: =INDEX(CALC_Project_ANN!$M8543:$Q8543,1,$AT$148) -> 0 | Y108: =INDEX(CALC_Project_ANN!$S8543:$W8543,1,$AT$148) -> 0 | AB108: =INDEX(CALC_Project_ANN!$Y8543:$AC8543,1,$AT$148) -> 0 | AE108: =INDEX(CALC_Project_ANN!$G8543:$K8543,1,$AT$148) -> 0 | AI108: =INDEX(INP_EnergyTypes!$J$59:$J$88,$AT108,1) -> 0 | AL108: =INDEX(SYS_Sensitivity!$H$84:$H$113,$AT108,1) -> 0 | AO108: =INDEX(SYS_Sensitivity!$H$51:$H$80,AT108,1) -> 0 | AT108: =MAX(AT$88:AT107)+1 -> 20
C109: =INDEX(INP_EnergyTypes!$D$59:$D$88,AT109,1) -> 0 | K109: =INDEX(INP_EnergyTypes!$E$59:$E$88,AT109,1) -> 0 | O109: =SUMIF(CALC_Customers_ANN!$G$180:$G$329,C109,CALC_Customers_ANN!$K$180:$K$329)/10^3 -> 0 | R109: =SUMIF(CALC_Project_ANN!$H$3186:$H$3335,C109,CALC_Project_ANN!$K$3186:$K$3335)*(C109<>0) -> 0 | V109: =INDEX(CALC_Project_ANN!$M8544:$Q8544,1,$AT$148) -> 0 | Y109: =INDEX(CALC_Project_ANN!$S8544:$W8544,1,$AT$148) -> 0 | AB109: =INDEX(CALC_Project_ANN!$Y8544:$AC8544,1,$AT$148) -> 0 | AE109: =INDEX(CALC_Project_ANN!$G8544:$K8544,1,$AT$148) -> 0 | AI109: =INDEX(INP_EnergyTypes!$J$59:$J$88,$AT109,1) -> 0 | AL109: =INDEX(SYS_Sensitivity!$H$84:$H$113,$AT109,1) -> 0 | AO109: =INDEX(SYS_Sensitivity!$H$51:$H$80,AT109,1) -> 0 | AT109: =MAX(AT$88:AT108)+1 -> 21
C110: =INDEX(INP_EnergyTypes!$D$59:$D$88,AT110,1) -> 0 | K110: =INDEX(INP_EnergyTypes!$E$59:$E$88,AT110,1) -> 0 | O110: =SUMIF(CALC_Customers_ANN!$G$180:$G$329,C110,CALC_Customers_ANN!$K$180:$K$329)/10^3 -> 0 | R110: =SUMIF(CALC_Project_ANN!$H$3186:$H$3335,C110,CALC_Project_ANN!$K$3186:$K$3335)*(C110<>0) -> 0 | V110: =INDEX(CALC_Project_ANN!$M8545:$Q8545,1,$AT$148) -> 0 | Y110: =INDEX(CALC_Project_ANN!$S8545:$W8545,1,$AT$148) -> 0 | AB110: =INDEX(CALC_Project_ANN!$Y8545:$AC8545,1,$AT$148) -> 0 | AE110: =INDEX(CALC_Project_ANN!$G8545:$K8545,1,$AT$148) -> 0 | AI110: =INDEX(INP_EnergyTypes!$J$59:$J$88,$AT110,1) -> 0 | AL110: =INDEX(SYS_Sensitivity!$H$84:$H$113,$AT110,1) -> 0 | AO110: =INDEX(SYS_Sensitivity!$H$51:$H$80,AT110,1) -> 0 | AT110: =MAX(AT$88:AT109)+1 -> 22
C111: =INDEX(INP_EnergyTypes!$D$59:$D$88,AT111,1) -> 0 | K111: =INDEX(INP_EnergyTypes!$E$59:$E$88,AT111,1) -> 0 | O111: =SUMIF(CALC_Customers_ANN!$G$180:$G$329,C111,CALC_Customers_ANN!$K$180:$K$329)/10^3 -> 0 | R111: =SUMIF(CALC_Project_ANN!$H$3186:$H$3335,C111,CALC_Project_ANN!$K$3186:$K$3335)*(C111<>0) -> 0 | V111: =INDEX(CALC_Project_ANN!$M8546:$Q8546,1,$AT$148) -> 0 | Y111: =INDEX(CALC_Project_ANN!$S8546:$W8546,1,$AT$148) -> 0 | AB111: =INDEX(CALC_Project_ANN!$Y8546:$AC8546,1,$AT$148) -> 0 | AE111: =INDEX(CALC_Project_ANN!$G8546:$K8546,1,$AT$148) -> 0 | AI111: =INDEX(INP_EnergyTypes!$J$59:$J$88,$AT111,1) -> 0 | AL111: =INDEX(SYS_Sensitivity!$H$84:$H$113,$AT111,1) -> 0 | AO111: =INDEX(SYS_Sensitivity!$H$51:$H$80,AT111,1) -> 0 | AT111: =MAX(AT$88:AT110)+1 -> 23
C112: =INDEX(INP_EnergyTypes!$D$59:$D$88,AT112,1) -> 0 | K112: =INDEX(INP_EnergyTypes!$E$59:$E$88,AT112,1) -> 0 | O112: =SUMIF(CALC_Customers_ANN!$G$180:$G$329,C112,CALC_Customers_ANN!$K$180:$K$329)/10^3 -> 0 | R112: =SUMIF(CALC_Project_ANN!$H$3186:$H$3335,C112,CALC_Project_ANN!$K$3186:$K$3335)*(C112<>0) -> 0 | V112: =INDEX(CALC_Project_ANN!$M8547:$Q8547,1,$AT$148) -> 0 | Y112: =INDEX(CALC_Project_ANN!$S8547:$W8547,1,$AT$148) -> 0 | AB112: =INDEX(CALC_Project_ANN!$Y8547:$AC8547,1,$AT$148) -> 0 | AE112: =INDEX(CALC_Project_ANN!$G8547:$K8547,1,$AT$148) -> 0 | AI112: =INDEX(INP_EnergyTypes!$J$59:$J$88,$AT112,1) -> 0 | AL112: =INDEX(SYS_Sensitivity!$H$84:$H$113,$AT112,1) -> 0 | AO112: =INDEX(SYS_Sensitivity!$H$51:$H$80,AT112,1) -> 0 | AT112: =MAX(AT$88:AT111)+1 -> 24
C113: =INDEX(INP_EnergyTypes!$D$59:$D$88,AT113,1) -> 0 | K113: =INDEX(INP_EnergyTypes!$E$59:$E$88,AT113,1) -> 0 | O113: =SUMIF(CALC_Customers_ANN!$G$180:$G$329,C113,CALC_Customers_ANN!$K$180:$K$329)/10^3 -> 0 | R113: =SUMIF(CALC_Project_ANN!$H$3186:$H$3335,C113,CALC_Project_ANN!$K$3186:$K$3335)*(C113<>0) -> 0 | V113: =INDEX(CALC_Project_ANN!$M8548:$Q8548,1,$AT$148) -> 0 | Y113: =INDEX(CALC_Project_ANN!$S8548:$W8548,1,$AT$148) -> 0 | AB113: =INDEX(CALC_Project_ANN!$Y8548:$AC8548,1,$AT$148) -> 0 | AE113: =INDEX(CALC_Project_ANN!$G8548:$K8548,1,$AT$148) -> 0 | AI113: =INDEX(INP_EnergyTypes!$J$59:$J$88,$AT113,1) -> 0 | AL113: =INDEX(SYS_Sensitivity!$H$84:$H$113,$AT113,1) -> 0 | AO113: =INDEX(SYS_Sensitivity!$H$51:$H$80,AT113,1) -> 0 | AT113: =MAX(AT$88:AT112)+1 -> 25
C114: =INDEX(INP_EnergyTypes!$D$59:$D$88,AT114,1) -> 0 | K114: =INDEX(INP_EnergyTypes!$E$59:$E$88,AT114,1) -> 0 | O114: =SUMIF(CALC_Customers_ANN!$G$180:$G$329,C114,CALC_Customers_ANN!$K$180:$K$329)/10^3 -> 0 | R114: =SUMIF(CALC_Project_ANN!$H$3186:$H$3335,C114,CALC_Project_ANN!$K$3186:$K$3335)*(C114<>0) -> 0 | V114: =INDEX(CALC_Project_ANN!$M8549:$Q8549,1,$AT$148) -> 0 | Y114: =INDEX(CALC_Project_ANN!$S8549:$W8549,1,$AT$148) -> 0 | AB114: =INDEX(CALC_Project_ANN!$Y8549:$AC8549,1,$AT$148) -> 0 | AE114: =INDEX(CALC_Project_ANN!$G8549:$K8549,1,$AT$148) -> 0 | AI114: =INDEX(INP_EnergyTypes!$J$59:$J$88,$AT114,1) -> 0 | AL114: =INDEX(SYS_Sensitivity!$H$84:$H$113,$AT114,1) -> 0 | AO114: =INDEX(SYS_Sensitivity!$H$51:$H$80,AT114,1) -> 0 | AT114: =MAX(AT$88:AT113)+1 -> 26
C115: =INDEX(INP_EnergyTypes!$D$59:$D$88,AT115,1) -> 0 | K115: =INDEX(INP_EnergyTypes!$E$59:$E$88,AT115,1) -> 0 | O115: =SUMIF(CALC_Customers_ANN!$G$180:$G$329,C115,CALC_Customers_ANN!$K$180:$K$329)/10^3 -> 0 | R115: =SUMIF(CALC_Project_ANN!$H$3186:$H$3335,C115,CALC_Project_ANN!$K$3186:$K$3335)*(C115<>0) -> 0 | V115: =INDEX(CALC_Project_ANN!$M8550:$Q8550,1,$AT$148) -> 0 | Y115: =INDEX(CALC_Project_ANN!$S8550:$W8550,1,$AT$148) -> 0 | AB115: =INDEX(CALC_Project_ANN!$Y8550:$AC8550,1,$AT$148) -> 0 | AE115: =INDEX(CALC_Project_ANN!$G8550:$K8550,1,$AT$148) -> 0 | AI115: =INDEX(INP_EnergyTypes!$J$59:$J$88,$AT115,1) -> 0 | AL115: =INDEX(SYS_Sensitivity!$H$84:$H$113,$AT115,1) -> 0 | AO115: =INDEX(SYS_Sensitivity!$H$51:$H$80,AT115,1) -> 0 | AT115: =MAX(AT$88:AT114)+1 -> 27
C116: =INDEX(INP_EnergyTypes!$D$59:$D$88,AT116,1) -> 0 | K116: =INDEX(INP_EnergyTypes!$E$59:$E$88,AT116,1) -> 0 | O116: =SUMIF(CALC_Customers_ANN!$G$180:$G$329,C116,CALC_Customers_ANN!$K$180:$K$329)/10^3 -> 0 | R116: =SUMIF(CALC_Project_ANN!$H$3186:$H$3335,C116,CALC_Project_ANN!$K$3186:$K$3335)*(C116<>0) -> 0 | V116: =INDEX(CALC_Project_ANN!$M8551:$Q8551,1,$AT$148) -> 0 | Y116: =INDEX(CALC_Project_ANN!$S8551:$W8551,1,$AT$148) -> 0 | AB116: =INDEX(CALC_Project_ANN!$Y8551:$AC8551,1,$AT$148) -> 0 | AE116: =INDEX(CALC_Project_ANN!$G8551:$K8551,1,$AT$148) -> 0 | AI116: =INDEX(INP_EnergyTypes!$J$59:$J$88,$AT116,1) -> 0 | AL116: =INDEX(SYS_Sensitivity!$H$84:$H$113,$AT116,1) -> 0 | AO116: =INDEX(SYS_Sensitivity!$H$51:$H$80,AT116,1) -> 0 | AT116: =MAX(AT$88:AT115)+1 -> 28
C117: =INDEX(INP_EnergyTypes!$D$59:$D$88,AT117,1) -> 0 | K117: =INDEX(INP_EnergyTypes!$E$59:$E$88,AT117,1) -> 0 | O117: =SUMIF(CALC_Customers_ANN!$G$180:$G$329,C117,CALC_Customers_ANN!$K$180:$K$329)/10^3 -> 0 | R117: =SUMIF(CALC_Project_ANN!$H$3186:$H$3335,C117,CALC_Project_ANN!$K$3186:$K$3335)*(C117<>0) -> 0 | V117: =INDEX(CALC_Project_ANN!$M8552:$Q8552,1,$AT$148) -> 0 | Y117: =INDEX(CALC_Project_ANN!$S8552:$W8552,1,$AT$148) -> 0 | AB117: =INDEX(CALC_Project_ANN!$Y8552:$AC8552,1,$AT$148) -> 0 | AE117: =INDEX(CALC_Project_ANN!$G8552:$K8552,1,$AT$148) -> 0 | AI117: =INDEX(INP_EnergyTypes!$J$59:$J$88,$AT117,1) -> 0 | AL117: =INDEX(SYS_Sensitivity!$H$84:$H$113,$AT117,1) -> 0 | AO117: =INDEX(SYS_Sensitivity!$H$51:$H$80,AT117,1) -> 0 | AT117: =MAX(AT$88:AT116)+1 -> 29
C118: =INDEX(INP_EnergyTypes!$D$59:$D$88,AT118,1) -> 0 | K118: =INDEX(INP_EnergyTypes!$E$59:$E$88,AT118,1) -> 0 | O118: =SUMIF(CALC_Customers_ANN!$G$180:$G$329,C118,CALC_Customers_ANN!$K$180:$K$329)/10^3 -> 0 | R118: =SUMIF(CALC_Project_ANN!$H$3186:$H$3335,C118,CALC_Project_ANN!$K$3186:$K$3335)*(C118<>0) -> 0 | V118: =INDEX(CALC_Project_ANN!$M8553:$Q8553,1,$AT$148) -> 0 | Y118: =INDEX(CALC_Project_ANN!$S8553:$W8553,1,$AT$148) -> 0 | AB118: =INDEX(CALC_Project_ANN!$Y8553:$AC8553,1,$AT$148) -> 0 | AE118: =INDEX(CALC_Project_ANN!$G8553:$K8553,1,$AT$148) -> 0 | AI118: =INDEX(INP_EnergyTypes!$J$59:$J$88,$AT118,1) -> 0 | AL118: =INDEX(SYS_Sensitivity!$H$84:$H$113,$AT118,1) -> 0 | AO118: =INDEX(SYS_Sensitivity!$H$51:$H$80,AT118,1) -> 0 | AT118: =MAX(AT$88:AT117)+1 -> 30
C120: Total | O120: =SUM(O89:Q118) -> 0 | R120: =SUM(R89:T118) -> 0
C121: kWh weighted average | K121: =S31 -> LTHW | V121: =CHOOSE($AT$148,M46,O46,Q46,S46,U46) -> 0 | Y121: =CHOOSE($AT$148,M47,O47,Q47,S47,U47) -> 0 | AB121: =CHOOSE($AT$148,M48,O48,Q48,S48,U48) -> 0 | AE121: =SUM(V121:AD121) -> 0
C123: SOLVE TARIFF BY TARGET RETURNS | X123: KEY METRICS IMPACTED BY TARIFF CHANGE: | AI123: Appraisal | AL123: Discount | AO123: NPV
AI124: Years | AL124: % | AO124: £000
X125: =SYS_Admin!D189 -> Project_real_pre_tax_pre_grant | AI125: =$K$16 -> 40 | AL125: =$K$15 -> 0.035 | AO125: =CALC_Solves!H133 -> 0 | AT125: =X125=$M$139 -> FALSE
X126: =SYS_Admin!D190 -> Project_real_pre_tax_post_grant | AI126: =$K$16 -> 40 | AL126: =$K$15 -> 0.035 | AO126: =CALC_Solves!H134 -> 0 | AT126: =X126=$M$139 -> TRUE
X127: =SYS_Admin!D191 -> Project_real_post_tax_pre_grant | AI127: =$Q$16 -> 40 | AL127: =$Q$15 -> 0.028 | AO127: =CALC_Solves!H135 -> 0 | AT127: FALSE
X128: =SYS_Admin!D192 -> Project_real_post_tax_post_grant | AI128: =$Q$16 -> 40 | AL128: =$Q$15 -> 0.028 | AO128: =CALC_Solves!H136 -> 0 | AT128: FALSE
X129: =SYS_Admin!D193 -> Project_nominal_pre_tax_pre_grant | AI129: =$N$16 -> 40 | AL129: =$N$15 -> 0.060875 | AO129: =CALC_Solves!H137 -> 0 | AT129: FALSE
X130: =SYS_Admin!D194 -> Project_nominal_pre_tax_post_grant | AI130: =$N$16 -> 40 | AL130: =$N$15 -> 0.060875 | AO130: =CALC_Solves!H138 -> 0 | AT130: FALSE
X131: =SYS_Admin!D195 -> Project_nominal_post_tax_pre_grant | AI131: =$T$16 -> 40 | AL131: =$T$15 -> 0.0537 | AO131: =CALC_Solves!H139 -> 0 | AT131: FALSE
X132: =SYS_Admin!D196 -> Project_nominal_post_tax_post_grant | AI132: =$T$16 -> 40 | AL132: =$T$15 -> 0.0537 | AO132: =CALC_Solves!H140 -> 0 | AT132: FALSE
X133: =SYS_Admin!D197 -> Social_real_pre_tax | AI133: =$K$16 -> 40 | AL133: =$K$15 -> 0.035 | AO133: =CALC_Solves!H141 -> 0 | AT133: FALSE
X134: =SYS_Admin!D198 -> Social_real_post_tax | AI134: =$Q$16 -> 40 | AL134: =$Q$15 -> 0.028 | AO134: =CALC_Solves!H142 -> 0 | AT134: FALSE
C135: Recovery period: | L135: years | M135: 40 | X135: =SYS_Admin!D199 -> Social_nominal_pre_tax | AI135: =$N$16 -> 40 | AL135: =$N$15 -> 0.060875 | AO135: =CALC_Solves!H143 -> 0 | AT135: FALSE
C136: Solve tariff on real or nominal basis: | L136: R/N | M136: Real | X136: =SYS_Admin!D200 -> Social_nominal_post_tax | AI136: =$T$16 -> 40 | AL136: =$T$15 -> 0.0537 | AO136: =CALC_Solves!H144 -> 0 | AT136: FALSE
C137: Whole life or T0 solve? | L137: list | M137: Whole life | X137: =SYS_Admin!D201 -> Levered_NPV | AF137: OpCo1 | AI137: =CHOOSE(MATCH(AF137,lstOpCos,0),$AI$445,$AL$445,$AO$445) -> 40 | AL137: =$O$462 -> 0 | AO137: =CALC_Solves!H145 -> 0 | AT137: FALSE
C138: Solve with: | L138: list | M138: Fixed + Variable | X138: =SYS_Admin!D202 -> Social Equity NPV | AF138: OpCo1 | AI138: =CHOOSE(MATCH(AF138,lstOpCos,0),$AI$445,$AL$445,$AO$445) -> 40 | AL138: =$O$462 -> 0 | AO138: =CALC_Solves!H146 -> 0 | AT138: FALSE
C139: Solve to: | L139: list | M139: Project_real_pre_tax_post_grant | X139: =SYS_Admin!D203 -> Investor NPV @ cost of equity | AI139: =$O$483 -> 40 | AL139: =$O$485 -> 0.035 | AO139: =CALC_Solves!H147 -> 0 | AT139: FALSE
X140: =SYS_Admin!D204 -> Blended Investor NPV | AI140: =$O$483 -> 40 | AL140: =$O$485 -> 0.035 | AO140: =CALC_Solves!H148 -> 0 | AT140: FALSE
C141: SOLVE TARIFF BY TARGET PRICE
X142: =IF(M144,"All " & S31 & " levelised tariff values:", S31 & " Levelised values of selected tariffs:") -> All LTHW levelised tariff values: | AK142: Temporary values for user:
C143: Solve to: | L143: p/kWh | X143: Connection | AA143: Fixed | AD143: Variable | AG143: Total
C144: Solve to all tariffs combined? | L144: T/F | M144: TRUE | X144: ="p/kWh (" & $S$33 & ")" -> p/kWh (Real) | AA144: ="p/kWh (" & $S$33 & ")" -> p/kWh (Real) | AD144: ="p/kWh (" & $S$33 & ")" -> p/kWh (Real) | AG144: ="p/kWh (" & $S$33 & ")" -> p/kWh (Real)
X145: =CALC_Solves!G421 -> 0 | AA145: =CALC_Solves!H421 -> 0 | AD145: =CALC_Solves!I421 -> 0 | AG145: =CALC_Solves!J421 -> 0
C147: CUSTOMER DETRIMENT ANALYSIS | AT147: Match
AE148: Energy analysed: | AF148: =INDEX(INP_EnergyTypes!$H$15:$I$24,MATCH(S31,lstEnergy,0),1) ->  | AN148: Real discount rate: | AO148: 0.1 | AT148: =MATCH(M135,lstLOCEperiods,0) -> 4
C149: Combined Customer Analysis | L149: Real | S149: Assessment: | U149: years | V149: 40 | AE149: T0 or whole life cost? | AF149: Whole life | AN149: Inflation assumption: | AO149: 0.015
L150: p/kWh | AC150: p/kWh
C151: =$AF$149&" connection charge (" & $L$149 & " " &$V$149&"YR)" -> Whole life connection charge (Real 40YR) | L151: =CALC_Project_ANN!H2984 ->  | T151: =$AF$149&" heating plant purchase (" & $L$149 & " " &$V$149&"YR)" -> Whole life heating plant purchase (Real 40YR) | AC151: =CALC_Project_ANN!H2919 -> 0 | AL151: Project | AO151: CF
C152: =$AF$149&" fixed charge (" & $L$149 & " " &$V$149&"YR)" -> Whole life fixed charge (Real 40YR) | L152: =CALC_Project_ANN!H2985 ->  | T152: =$AF$149&" O&M (" & $L$149 & " " &$V$149&"YR)" -> Whole life O&M (Real 40YR) | AC152: =CALC_Project_ANN!H2920 -> 0 | AG152: CO2e | AK152: p/kWh | AL152: =CALC_Project_ANN!H2987 ->  | AO152: =CALC_Project_ANN!H2922 -> 0
C153: =$AF$149&" variable charge (" & $L$149 & " " &$V$149&"YR)" -> Whole life variable charge (Real 40YR) | L153: =CALC_Project_ANN!H2986 ->  | T153: =$AF$149&" variable charge (" & $L$149 & " " &$V$149&"YR)" -> Whole life variable charge (Real 40YR) | AC153: =CALC_Project_ANN!H2921 -> 0 | AG153: Air quality | AK153: p/kWh | AL153: =CALC_Project_ANN!H2988 ->  | AO153: =CALC_Project_ANN!H2923 -> 0
C154: Network offer | L154: =SUM(L151:N153) ->  | T154: Counterfactual cost | AC154: =SUM(AC151:AE153) -> 0 | AG154: Social Cost | AK154: p/kWh | AL154: =SUM(AL152:AN153) ->  | AO154: =SUM(AO152:AQ153) -> 0
AG155: Combind offer | AK155: p/kWh | AL155: =AL154+L154 ->  | AO155: =AC154+AO154 -> 0
C156: Individual Customer Analysis
C157: Residential - Existing
C159: NETWORK OFFER TO END CUSTOMER: | L159: p/kWh | P159: VAT | T159: COUNTERFACTUAL | AC159: p/kWh | AG159: VAT
C160: =$AF$149&" connection charge (" & $L$149 & " " &$V$149&"YR)" -> Whole life connection charge (Real 40YR) | L160: =CALC_Project_ANN!H3063*(AO160=FALSE) ->  | P160: 0 | T160: =$AF$149&" plant purchase (" & $L$149 & " " &$V$149&"YR)" -> Whole life plant purchase (Real 40YR) | AC160: =CALC_Project_ANN!H3103 ->  | AG160: 0 | AN160: Developer pays con. | AO160: FALSE
C161: =$AF$149&" fixed charge (" & $L$149 & " " &$V$149&"YR)" -> Whole life fixed charge (Real 40YR) | L161: =CALC_Project_ANN!H3065 ->  | P161: 0 | T161: =$AF$149&" O&M (" & $L$149 & " " &$V$149&"YR)" -> Whole life O&M (Real 40YR) | AC161: =CALC_Project_ANN!H3104 ->  | AG161: 0 | AN161: Include VAT? | AO161: TRUE
C162: =$AF$149&" variable charge (" & $L$149 & " " &$V$149&"YR)" -> Whole life variable charge (Real 40YR) | L162: =CALC_Project_ANN!H3064 ->  | P162: 0 | T162: =$AF$149&" variable charge (" & $L$149 & " " &$V$149&"YR)" -> Whole life variable charge (Real 40YR) | AC162: =CALC_Project_ANN!H3137 ->  | AG162: 0
C163: VAT | L163: =SUMPRODUCT(L160:L162,P160:P162)*AO161 ->  | T163: VAT | AC163: =SUMPRODUCT(AC160:AC162,AG160:AG162)*AO161 -> 
C164: =$AF$149&" total network charge (" & $L$149 & " " &$V$149&"YR)" -> Whole life total network charge (Real 40YR) | L164: =SUM(L160:N163) ->  | T164: =$AF$149&" total CF charge (" & $L$149 & " " &$V$149&"YR)" -> Whole life total CF charge (Real 40YR) | AC164: =SUM(AC160:AE163) ->  | AN164: Finacial Saving / (cost) (p/kWh) | AO164: =AC164-L164 -> 
C166: =$AF$149&" carbon (saved)/cost (" & $L$149 & " " &$V$149&"YR)" -> Whole life carbon (saved)/cost (Real 40YR) | L166: =CALC_Project_ANN!H3164 ->  | T166: Installed heat capacity (kWth) | AC166: =CALC_Project_ANN!H3008 -> 0 | AN166: Customer # | AO166: =SUMIF(CALC_Customers_ANN!D969:D1028,C157,CALC_Customers_ANN!K969:K1028) -> 0
C167: =$AF$149&" air quality (benefit)/cost (" & $L$149 & " " &$V$149&"YR)" -> Whole life air quality (benefit)/cost (Real 40YR) | L167: =CALC_Project_ANN!H3165 ->  | T167: Av. annual consumption per conn. (MWh) | AC167: =CALC_Project_ANN!H3025/(10^3) -> 0 | AN167: Carbon saved (TCO2e/Y) | AO167: =CALC_Project_ANN!H3163 -> 0
T168: Av. financial saving/(cost) £/yr/cust. | AC168: =AO164 * AC167 * 10 / AO166 ->  | AN168: Carbon saved (TCO2e/Y/Customer) | AO168: =AO167/AO166 -> 
C169: =$AF$149&" total social charge (" & $L$149 & " " &$V$149&"YR)" -> Whole life total social charge (Real 40YR) | L169: =SUM(L164:L167) ->  | T169: Av. annual social saving/(cost) £/yr/cust | AC169: =AO169 * AC167 * 10 / AO166 ->  | AN169: Social Saving / (cost) (p/kWh) | AO169: =AC164-L169 -> 
C171: PROJECT CASH FLOW ANALYSIS
C173: INDEXATION ANALYSIS
G175: Graph Start Period: | H175: 2023 | O175: Graph End Period: | P175: 2040 | T175: Real | AD175: GRAPH SHOWING NETWORK OFFER VS COUNTERFACTUAL
G176: List income by: | H176: Energy | M176: OPERATING COSTS:
D177: INCOME MULTI-SELECT LIST BOX | N177: COST MULTI-SELECT LIST BOX
D178: Allows user to analyse different | N178: Allows user to break out the cost base
D179: tariffs and energy types against cost | N179: into component parts
E182: GRAPH 4
E183: GRAPH SHOWN COST BASE ESCALATION AND INCOME ESCALATION
E184: TOTAL ENERGY DEMAND SHOWN IN SECOND Y-AXIS
Y191: Graph Start Period | AD191: 2021 | AI191: Graph End Period | AO191: 2040
Z197: GRAPH 5
Z198: GRAPH SHOWING STACKED BAR CHART OF REVENUE BREAK DOWN
Z199: TO INCLUDE INCOME SUBSIDIES ALSO
C200: OPERATING INCOME AND EXPENDITURE ANALYSIS | AV200: OPERATING INCOME AND EXPENDITURE ANALYSIS | BY200: Money terms of operating cash flows: | BZ200: Real | CE200: Year: | CG200: 2035
C202: ="YEAR " & AN215 &" PROJECT RECEIPTS & EXPENDITURE BREAKDOWN" -> YEAR 2030 PROJECT RECEIPTS & EXPENDITURE BREAKDOWN | AV202: Graph Start Period | BA202: 2020 | BF202: Graph End Period | BK202: 2040 | BO202: YEAR 2035 PROJECT RECEIPTS & EXPENDITURE BREAKDOWN
C204: Income from: | L204: =AH215 -> Real | P204: Expenditure on: | V204: =AH215 -> Real | BO204: Income from: | BX204: Real | CB204: Expenditure on: | CH204: Real
D205: Heat Customers | K205: £000 | L205: =CALC_Project_ANN!H8628 -> 0 | Q205: O&M | U205: £000 | V205: =CALC_Project_ANN!H8635 -> 0 | BP205: Heat Customers | BW205: £000 | BX205: 2951.507014 | CC205: O&M | CG205: £000 | CH205: 245.2898123
D206: Cooling Customers | K206: £000 | L206: =CALC_Project_ANN!H8629 -> 0 | Q206: Fuel | U206: £000 | V206: =CALC_Project_ANN!H8636 -> 0 | AW206: GRAPH 5 | BP206: Cooling Customers | BW206: £000 | BX206: 0 | CC206: Fuel | CG206: £000 | CH206: 1883.345844
D207: Private Wire Customers | K207: £000 | L207: =CALC_Project_ANN!H8630 -> 0 | Q207: Levies | U207: £000 | V207: =CALC_Project_ANN!H8637 -> 0 | AW207: GRAPH SHOWING STACKED BAR CHART OF REVENUE BREAK DOWN | BP207: Private Wire Customers | BW207: £000 | BX207: 0 | CC207: Levies | CG207: £000 | CH207: 0
D208: Exported electricity sales | K208: £000 | L208: =CALC_Project_ANN!H8631 -> 0 | Q208: Overheads | U208: £000 | V208: =CALC_Project_ANN!H8638 -> 0 | AW208: TO INCLUDE INCOME SUBSIDIES ALSO | BP208: Exported electricity sales | BW208: £000 | BX208: 0 | CC208: Overheads | CG208: £000 | CH208: 0
D209: Connection charges | K209: £000 | L209: =CALC_Project_ANN!H8632 -> 0 | Q209: Business rates | U209: £000 | V209: =CALC_Project_ANN!H8639 -> 0 | BP209: Subsidies | BW209: £000 | BX209: 0 | CC209: Business rates | CG209: £000 | CH209: 228.9424719
D210: Energy efficiency income | K210: £000 | L210: =CALC_Project_ANN!H8633 -> 0 | Q210: Corporation tax | U210: £000 | V210: =CALC_Project_ANN!H8640 -> 0 | BP210: Energy efficiency income | BW210: £000 | BX210: 0 | CC210: Corporation tax | CG210: £000 | CH210: 0
D211: Other income | K211: £000 | L211: =CALC_Project_ANN!H8634 -> 0 | BP211: Other income | BW211: £000 | BX211: 0
C212: Total Income | K212: £000 | L212: =SUM(L205:N211) -> 0 | P212: Total Expenditure | U212: £000 | V212: =SUM(V205:X211) -> 0 | BO212: Total Income | BW212: £000 | BX212: 2951.507014 | CB212: Total Expenditure | CG212: £000 | CH212: 2357.578128
C214: Pre-corp. tax operating margin | K214: £000 | L214: =L212-SUM(V205:X208) -> 0 | P214: Post-C.tax margin | U214: £000 | V214: =L212-V212 -> 0 | BO214: Pre-corp. tax operating margin | BW214: £000 | BX214: 822.8713586 | CB214: Post-C.tax margin | CG214: £000 | CH214: 593.9288867
C215: Pre-corp. tax operating margin | K215: % | L215: =IFERROR(L214/L212,0) -> 0 | P215: Post-C.tax margin | U215: % | V215: =IFERROR(V214/L212,0) -> 0 | AG215: Money terms of operating cash flows: | AH215: Real | AM215: Year: | AN215: 2030 | BO215: Pre-corp. tax operating margin | BW215: % | BX215: 0.2787970195 | CB215: Post-C.tax margin | CG215: % | CH215: 0.2012290277
C217: PROJECT CASH FLOW RISK ANALYSIS | AV217: PROJECT CASH FLOW RISK ANALYSIS
C219: CORE SENSITIVITIES | AH219: Real / Nominal? | AI219: Real | AV219: CORE SENSITIVITIES | CA219: Real / Nominal? | CB219: Real
C221: TARIFF | X221: Run? | Y221: =SYS_Checks!G54 -> 1 | AM221: Run? | AN221: =SYS_Checks!G58 -> 1 | AV221: TARIFF | BQ221: Run? | BR221: 1 | CF221: Run? | CG221: 1
C223: Increase / (decrease) in ALL TARIFFS | S223: % | T223: -0.1 | AV223: Increase / (decrease) in ALL TARIFFS | BL223: % | BM223: -0.1
C224: Impact of change on: | T224: Pre-sensitivity | W224: % Change | Z224: Post-Sens. | AF224: Tornado chart of tariffs | AV224: Impact of change on: | BM224: Pre-sensitivity | BP224: % Change | BS224: Post-Sens. | BY224: Tornado chart of tariffs
D225: Av. Annual Electricity income | S225: £000 | T225: =CALC_Solves!G449 -> 0 | W225: =IFERROR(Z225/T225-1,0) -> 0 | Z225: =CALC_Solves!I449 -> 0 | AW225: Av. Annual Electricity income | BL225: £000 | BM225: 0 | BP225: 0 | BS225: 0
D226: Av. Annual Heat income | S226: £000 | T226: =CALC_Solves!G450 -> 1895.053723 | W226: =IFERROR(Z226/T226-1,0) -> -0.1 | Z226: =CALC_Solves!I450 -> 1705.54835 | AW226: Av. Annual Heat income | BL226: £000 | BM226: 238.6664708 | BP226: 0 | BS226: 238.6664708
D227: Av. Annual Cooling income | S227: £000 | T227: =CALC_Solves!G451 -> 287.6699782 | W227: =IFERROR(Z227/T227-1,0) -> -0.1 | Z227: =CALC_Solves!I451 -> 258.9029804 | AW227: Av. Annual Cooling income | BL227: £000 | BM227: 0 | BP227: 0 | BS227: 0
D228: Project NPV | S228: £000 | T228: =CALC_Solves!G452 -> 5325.110987 | W228: =IFERROR(Z228/T228-1,0) -> -0.6898231563 | Z228: =CALC_Solves!I452 -> 1651.726118 | AW228: Project NPV | BL228: £000 | BM228: -351.4938518 | BP228: 0 | BS228: -351.4938518
C230: CAPEX ANALYSIS | X230: Run? | Y230: =SYS_Checks!G55 -> 1 | AV230: CAPEX ANALYSIS | BQ230: Run? | BR230: 1
C232: Increase / (decrease) in CAPITAL EXPENDITURE | S232: % | T232: 0.1 | AV232: Increase / (decrease) in CAPITAL EXPENDITURE | BL232: % | BM232: 0.1
C233: Impact of change on: | T233: Pre-sensitivity | W233: % Change | Z233: Post-Sens. | AV233: Impact of change on: | BM233: Pre-sensitivity | BP233: % Change | BS233: Post-Sens.
D234: Total capex (discounted) | S234: £000 | T234: =-CALC_Solves!G538 -> 28098.2621 | W234: =IFERROR(Z234/T234-1,0) -> 0.1 | Z234: =-CALC_Solves!G540 -> 30908.0883 | AW234: Total capex (discounted) | BL234: £000 | BM234: 1627.560669 | BP234: 0 | BS234: 1627.560669
D235: Project NPV | S235: £000 | T235: =CALC_Solves!H538 -> 5325.110987 | W235: =IFERROR(Z235/T235-1,0) -> -0.5247254067 | Z235: =CALC_Solves!H540 -> 2530.889959 | AW235: Project NPV | BL235: £000 | BM235: -351.4938518 | BP235: 0 | BS235: -351.4938518
C237: FUEL COST ANALYSIS | X237: Run? | Y237: =SYS_Checks!G56 -> 1 | AV237: FUEL COST ANALYSIS | BQ237: Run? | BR237: 1
C239: Increase / (decrease) in FUEL | S239: % | T239: 0.1 | AV239: Increase / (decrease) in FUEL | BL239: % | BM239: 0.1
C240: Impact of change on: | T240: Pre-sensitivity | W240: % Change | Z240: Post-Sens. | AV240: Impact of change on: | BM240: Pre-sensitivity
D241: Total FUEL cost (discounted) | S241: £000 | T241: =CALC_Solves!G561 -> 8838.313682 | W241: =IFERROR(Z241/T241-1,0) -> 0.1 | Z241: =CALC_Solves!G563 -> 9722.14505 | AW241: Total FUEL cost (discounted) | BL241: £000 | BM241: 1894.033271
D242: Project NPV | S242: £000 | T242: =CALC_Solves!H561 -> 5325.110987 | W242: =IFERROR(Z242/T242-1,0) -> -0.140260554 | Z242: =CALC_Solves!H563 -> 4578.20797 | AW242: Project NPV | BL242: £000 | BM242: -351.4938518
C244: OPEX COST ANALYSIS | X244: Run? | Y244: =SYS_Checks!G57 -> 1 | AD244: PROJECT MODEL SOLVER | AV244: OPEX COST ANALYSIS | BW244: PROJECT MODEL SOLVER
C246: Increase / (decrease) in OPEX | S246: % | T246: 0.1 | AD246: Sensitivity to be run: | AK246: =SYS_Sensitivity!$AB$11 -> Project Model Solver | AV246: Increase / (decrease) in OPEX | BL246: % | BM246: 0.1 | BW246: Sensitivity to be run: | CD246: Project Model Solver
C247: Impact of change on: | T247: Pre-sensitivity | W247: % Change | Z247: Post-Sens. | AD247: Solve to: | AK247: Project_real_pre_tax_post_grant | AV247: Impact of change on: | BM247: Pre-sensitivity | BP247: % Change | BS247: Post-Sens. | BW247: Solve to: | CD247: NPV=0
D248: Total OPEX (discounted) | S248: £000 | T248: =CALC_Solves!G584 -> 9528.600545 | W248: =IFERROR(Z248/T248-1,0) -> 0.1 | Z248: =CALC_Solves!G586 -> 10481.4606 | AD248: Solved adjustment: | AW248: Total OPEX (discounted) | BL248: £000 | BM248: 346.2208877 | BP248: 0 | BS248: 346.2208877 | BW248: Solved adjustment: | CD248: 0.3625
D249: Project NPV | S249: £000 | T249: =CALC_Solves!H584 -> 5325.110987 | W249: =IFERROR(Z249/T249-1,0) -> -0.185767451 | Z249: =CALC_Solves!H586 -> 4335.878693 | AW249: Project NPV | BL249: £000 | BM249: -351.4938518 | BP249: 0 | BS249: -351.4938518
C252: ENERGY ANALYSIS | AV252: ENERGY ANALYSIS
C254: ENERGY BALANCE | AV254: ENERGY BALANCE
C256: WHOLE SYSTEM EFFICIENCY | Q256: Year: | S256: 2026 | AV256: WHOLE SYSTEM EFFICIENCY | BJ256: Year: | BL256: 2025
C258: Energy | K258: Primary import | O258: Export to network | R258: Export to grid | V258: Network Losses | Z258: Customer Supply | AD258: Whole system | AH258: Customer Demand | AL258: Variance | AO258: Variance | AV258: Energy | BD258: Primary import | BH258: Export to network | BK258: Export to grid | BO258: Network Losses | BS258: Customer Supply | BW258: Whole system
K260: MWh | O260: MWh | R260: MWh | V260: MWh | Z260: MWh | AD260: % | AH260: MWh | AL260: MWh | AO260: % | BD260: MWh | BH260: MWh | BK260: MWh | BO260: MWh | BS260: MWh | BW260: %
... 186 more rows

Sheet OpCo1_FS (hidden)
B2: =SYS_Admin!$B$2 -> [PROJECT MODEL] - 001.001 | F2: Sheet Integrity checks: | I2: =SUM(I158,I372,I517,I596) -> 0 | K2: Financial Year | M2: =SYS_TimeLine!M17 -> 2023 | N2: =SYS_TimeLine!N17 -> 2024 | O2: =SYS_TimeLine!O17 -> 2025 | P2: =SYS_TimeLine!P17 -> 2026 | Q2: =SYS_TimeLine!Q17 -> 2027 | R2: =SYS_TimeLine!R17 -> 2028 | S2: =SYS_TimeLine!S17 -> 2029 | T2: =SYS_TimeLine!T17 -> 2030 | U2: =SYS_TimeLine!U17 -> 2031 | V2: =SYS_TimeLine!V17 -> 2032 | W2: =SYS_TimeLine!W17 -> 2033 | X2: =SYS_TimeLine!X17 -> 2034 | Y2: =SYS_TimeLine!Y17 -> 2035 | Z2: =SYS_TimeLine!Z17 -> 2036 | AA2: =SYS_TimeLine!AA17 -> 2037 | AB2: =SYS_TimeLine!AB17 -> 2038 | AC2: =SYS_TimeLine!AC17 -> 2039 | AD2: =SYS_TimeLine!AD17 -> 2040 | AE2: =SYS_TimeLine!AE17 -> 2041 | AF2: =SYS_TimeLine!AF17 -> 2042 | AG2: =SYS_TimeLine!AG17 -> 2043 | AH2: =SYS_TimeLine!AH17 -> 2044 | AI2: =SYS_TimeLine!AI17 -> 2045 | AJ2: =SYS_TimeLine!AJ17 -> 2046 | AK2: =SYS_TimeLine!AK17 -> 2047 | AL2: =SYS_TimeLine!AL17 -> 2048 | AM2: =SYS_TimeLine!AM17 -> 2049 | AN2: =SYS_TimeLine!AN17 -> 2050 | AO2: =SYS_TimeLine!AO17 -> 2051 | AP2: =SYS_TimeLine!AP17 -> 2052 | AQ2: =SYS_TimeLine!AQ17 -> 2053 | AR2: =SYS_TimeLine!AR17 -> 2054 | AS2: =SYS_TimeLine!AS17 -> 2055 | AT2: =SYS_TimeLine!AT17 -> 2056 | AU2: =SYS_TimeLine!AU17 -> 2057 | AV2: =SYS_TimeLine!AV17 -> 2058 | AW2: =SYS_TimeLine!AW17 -> 2059 | AX2: =SYS_TimeLine!AX17 -> 2060 | AY2: =SYS_TimeLine!AY17 -> 2061 | AZ2: =SYS_TimeLine!AZ17 -> 2062 | BA2: =SYS_TimeLine!BA17 -> 2063 | BB2: =SYS_TimeLine!BB17 -> 2064 | BC2: =SYS_TimeLine!BC17 -> 2065 | BD2: =SYS_TimeLine!BD17 -> 2066 | BE2: =SYS_TimeLine!BE17 -> 2067 | BF2: =SYS_TimeLine!BF17 -> 2068 | BG2: =SYS_TimeLine!BG17 -> 2069 | BH2: =SYS_TimeLine!BH17 -> 2070 | BI2: =SYS_TimeLine!BI17 -> 2071 | BJ2: =SYS_TimeLine!BJ17 -> 2072 | BK2: =SYS_TimeLine!BK17 -> 2073 | BL2: =SYS_TimeLine!BL17 -> 2074 | BM2: =SYS_TimeLine!BM17 -> 2075 | BN2: =SYS_TimeLine!BN17 -> 2076 | BO2: =SYS_TimeLine!BO17 -> 2077 | BP2: =SYS_TimeLine!BP17 -> 2078 | BQ2: =SYS_TimeLine!BQ17 -> 2079 | BR2: =SYS_TimeLine!BR17 -> 2080 | BS2: =SYS_TimeLine!BS17 -> 2081 | BT2: =SYS_TimeLine!BT17 -> 2082
B3: =MID(CELL("filename",A1),FIND("]",CELL("filename",A1))+1,255) -> OpCo1_FS | F3: Sheet Warnings: | I3: =J159+J373 -> 0 | K3: Year | M3: =SYS_TimeLine!M18 -> 2023 | N3: =SYS_TimeLine!N18 -> 2024 | O3: =SYS_TimeLine!O18 -> 2025 | P3: =SYS_TimeLine!P18 -> 2026 | Q3: =SYS_TimeLine!Q18 -> 2027 | R3: =SYS_TimeLine!R18 -> 2028 | S3: =SYS_TimeLine!S18 -> 2029 | T3: =SYS_TimeLine!T18 -> 2030 | U3: =SYS_TimeLine!U18 -> 2031 | V3: =SYS_TimeLine!V18 -> 2032 | W3: =SYS_TimeLine!W18 -> 2033 | X3: =SYS_TimeLine!X18 -> 2034 | Y3: =SYS_TimeLine!Y18 -> 2035 | Z3: =SYS_TimeLine!Z18 -> 2036 | AA3: =SYS_TimeLine!AA18 -> 2037 | AB3: =SYS_TimeLine!AB18 -> 2038 | AC3: =SYS_TimeLine!AC18 -> 2039 | AD3: =SYS_TimeLine!AD18 -> 2040 | AE3: =SYS_TimeLine!AE18 -> 2041 | AF3: =SYS_TimeLine!AF18 -> 2042 | AG3: =SYS_TimeLine!AG18 -> 2043 | AH3: =SYS_TimeLine!AH18 -> 2044 | AI3: =SYS_TimeLine!AI18 -> 2045 | AJ3: =SYS_TimeLine!AJ18 -> 2046 | AK3: =SYS_TimeLine!AK18 -> 2047 | AL3: =SYS_TimeLine!AL18 -> 2048 | AM3: =SYS_TimeLine!AM18 -> 2049 | AN3: =SYS_TimeLine!AN18 -> 2050 | AO3: =SYS_TimeLine!AO18 -> 2051 | AP3: =SYS_TimeLine!AP18 -> 2052 | AQ3: =SYS_TimeLine!AQ18 -> 2053 | AR3: =SYS_TimeLine!AR18 -> 2054 | AS3: =SYS_TimeLine!AS18 -> 2055 | AT3: =SYS_TimeLine!AT18 -> 2056 | AU3: =SYS_TimeLine!AU18 -> 2057 | AV3: =SYS_TimeLine!AV18 -> 2058 | AW3: =SYS_TimeLine!AW18 -> 2059 | AX3: =SYS_TimeLine!AX18 -> 2060 | AY3: =SYS_TimeLine!AY18 -> 2061 | AZ3: =SYS_TimeLine!AZ18 -> 2062 | BA3: =SYS_TimeLine!BA18 -> 2063 | BB3: =SYS_TimeLine!BB18 -> 2064 | BC3: =SYS_TimeLine!BC18 -> 2065 | BD3: =SYS_TimeLine!BD18 -> 2066 | BE3: =SYS_TimeLine!BE18 -> 2067 | BF3: =SYS_TimeLine!BF18 -> 2068 | BG3: =SYS_TimeLine!BG18 -> 2069 | BH3: =SYS_TimeLine!BH18 -> 2070 | BI3: =SYS_TimeLine!BI18 -> 2071 | BJ3: =SYS_TimeLine!BJ18 -> 2072 | BK3: =SYS_TimeLine!BK18 -> 2073 | BL3: =SYS_TimeLine!BL18 -> 2074 | BM3: =SYS_TimeLine!BM18 -> 2075 | BN3: =SYS_TimeLine!BN18 -> 2076 | BO3: =SYS_TimeLine!BO18 -> 2077 | BP3: =SYS_TimeLine!BP18 -> 2078 | BQ3: =SYS_TimeLine!BQ18 -> 2079 | BR3: =SYS_TimeLine!BR18 -> 2080 | BS3: =SYS_TimeLine!BS18 -> 2081 | BT3: =SYS_TimeLine!BT18 -> 2082
B4: =SYS_Checks!$B$4 -> INTEGRITY ERROR: Refer to checks | F4: Money indexation applied? | I4: TRUE | K4: Period Start Date | M4: =SYS_TimeLine!M19 -> 2023-01-01 | N4: =SYS_TimeLine!N19 -> 2024-01-01 | O4: =SYS_TimeLine!O19 -> 2025-01-01 | P4: =SYS_TimeLine!P19 -> 2026-01-01 | Q4: =SYS_TimeLine!Q19 -> 2027-01-01 | R4: =SYS_TimeLine!R19 -> 2028-01-01 | S4: =SYS_TimeLine!S19 -> 2029-01-01 | T4: =SYS_TimeLine!T19 -> 2030-01-01 | U4: =SYS_TimeLine!U19 -> 2031-01-01 | V4: =SYS_TimeLine!V19 -> 2032-01-01 | W4: =SYS_TimeLine!W19 -> 2033-01-01 | X4: =SYS_TimeLine!X19 -> 2034-01-01 | Y4: =SYS_TimeLine!Y19 -> 2035-01-01 | Z4: =SYS_TimeLine!Z19 -> 2036-01-01 | AA4: =SYS_TimeLine!AA19 -> 2037-01-01 | AB4: =SYS_TimeLine!AB19 -> 2038-01-01 | AC4: =SYS_TimeLine!AC19 -> 2039-01-01 | AD4: =SYS_TimeLine!AD19 -> 2040-01-01 | AE4: =SYS_TimeLine!AE19 -> 2041-01-01 | AF4: =SYS_TimeLine!AF19 -> 2042-01-01 | AG4: =SYS_TimeLine!AG19 -> 2043-01-01 | AH4: =SYS_TimeLine!AH19 -> 2044-01-01 | AI4: =SYS_TimeLine!AI19 -> 2045-01-01 | AJ4: =SYS_TimeLine!AJ19 -> 2046-01-01 | AK4: =SYS_TimeLine!AK19 -> 2047-01-01 | AL4: =SYS_TimeLine!AL19 -> 2048-01-01 | AM4: =SYS_TimeLine!AM19 -> 2049-01-01 | AN4: =SYS_TimeLine!AN19 -> 2050-01-01 | AO4: =SYS_TimeLine!AO19 -> 2051-01-01 | AP4: =SYS_TimeLine!AP19 -> 2052-01-01 | AQ4: =SYS_TimeLine!AQ19 -> 2053-01-01 | AR4: =SYS_TimeLine!AR19 -> 2054-01-01 | AS4: =SYS_TimeLine!AS19 -> 2055-01-01 | AT4: =SYS_TimeLine!AT19 -> 2056-01-01 | AU4: =SYS_TimeLine!AU19 -> 2057-01-01 | AV4: =SYS_TimeLine!AV19 -> 2058-01-01 | AW4: =SYS_TimeLine!AW19 -> 2059-01-01 | AX4: =SYS_TimeLine!AX19 -> 2060-01-01 | AY4: =SYS_TimeLine!AY19 -> 2061-01-01 | AZ4: =SYS_TimeLine!AZ19 -> 2062-01-01 | BA4: =SYS_TimeLine!BA19 -> 2063-01-01 | BB4: =SYS_TimeLine!BB19 -> 2064-01-01 | BC4: =SYS_TimeLine!BC19 -> 2065-01-01 | BD4: =SYS_TimeLine!BD19 -> 2066-01-01 | BE4: =SYS_TimeLine!BE19 -> 2067-01-01 | BF4: =SYS_TimeLine!BF19 -> 2068-01-01 | BG4: =SYS_TimeLine!BG19 -> 2069-01-01 | BH4: =SYS_TimeLine!BH19 -> 2070-01-01 | BI4: =SYS_TimeLine!BI19 -> 2071-01-01 | BJ4: =SYS_TimeLine!BJ19 -> 2072-01-01 | BK4: =SYS_TimeLine!BK19 -> 2073-01-01 | BL4: =SYS_TimeLine!BL19 -> 2074-01-01 | BM4: =SYS_TimeLine!BM19 -> 2075-01-01 | BN4: =SYS_TimeLine!BN19 -> 2076-01-01 | BO4: =SYS_TimeLine!BO19 -> 2077-01-01 | BP4: =SYS_TimeLine!BP19 -> 2078-01-01 | BQ4: =SYS_TimeLine!BQ19 -> 2079-01-01 | BR4: =SYS_TimeLine!BR19 -> 2080-01-01 | BS4: =SYS_TimeLine!BS19 -> 2081-01-01 | BT4: =SYS_TimeLine!BT19 -> 2082-01-01
B5: =SYS_Checks!$B$5 -> No Warnings | K5: Period End Date | M5: =SYS_TimeLine!M20 -> 2023-12-31 | N5: =SYS_TimeLine!N20 -> 2024-12-31 | O5: =SYS_TimeLine!O20 -> 2025-12-31 | P5: =SYS_TimeLine!P20 -> 2026-12-31 | Q5: =SYS_TimeLine!Q20 -> 2027-12-31 | R5: =SYS_TimeLine!R20 -> 2028-12-31 | S5: =SYS_TimeLine!S20 -> 2029-12-31 | T5: =SYS_TimeLine!T20 -> 2030-12-31 | U5: =SYS_TimeLine!U20 -> 2031-12-31 | V5: =SYS_TimeLine!V20 -> 2032-12-31 | W5: =SYS_TimeLine!W20 -> 2033-12-31 | X5: =SYS_TimeLine!X20 -> 2034-12-31 | Y5: =SYS_TimeLine!Y20 -> 2035-12-31 | Z5: =SYS_TimeLine!Z20 -> 2036-12-31 | AA5: =SYS_TimeLine!AA20 -> 2037-12-31 | AB5: =SYS_TimeLine!AB20 -> 2038-12-31 | AC5: =SYS_TimeLine!AC20 -> 2039-12-31 | AD5: =SYS_TimeLine!AD20 -> 2040-12-31 | AE5: =SYS_TimeLine!AE20 -> 2041-12-31 | AF5: =SYS_TimeLine!AF20 -> 2042-12-31 | AG5: =SYS_TimeLine!AG20 -> 2043-12-31 | AH5: =SYS_TimeLine!AH20 -> 2044-12-31 | AI5: =SYS_TimeLine!AI20 -> 2045-12-31 | AJ5: =SYS_TimeLine!AJ20 -> 2046-12-31 | AK5: =SYS_TimeLine!AK20 -> 2047-12-31 | AL5: =SYS_TimeLine!AL20 -> 2048-12-31 | AM5: =SYS_TimeLine!AM20 -> 2049-12-31 | AN5: =SYS_TimeLine!AN20 -> 2050-12-31 | AO5: =SYS_TimeLine!AO20 -> 2051-12-31 | AP5: =SYS_TimeLine!AP20 -> 2052-12-31 | AQ5: =SYS_TimeLine!AQ20 -> 2053-12-31 | AR5: =SYS_TimeLine!AR20 -> 2054-12-31 | AS5: =SYS_TimeLine!AS20 -> 2055-12-31 | AT5: =SYS_TimeLine!AT20 -> 2056-12-31 | AU5: =SYS_TimeLine!AU20 -> 2057-12-31 | AV5: =SYS_TimeLine!AV20 -> 2058-12-31 | AW5: =SYS_TimeLine!AW20 -> 2059-12-31 | AX5: =SYS_TimeLine!AX20 -> 2060-12-31 | AY5: =SYS_TimeLine!AY20 -> 2061-12-31 | AZ5: =SYS_TimeLine!AZ20 -> 2062-12-31 | BA5: =SYS_TimeLine!BA20 -> 2063-12-31 | BB5: =SYS_TimeLine!BB20 -> 2064-12-31 | BC5: =SYS_TimeLine!BC20 -> 2065-12-31 | BD5: =SYS_TimeLine!BD20 -> 2066-12-31 | BE5: =SYS_TimeLine!BE20 -> 2067-12-31 | BF5: =SYS_TimeLine!BF20 -> 2068-12-31 | BG5: =SYS_TimeLine!BG20 -> 2069-12-31 | BH5: =SYS_TimeLine!BH20 -> 2070-12-31 | BI5: =SYS_TimeLine!BI20 -> 2071-12-31 | BJ5: =SYS_TimeLine!BJ20 -> 2072-12-31 | BK5: =SYS_TimeLine!BK20 -> 2073-12-31 | BL5: =SYS_TimeLine!BL20 -> 2074-12-31 | BM5: =SYS_TimeLine!BM20 -> 2075-12-31 | BN5: =SYS_TimeLine!BN20 -> 2076-12-31 | BO5: =SYS_TimeLine!BO20 -> 2077-12-31 | BP5: =SYS_TimeLine!BP20 -> 2078-12-31 | BQ5: =SYS_TimeLine!BQ20 -> 2079-12-31 | BR5: =SYS_TimeLine!BR20 -> 2080-12-31 | BS5: =SYS_TimeLine!BS20 -> 2081-12-31 | BT5: =SYS_TimeLine!BT20 -> 2082-12-31
B6: =IF(sysMacro=0,"All Macros Run", "WARNING! Macros not run") -> WARNING! Macros not run | K6: Annual Period | M6: =SYS_TimeLine!M21 -> 1 | N6: =SYS_TimeLine!N21 -> 2 | O6: =SYS_TimeLine!O21 -> 3 | P6: =SYS_TimeLine!P21 -> 4 | Q6: =SYS_TimeLine!Q21 -> 5 | R6: =SYS_TimeLine!R21 -> 6 | S6: =SYS_TimeLine!S21 -> 7 | T6: =SYS_TimeLine!T21 -> 8 | U6: =SYS_TimeLine!U21 -> 9 | V6: =SYS_TimeLine!V21 -> 10 | W6: =SYS_TimeLine!W21 -> 11 | X6: =SYS_TimeLine!X21 -> 12 | Y6: =SYS_TimeLine!Y21 -> 13 | Z6: =SYS_TimeLine!Z21 -> 14 | AA6: =SYS_TimeLine!AA21 -> 15 | AB6: =SYS_TimeLine!AB21 -> 16 | AC6: =SYS_TimeLine!AC21 -> 17 | AD6: =SYS_TimeLine!AD21 -> 18 | AE6: =SYS_TimeLine!AE21 -> 19 | AF6: =SYS_TimeLine!AF21 -> 20 | AG6: =SYS_TimeLine!AG21 -> 21 | AH6: =SYS_TimeLine!AH21 -> 22 | AI6: =SYS_TimeLine!AI21 -> 23 | AJ6: =SYS_TimeLine!AJ21 -> 24 | AK6: =SYS_TimeLine!AK21 -> 25 | AL6: =SYS_TimeLine!AL21 -> 26 | AM6: =SYS_TimeLine!AM21 -> 27 | AN6: =SYS_TimeLine!AN21 -> 28 | AO6: =SYS_TimeLine!AO21 -> 29 | AP6: =SYS_TimeLine!AP21 -> 30 | AQ6: =SYS_TimeLine!AQ21 -> 31 | AR6: =SYS_TimeLine!AR21 -> 32 | AS6: =SYS_TimeLine!AS21 -> 33 | AT6: =SYS_TimeLine!AT21 -> 34 | AU6: =SYS_TimeLine!AU21 -> 35 | AV6: =SYS_TimeLine!AV21 -> 36 | AW6: =SYS_TimeLine!AW21 -> 37 | AX6: =SYS_TimeLine!AX21 -> 38 | AY6: =SYS_TimeLine!AY21 -> 39 | AZ6: =SYS_TimeLine!AZ21 -> 40 | BA6: =SYS_TimeLine!BA21 -> 41 | BB6: =SYS_TimeLine!BB21 -> 42 | BC6: =SYS_TimeLine!BC21 -> 43 | BD6: =SYS_TimeLine!BD21 -> 44 | BE6: =SYS_TimeLine!BE21 -> 45 | BF6: =SYS_TimeLine!BF21 -> 46 | BG6: =SYS_TimeLine!BG21 -> 47 | BH6: =SYS_TimeLine!BH21 -> 48 | BI6: =SYS_TimeLine!BI21 -> 49 | BJ6: =SYS_TimeLine!BJ21 -> 50 | BK6: =SYS_TimeLine!BK21 -> 51 | BL6: =SYS_TimeLine!BL21 -> 52 | BM6: =SYS_TimeLine!BM21 -> 53 | BN6: =SYS_TimeLine!BN21 -> 54 | BO6: =SYS_TimeLine!BO21 -> 55 | BP6: =SYS_TimeLine!BP21 -> 56 | BQ6: =SYS_TimeLine!BQ21 -> 57 | BR6: =SYS_TimeLine!BR21 -> 58 | BS6: =SYS_TimeLine!BS21 -> 59 | BT6: =SYS_TimeLine!BT21 -> 60
F8: Units | G8: Call | H8: Calc. | I8: Check | J8: Warning | K8: Total
B10: =MAX(B$9:B9)+1 -> 1 | D10: NOMINAL FINANCIAL STATEMENTS
C12: =MAX(C$11:C11)+1 -> 1 | D12: STATEMENT OF COMPREHENSIVE INCOME
D14: Private network income | F14: £000 | G14: =IF($I$4,SYS_Admin!$D$117,SYS_Admin!$D$116) -> Nominal | M14: =OpCo1!M253 -> 0 | N14: =OpCo1!N253 -> 0 | O14: =OpCo1!O253 -> 0 | P14: =OpCo1!P253 -> 0 | Q14: =OpCo1!Q253 -> 0 | R14: =OpCo1!R253 -> 0 | S14: =OpCo1!S253 -> 0 | T14: =OpCo1!T253 -> 0 | U14: =OpCo1!U253 -> 0 | V14: =OpCo1!V253 -> 0 | W14: =OpCo1!W253 -> 0 | X14: =OpCo1!X253 -> 0 | Y14: =OpCo1!Y253 -> 0 | Z14: =OpCo1!Z253 -> 0 | AA14: =OpCo1!AA253 -> 0 | AB14: =OpCo1!AB253 -> 0 | AC14: =OpCo1!AC253 -> 0 | AD14: =OpCo1!AD253 -> 0 | AE14: =OpCo1!AE253 -> 0 | AF14: =OpCo1!AF253 -> 0 | AG14: =OpCo1!AG253 -> 0 | AH14: =OpCo1!AH253 -> 0 | AI14: =OpCo1!AI253 -> 0 | AJ14: =OpCo1!AJ253 -> 0 | AK14: =OpCo1!AK253 -> 0 | AL14: =OpCo1!AL253 -> 0 | AM14: =OpCo1!AM253 -> 0 | AN14: =OpCo1!AN253 -> 0 | AO14: =OpCo1!AO253 -> 0 | AP14: =OpCo1!AP253 -> 0 | AQ14: =OpCo1!AQ253 -> 0 | AR14: =OpCo1!AR253 -> 0 | AS14: =OpCo1!AS253 -> 0 | AT14: =OpCo1!AT253 -> 0 | AU14: =OpCo1!AU253 -> 0 | AV14: =OpCo1!AV253 -> 0 | AW14: =OpCo1!AW253 -> 0 | AX14: =OpCo1!AX253 -> 0 | AY14: =OpCo1!AY253 -> 0 | AZ14: =OpCo1!AZ253 -> 0 | BA14: =OpCo1!BA253 -> 0 | BB14: =OpCo1!BB253 -> 0 | BC14: =OpCo1!BC253 -> 0 | BD14: =OpCo1!BD253 -> 0 | BE14: =OpCo1!BE253 -> 0 | BF14: =OpCo1!BF253 -> 0 | BG14: =OpCo1!BG253 -> 0 | BH14: =OpCo1!BH253 -> 0 | BI14: =OpCo1!BI253 -> 0 | BJ14: =OpCo1!BJ253 -> 0 | BK14: =OpCo1!BK253 -> 0 | BL14: =OpCo1!BL253 -> 0 | BM14: =OpCo1!BM253 -> 0 | BN14: =OpCo1!BN253 -> 0 | BO14: =OpCo1!BO253 -> 0 | BP14: =OpCo1!BP253 -> 0 | BQ14: =OpCo1!BQ253 -> 0 | BR14: =OpCo1!BR253 -> 0 | BS14: =OpCo1!BS253 -> 0 | BT14: =OpCo1!BT253 -> 0
D15: National grid exports | F15: £000 | G15: =IF($I$4,SYS_Admin!$D$117,SYS_Admin!$D$116) -> Nominal | M15: =OpCo1!M269 -> 0 | N15: =OpCo1!N269 -> 0 | O15: =OpCo1!O269 -> 0 | P15: =OpCo1!P269 -> 0 | Q15: =OpCo1!Q269 -> 0 | R15: =OpCo1!R269 -> 0 | S15: =OpCo1!S269 -> 0 | T15: =OpCo1!T269 -> 0 | U15: =OpCo1!U269 -> 0 | V15: =OpCo1!V269 -> 0 | W15: =OpCo1!W269 -> 0 | X15: =OpCo1!X269 -> 0 | Y15: =OpCo1!Y269 -> 0 | Z15: =OpCo1!Z269 -> 0 | AA15: =OpCo1!AA269 -> 0 | AB15: =OpCo1!AB269 -> 0 | AC15: =OpCo1!AC269 -> 0 | AD15: =OpCo1!AD269 -> 0 | AE15: =OpCo1!AE269 -> 0 | AF15: =OpCo1!AF269 -> 0 | AG15: =OpCo1!AG269 -> 0 | AH15: =OpCo1!AH269 -> 0 | AI15: =OpCo1!AI269 -> 0 | AJ15: =OpCo1!AJ269 -> 0 | AK15: =OpCo1!AK269 -> 0 | AL15: =OpCo1!AL269 -> 0 | AM15: =OpCo1!AM269 -> 0 | AN15: =OpCo1!AN269 -> 0 | AO15: =OpCo1!AO269 -> 0 | AP15: =OpCo1!AP269 -> 0 | AQ15: =OpCo1!AQ269 -> 0 | AR15: =OpCo1!AR269 -> 0 | AS15: =OpCo1!AS269 -> 0 | AT15: =OpCo1!AT269 -> 0 | AU15: =OpCo1!AU269 -> 0 | AV15: =OpCo1!AV269 -> 0 | AW15: =OpCo1!AW269 -> 0 | AX15: =OpCo1!AX269 -> 0 | AY15: =OpCo1!AY269 -> 0 | AZ15: =OpCo1!AZ269 -> 0 | BA15: =OpCo1!BA269 -> 0 | BB15: =OpCo1!BB269 -> 0 | BC15: =OpCo1!BC269 -> 0 | BD15: =OpCo1!BD269 -> 0 | BE15: =OpCo1!BE269 -> 0 | BF15: =OpCo1!BF269 -> 0 | BG15: =OpCo1!BG269 -> 0 | BH15: =OpCo1!BH269 -> 0 | BI15: =OpCo1!BI269 -> 0 | BJ15: =OpCo1!BJ269 -> 0 | BK15: =OpCo1!BK269 -> 0 | BL15: =OpCo1!BL269 -> 0 | BM15: =OpCo1!BM269 -> 0 | BN15: =OpCo1!BN269 -> 0 | BO15: =OpCo1!BO269 -> 0 | BP15: =OpCo1!BP269 -> 0 | BQ15: =OpCo1!BQ269 -> 0 | BR15: =OpCo1!BR269 -> 0 | BS15: =OpCo1!BS269 -> 0 | BT15: =OpCo1!BT269 -> 0
D16: Energy efficiency income | F16: £000 | G16: =IF($I$4,SYS_Admin!$D$117,SYS_Admin!$D$116) -> Nominal | M16: =OpCo1!M327 -> 0 | N16: =OpCo1!N327 -> 0 | O16: =OpCo1!O327 -> 0 | P16: =OpCo1!P327 -> 0 | Q16: =OpCo1!Q327 -> 0 | R16: =OpCo1!R327 -> 0 | S16: =OpCo1!S327 -> 0 | T16: =OpCo1!T327 -> 0 | U16: =OpCo1!U327 -> 0 | V16: =OpCo1!V327 -> 0 | W16: =OpCo1!W327 -> 0 | X16: =OpCo1!X327 -> 0 | Y16: =OpCo1!Y327 -> 0 | Z16: =OpCo1!Z327 -> 0 | AA16: =OpCo1!AA327 -> 0 | AB16: =OpCo1!AB327 -> 0 | AC16: =OpCo1!AC327 -> 0 | AD16: =OpCo1!AD327 -> 0 | AE16: =OpCo1!AE327 -> 0 | AF16: =OpCo1!AF327 -> 0 | AG16: =OpCo1!AG327 -> 0 | AH16: =OpCo1!AH327 -> 0 | AI16: =OpCo1!AI327 -> 0 | AJ16: =OpCo1!AJ327 -> 0 | AK16: =OpCo1!AK327 -> 0 | AL16: =OpCo1!AL327 -> 0 | AM16: =OpCo1!AM327 -> 0 | AN16: =OpCo1!AN327 -> 0 | AO16: =OpCo1!AO327 -> 0 | AP16: =OpCo1!AP327 -> 0 | AQ16: =OpCo1!AQ327 -> 0 | AR16: =OpCo1!AR327 -> 0 | AS16: =OpCo1!AS327 -> 0 | AT16: =OpCo1!AT327 -> 0 | AU16: =OpCo1!AU327 -> 0 | AV16: =OpCo1!AV327 -> 0 | AW16: =OpCo1!AW327 -> 0 | AX16: =OpCo1!AX327 -> 0 | AY16: =OpCo1!AY327 -> 0 | AZ16: =OpCo1!AZ327 -> 0 | BA16: =OpCo1!BA327 -> 0 | BB16: =OpCo1!BB327 -> 0 | BC16: =OpCo1!BC327 -> 0 | BD16: =OpCo1!BD327 -> 0 | BE16: =OpCo1!BE327 -> 0 | BF16: =OpCo1!BF327 -> 0 | BG16: =OpCo1!BG327 -> 0 | BH16: =OpCo1!BH327 -> 0 | BI16: =OpCo1!BI327 -> 0 | BJ16: =OpCo1!BJ327 -> 0 | BK16: =OpCo1!BK327 -> 0 | BL16: =OpCo1!BL327 -> 0 | BM16: =OpCo1!BM327 -> 0 | BN16: =OpCo1!BN327 -> 0 | BO16: =OpCo1!BO327 -> 0 | BP16: =OpCo1!BP327 -> 0 | BQ16: =OpCo1!BQ327 -> 0 | BR16: =OpCo1!BR327 -> 0 | BS16: =OpCo1!BS327 -> 0 | BT16: =OpCo1!BT327 -> 0
D17: Inter-company sales | F17: £000 | G17: =IF($I$4,SYS_Admin!$D$117,SYS_Admin!$D$116) -> Nominal | M17: =OpCo1!M489 -> 0 | N17: =OpCo1!N489 -> 0 | O17: =OpCo1!O489 -> 0 | P17: =OpCo1!P489 -> 0 | Q17: =OpCo1!Q489 -> 0 | R17: =OpCo1!R489 -> 0 | S17: =OpCo1!S489 -> 0 | T17: =OpCo1!T489 -> 0 | U17: =OpCo1!U489 -> 0 | V17: =OpCo1!V489 -> 0 | W17: =OpCo1!W489 -> 0 | X17: =OpCo1!X489 -> 0 | Y17: =OpCo1!Y489 -> 0 | Z17: =OpCo1!Z489 -> 0 | AA17: =OpCo1!AA489 -> 0 | AB17: =OpCo1!AB489 -> 0 | AC17: =OpCo1!AC489 -> 0 | AD17: =OpCo1!AD489 -> 0 | AE17: =OpCo1!AE489 -> 0 | AF17: =OpCo1!AF489 -> 0 | AG17: =OpCo1!AG489 -> 0 | AH17: =OpCo1!AH489 -> 0 | AI17: =OpCo1!AI489 -> 0 | AJ17: =OpCo1!AJ489 -> 0 | AK17: =OpCo1!AK489 -> 0 | AL17: =OpCo1!AL489 -> 0 | AM17: =OpCo1!AM489 -> 0 | AN17: =OpCo1!AN489 -> 0 | AO17: =OpCo1!AO489 -> 0 | AP17: =OpCo1!AP489 -> 0 | AQ17: =OpCo1!AQ489 -> 0 | AR17: =OpCo1!AR489 -> 0 | AS17: =OpCo1!AS489 -> 0 | AT17: =OpCo1!AT489 -> 0 | AU17: =OpCo1!AU489 -> 0 | AV17: =OpCo1!AV489 -> 0 | AW17: =OpCo1!AW489 -> 0 | AX17: =OpCo1!AX489 -> 0 | AY17: =OpCo1!AY489 -> 0 | AZ17: =OpCo1!AZ489 -> 0 | BA17: =OpCo1!BA489 -> 0 | BB17: =OpCo1!BB489 -> 0 | BC17: =OpCo1!BC489 -> 0 | BD17: =OpCo1!BD489 -> 0 | BE17: =OpCo1!BE489 -> 0 | BF17: =OpCo1!BF489 -> 0 | BG17: =OpCo1!BG489 -> 0 | BH17: =OpCo1!BH489 -> 0 | BI17: =OpCo1!BI489 -> 0 | BJ17: =OpCo1!BJ489 -> 0 | BK17: =OpCo1!BK489 -> 0 | BL17: =OpCo1!BL489 -> 0 | BM17: =OpCo1!BM489 -> 0 | BN17: =OpCo1!BN489 -> 0 | BO17: =OpCo1!BO489 -> 0 | BP17: =OpCo1!BP489 -> 0 | BQ17: =OpCo1!BQ489 -> 0 | BR17: =OpCo1!BR489 -> 0 | BS17: =OpCo1!BS489 -> 0 | BT17: =OpCo1!BT489 -> 0
D18: Other income | F18: £000 | G18: =IF($I$4,SYS_Admin!$D$117,SYS_Admin!$D$116) -> Nominal | M18: =OpCo1!M385 -> 0 | N18: =OpCo1!N385 -> 0 | O18: =OpCo1!O385 -> 0 | P18: =OpCo1!P385 -> 0 | Q18: =OpCo1!Q385 -> 0 | R18: =OpCo1!R385 -> 0 | S18: =OpCo1!S385 -> 0 | T18: =OpCo1!T385 -> 0 | U18: =OpCo1!U385 -> 0 | V18: =OpCo1!V385 -> 0 | W18: =OpCo1!W385 -> 0 | X18: =OpCo1!X385 -> 0 | Y18: =OpCo1!Y385 -> 0 | Z18: =OpCo1!Z385 -> 0 | AA18: =OpCo1!AA385 -> 0 | AB18: =OpCo1!AB385 -> 0 | AC18: =OpCo1!AC385 -> 0 | AD18: =OpCo1!AD385 -> 0 | AE18: =OpCo1!AE385 -> 0 | AF18: =OpCo1!AF385 -> 0 | AG18: =OpCo1!AG385 -> 0 | AH18: =OpCo1!AH385 -> 0 | AI18: =OpCo1!AI385 -> 0 | AJ18: =OpCo1!AJ385 -> 0 | AK18: =OpCo1!AK385 -> 0 | AL18: =OpCo1!AL385 -> 0 | AM18: =OpCo1!AM385 -> 0 | AN18: =OpCo1!AN385 -> 0 | AO18: =OpCo1!AO385 -> 0 | AP18: =OpCo1!AP385 -> 0 | AQ18: =OpCo1!AQ385 -> 0 | AR18: =OpCo1!AR385 -> 0 | AS18: =OpCo1!AS385 -> 0 | AT18: =OpCo1!AT385 -> 0 | AU18: =OpCo1!AU385 -> 0 | AV18: =OpCo1!AV385 -> 0 | AW18: =OpCo1!AW385 -> 0 | AX18: =OpCo1!AX385 -> 0 | AY18: =OpCo1!AY385 -> 0 | AZ18: =OpCo1!AZ385 -> 0 | BA18: =OpCo1!BA385 -> 0 | BB18: =OpCo1!BB385 -> 0 | BC18: =OpCo1!BC385 -> 0 | BD18: =OpCo1!BD385 -> 0 | BE18: =OpCo1!BE385 -> 0 | BF18: =OpCo1!BF385 -> 0 | BG18: =OpCo1!BG385 -> 0 | BH18: =OpCo1!BH385 -> 0 | BI18: =OpCo1!BI385 -> 0 | BJ18: =OpCo1!BJ385 -> 0 | BK18: =OpCo1!BK385 -> 0 | BL18: =OpCo1!BL385 -> 0 | BM18: =OpCo1!BM385 -> 0 | BN18: =OpCo1!BN385 -> 0 | BO18: =OpCo1!BO385 -> 0 | BP18: =OpCo1!BP385 -> 0 | BQ18: =OpCo1!BQ385 -> 0 | BR18: =OpCo1!BR385 -> 0 | BS18: =OpCo1!BS385 -> 0 | BT18: =OpCo1!BT385 -> 0
D19: Bad debt | F19: £000 | G19: =IF($I$4,SYS_Admin!$D$117,SYS_Admin!$D$116) -> Nominal | M19: =SUM(M20:M23) -> 0 | N19: =SUM(N20:N23) -> 0 | O19: 0 | P19: 0 | Q19: 0 | R19: 0 | S19: 0 | T19: 0 | U19: 0 | V19: 0 | W19: 0 | X19: 0 | Y19: 0 | Z19: 0 | AA19: 0 | AB19: 0 | AC19: 0 | AD19: 0 | AE19: 0 | AF19: 0 | AG19: 0 | AH19: 0 | AI19: 0 | AJ19: 0 | AK19: 0 | AL19: 0 | AM19: 0 | AN19: 0 | AO19: 0 | AP19: 0 | AQ19: 0 | AR19: 0 | AS19: 0 | AT19: 0 | AU19: 0 | AV19: 0 | AW19: 0 | AX19: 0 | AY19: 0 | AZ19: 0 | BA19: 0 | BB19: 0 | BC19: 0 | BD19: 0 | BE19: 0 | BF19: 0 | BG19: 0 | BH19: 0 | BI19: 0 | BJ19: 0 | BK19: 0 | BL19: 0 | BM19: 0 | BN19: 0 | BO19: 0 | BP19: 0 | BQ19: 0 | BR19: 0 | BS19: 0 | BT19: 0
D20: Private network income | F20: £000 | G20: =IF($I$4,SYS_Admin!$D$117,SYS_Admin!$D$116) -> Nominal | M20: =OpCo1!M254 -> 0 | N20: =OpCo1!N254 -> 0 | O20: =OpCo1!O254 -> 0 | P20: =OpCo1!P254 -> 0 | Q20: =OpCo1!Q254 -> 0 | R20: =OpCo1!R254 -> 0 | S20: =OpCo1!S254 -> 0 | T20: =OpCo1!T254 -> 0 | U20: =OpCo1!U254 -> 0 | V20: =OpCo1!V254 -> 0 | W20: =OpCo1!W254 -> 0 | X20: =OpCo1!X254 -> 0 | Y20: =OpCo1!Y254 -> 0 | Z20: =OpCo1!Z254 -> 0 | AA20: =OpCo1!AA254 -> 0 | AB20: =OpCo1!AB254 -> 0 | AC20: =OpCo1!AC254 -> 0 | AD20: =OpCo1!AD254 -> 0 | AE20: =OpCo1!AE254 -> 0 | AF20: =OpCo1!AF254 -> 0 | AG20: =OpCo1!AG254 -> 0 | AH20: =OpCo1!AH254 -> 0 | AI20: =OpCo1!AI254 -> 0 | AJ20: =OpCo1!AJ254 -> 0 | AK20: =OpCo1!AK254 -> 0 | AL20: =OpCo1!AL254 -> 0 | AM20: =OpCo1!AM254 -> 0 | AN20: =OpCo1!AN254 -> 0 | AO20: =OpCo1!AO254 -> 0 | AP20: =OpCo1!AP254 -> 0 | AQ20: =OpCo1!AQ254 -> 0 | AR20: =OpCo1!AR254 -> 0 | AS20: =OpCo1!AS254 -> 0 | AT20: =OpCo1!AT254 -> 0 | AU20: =OpCo1!AU254 -> 0 | AV20: =OpCo1!AV254 -> 0 | AW20: =OpCo1!AW254 -> 0 | AX20: =OpCo1!AX254 -> 0 | AY20: =OpCo1!AY254 -> 0 | AZ20: =OpCo1!AZ254 -> 0 | BA20: =OpCo1!BA254 -> 0 | BB20: =OpCo1!BB254 -> 0 | BC20: =OpCo1!BC254 -> 0 | BD20: =OpCo1!BD254 -> 0 | BE20: =OpCo1!BE254 -> 0 | BF20: =OpCo1!BF254 -> 0 | BG20: =OpCo1!BG254 -> 0 | BH20: =OpCo1!BH254 -> 0 | BI20: =OpCo1!BI254 -> 0 | BJ20: =OpCo1!BJ254 -> 0 | BK20: =OpCo1!BK254 -> 0 | BL20: =OpCo1!BL254 -> 0 | BM20: =OpCo1!BM254 -> 0 | BN20: =OpCo1!BN254 -> 0 | BO20: =OpCo1!BO254 -> 0 | BP20: =OpCo1!BP254 -> 0 | BQ20: =OpCo1!BQ254 -> 0 | BR20: =OpCo1!BR254 -> 0 | BS20: =OpCo1!BS254 -> 0 | BT20: =OpCo1!BT254 -> 0
D21: National grid exports | F21: £000 | G21: =IF($I$4,SYS_Admin!$D$117,SYS_Admin!$D$116) -> Nominal | M21: =OpCo1!M270 -> 0 | N21: =OpCo1!N270 -> 0 | O21: =OpCo1!O270 -> 0 | P21: =OpCo1!P270 -> 0 | Q21: =OpCo1!Q270 -> 0 | R21: =OpCo1!R270 -> 0 | S21: =OpCo1!S270 -> 0 | T21: =OpCo1!T270 -> 0 | U21: =OpCo1!U270 -> 0 | V21: =OpCo1!V270 -> 0 | W21: =OpCo1!W270 -> 0 | X21: =OpCo1!X270 -> 0 | Y21: =OpCo1!Y270 -> 0 | Z21: =OpCo1!Z270 -> 0 | AA21: =OpCo1!AA270 -> 0 | AB21: =OpCo1!AB270 -> 0 | AC21: =OpCo1!AC270 -> 0 | AD21: =OpCo1!AD270 -> 0 | AE21: =OpCo1!AE270 -> 0 | AF21: =OpCo1!AF270 -> 0 | AG21: =OpCo1!AG270 -> 0 | AH21: =OpCo1!AH270 -> 0 | AI21: =OpCo1!AI270 -> 0 | AJ21: =OpCo1!AJ270 -> 0 | AK21: =OpCo1!AK270 -> 0 | AL21: =OpCo1!AL270 -> 0 | AM21: =OpCo1!AM270 -> 0 | AN21: =OpCo1!AN270 -> 0 | AO21: =OpCo1!AO270 -> 0 | AP21: =OpCo1!AP270 -> 0 | AQ21: =OpCo1!AQ270 -> 0 | AR21: =OpCo1!AR270 -> 0 | AS21: =OpCo1!AS270 -> 0 | AT21: =OpCo1!AT270 -> 0 | AU21: =OpCo1!AU270 -> 0 | AV21: =OpCo1!AV270 -> 0 | AW21: =OpCo1!AW270 -> 0 | AX21: =OpCo1!AX270 -> 0 | AY21: =OpCo1!AY270 -> 0 | AZ21: =OpCo1!AZ270 -> 0 | BA21: =OpCo1!BA270 -> 0 | BB21: =OpCo1!BB270 -> 0 | BC21: =OpCo1!BC270 -> 0 | BD21: =OpCo1!BD270 -> 0 | BE21: =OpCo1!BE270 -> 0 | BF21: =OpCo1!BF270 -> 0 | BG21: =OpCo1!BG270 -> 0 | BH21: =OpCo1!BH270 -> 0 | BI21: =OpCo1!BI270 -> 0 | BJ21: =OpCo1!BJ270 -> 0 | BK21: =OpCo1!BK270 -> 0 | BL21: =OpCo1!BL270 -> 0 | BM21: =OpCo1!BM270 -> 0 | BN21: =OpCo1!BN270 -> 0 | BO21: =OpCo1!BO270 -> 0 | BP21: =OpCo1!BP270 -> 0 | BQ21: =OpCo1!BQ270 -> 0 | BR21: =OpCo1!BR270 -> 0 | BS21: =OpCo1!BS270 -> 0 | BT21: =OpCo1!BT270 -> 0
D22: Energy efficiency income | F22: £000 | G22: =IF($I$4,SYS_Admin!$D$117,SYS_Admin!$D$116) -> Nominal | M22: =OpCo1!M328 -> 0 | N22: =OpCo1!N328 -> 0 | O22: =OpCo1!O328 -> 0 | P22: =OpCo1!P328 -> 0 | Q22: =OpCo1!Q328 -> 0 | R22: =OpCo1!R328 -> 0 | S22: =OpCo1!S328 -> 0 | T22: =OpCo1!T328 -> 0 | U22: =OpCo1!U328 -> 0 | V22: =OpCo1!V328 -> 0 | W22: =OpCo1!W328 -> 0 | X22: =OpCo1!X328 -> 0 | Y22: =OpCo1!Y328 -> 0 | Z22: =OpCo1!Z328 -> 0 | AA22: =OpCo1!AA328 -> 0 | AB22: =OpCo1!AB328 -> 0 | AC22: =OpCo1!AC328 -> 0 | AD22: =OpCo1!AD328 -> 0 | AE22: =OpCo1!AE328 -> 0 | AF22: =OpCo1!AF328 -> 0 | AG22: =OpCo1!AG328 -> 0 | AH22: =OpCo1!AH328 -> 0 | AI22: =OpCo1!AI328 -> 0 | AJ22: =OpCo1!AJ328 -> 0 | AK22: =OpCo1!AK328 -> 0 | AL22: =OpCo1!AL328 -> 0 | AM22: =OpCo1!AM328 -> 0 | AN22: =OpCo1!AN328 -> 0 | AO22: =OpCo1!AO328 -> 0 | AP22: =OpCo1!AP328 -> 0 | AQ22: =OpCo1!AQ328 -> 0 | AR22: =OpCo1!AR328 -> 0 | AS22: =OpCo1!AS328 -> 0 | AT22: =OpCo1!AT328 -> 0 | AU22: =OpCo1!AU328 -> 0 | AV22: =OpCo1!AV328 -> 0 | AW22: =OpCo1!AW328 -> 0 | AX22: =OpCo1!AX328 -> 0 | AY22: =OpCo1!AY328 -> 0 | AZ22: =OpCo1!AZ328 -> 0 | BA22: =OpCo1!BA328 -> 0 | BB22: =OpCo1!BB328 -> 0 | BC22: =OpCo1!BC328 -> 0 | BD22: =OpCo1!BD328 -> 0 | BE22: =OpCo1!BE328 -> 0 | BF22: =OpCo1!BF328 -> 0 | BG22: =OpCo1!BG328 -> 0 | BH22: =OpCo1!BH328 -> 0 | BI22: =OpCo1!BI328 -> 0 | BJ22: =OpCo1!BJ328 -> 0 | BK22: =OpCo1!BK328 -> 0 | BL22: =OpCo1!BL328 -> 0 | BM22: =OpCo1!BM328 -> 0 | BN22: =OpCo1!BN328 -> 0 | BO22: =OpCo1!BO328 -> 0 | BP22: =OpCo1!BP328 -> 0 | BQ22: =OpCo1!BQ328 -> 0 | BR22: =OpCo1!BR328 -> 0 | BS22: =OpCo1!BS328 -> 0 | BT22: =OpCo1!BT328 -> 0
D23: Other income | F23: £000 | G23: =IF($I$4,SYS_Admin!$D$117,SYS_Admin!$D$116) -> Nominal | M23: =OpCo1!M386 -> 0 | N23: =OpCo1!N386 -> 0 | O23: =OpCo1!O386 -> 0 | P23: =OpCo1!P386 -> 0 | Q23: =OpCo1!Q386 -> 0 | R23: =OpCo1!R386 -> 0 | S23: =OpCo1!S386 -> 0 | T23: =OpCo1!T386 -> 0 | U23: =OpCo1!U386 -> 0 | V23: =OpCo1!V386 -> 0 | W23: =OpCo1!W386 -> 0 | X23: =OpCo1!X386 -> 0 | Y23: =OpCo1!Y386 -> 0 | Z23: =OpCo1!Z386 -> 0 | AA23: =OpCo1!AA386 -> 0 | AB23: =OpCo1!AB386 -> 0 | AC23: =OpCo1!AC386 -> 0 | AD23: =OpCo1!AD386 -> 0 | AE23: =OpCo1!AE386 -> 0 | AF23: =OpCo1!AF386 -> 0 | AG23: =OpCo1!AG386 -> 0 | AH23: =OpCo1!AH386 -> 0 | AI23: =OpCo1!AI386 -> 0 | AJ23: =OpCo1!AJ386 -> 0 | AK23: =OpCo1!AK386 -> 0 | AL23: =OpCo1!AL386 -> 0 | AM23: =OpCo1!AM386 -> 0 | AN23: =OpCo1!AN386 -> 0 | AO23: =OpCo1!AO386 -> 0 | AP23: =OpCo1!AP386 -> 0 | AQ23: =OpCo1!AQ386 -> 0 | AR23: =OpCo1!AR386 -> 0 | AS23: =OpCo1!AS386 -> 0 | AT23: =OpCo1!AT386 -> 0 | AU23: =OpCo1!AU386 -> 0 | AV23: =OpCo1!AV386 -> 0 | AW23: =OpCo1!AW386 -> 0 | AX23: =OpCo1!AX386 -> 0 | AY23: =OpCo1!AY386 -> 0 | AZ23: =OpCo1!AZ386 -> 0 | BA23: =OpCo1!BA386 -> 0 | BB23: =OpCo1!BB386 -> 0 | BC23: =OpCo1!BC386 -> 0 | BD23: =OpCo1!BD386 -> 0 | BE23: =OpCo1!BE386 -> 0 | BF23: =OpCo1!BF386 -> 0 | BG23: =OpCo1!BG386 -> 0 | BH23: =OpCo1!BH386 -> 0 | BI23: =OpCo1!BI386 -> 0 | BJ23: =OpCo1!BJ386 -> 0 | BK23: =OpCo1!BK386 -> 0 | BL23: =OpCo1!BL386 -> 0 | BM23: =OpCo1!BM386 -> 0 | BN23: =OpCo1!BN386 -> 0 | BO23: =OpCo1!BO386 -> 0 | BP23: =OpCo1!BP386 -> 0 | BQ23: =OpCo1!BQ386 -> 0 | BR23: =OpCo1!BR386 -> 0 | BS23: =OpCo1!BS386 -> 0 | BT23: =OpCo1!BT386 -> 0
D25: Revenue | F25: £000 | G25: =IF($I$4,SYS_Admin!$D$117,SYS_Admin!$D$116) -> Nominal | M25: =SUM(M14:M19) -> 0 | N25: =SUM(N14:N19) -> 0 | O25: 0 | P25: 0 | Q25: 0 | R25: 0 | S25: 0 | T25: 0 | U25: 0 | V25: 0 | W25: 0 | X25: 0 | Y25: 0 | Z25: 0 | AA25: 0 | AB25: 0 | AC25: 0 | AD25: 0 | AE25: 0 | AF25: 0 | AG25: 0 | AH25: 0 | AI25: 0 | AJ25: 0 | AK25: 0 | AL25: 0 | AM25: 0 | AN25: 0 | AO25: 0 | AP25: 0 | AQ25: 0 | AR25: 0 | AS25: 0 | AT25: 0 | AU25: 0 | AV25: 0 | AW25: 0 | AX25: 0 | AY25: 0 | AZ25: 0 | BA25: 0 | BB25: 0 | BC25: 0 | BD25: 0 | BE25: 0 | BF25: 0 | BG25: 0 | BH25: 0 | BI25: 0 | BJ25: 0 | BK25: 0 | BL25: 0 | BM25: 0 | BN25: 0 | BO25: 0 | BP25: 0 | BQ25: 0 | BR25: 0 | BS25: 0 | BT25: 0
D27: O&M | F27: £000 | G27: =IF($I$4,SYS_Admin!$D$117,SYS_Admin!$D$116) -> Nominal | M27: =SUM(M28:M29) -> 0 | N27: =SUM(N28:N29) -> 0 | O27: 0 | P27: 0 | Q27: 0 | R27: 0 | S27: 0 | T27: 0 | U27: 0 | V27: 0 | W27: 0 | X27: 0 | Y27: 0 | Z27: 0 | AA27: 0 | AB27: 0 | AC27: 0 | AD27: 0 | AE27: 0 | AF27: 0 | AG27: 0 | AH27: 0 | AI27: 0 | AJ27: 0 | AK27: 0 | AL27: 0 | AM27: 0 | AN27: 0 | AO27: 0 | AP27: 0 | AQ27: 0 | AR27: 0 | AS27: 0 | AT27: 0 | AU27: 0 | AV27: 0 | AW27: 0 | AX27: 0 | AY27: 0 | AZ27: 0 | BA27: 0 | BB27: 0 | BC27: 0 | BD27: 0 | BE27: 0 | BF27: 0 | BG27: 0 | BH27: 0 | BI27: 0 | BJ27: 0 | BK27: 0 | BL27: 0 | BM27: 0 | BN27: 0 | BO27: 0 | BP27: 0 | BQ27: 0 | BR27: 0 | BS27: 0 | BT27: 0
D28: O&M | F28: £000 | G28: =IF($I$4,SYS_Admin!$D$117,SYS_Admin!$D$116) -> Nominal | M28: =OpCo1!M193 -> 0 | N28: =OpCo1!N193 -> 0 | O28: =OpCo1!O193 -> 0 | P28: =OpCo1!P193 -> 0 | Q28: =OpCo1!Q193 -> 0 | R28: =OpCo1!R193 -> 0 | S28: =OpCo1!S193 -> 0 | T28: =OpCo1!T193 -> 0 | U28: =OpCo1!U193 -> 0 | V28: =OpCo1!V193 -> 0 | W28: =OpCo1!W193 -> 0 | X28: =OpCo1!X193 -> 0 | Y28: =OpCo1!Y193 -> 0 | Z28: =OpCo1!Z193 -> 0 | AA28: =OpCo1!AA193 -> 0 | AB28: =OpCo1!AB193 -> 0 | AC28: =OpCo1!AC193 -> 0 | AD28: =OpCo1!AD193 -> 0 | AE28: =OpCo1!AE193 -> 0 | AF28: =OpCo1!AF193 -> 0 | AG28: =OpCo1!AG193 -> 0 | AH28: =OpCo1!AH193 -> 0 | AI28: =OpCo1!AI193 -> 0 | AJ28: =OpCo1!AJ193 -> 0 | AK28: =OpCo1!AK193 -> 0 | AL28: =OpCo1!AL193 -> 0 | AM28: =OpCo1!AM193 -> 0 | AN28: =OpCo1!AN193 -> 0 | AO28: =OpCo1!AO193 -> 0 | AP28: =OpCo1!AP193 -> 0 | AQ28: =OpCo1!AQ193 -> 0 | AR28: =OpCo1!AR193 -> 0 | AS28: =OpCo1!AS193 -> 0 | AT28: =OpCo1!AT193 -> 0 | AU28: =OpCo1!AU193 -> 0 | AV28: =OpCo1!AV193 -> 0 | AW28: =OpCo1!AW193 -> 0 | AX28: =OpCo1!AX193 -> 0 | AY28: =OpCo1!AY193 -> 0 | AZ28: =OpCo1!AZ193 -> 0 | BA28: =OpCo1!BA193 -> 0 | BB28: =OpCo1!BB193 -> 0 | BC28: =OpCo1!BC193 -> 0 | BD28: =OpCo1!BD193 -> 0 | BE28: =OpCo1!BE193 -> 0 | BF28: =OpCo1!BF193 -> 0 | BG28: =OpCo1!BG193 -> 0 | BH28: =OpCo1!BH193 -> 0 | BI28: =OpCo1!BI193 -> 0 | BJ28: =OpCo1!BJ193 -> 0 | BK28: =OpCo1!BK193 -> 0 | BL28: =OpCo1!BL193 -> 0 | BM28: =OpCo1!BM193 -> 0 | BN28: =OpCo1!BN193 -> 0 | BO28: =OpCo1!BO193 -> 0 | BP28: =OpCo1!BP193 -> 0 | BQ28: =OpCo1!BQ193 -> 0 | BR28: =OpCo1!BR193 -> 0 | BS28: =OpCo1!BS193 -> 0 | BT28: =OpCo1!BT193 -> 0
D29: O&M arising due to irrecoverable VAT | F29: £000 | G29: =IF($I$4,SYS_Admin!$D$117,SYS_Admin!$D$116) -> Nominal | M29: =OpCo1!M2886 -> 0 | N29: =OpCo1!N2886 -> 0 | O29: =OpCo1!O2886 -> 0 | P29: =OpCo1!P2886 -> 0 | Q29: =OpCo1!Q2886 -> 0 | R29: =OpCo1!R2886 -> 0 | S29: =OpCo1!S2886 -> 0 | T29: =OpCo1!T2886 -> 0 | U29: =OpCo1!U2886 -> 0 | V29: =OpCo1!V2886 -> 0 | W29: =OpCo1!W2886 -> 0 | X29: =OpCo1!X2886 -> 0 | Y29: =OpCo1!Y2886 -> 0 | Z29: =OpCo1!Z2886 -> 0 | AA29: =OpCo1!AA2886 -> 0 | AB29: =OpCo1!AB2886 -> 0 | AC29: =OpCo1!AC2886 -> 0 | AD29: =OpCo1!AD2886 -> 0 | AE29: =OpCo1!AE2886 -> 0 | AF29: =OpCo1!AF2886 -> 0 | AG29: =OpCo1!AG2886 -> 0 | AH29: =OpCo1!AH2886 -> 0 | AI29: =OpCo1!AI2886 -> 0 | AJ29: =OpCo1!AJ2886 -> 0 | AK29: =OpCo1!AK2886 -> 0 | AL29: =OpCo1!AL2886 -> 0 | AM29: =OpCo1!AM2886 -> 0 | AN29: =OpCo1!AN2886 -> 0 | AO29: =OpCo1!AO2886 -> 0 | AP29: =OpCo1!AP2886 -> 0 | AQ29: =OpCo1!AQ2886 -> 0 | AR29: =OpCo1!AR2886 -> 0 | AS29: =OpCo1!AS2886 -> 0 | AT29: =OpCo1!AT2886 -> 0 | AU29: =OpCo1!AU2886 -> 0 | AV29: =OpCo1!AV2886 -> 0 | AW29: =OpCo1!AW2886 -> 0 | AX29: =OpCo1!AX2886 -> 0 | AY29: =OpCo1!AY2886 -> 0 | AZ29: =OpCo1!AZ2886 -> 0 | BA29: =OpCo1!BA2886 -> 0 | BB29: =OpCo1!BB2886 -> 0 | BC29: =OpCo1!BC2886 -> 0 | BD29: =OpCo1!BD2886 -> 0 | BE29: =OpCo1!BE2886 -> 0 | BF29: =OpCo1!BF2886 -> 0 | BG29: =OpCo1!BG2886 -> 0 | BH29: =OpCo1!BH2886 -> 0 | BI29: =OpCo1!BI2886 -> 0 | BJ29: =OpCo1!BJ2886 -> 0 | BK29: =OpCo1!BK2886 -> 0 | BL29: =OpCo1!BL2886 -> 0 | BM29: =OpCo1!BM2886 -> 0 | BN29: =OpCo1!BN2886 -> 0 | BO29: =OpCo1!BO2886 -> 0 | BP29: =OpCo1!BP2886 -> 0 | BQ29: =OpCo1!BQ2886 -> 0 | BR29: =OpCo1!BR2886 -> 0 | BS29: =OpCo1!BS2886 -> 0 | BT29: =OpCo1!BT2886 -> 0
D31: Fuel | F31: £000 | G31: =IF($I$4,SYS_Admin!$D$117,SYS_Admin!$D$116) -> Nominal | M31: =SUM(M32:M33) -> 0 | N31: =SUM(N32:N33) -> 0 | O31: 0 | P31: 0 | Q31: 0 | R31: 0 | S31: 0 | T31: 0 | U31: 0 | V31: 0 | W31: 0 | X31: 0 | Y31: 0 | Z31: 0 | AA31: 0 | AB31: 0 | AC31: 0 | AD31: 0 | AE31: 0 | AF31: 0 | AG31: 0 | AH31: 0 | AI31: 0 | AJ31: 0 | AK31: 0 | AL31: 0 | AM31: 0 | AN31: 0 | AO31: 0 | AP31: 0 | AQ31: 0 | AR31: 0 | AS31: 0 | AT31: 0 | AU31: 0 | AV31: 0 | AW31: 0 | AX31: 0 | AY31: 0 | AZ31: 0 | BA31: 0 | BB31: 0 | BC31: 0 | BD31: 0 | BE31: 0 | BF31: 0 | BG31: 0 | BH31: 0 | BI31: 0 | BJ31: 0 | BK31: 0 | BL31: 0 | BM31: 0 | BN31: 0 | BO31: 0 | BP31: 0 | BQ31: 0 | BR31: 0 | BS31: 0 | BT31: 0
D32: Fuel | F32: £000 | G32: =IF($I$4,SYS_Admin!$D$117,SYS_Admin!$D$116) -> Nominal | M32: =OpCo1!M207 -> 0 | N32: =OpCo1!N207 -> 0 | O32: =OpCo1!O207 -> 0 | P32: =OpCo1!P207 -> 0 | Q32: =OpCo1!Q207 -> 0 | R32: =OpCo1!R207 -> 0 | S32: =OpCo1!S207 -> 0 | T32: =OpCo1!T207 -> 0 | U32: =OpCo1!U207 -> 0 | V32: =OpCo1!V207 -> 0 | W32: =OpCo1!W207 -> 0 | X32: =OpCo1!X207 -> 0 | Y32: =OpCo1!Y207 -> 0 | Z32: =OpCo1!Z207 -> 0 | AA32: =OpCo1!AA207 -> 0 | AB32: =OpCo1!AB207 -> 0 | AC32: =OpCo1!AC207 -> 0 | AD32: =OpCo1!AD207 -> 0 | AE32: =OpCo1!AE207 -> 0 | AF32: =OpCo1!AF207 -> 0 | AG32: =OpCo1!AG207 -> 0 | AH32: =OpCo1!AH207 -> 0 | AI32: =OpCo1!AI207 -> 0 | AJ32: =OpCo1!AJ207 -> 0 | AK32: =OpCo1!AK207 -> 0 | AL32: =OpCo1!AL207 -> 0 | AM32: =OpCo1!AM207 -> 0 | AN32: =OpCo1!AN207 -> 0 | AO32: =OpCo1!AO207 -> 0 | AP32: =OpCo1!AP207 -> 0 | AQ32: =OpCo1!AQ207 -> 0 | AR32: =OpCo1!AR207 -> 0 | AS32: =OpCo1!AS207 -> 0 | AT32: =OpCo1!AT207 -> 0 | AU32: =OpCo1!AU207 -> 0 | AV32: =OpCo1!AV207 -> 0 | AW32: =OpCo1!AW207 -> 0 | AX32: =OpCo1!AX207 -> 0 | AY32: =OpCo1!AY207 -> 0 | AZ32: =OpCo1!AZ207 -> 0 | BA32: =OpCo1!BA207 -> 0 | BB32: =OpCo1!BB207 -> 0 | BC32: =OpCo1!BC207 -> 0 | BD32: =OpCo1!BD207 -> 0 | BE32: =OpCo1!BE207 -> 0 | BF32: =OpCo1!BF207 -> 0 | BG32: =OpCo1!BG207 -> 0 | BH32: =OpCo1!BH207 -> 0 | BI32: =OpCo1!BI207 -> 0 | BJ32: =OpCo1!BJ207 -> 0 | BK32: =OpCo1!BK207 -> 0 | BL32: =OpCo1!BL207 -> 0 | BM32: =OpCo1!BM207 -> 0 | BN32: =OpCo1!BN207 -> 0 | BO32: =OpCo1!BO207 -> 0 | BP32: =OpCo1!BP207 -> 0 | BQ32: =OpCo1!BQ207 -> 0 | BR32: =OpCo1!BR207 -> 0 | BS32: =OpCo1!BS207 -> 0 | BT32: =OpCo1!BT207 -> 0
D33: Fuel cost arising due to irrecoverable VAT | F33: £000 | G33: =IF($I$4,SYS_Admin!$D$117,SYS_Admin!$D$116) -> Nominal | M33: =OpCo1!M2900 -> 0 | N33: =OpCo1!N2900 -> 0 | O33: =OpCo1!O2900 -> 0 | P33: =OpCo1!P2900 -> 0 | Q33: =OpCo1!Q2900 -> 0 | R33: =OpCo1!R2900 -> 0 | S33: =OpCo1!S2900 -> 0 | T33: =OpCo1!T2900 -> 0 | U33: =OpCo1!U2900 -> 0 | V33: =OpCo1!V2900 -> 0 | W33: =OpCo1!W2900 -> 0 | X33: =OpCo1!X2900 -> 0 | Y33: =OpCo1!Y2900 -> 0 | Z33: =OpCo1!Z2900 -> 0 | AA33: =OpCo1!AA2900 -> 0 | AB33: =OpCo1!AB2900 -> 0 | AC33: =OpCo1!AC2900 -> 0 | AD33: =OpCo1!AD2900 -> 0 | AE33: =OpCo1!AE2900 -> 0 | AF33: =OpCo1!AF2900 -> 0 | AG33: =OpCo1!AG2900 -> 0 | AH33: =OpCo1!AH2900 -> 0 | AI33: =OpCo1!AI2900 -> 0 | AJ33: =OpCo1!AJ2900 -> 0 | AK33: =OpCo1!AK2900 -> 0 | AL33: =OpCo1!AL2900 -> 0 | AM33: =OpCo1!AM2900 -> 0 | AN33: =OpCo1!AN2900 -> 0 | AO33: =OpCo1!AO2900 -> 0 | AP33: =OpCo1!AP2900 -> 0 | AQ33: =OpCo1!AQ2900 -> 0 | AR33: =OpCo1!AR2900 -> 0 | AS33: =OpCo1!AS2900 -> 0 | AT33: =OpCo1!AT2900 -> 0 | AU33: =OpCo1!AU2900 -> 0 | AV33: =OpCo1!AV2900 -> 0 | AW33: =OpCo1!AW2900 -> 0 | AX33: =OpCo1!AX2900 -> 0 | AY33: =OpCo1!AY2900 -> 0 | AZ33: =OpCo1!AZ2900 -> 0 | BA33: =OpCo1!BA2900 -> 0 | BB33: =OpCo1!BB2900 -> 0 | BC33: =OpCo1!BC2900 -> 0 | BD33: =OpCo1!BD2900 -> 0 | BE33: =OpCo1!BE2900 -> 0 | BF33: =OpCo1!BF2900 -> 0 | BG33: =OpCo1!BG2900 -> 0 | BH33: =OpCo1!BH2900 -> 0 | BI33: =OpCo1!BI2900 -> 0 | BJ33: =OpCo1!BJ2900 -> 0 | BK33: =OpCo1!BK2900 -> 0 | BL33: =OpCo1!BL2900 -> 0 | BM33: =OpCo1!BM2900 -> 0 | BN33: =OpCo1!BN2900 -> 0 | BO33: =OpCo1!BO2900 -> 0 | BP33: =OpCo1!BP2900 -> 0 | BQ33: =OpCo1!BQ2900 -> 0 | BR33: =OpCo1!BR2900 -> 0 | BS33: =OpCo1!BS2900 -> 0 | BT33: =OpCo1!BT2900 -> 0
D35: Inter-company purchases | F35: £000 | G35: =IF($I$4,SYS_Admin!$D$117,SYS_Admin!$D$116) -> Nominal | M35: =SUM(M36:M37) -> 0 | N35: =SUM(N36:N37) -> 0 | O35: 0 | P35: 0 | Q35: 0 | R35: 0 | S35: 0 | T35: 0 | U35: 0 | V35: 0 | W35: 0 | X35: 0 | Y35: 0 | Z35: 0 | AA35: 0 | AB35: 0 | AC35: 0 | AD35: 0 | AE35: 0 | AF35: 0 | AG35: 0 | AH35: 0 | AI35: 0 | AJ35: 0 | AK35: 0 | AL35: 0 | AM35: 0 | AN35: 0 | AO35: 0 | AP35: 0 | AQ35: 0 | AR35: 0 | AS35: 0 | AT35: 0 | AU35: 0 | AV35: 0 | AW35: 0 | AX35: 0 | AY35: 0 | AZ35: 0 | BA35: 0 | BB35: 0 | BC35: 0 | BD35: 0 | BE35: 0 | BF35: 0 | BG35: 0 | BH35: 0 | BI35: 0 | BJ35: 0 | BK35: 0 | BL35: 0 | BM35: 0 | BN35: 0 | BO35: 0 | BP35: 0 | BQ35: 0 | BR35: 0 | BS35: 0 | BT35: 0
D36: Inter-company purchases | F36: £000 | G36: =IF($I$4,SYS_Admin!$D$117,SYS_Admin!$D$116) -> Nominal | M36: =OpCo1!M505 -> 0 | N36: =OpCo1!N505 -> 0 | O36: =OpCo1!O505 -> 0 | P36: =OpCo1!P505 -> 0 | Q36: =OpCo1!Q505 -> 0 | R36: =OpCo1!R505 -> 0 | S36: =OpCo1!S505 -> 0 | T36: =OpCo1!T505 -> 0 | U36: =OpCo1!U505 -> 0 | V36: =OpCo1!V505 -> 0 | W36: =OpCo1!W505 -> 0 | X36: =OpCo1!X505 -> 0 | Y36: =OpCo1!Y505 -> 0 | Z36: =OpCo1!Z505 -> 0 | AA36: =OpCo1!AA505 -> 0 | AB36: =OpCo1!AB505 -> 0 | AC36: =OpCo1!AC505 -> 0 | AD36: =OpCo1!AD505 -> 0 | AE36: =OpCo1!AE505 -> 0 | AF36: =OpCo1!AF505 -> 0 | AG36: =OpCo1!AG505 -> 0 | AH36: =OpCo1!AH505 -> 0 | AI36: =OpCo1!AI505 -> 0 | AJ36: =OpCo1!AJ505 -> 0 | AK36: =OpCo1!AK505 -> 0 | AL36: =OpCo1!AL505 -> 0 | AM36: =OpCo1!AM505 -> 0 | AN36: =OpCo1!AN505 -> 0 | AO36: =OpCo1!AO505 -> 0 | AP36: =OpCo1!AP505 -> 0 | AQ36: =OpCo1!AQ505 -> 0 | AR36: =OpCo1!AR505 -> 0 | AS36: =OpCo1!AS505 -> 0 | AT36: =OpCo1!AT505 -> 0 | AU36: =OpCo1!AU505 -> 0 | AV36: =OpCo1!AV505 -> 0 | AW36: =OpCo1!AW505 -> 0 | AX36: =OpCo1!AX505 -> 0 | AY36: =OpCo1!AY505 -> 0 | AZ36: =OpCo1!AZ505 -> 0 | BA36: =OpCo1!BA505 -> 0 | BB36: =OpCo1!BB505 -> 0 | BC36: =OpCo1!BC505 -> 0 | BD36: =OpCo1!BD505 -> 0 | BE36: =OpCo1!BE505 -> 0 | BF36: =OpCo1!BF505 -> 0 | BG36: =OpCo1!BG505 -> 0 | BH36: =OpCo1!BH505 -> 0 | BI36: =OpCo1!BI505 -> 0 | BJ36: =OpCo1!BJ505 -> 0 | BK36: =OpCo1!BK505 -> 0 | BL36: =OpCo1!BL505 -> 0 | BM36: =OpCo1!BM505 -> 0 | BN36: =OpCo1!BN505 -> 0 | BO36: =OpCo1!BO505 -> 0 | BP36: =OpCo1!BP505 -> 0 | BQ36: =OpCo1!BQ505 -> 0 | BR36: =OpCo1!BR505 -> 0 | BS36: =OpCo1!BS505 -> 0 | BT36: =OpCo1!BT505 -> 0
D37: I/C cost arising due to irrecoverable VAT | F37: £000 | G37: =IF($I$4,SYS_Admin!$D$117,SYS_Admin!$D$116) -> Nominal | M37: =OpCo1!M2914 -> 0 | N37: =OpCo1!N2914 -> 0 | O37: =OpCo1!O2914 -> 0 | P37: =OpCo1!P2914 -> 0 | Q37: =OpCo1!Q2914 -> 0 | R37: =OpCo1!R2914 -> 0 | S37: =OpCo1!S2914 -> 0 | T37: =OpCo1!T2914 -> 0 | U37: =OpCo1!U2914 -> 0 | V37: =OpCo1!V2914 -> 0 | W37: =OpCo1!W2914 -> 0 | X37: =OpCo1!X2914 -> 0 | Y37: =OpCo1!Y2914 -> 0 | Z37: =OpCo1!Z2914 -> 0 | AA37: =OpCo1!AA2914 -> 0 | AB37: =OpCo1!AB2914 -> 0 | AC37: =OpCo1!AC2914 -> 0 | AD37: =OpCo1!AD2914 -> 0 | AE37: =OpCo1!AE2914 -> 0 | AF37: =OpCo1!AF2914 -> 0 | AG37: =OpCo1!AG2914 -> 0 | AH37: =OpCo1!AH2914 -> 0 | AI37: =OpCo1!AI2914 -> 0 | AJ37: =OpCo1!AJ2914 -> 0 | AK37: =OpCo1!AK2914 -> 0 | AL37: =OpCo1!AL2914 -> 0 | AM37: =OpCo1!AM2914 -> 0 | AN37: =OpCo1!AN2914 -> 0 | AO37: =OpCo1!AO2914 -> 0 | AP37: =OpCo1!AP2914 -> 0 | AQ37: =OpCo1!AQ2914 -> 0 | AR37: =OpCo1!AR2914 -> 0 | AS37: =OpCo1!AS2914 -> 0 | AT37: =OpCo1!AT2914 -> 0 | AU37: =OpCo1!AU2914 -> 0 | AV37: =OpCo1!AV2914 -> 0 | AW37: =OpCo1!AW2914 -> 0 | AX37: =OpCo1!AX2914 -> 0 | AY37: =OpCo1!AY2914 -> 0 | AZ37: =OpCo1!AZ2914 -> 0 | BA37: =OpCo1!BA2914 -> 0 | BB37: =OpCo1!BB2914 -> 0 | BC37: =OpCo1!BC2914 -> 0 | BD37: =OpCo1!BD2914 -> 0 | BE37: =OpCo1!BE2914 -> 0 | BF37: =OpCo1!BF2914 -> 0 | BG37: =OpCo1!BG2914 -> 0 | BH37: =OpCo1!BH2914 -> 0 | BI37: =OpCo1!BI2914 -> 0 | BJ37: =OpCo1!BJ2914 -> 0 | BK37: =OpCo1!BK2914 -> 0 | BL37: =OpCo1!BL2914 -> 0 | BM37: =OpCo1!BM2914 -> 0 | BN37: =OpCo1!BN2914 -> 0 | BO37: =OpCo1!BO2914 -> 0 | BP37: =OpCo1!BP2914 -> 0 | BQ37: =OpCo1!BQ2914 -> 0 | BR37: =OpCo1!BR2914 -> 0 | BS37: =OpCo1!BS2914 -> 0 | BT37: =OpCo1!BT2914 -> 0
D39: Levies - CCL | F39: £000 | G39: =IF($I$4,SYS_Admin!$D$117,SYS_Admin!$D$116) -> Nominal | M39: =OpCo1!M221 -> 0 | N39: =OpCo1!N221 -> 0 | O39: =OpCo1!O221 -> 0 | P39: =OpCo1!P221 -> 0 | Q39: =OpCo1!Q221 -> 0 | R39: =OpCo1!R221 -> 0 | S39: =OpCo1!S221 -> 0 | T39: =OpCo1!T221 -> 0 | U39: =OpCo1!U221 -> 0 | V39: =OpCo1!V221 -> 0 | W39: =OpCo1!W221 -> 0 | X39: =OpCo1!X221 -> 0 | Y39: =OpCo1!Y221 -> 0 | Z39: =OpCo1!Z221 -> 0 | AA39: =OpCo1!AA221 -> 0 | AB39: =OpCo1!AB221 -> 0 | AC39: =OpCo1!AC221 -> 0 | AD39: =OpCo1!AD221 -> 0 | AE39: =OpCo1!AE221 -> 0 | AF39: =OpCo1!AF221 -> 0 | AG39: =OpCo1!AG221 -> 0 | AH39: =OpCo1!AH221 -> 0 | AI39: =OpCo1!AI221 -> 0 | AJ39: =OpCo1!AJ221 -> 0 | AK39: =OpCo1!AK221 -> 0 | AL39: =OpCo1!AL221 -> 0 | AM39: =OpCo1!AM221 -> 0 | AN39: =OpCo1!AN221 -> 0 | AO39: =OpCo1!AO221 -> 0 | AP39: =OpCo1!AP221 -> 0 | AQ39: =OpCo1!AQ221 -> 0 | AR39: =OpCo1!AR221 -> 0 | AS39: =OpCo1!AS221 -> 0 | AT39: =OpCo1!AT221 -> 0 | AU39: =OpCo1!AU221 -> 0 | AV39: =OpCo1!AV221 -> 0 | AW39: =OpCo1!AW221 -> 0 | AX39: =OpCo1!AX221 -> 0 | AY39: =OpCo1!AY221 -> 0 | AZ39: =OpCo1!AZ221 -> 0 | BA39: =OpCo1!BA221 -> 0 | BB39: =OpCo1!BB221 -> 0 | BC39: =OpCo1!BC221 -> 0 | BD39: =OpCo1!BD221 -> 0 | BE39: =OpCo1!BE221 -> 0 | BF39: =OpCo1!BF221 -> 0 | BG39: =OpCo1!BG221 -> 0 | BH39: =OpCo1!BH221 -> 0 | BI39: =OpCo1!BI221 -> 0 | BJ39: =OpCo1!BJ221 -> 0 | BK39: =OpCo1!BK221 -> 0 | BL39: =OpCo1!BL221 -> 0 | BM39: =OpCo1!BM221 -> 0 | BN39: =OpCo1!BN221 -> 0 | BO39: =OpCo1!BO221 -> 0 | BP39: =OpCo1!BP221 -> 0 | BQ39: =OpCo1!BQ221 -> 0 | BR39: =OpCo1!BR221 -> 0 | BS39: =OpCo1!BS221 -> 0 | BT39: =OpCo1!BT221 -> 0
D40: Operating costs | F40: £000 | G40: =IF($I$4,SYS_Admin!$D$117,SYS_Admin!$D$116) -> Nominal | M40: =SUM(M27,M31,M35,M39) -> 0 | N40: =SUM(N27,N31,N35,N39) -> 0 | O40: 0 | P40: 0 | Q40: 0 | R40: 0 | S40: 0 | T40: 0 | U40: 0 | V40: 0 | W40: 0 | X40: 0 | Y40: 0 | Z40: 0 | AA40: 0 | AB40: 0 | AC40: 0 | AD40: 0 | AE40: 0 | AF40: 0 | AG40: 0 | AH40: 0 | AI40: 0 | AJ40: 0 | AK40: 0 | AL40: 0 | AM40: 0 | AN40: 0 | AO40: 0 | AP40: 0 | AQ40: 0 | AR40: 0 | AS40: 0 | AT40: 0 | AU40: 0 | AV40: 0 | AW40: 0 | AX40: 0 | AY40: 0 | AZ40: 0 | BA40: 0 | BB40: 0 | BC40: 0 | BD40: 0 | BE40: 0 | BF40: 0 | BG40: 0 | BH40: 0 | BI40: 0 | BJ40: 0 | BK40: 0 | BL40: 0 | BM40: 0 | BN40: 0 | BO40: 0 | BP40: 0 | BQ40: 0 | BR40: 0 | BS40: 0 | BT40: 0
D42: Operating margin | F42: £000 | G42: =IF($I$4,SYS_Admin!$D$117,SYS_Admin!$D$116) -> Nominal | M42: =M25+M40 -> 0 | N42: =N25+N40 -> 0 | O42: 0 | P42: 0 | Q42: 0 | R42: 0 | S42: 0 | T42: 0 | U42: 0 | V42: 0 | W42: 0 | X42: 0 | Y42: 0 | Z42: 0 | AA42: 0 | AB42: 0 | AC42: 0 | AD42: 0 | AE42: 0 | AF42: 0 | AG42: 0 | AH42: 0 | AI42: 0 | AJ42: 0 | AK42: 0 | AL42: 0 | AM42: 0 | AN42: 0 | AO42: 0 | AP42: 0 | AQ42: 0 | AR42: 0 | AS42: 0 | AT42: 0 | AU42: 0 | AV42: 0 | AW42: 0 | AX42: 0 | AY42: 0 | AZ42: 0 | BA42: 0 | BB42: 0 | BC42: 0 | BD42: 0 | BE42: 0 | BF42: 0 | BG42: 0 | BH42: 0 | BI42: 0 | BJ42: 0 | BK42: 0 | BL42: 0 | BM42: 0 | BN42: 0 | BO42: 0 | BP42: 0 | BQ42: 0 | BR42: 0 | BS42: 0 | BT42: 0
D43: Operating margin % of revenue | F43: % | M43: =IFERROR(M42/M25,0) -> 0 | N43: =IFERROR(N42/N25,0) -> 0 | O43: 0 | P43: 0 | Q43: 0 | R43: 0 | S43: 0 | T43: 0 | U43: 0 | V43: 0 | W43: 0 | X43: 0 | Y43: 0 | Z43: 0 | AA43: 0 | AB43: 0 | AC43: 0 | AD43: 0 | AE43: 0 | AF43: 0 | AG43: 0 | AH43: 0 | AI43: 0 | AJ43: 0 | AK43: 0 | AL43: 0 | AM43: 0 | AN43: 0 | AO43: 0 | AP43: 0 | AQ43: 0 | AR43: 0 | AS43: 0 | AT43: 0 | AU43: 0 | AV43: 0 | AW43: 0 | AX43: 0 | AY43: 0 | AZ43: 0 | BA43: 0 | BB43: 0 | BC43: 0 | BD43: 0 | BE43: 0 | BF43: 0 | BG43: 0 | BH43: 0 | BI43: 0 | BJ43: 0 | BK43: 0 | BL43: 0 | BM43: 0 | BN43: 0 | BO43: 0 | BP43: 0 | BQ43: 0 | BR43: 0 | BS43: 0 | BT43: 0
D45: Depreciation | F45: £000 | G45: =IF($I$4,SYS_Admin!$D$117,SYS_Admin!$D$116) -> Nominal | M45: =SUM(M46:M50) -> 0 | N45: =SUM(N46:N50) -> 0 | O45: 0 | P45: 0 | Q45: 0 | R45: 0 | S45: 0 | T45: 0 | U45: 0 | V45: 0 | W45: 0 | X45: 0 | Y45: 0 | Z45: 0 | AA45: 0 | AB45: 0 | AC45: 0 | AD45: 0 | AE45: 0 | AF45: 0 | AG45: 0 | AH45: 0 | AI45: 0 | AJ45: 0 | AK45: 0 | AL45: 0 | AM45: 0 | AN45: 0 | AO45: 0 | AP45: 0 | AQ45: 0 | AR45: 0 | AS45: 0 | AT45: 0 | AU45: 0 | AV45: 0 | AW45: 0 | AX45: 0 | AY45: 0 | AZ45: 0 | BA45: 0 | BB45: 0 | BC45: 0 | BD45: 0 | BE45: 0 | BF45: 0 | BG45: 0 | BH45: 0 | BI45: 0 | BJ45: 0 | BK45: 0 | BL45: 0 | BM45: 0 | BN45: 0 | BO45: 0 | BP45: 0 | BQ45: 0 | BR45: 0 | BS45: 0 | BT45: 0
D46: Fixed assets | F46: £000 | G46: =IF($I$4,SYS_Admin!$D$117,SYS_Admin!$D$116) -> Nominal | M46: =SUM(OpCo1!M174:M175) -> 0 | N46: =SUM(OpCo1!N174:N175) -> 0 | O46: =SUM(OpCo1!O174:O175) -> 0 | P46: =SUM(OpCo1!P174:P175) -> 0 | Q46: =SUM(OpCo1!Q174:Q175) -> 0 | R46: =SUM(OpCo1!R174:R175) -> 0 | S46: =SUM(OpCo1!S174:S175) -> 0 | T46: =SUM(OpCo1!T174:T175) -> 0 | U46: =SUM(OpCo1!U174:U175) -> 0 | V46: =SUM(OpCo1!V174:V175) -> 0 | W46: =SUM(OpCo1!W174:W175) -> 0 | X46: =SUM(OpCo1!X174:X175) -> 0 | Y46: =SUM(OpCo1!Y174:Y175) -> 0 | Z46: =SUM(OpCo1!Z174:Z175) -> 0 | AA46: =SUM(OpCo1!AA174:AA175) -> 0 | AB46: =SUM(OpCo1!AB174:AB175) -> 0 | AC46: =SUM(OpCo1!AC174:AC175) -> 0 | AD46: =SUM(OpCo1!AD174:AD175) -> 0 | AE46: =SUM(OpCo1!AE174:AE175) -> 0 | AF46: =SUM(OpCo1!AF174:AF175) -> 0 | AG46: =SUM(OpCo1!AG174:AG175) -> 0 | AH46: =SUM(OpCo1!AH174:AH175) -> 0 | AI46: =SUM(OpCo1!AI174:AI175) -> 0 | AJ46: =SUM(OpCo1!AJ174:AJ175) -> 0 | AK46: =SUM(OpCo1!AK174:AK175) -> 0 | AL46: =SUM(OpCo1!AL174:AL175) -> 0 | AM46: =SUM(OpCo1!AM174:AM175) -> 0 | AN46: =SUM(OpCo1!AN174:AN175) -> 0 | AO46: =SUM(OpCo1!AO174:AO175) -> 0 | AP46: =SUM(OpCo1!AP174:AP175) -> 0 | AQ46: =SUM(OpCo1!AQ174:AQ175) -> 0 | AR46: =SUM(OpCo1!AR174:AR175) -> 0 | AS46: =SUM(OpCo1!AS174:AS175) -> 0 | AT46: =SUM(OpCo1!AT174:AT175) -> 0 | AU46: =SUM(OpCo1!AU174:AU175) -> 0 | AV46: =SUM(OpCo1!AV174:AV175) -> 0 | AW46: =SUM(OpCo1!AW174:AW175) -> 0 | AX46: =SUM(OpCo1!AX174:AX175) -> 0 | AY46: =SUM(OpCo1!AY174:AY175) -> 0 | AZ46: =SUM(OpCo1!AZ174:AZ175) -> 0 | BA46: =SUM(OpCo1!BA174:BA175) -> 0 | BB46: =SUM(OpCo1!BB174:BB175) -> 0 | BC46: =SUM(OpCo1!BC174:BC175) -> 0 | BD46: =SUM(OpCo1!BD174:BD175) -> 0 | BE46: =SUM(OpCo1!BE174:BE175) -> 0 | BF46: =SUM(OpCo1!BF174:BF175) -> 0 | BG46: =SUM(OpCo1!BG174:BG175) -> 0 | BH46: =SUM(OpCo1!BH174:BH175) -> 0 | BI46: =SUM(OpCo1!BI174:BI175) -> 0 | BJ46: =SUM(OpCo1!BJ174:BJ175) -> 0 | BK46: =SUM(OpCo1!BK174:BK175) -> 0 | BL46: =SUM(OpCo1!BL174:BL175) -> 0 | BM46: =SUM(OpCo1!BM174:BM175) -> 0 | BN46: =SUM(OpCo1!BN174:BN175) -> 0 | BO46: =SUM(OpCo1!BO174:BO175) -> 0 | BP46: =SUM(OpCo1!BP174:BP175) -> 0 | BQ46: =SUM(OpCo1!BQ174:BQ175) -> 0 | BR46: =SUM(OpCo1!BR174:BR175) -> 0 | BS46: =SUM(OpCo1!BS174:BS175) -> 0 | BT46: =SUM(OpCo1!BT174:BT175) -> 0
D47: Irrecoverable VAT on fixed assets | F47: £000 | G47: =IF($I$4,SYS_Admin!$D$117,SYS_Admin!$D$116) -> Nominal | M47: =SUM(OpCo1!M2867:M2868) -> 0 | N47: =SUM(OpCo1!N2867:N2868) -> 0 | O47: =SUM(OpCo1!O2867:O2868) -> 0 | P47: =SUM(OpCo1!P2867:P2868) -> 0 | Q47: =SUM(OpCo1!Q2867:Q2868) -> 0 | R47: =SUM(OpCo1!R2867:R2868) -> 0 | S47: =SUM(OpCo1!S2867:S2868) -> 0 | T47: =SUM(OpCo1!T2867:T2868) -> 0 | U47: =SUM(OpCo1!U2867:U2868) -> 0 | V47: =SUM(OpCo1!V2867:V2868) -> 0 | W47: =SUM(OpCo1!W2867:W2868) -> 0 | X47: =SUM(OpCo1!X2867:X2868) -> 0 | Y47: =SUM(OpCo1!Y2867:Y2868) -> 0 | Z47: =SUM(OpCo1!Z2867:Z2868) -> 0 | AA47: =SUM(OpCo1!AA2867:AA2868) -> 0 | AB47: =SUM(OpCo1!AB2867:AB2868) -> 0 | AC47: =SUM(OpCo1!AC2867:AC2868) -> 0 | AD47: =SUM(OpCo1!AD2867:AD2868) -> 0 | AE47: =SUM(OpCo1!AE2867:AE2868) -> 0 | AF47: =SUM(OpCo1!AF2867:AF2868) -> 0 | AG47: =SUM(OpCo1!AG2867:AG2868) -> 0 | AH47: =SUM(OpCo1!AH2867:AH2868) -> 0 | AI47: =SUM(OpCo1!AI2867:AI2868) -> 0 | AJ47: =SUM(OpCo1!AJ2867:AJ2868) -> 0 | AK47: =SUM(OpCo1!AK2867:AK2868) -> 0 | AL47: =SUM(OpCo1!AL2867:AL2868) -> 0 | AM47: =SUM(OpCo1!AM2867:AM2868) -> 0 | AN47: =SUM(OpCo1!AN2867:AN2868) -> 0 | AO47: =SUM(OpCo1!AO2867:AO2868) -> 0 | AP47: =SUM(OpCo1!AP2867:AP2868) -> 0 | AQ47: =SUM(OpCo1!AQ2867:AQ2868) -> 0 | AR47: =SUM(OpCo1!AR2867:AR2868) -> 0 | AS47: =SUM(OpCo1!AS2867:AS2868) -> 0 | AT47: =SUM(OpCo1!AT2867:AT2868) -> 0 | AU47: =SUM(OpCo1!AU2867:AU2868) -> 0 | AV47: =SUM(OpCo1!AV2867:AV2868) -> 0 | AW47: =SUM(OpCo1!AW2867:AW2868) -> 0 | AX47: =SUM(OpCo1!AX2867:AX2868) -> 0 | AY47: =SUM(OpCo1!AY2867:AY2868) -> 0 | AZ47: =SUM(OpCo1!AZ2867:AZ2868) -> 0 | BA47: =SUM(OpCo1!BA2867:BA2868) -> 0 | BB47: =SUM(OpCo1!BB2867:BB2868) -> 0 | BC47: =SUM(OpCo1!BC2867:BC2868) -> 0 | BD47: =SUM(OpCo1!BD2867:BD2868) -> 0 | BE47: =SUM(OpCo1!BE2867:BE2868) -> 0 | BF47: =SUM(OpCo1!BF2867:BF2868) -> 0 | BG47: =SUM(OpCo1!BG2867:BG2868) -> 0 | BH47: =SUM(OpCo1!BH2867:BH2868) -> 0 | BI47: =SUM(OpCo1!BI2867:BI2868) -> 0 | BJ47: =SUM(OpCo1!BJ2867:BJ2868) -> 0 | BK47: =SUM(OpCo1!BK2867:BK2868) -> 0 | BL47: =SUM(OpCo1!BL2867:BL2868) -> 0 | BM47: =SUM(OpCo1!BM2867:BM2868) -> 0 | BN47: =SUM(OpCo1!BN2867:BN2868) -> 0 | BO47: =SUM(OpCo1!BO2867:BO2868) -> 0 | BP47: =SUM(OpCo1!BP2867:BP2868) -> 0 | BQ47: =SUM(OpCo1!BQ2867:BQ2868) -> 0 | BR47: =SUM(OpCo1!BR2867:BR2868) -> 0 | BS47: =SUM(OpCo1!BS2867:BS2868) -> 0 | BT47: =SUM(OpCo1!BT2867:BT2868) -> 0
D48: Interest capitalised | F48: £000 | G48: =IF($I$4,SYS_Admin!$D$117,SYS_Admin!$D$116) -> Nominal | M48: =OpCo1!M2174 -> 0 | N48: =OpCo1!N2174 -> 0 | O48: =OpCo1!O2174 -> 0 | P48: =OpCo1!P2174 -> 0 | Q48: =OpCo1!Q2174 -> 0 | R48: =OpCo1!R2174 -> 0 | S48: =OpCo1!S2174 -> 0 | T48: =OpCo1!T2174 -> 0 | U48: =OpCo1!U2174 -> 0 | V48: =OpCo1!V2174 -> 0 | W48: =OpCo1!W2174 -> 0 | X48: =OpCo1!X2174 -> 0 | Y48: =OpCo1!Y2174 -> 0 | Z48: =OpCo1!Z2174 -> 0 | AA48: =OpCo1!AA2174 -> 0 | AB48: =OpCo1!AB2174 -> 0 | AC48: =OpCo1!AC2174 -> 0 | AD48: =OpCo1!AD2174 -> 0 | AE48: =OpCo1!AE2174 -> 0 | AF48: =OpCo1!AF2174 -> 0 | AG48: =OpCo1!AG2174 -> 0 | AH48: =OpCo1!AH2174 -> 0 | AI48: =OpCo1!AI2174 -> 0 | AJ48: =OpCo1!AJ2174 -> 0 | AK48: =OpCo1!AK2174 -> 0 | AL48: =OpCo1!AL2174 -> 0 | AM48: =OpCo1!AM2174 -> 0 | AN48: =OpCo1!AN2174 -> 0 | AO48: =OpCo1!AO2174 -> 0 | AP48: =OpCo1!AP2174 -> 0 | AQ48: =OpCo1!AQ2174 -> 0 | AR48: =OpCo1!AR2174 -> 0 | AS48: =OpCo1!AS2174 -> 0 | AT48: =OpCo1!AT2174 -> 0 | AU48: =OpCo1!AU2174 -> 0 | AV48: =OpCo1!AV2174 -> 0 | AW48: =OpCo1!AW2174 -> 0 | AX48: =OpCo1!AX2174 -> 0 | AY48: =OpCo1!AY2174 -> 0 | AZ48: =OpCo1!AZ2174 -> 0 | BA48: =OpCo1!BA2174 -> 0 | BB48: =OpCo1!BB2174 -> 0 | BC48: =OpCo1!BC2174 -> 0 | BD48: =OpCo1!BD2174 -> 0 | BE48: =OpCo1!BE2174 -> 0 | BF48: =OpCo1!BF2174 -> 0 | BG48: =OpCo1!BG2174 -> 0 | BH48: =OpCo1!BH2174 -> 0 | BI48: =OpCo1!BI2174 -> 0 | BJ48: =OpCo1!BJ2174 -> 0 | BK48: =OpCo1!BK2174 -> 0 | BL48: =OpCo1!BL2174 -> 0 | BM48: =OpCo1!BM2174 -> 0 | BN48: =OpCo1!BN2174 -> 0 | BO48: =OpCo1!BO2174 -> 0 | BP48: =OpCo1!BP2174 -> 0 | BQ48: =OpCo1!BQ2174 -> 0 | BR48: =OpCo1!BR2174 -> 0 | BS48: =OpCo1!BS2174 -> 0 | BT48: =OpCo1!BT2174 -> 0
D49: Leased assets capitalised | F49: £000 | G49: =IF($I$4,SYS_Admin!$D$117,SYS_Admin!$D$116) -> Nominal | M49: =OpCo1!M1211 -> 0 | N49: =OpCo1!N1211 -> 0 | O49: =OpCo1!O1211 -> 0 | P49: =OpCo1!P1211 -> 0 | Q49: =OpCo1!Q1211 -> 0 | R49: =OpCo1!R1211 -> 0 | S49: =OpCo1!S1211 -> 0 | T49: =OpCo1!T1211 -> 0 | U49: =OpCo1!U1211 -> 0 | V49: =OpCo1!V1211 -> 0 | W49: =OpCo1!W1211 -> 0 | X49: =OpCo1!X1211 -> 0 | Y49: =OpCo1!Y1211 -> 0 | Z49: =OpCo1!Z1211 -> 0 | AA49: =OpCo1!AA1211 -> 0 | AB49: =OpCo1!AB1211 -> 0 | AC49: =OpCo1!AC1211 -> 0 | AD49: =OpCo1!AD1211 -> 0 | AE49: =OpCo1!AE1211 -> 0 | AF49: =OpCo1!AF1211 -> 0 | AG49: =OpCo1!AG1211 -> 0 | AH49: =OpCo1!AH1211 -> 0 | AI49: =OpCo1!AI1211 -> 0 | AJ49: =OpCo1!AJ1211 -> 0 | AK49: =OpCo1!AK1211 -> 0 | AL49: =OpCo1!AL1211 -> 0 | AM49: =OpCo1!AM1211 -> 0 | AN49: =OpCo1!AN1211 -> 0 | AO49: =OpCo1!AO1211 -> 0 | AP49: =OpCo1!AP1211 -> 0 | AQ49: =OpCo1!AQ1211 -> 0 | AR49: =OpCo1!AR1211 -> 0 | AS49: =OpCo1!AS1211 -> 0 | AT49: =OpCo1!AT1211 -> 0 | AU49: =OpCo1!AU1211 -> 0 | AV49: =OpCo1!AV1211 -> 0 | AW49: =OpCo1!AW1211 -> 0 | AX49: =OpCo1!AX1211 -> 0 | AY49: =OpCo1!AY1211 -> 0 | AZ49: =OpCo1!AZ1211 -> 0 | BA49: =OpCo1!BA1211 -> 0 | BB49: =OpCo1!BB1211 -> 0 | BC49: =OpCo1!BC1211 -> 0 | BD49: =OpCo1!BD1211 -> 0 | BE49: =OpCo1!BE1211 -> 0 | BF49: =OpCo1!BF1211 -> 0 | BG49: =OpCo1!BG1211 -> 0 | BH49: =OpCo1!BH1211 -> 0 | BI49: =OpCo1!BI1211 -> 0 | BJ49: =OpCo1!BJ1211 -> 0 | BK49: =OpCo1!BK1211 -> 0 | BL49: =OpCo1!BL1211 -> 0 | BM49: =OpCo1!BM1211 -> 0 | BN49: =OpCo1!BN1211 -> 0 | BO49: =OpCo1!BO1211 -> 0 | BP49: =OpCo1!BP1211 -> 0 | BQ49: =OpCo1!BQ1211 -> 0 | BR49: =OpCo1!BR1211 -> 0 | BS49: =OpCo1!BS1211 -> 0 | BT49: =OpCo1!BT1211 -> 0
D50: Adjustment for leased assets | F50: £000 | G50: =IF($I$4,SYS_Admin!$D$117,SYS_Admin!$D$116) -> Nominal | M50: =SUM(OpCo1!M1198:M1199) -> 0 | N50: =SUM(OpCo1!N1198:N1199) -> 0 | O50: =SUM(OpCo1!O1198:O1199) -> 0 | P50: =SUM(OpCo1!P1198:P1199) -> 0 | Q50: =SUM(OpCo1!Q1198:Q1199) -> 0 | R50: =SUM(OpCo1!R1198:R1199) -> 0 | S50: =SUM(OpCo1!S1198:S1199) -> 0 | T50: =SUM(OpCo1!T1198:T1199) -> 0 | U50: =SUM(OpCo1!U1198:U1199) -> 0 | V50: =SUM(OpCo1!V1198:V1199) -> 0 | W50: =SUM(OpCo1!W1198:W1199) -> 0 | X50: =SUM(OpCo1!X1198:X1199) -> 0 | Y50: =SUM(OpCo1!Y1198:Y1199) -> 0 | Z50: =SUM(OpCo1!Z1198:Z1199) -> 0 | AA50: =SUM(OpCo1!AA1198:AA1199) -> 0 | AB50: =SUM(OpCo1!AB1198:AB1199) -> 0 | AC50: =SUM(OpCo1!AC1198:AC1199) -> 0 | AD50: =SUM(OpCo1!AD1198:AD1199) -> 0 | AE50: =SUM(OpCo1!AE1198:AE1199) -> 0 | AF50: =SUM(OpCo1!AF1198:AF1199) -> 0 | AG50: =SUM(OpCo1!AG1198:AG1199) -> 0 | AH50: =SUM(OpCo1!AH1198:AH1199) -> 0 | AI50: =SUM(OpCo1!AI1198:AI1199) -> 0 | AJ50: =SUM(OpCo1!AJ1198:AJ1199) -> 0 | AK50: =SUM(OpCo1!AK1198:AK1199) -> 0 | AL50: =SUM(OpCo1!AL1198:AL1199) -> 0 | AM50: =SUM(OpCo1!AM1198:AM1199) -> 0 | AN50: =SUM(OpCo1!AN1198:AN1199) -> 0 | AO50: =SUM(OpCo1!AO1198:AO1199) -> 0 | AP50: =SUM(OpCo1!AP1198:AP1199) -> 0 | AQ50: =SUM(OpCo1!AQ1198:AQ1199) -> 0 | AR50: =SUM(OpCo1!AR1198:AR1199) -> 0 | AS50: =SUM(OpCo1!AS1198:AS1199) -> 0 | AT50: =SUM(OpCo1!AT1198:AT1199) -> 0 | AU50: =SUM(OpCo1!AU1198:AU1199) -> 0 | AV50: =SUM(OpCo1!AV1198:AV1199) -> 0 | AW50: =SUM(OpCo1!AW1198:AW1199) -> 0 | AX50: =SUM(OpCo1!AX1198:AX1199) -> 0 | AY50: =SUM(OpCo1!AY1198:AY1199) -> 0 | AZ50: =SUM(OpCo1!AZ1198:AZ1199) -> 0 | BA50: =SUM(OpCo1!BA1198:BA1199) -> 0 | BB50: =SUM(OpCo1!BB1198:BB1199) -> 0 | BC50: =SUM(OpCo1!BC1198:BC1199) -> 0 | BD50: =SUM(OpCo1!BD1198:BD1199) -> 0 | BE50: =SUM(OpCo1!BE1198:BE1199) -> 0 | BF50: =SUM(OpCo1!BF1198:BF1199) -> 0 | BG50: =SUM(OpCo1!BG1198:BG1199) -> 0 | BH50: =SUM(OpCo1!BH1198:BH1199) -> 0 | BI50: =SUM(OpCo1!BI1198:BI1199) -> 0 | BJ50: =SUM(OpCo1!BJ1198:BJ1199) -> 0 | BK50: =SUM(OpCo1!BK1198:BK1199) -> 0 | BL50: =SUM(OpCo1!BL1198:BL1199) -> 0 | BM50: =SUM(OpCo1!BM1198:BM1199) -> 0 | BN50: =SUM(OpCo1!BN1198:BN1199) -> 0 | BO50: =SUM(OpCo1!BO1198:BO1199) -> 0 | BP50: =SUM(OpCo1!BP1198:BP1199) -> 0 | BQ50: =SUM(OpCo1!BQ1198:BQ1199) -> 0 | BR50: =SUM(OpCo1!BR1198:BR1199) -> 0 | BS50: =SUM(OpCo1!BS1198:BS1199) -> 0 | BT50: =SUM(OpCo1!BT1198:BT1199) -> 0
D52: Profit/(loss) on sale of assets | F52: £000 | G52: =IF($I$4,SYS_Admin!$D$117,SYS_Admin!$D$116) -> Nominal | M52: =OpCo1!M1185 -> 0 | N52: =OpCo1!N1185 -> 0 | O52: =OpCo1!O1185 -> 0 | P52: =OpCo1!P1185 -> 0 | Q52: =OpCo1!Q1185 -> 0 | R52: =OpCo1!R1185 -> 0 | S52: =OpCo1!S1185 -> 0 | T52: =OpCo1!T1185 -> 0 | U52: =OpCo1!U1185 -> 0 | V52: =OpCo1!V1185 -> 0 | W52: =OpCo1!W1185 -> 0 | X52: =OpCo1!X1185 -> 0 | Y52: =OpCo1!Y1185 -> 0 | Z52: =OpCo1!Z1185 -> 0 | AA52: =OpCo1!AA1185 -> 0 | AB52: =OpCo1!AB1185 -> 0 | AC52: =OpCo1!AC1185 -> 0 | AD52: =OpCo1!AD1185 -> 0 | AE52: =OpCo1!AE1185 -> 0 | AF52: =OpCo1!AF1185 -> 0 | AG52: =OpCo1!AG1185 -> 0 | AH52: =OpCo1!AH1185 -> 0 | AI52: =OpCo1!AI1185 -> 0 | AJ52: =OpCo1!AJ1185 -> 0 | AK52: =OpCo1!AK1185 -> 0 | AL52: =OpCo1!AL1185 -> 0 | AM52: =OpCo1!AM1185 -> 0 | AN52: =OpCo1!AN1185 -> 0 | AO52: =OpCo1!AO1185 -> 0 | AP52: =OpCo1!AP1185 -> 0 | AQ52: =OpCo1!AQ1185 -> 0 | AR52: =OpCo1!AR1185 -> 0 | AS52: =OpCo1!AS1185 -> 0 | AT52: =OpCo1!AT1185 -> 0 | AU52: =OpCo1!AU1185 -> 0 | AV52: =OpCo1!AV1185 -> 0 | AW52: =OpCo1!AW1185 -> 0 | AX52: =OpCo1!AX1185 -> 0 | AY52: =OpCo1!AY1185 -> 0 | AZ52: =OpCo1!AZ1185 -> 0 | BA52: =OpCo1!BA1185 -> 0 | BB52: =OpCo1!BB1185 -> 0 | BC52: =OpCo1!BC1185 -> 0 | BD52: =OpCo1!BD1185 -> 0 | BE52: =OpCo1!BE1185 -> 0 | BF52: =OpCo1!BF1185 -> 0 | BG52: =OpCo1!BG1185 -> 0 | BH52: =OpCo1!BH1185 -> 0 | BI52: =OpCo1!BI1185 -> 0 | BJ52: =OpCo1!BJ1185 -> 0 | BK52: =OpCo1!BK1185 -> 0 | BL52: =OpCo1!BL1185 -> 0 | BM52: =OpCo1!BM1185 -> 0 | BN52: =OpCo1!BN1185 -> 0 | BO52: =OpCo1!BO1185 -> 0 | BP52: =OpCo1!BP1185 -> 0 | BQ52: =OpCo1!BQ1185 -> 0 | BR52: =OpCo1!BR1185 -> 0 | BS52: =OpCo1!BS1185 -> 0 | BT52: =OpCo1!BT1185 -> 0
D53: Profit/(loss) on re-purchase of assets | F53: £000 | G53: =IF($I$4,SYS_Admin!$D$117,SYS_Admin!$D$116) -> Nominal | M53: =OpCo1!M1192 -> 0 | N53: =OpCo1!N1192 -> 0 | O53: =OpCo1!O1192 -> 0 | P53: =OpCo1!P1192 -> 0 | Q53: =OpCo1!Q1192 -> 0 | R53: =OpCo1!R1192 -> 0 | S53: =OpCo1!S1192 -> 0 | T53: =OpCo1!T1192 -> 0 | U53: =OpCo1!U1192 -> 0 | V53: =OpCo1!V1192 -> 0 | W53: =OpCo1!W1192 -> 0 | X53: =OpCo1!X1192 -> 0 | Y53: =OpCo1!Y1192 -> 0 | Z53: =OpCo1!Z1192 -> 0 | AA53: =OpCo1!AA1192 -> 0 | AB53: =OpCo1!AB1192 -> 0 | AC53: =OpCo1!AC1192 -> 0 | AD53: =OpCo1!AD1192 -> 0 | AE53: =OpCo1!AE1192 -> 0 | AF53: =OpCo1!AF1192 -> 0 | AG53: =OpCo1!AG1192 -> 0 | AH53: =OpCo1!AH1192 -> 0 | AI53: =OpCo1!AI1192 -> 0 | AJ53: =OpCo1!AJ1192 -> 0 | AK53: =OpCo1!AK1192 -> 0 | AL53: =OpCo1!AL1192 -> 0 | AM53: =OpCo1!AM1192 -> 0 | AN53: =OpCo1!AN1192 -> 0 | AO53: =OpCo1!AO1192 -> 0 | AP53: =OpCo1!AP1192 -> 0 | AQ53: =OpCo1!AQ1192 -> 0 | AR53: =OpCo1!AR1192 -> 0 | AS53: =OpCo1!AS1192 -> 0 | AT53: =OpCo1!AT1192 -> 0 | AU53: =OpCo1!AU1192 -> 0 | AV53: =OpCo1!AV1192 -> 0 | AW53: =OpCo1!AW1192 -> 0 | AX53: =OpCo1!AX1192 -> 0 | AY53: =OpCo1!AY1192 -> 0 | AZ53: =OpCo1!AZ1192 -> 0 | BA53: =OpCo1!BA1192 -> 0 | BB53: =OpCo1!BB1192 -> 0 | BC53: =OpCo1!BC1192 -> 0 | BD53: =OpCo1!BD1192 -> 0 | BE53: =OpCo1!BE1192 -> 0 | BF53: =OpCo1!BF1192 -> 0 | BG53: =OpCo1!BG1192 -> 0 | BH53: =OpCo1!BH1192 -> 0 | BI53: =OpCo1!BI1192 -> 0 | BJ53: =OpCo1!BJ1192 -> 0 | BK53: =OpCo1!BK1192 -> 0 | BL53: =OpCo1!BL1192 -> 0 | BM53: =OpCo1!BM1192 -> 0 | BN53: =OpCo1!BN1192 -> 0 | BO53: =OpCo1!BO1192 -> 0 | BP53: =OpCo1!BP1192 -> 0 | BQ53: =OpCo1!BQ1192 -> 0 | BR53: =OpCo1!BR1192 -> 0 | BS53: =OpCo1!BS1192 -> 0 | BT53: =OpCo1!BT1192 -> 0
D55: Subsidies - Grant amortisation | F55: £000 | G55: =IF($I$4,SYS_Admin!$D$117,SYS_Admin!$D$116) -> Nominal | M55: =-OpCo1!M629 -> 0 | N55: =-OpCo1!N629 -> 0 | O55: =-OpCo1!O629 -> 0 | P55: =-OpCo1!P629 -> 0 | Q55: =-OpCo1!Q629 -> 0 | R55: =-OpCo1!R629 -> 0 | S55: =-OpCo1!S629 -> 0 | T55: =-OpCo1!T629 -> 0 | U55: =-OpCo1!U629 -> 0 | V55: =-OpCo1!V629 -> 0 | W55: =-OpCo1!W629 -> 0 | X55: =-OpCo1!X629 -> 0 | Y55: =-OpCo1!Y629 -> 0 | Z55: =-OpCo1!Z629 -> 0 | AA55: =-OpCo1!AA629 -> 0 | AB55: =-OpCo1!AB629 -> 0 | AC55: =-OpCo1!AC629 -> 0 | AD55: =-OpCo1!AD629 -> 0 | AE55: =-OpCo1!AE629 -> 0 | AF55: =-OpCo1!AF629 -> 0 | AG55: =-OpCo1!AG629 -> 0 | AH55: =-OpCo1!AH629 -> 0 | AI55: =-OpCo1!AI629 -> 0 | AJ55: =-OpCo1!AJ629 -> 0 | AK55: =-OpCo1!AK629 -> 0 | AL55: =-OpCo1!AL629 -> 0 | AM55: =-OpCo1!AM629 -> 0 | AN55: =-OpCo1!AN629 -> 0 | AO55: =-OpCo1!AO629 -> 0 | AP55: =-OpCo1!AP629 -> 0 | AQ55: =-OpCo1!AQ629 -> 0 | AR55: =-OpCo1!AR629 -> 0 | AS55: =-OpCo1!AS629 -> 0 | AT55: =-OpCo1!AT629 -> 0 | AU55: =-OpCo1!AU629 -> 0 | AV55: =-OpCo1!AV629 -> 0 | AW55: =-OpCo1!AW629 -> 0 | AX55: =-OpCo1!AX629 -> 0 | AY55: =-OpCo1!AY629 -> 0 | AZ55: =-OpCo1!AZ629 -> 0 | BA55: =-OpCo1!BA629 -> 0 | BB55: =-OpCo1!BB629 -> 0 | BC55: =-OpCo1!BC629 -> 0 | BD55: =-OpCo1!BD629 -> 0 | BE55: =-OpCo1!BE629 -> 0 | BF55: =-OpCo1!BF629 -> 0 | BG55: =-OpCo1!BG629 -> 0 | BH55: =-OpCo1!BH629 -> 0 | BI55: =-OpCo1!BI629 -> 0 | BJ55: =-OpCo1!BJ629 -> 0 | BK55: =-OpCo1!BK629 -> 0 | BL55: =-OpCo1!BL629 -> 0 | BM55: =-OpCo1!BM629 -> 0 | BN55: =-OpCo1!BN629 -> 0 | BO55: =-OpCo1!BO629 -> 0 | BP55: =-OpCo1!BP629 -> 0 | BQ55: =-OpCo1!BQ629 -> 0 | BR55: =-OpCo1!BR629 -> 0 | BS55: =-OpCo1!BS629 -> 0 | BT55: =-OpCo1!BT629 -> 0
D56: Subsidies received | F56: £000 | G56: =IF($I$4,SYS_Admin!$D$117,SYS_Admin!$D$116) -> Nominal | M56: =SUM(M55:M55) -> 0 | N56: =SUM(N55:N55) -> 0 | O56: 0 | P56: 0 | Q56: 0 | R56: 0 | S56: 0 | T56: 0 | U56: 0 | V56: 0 | W56: 0 | X56: 0 | Y56: 0 | Z56: 0 | AA56: 0 | AB56: 0 | AC56: 0 | AD56: 0 | AE56: 0 | AF56: 0 | AG56: 0 | AH56: 0 | AI56: 0 | AJ56: 0 | AK56: 0 | AL56: 0 | AM56: 0 | AN56: 0 | AO56: 0 | AP56: 0 | AQ56: 0 | AR56: 0 | AS56: 0 | AT56: 0 | AU56: 0 | AV56: 0 | AW56: 0 | AX56: 0 | AY56: 0 | AZ56: 0 | BA56: 0 | BB56: 0 | BC56: 0 | BD56: 0 | BE56: 0 | BF56: 0 | BG56: 0 | BH56: 0 | BI56: 0 | BJ56: 0 | BK56: 0 | BL56: 0 | BM56: 0 | BN56: 0 | BO56: 0 | BP56: 0 | BQ56: 0 | BR56: 0 | BS56: 0 | BT56: 0
D58: Pre-tax pre-finance margin | F58: £000 | G58: =IF($I$4,SYS_Admin!$D$117,SYS_Admin!$D$116) -> Nominal | M58: =M42+SUM(M45,M52:M53,M56) -> 0 | N58: =N42+SUM(N45,N52:N53,N56) -> 0 | O58: 0 | P58: 0 | Q58: 0 | R58: 0 | S58: 0 | T58: 0 | U58: 0 | V58: 0 | W58: 0 | X58: 0 | Y58: 0 | Z58: 0 | AA58: 0 | AB58: 0 | AC58: 0 | AD58: 0 | AE58: 0 | AF58: 0 | AG58: 0 | AH58: 0 | AI58: 0 | AJ58: 0 | AK58: 0 | AL58: 0 | AM58: 0 | AN58: 0 | AO58: 0 | AP58: 0 | AQ58: 0 | AR58: 0 | AS58: 0 | AT58: 0 | AU58: 0 | AV58: 0 | AW58: 0 | AX58: 0 | AY58: 0 | AZ58: 0 | BA58: 0 | BB58: 0 | BC58: 0 | BD58: 0 | BE58: 0 | BF58: 0 | BG58: 0 | BH58: 0 | BI58: 0 | BJ58: 0 | BK58: 0 | BL58: 0 | BM58: 0 | BN58: 0 | BO58: 0 | BP58: 0 | BQ58: 0 | BR58: 0 | BS58: 0 | BT58: 0
D59: Pre-tax pre-finance margin % of revenue | F59: % | M59: =IFERROR(M58/M25,0) -> 0 | N59: =IFERROR(N58/N25,0) -> 0 | O59: 0 | P59: 0 | Q59: 0 | R59: 0 | S59: 0 | T59: 0 | U59: 0 | V59: 0 | W59: 0 | X59: 0 | Y59: 0 | Z59: 0 | AA59: 0 | AB59: 0 | AC59: 0 | AD59: 0 | AE59: 0 | AF59: 0 | AG59: 0 | AH59: 0 | AI59: 0 | AJ59: 0 | AK59: 0 | AL59: 0 | AM59: 0 | AN59: 0 | AO59: 0 | AP59: 0 | AQ59: 0 | AR59: 0 | AS59: 0 | AT59: 0 | AU59: 0 | AV59: 0 | AW59: 0 | AX59: 0 | AY59: 0 | AZ59: 0 | BA59: 0 | BB59: 0 | BC59: 0 | BD59: 0 | BE59: 0 | BF59: 0 | BG59: 0 | BH59: 0 | BI59: 0 | BJ59: 0 | BK59: 0 | BL59: 0 | BM59: 0 | BN59: 0 | BO59: 0 | BP59: 0 | BQ59: 0 | BR59: 0 | BS59: 0 | BT59: 0
D61: Finance lease charge | F61: £000 | G61: =IF($I$4,SYS_Admin!$D$117,SYS_Admin!$D$116) -> Nominal | M61: =OpCo1!M1170 -> 0 | N61: =OpCo1!N1170 -> 0 | O61: =OpCo1!O1170 -> 0 | P61: =OpCo1!P1170 -> 0 | Q61: =OpCo1!Q1170 -> 0 | R61: =OpCo1!R1170 -> 0 | S61: =OpCo1!S1170 -> 0 | T61: =OpCo1!T1170 -> 0 | U61: =OpCo1!U1170 -> 0 | V61: =OpCo1!V1170 -> 0 | W61: =OpCo1!W1170 -> 0 | X61: =OpCo1!X1170 -> 0 | Y61: =OpCo1!Y1170 -> 0 | Z61: =OpCo1!Z1170 -> 0 | AA61: =OpCo1!AA1170 -> 0 | AB61: =OpCo1!AB1170 -> 0 | AC61: =OpCo1!AC1170 -> 0 | AD61: =OpCo1!AD1170 -> 0 | AE61: =OpCo1!AE1170 -> 0 | AF61: =OpCo1!AF1170 -> 0 | AG61: =OpCo1!AG1170 -> 0 | AH61: =OpCo1!AH1170 -> 0 | AI61: =OpCo1!AI1170 -> 0 | AJ61: =OpCo1!AJ1170 -> 0 | AK61: =OpCo1!AK1170 -> 0 | AL61: =OpCo1!AL1170 -> 0 | AM61: =OpCo1!AM1170 -> 0 | AN61: =OpCo1!AN1170 -> 0 | AO61: =OpCo1!AO1170 -> 0 | AP61: =OpCo1!AP1170 -> 0 | AQ61: =OpCo1!AQ1170 -> 0 | AR61: =OpCo1!AR1170 -> 0 | AS61: =OpCo1!AS1170 -> 0 | AT61: =OpCo1!AT1170 -> 0 | AU61: =OpCo1!AU1170 -> 0 | AV61: =OpCo1!AV1170 -> 0 | AW61: =OpCo1!AW1170 -> 0 | AX61: =OpCo1!AX1170 -> 0 | AY61: =OpCo1!AY1170 -> 0 | AZ61: =OpCo1!AZ1170 -> 0 | BA61: =OpCo1!BA1170 -> 0 | BB61: =OpCo1!BB1170 -> 0 | BC61: =OpCo1!BC1170 -> 0 | BD61: =OpCo1!BD1170 -> 0 | BE61: =OpCo1!BE1170 -> 0 | BF61: =OpCo1!BF1170 -> 0 | BG61: =OpCo1!BG1170 -> 0 | BH61: =OpCo1!BH1170 -> 0 | BI61: =OpCo1!BI1170 -> 0 | BJ61: =OpCo1!BJ1170 -> 0 | BK61: =OpCo1!BK1170 -> 0 | BL61: =OpCo1!BL1170 -> 0 | BM61: =OpCo1!BM1170 -> 0 | BN61: =OpCo1!BN1170 -> 0 | BO61: =OpCo1!BO1170 -> 0 | BP61: =OpCo1!BP1170 -> 0 | BQ61: =OpCo1!BQ1170 -> 0 | BR61: =OpCo1!BR1170 -> 0 | BS61: =OpCo1!BS1170 -> 0 | BT61: =OpCo1!BT1170 -> 0
D62: Operating lease charge | F62: £000 | G62: =IF($I$4,SYS_Admin!$D$117,SYS_Admin!$D$116) -> Nominal | M62: =OpCo1!M1176 -> 0 | N62: =OpCo1!N1176 -> 0 | O62: =OpCo1!O1176 -> 0 | P62: =OpCo1!P1176 -> 0 | Q62: =OpCo1!Q1176 -> 0 | R62: =OpCo1!R1176 -> 0 | S62: =OpCo1!S1176 -> 0 | T62: =OpCo1!T1176 -> 0 | U62: =OpCo1!U1176 -> 0 | V62: =OpCo1!V1176 -> 0 | W62: =OpCo1!W1176 -> 0 | X62: =OpCo1!X1176 -> 0 | Y62: =OpCo1!Y1176 -> 0 | Z62: =OpCo1!Z1176 -> 0 | AA62: =OpCo1!AA1176 -> 0 | AB62: =OpCo1!AB1176 -> 0 | AC62: =OpCo1!AC1176 -> 0 | AD62: =OpCo1!AD1176 -> 0 | AE62: =OpCo1!AE1176 -> 0 | AF62: =OpCo1!AF1176 -> 0 | AG62: =OpCo1!AG1176 -> 0 | AH62: =OpCo1!AH1176 -> 0 | AI62: =OpCo1!AI1176 -> 0 | AJ62: =OpCo1!AJ1176 -> 0 | AK62: =OpCo1!AK1176 -> 0 | AL62: =OpCo1!AL1176 -> 0 | AM62: =OpCo1!AM1176 -> 0 | AN62: =OpCo1!AN1176 -> 0 | AO62: =OpCo1!AO1176 -> 0 | AP62: =OpCo1!AP1176 -> 0 | AQ62: =OpCo1!AQ1176 -> 0 | AR62: =OpCo1!AR1176 -> 0 | AS62: =OpCo1!AS1176 -> 0 | AT62: =OpCo1!AT1176 -> 0 | AU62: =OpCo1!AU1176 -> 0 | AV62: =OpCo1!AV1176 -> 0 | AW62: =OpCo1!AW1176 -> 0 | AX62: =OpCo1!AX1176 -> 0 | AY62: =OpCo1!AY1176 -> 0 | AZ62: =OpCo1!AZ1176 -> 0 | BA62: =OpCo1!BA1176 -> 0 | BB62: =OpCo1!BB1176 -> 0 | BC62: =OpCo1!BC1176 -> 0 | BD62: =OpCo1!BD1176 -> 0 | BE62: =OpCo1!BE1176 -> 0 | BF62: =OpCo1!BF1176 -> 0 | BG62: =OpCo1!BG1176 -> 0 | BH62: =OpCo1!BH1176 -> 0 | BI62: =OpCo1!BI1176 -> 0 | BJ62: =OpCo1!BJ1176 -> 0 | BK62: =OpCo1!BK1176 -> 0 | BL62: =OpCo1!BL1176 -> 0 | BM62: =OpCo1!BM1176 -> 0 | BN62: =OpCo1!BN1176 -> 0 | BO62: =OpCo1!BO1176 -> 0 | BP62: =OpCo1!BP1176 -> 0 | BQ62: =OpCo1!BQ1176 -> 0 | BR62: =OpCo1!BR1176 -> 0 | BS62: =OpCo1!BS1176 -> 0 | BT62: =OpCo1!BT1176 -> 0
D63: Loan interest accrued | F63: £000 | G63: =IF($I$4,SYS_Admin!$D$117,SYS_Admin!$D$116) -> Nominal | M63: =SUM(M64:M65) -> 0 | N63: =SUM(N64:N65) -> 0 | O63: 0 | P63: 0 | Q63: 0 | R63: 0 | S63: 0 | T63: 0 | U63: 0 | V63: 0 | W63: 0 | X63: 0 | Y63: 0 | Z63: 0 | AA63: 0 | AB63: 0 | AC63: 0 | AD63: 0 | AE63: 0 | AF63: 0 | AG63: 0 | AH63: 0 | AI63: 0 | AJ63: 0 | AK63: 0 | AL63: 0 | AM63: 0 | AN63: 0 | AO63: 0 | AP63: 0 | AQ63: 0 | AR63: 0 | AS63: 0 | AT63: 0 | AU63: 0 | AV63: 0 | AW63: 0 | AX63: 0 | AY63: 0 | AZ63: 0 | BA63: 0 | BB63: 0 | BC63: 0 | BD63: 0 | BE63: 0 | BF63: 0 | BG63: 0 | BH63: 0 | BI63: 0 | BJ63: 0 | BK63: 0 | BL63: 0 | BM63: 0 | BN63: 0 | BO63: 0 | BP63: 0 | BQ63: 0 | BR63: 0 | BS63: 0 | BT63: 0
D64: Loan interest accrued | F64: £000 | G64: =SYS_Admin!$D$116 -> Real | M64: =OpCo1!M2181+OpCo1!M2173+OpCo1!M3540 -> 0 | N64: =OpCo1!N2181+OpCo1!N2173+OpCo1!N3540 -> 0 | O64: =OpCo1!O2181+OpCo1!O2173+OpCo1!O3540 -> 0 | P64: =OpCo1!P2181+OpCo1!P2173+OpCo1!P3540 -> 0 | Q64: =OpCo1!Q2181+OpCo1!Q2173+OpCo1!Q3540 -> 0 | R64: =OpCo1!R2181+OpCo1!R2173+OpCo1!R3540 -> 0 | S64: =OpCo1!S2181+OpCo1!S2173+OpCo1!S3540 -> 0 | T64: =OpCo1!T2181+OpCo1!T2173+OpCo1!T3540 -> 0 | U64: =OpCo1!U2181+OpCo1!U2173+OpCo1!U3540 -> 0 | V64: =OpCo1!V2181+OpCo1!V2173+OpCo1!V3540 -> 0 | W64: =OpCo1!W2181+OpCo1!W2173+OpCo1!W3540 -> 0 | X64: =OpCo1!X2181+OpCo1!X2173+OpCo1!X3540 -> 0 | Y64: =OpCo1!Y2181+OpCo1!Y2173+OpCo1!Y3540 -> 0 | Z64: =OpCo1!Z2181+OpCo1!Z2173+OpCo1!Z3540 -> 0 | AA64: =OpCo1!AA2181+OpCo1!AA2173+OpCo1!AA3540 -> 0 | AB64: =OpCo1!AB2181+OpCo1!AB2173+OpCo1!AB3540 -> 0 | AC64: =OpCo1!AC2181+OpCo1!AC2173+OpCo1!AC3540 -> 0 | AD64: =OpCo1!AD2181+OpCo1!AD2173+OpCo1!AD3540 -> 0 | AE64: =OpCo1!AE2181+OpCo1!AE2173+OpCo1!AE3540 -> 0 | AF64: =OpCo1!AF2181+OpCo1!AF2173+OpCo1!AF3540 -> 0 | AG64: =OpCo1!AG2181+OpCo1!AG2173+OpCo1!AG3540 -> 0 | AH64: =OpCo1!AH2181+OpCo1!AH2173+OpCo1!AH3540 -> 0 | AI64: =OpCo1!AI2181+OpCo1!AI2173+OpCo1!AI3540 -> 0 | AJ64: =OpCo1!AJ2181+OpCo1!AJ2173+OpCo1!AJ3540 -> 0 | AK64: =OpCo1!AK2181+OpCo1!AK2173+OpCo1!AK3540 -> 0 | AL64: =OpCo1!AL2181+OpCo1!AL2173+OpCo1!AL3540 -> 0 | AM64: =OpCo1!AM2181+OpCo1!AM2173+OpCo1!AM3540 -> 0 | AN64: =OpCo1!AN2181+OpCo1!AN2173+OpCo1!AN3540 -> 0 | AO64: =OpCo1!AO2181+OpCo1!AO2173+OpCo1!AO3540 -> 0 | AP64: =OpCo1!AP2181+OpCo1!AP2173+OpCo1!AP3540 -> 0 | AQ64: =OpCo1!AQ2181+OpCo1!AQ2173+OpCo1!AQ3540 -> 0 | AR64: =OpCo1!AR2181+OpCo1!AR2173+OpCo1!AR3540 -> 0 | AS64: =OpCo1!AS2181+OpCo1!AS2173+OpCo1!AS3540 -> 0 | AT64: =OpCo1!AT2181+OpCo1!AT2173+OpCo1!AT3540 -> 0 | AU64: =OpCo1!AU2181+OpCo1!AU2173+OpCo1!AU3540 -> 0 | AV64: =OpCo1!AV2181+OpCo1!AV2173+OpCo1!AV3540 -> 0 | AW64: =OpCo1!AW2181+OpCo1!AW2173+OpCo1!AW3540 -> 0 | AX64: =OpCo1!AX2181+OpCo1!AX2173+OpCo1!AX3540 -> 0 | AY64: =OpCo1!AY2181+OpCo1!AY2173+OpCo1!AY3540 -> 0 | AZ64: =OpCo1!AZ2181+OpCo1!AZ2173+OpCo1!AZ3540 -> 0 | BA64: =OpCo1!BA2181+OpCo1!BA2173+OpCo1!BA3540 -> 0 | BB64: =OpCo1!BB2181+OpCo1!BB2173+OpCo1!BB3540 -> 0 | BC64: =OpCo1!BC2181+OpCo1!BC2173+OpCo1!BC3540 -> 0 | BD64: =OpCo1!BD2181+OpCo1!BD2173+OpCo1!BD3540 -> 0 | BE64: =OpCo1!BE2181+OpCo1!BE2173+OpCo1!BE3540 -> 0 | BF64: =OpCo1!BF2181+OpCo1!BF2173+OpCo1!BF3540 -> 0 | BG64: =OpCo1!BG2181+OpCo1!BG2173+OpCo1!BG3540 -> 0 | BH64: =OpCo1!BH2181+OpCo1!BH2173+OpCo1!BH3540 -> 0 | BI64: =OpCo1!BI2181+OpCo1!BI2173+OpCo1!BI3540 -> 0 | BJ64: =OpCo1!BJ2181+OpCo1!BJ2173+OpCo1!BJ3540 -> 0 | BK64: =OpCo1!BK2181+OpCo1!BK2173+OpCo1!BK3540 -> 0 | BL64: =OpCo1!BL2181+OpCo1!BL2173+OpCo1!BL3540 -> 0 | BM64: =OpCo1!BM2181+OpCo1!BM2173+OpCo1!BM3540 -> 0 | BN64: =OpCo1!BN2181+OpCo1!BN2173+OpCo1!BN3540 -> 0 | BO64: =OpCo1!BO2181+OpCo1!BO2173+OpCo1!BO3540 -> 0 | BP64: =OpCo1!BP2181+OpCo1!BP2173+OpCo1!BP3540 -> 0 | BQ64: =OpCo1!BQ2181+OpCo1!BQ2173+OpCo1!BQ3540 -> 0 | BR64: =OpCo1!BR2181+OpCo1!BR2173+OpCo1!BR3540 -> 0 | BS64: =OpCo1!BS2181+OpCo1!BS2173+OpCo1!BS3540 -> 0 | BT64: =OpCo1!BT2181+OpCo1!BT2173+OpCo1!BT3540 -> 0
D65: Loan fees amortised | F65: £000 | G65: =SYS_Admin!$D$116 -> Real | M65: =OpCo1!M2164 -> 0 | N65: =OpCo1!N2164 -> 0 | O65: =OpCo1!O2164 -> 0 | P65: =OpCo1!P2164 -> 0 | Q65: =OpCo1!Q2164 -> 0 | R65: =OpCo1!R2164 -> 0 | S65: =OpCo1!S2164 -> 0 | T65: =OpCo1!T2164 -> 0 | U65: =OpCo1!U2164 -> 0 | V65: =OpCo1!V2164 -> 0 | W65: =OpCo1!W2164 -> 0 | X65: =OpCo1!X2164 -> 0 | Y65: =OpCo1!Y2164 -> 0 | Z65: =OpCo1!Z2164 -> 0 | AA65: =OpCo1!AA2164 -> 0 | AB65: =OpCo1!AB2164 -> 0 | AC65: =OpCo1!AC2164 -> 0 | AD65: =OpCo1!AD2164 -> 0 | AE65: =OpCo1!AE2164 -> 0 | AF65: =OpCo1!AF2164 -> 0 | AG65: =OpCo1!AG2164 -> 0 | AH65: =OpCo1!AH2164 -> 0 | AI65: =OpCo1!AI2164 -> 0 | AJ65: =OpCo1!AJ2164 -> 0 | AK65: =OpCo1!AK2164 -> 0 | AL65: =OpCo1!AL2164 -> 0 | AM65: =OpCo1!AM2164 -> 0 | AN65: =OpCo1!AN2164 -> 0 | AO65: =OpCo1!AO2164 -> 0 | AP65: =OpCo1!AP2164 -> 0 | AQ65: =OpCo1!AQ2164 -> 0 | AR65: =OpCo1!AR2164 -> 0 | AS65: =OpCo1!AS2164 -> 0 | AT65: =OpCo1!AT2164 -> 0 | AU65: =OpCo1!AU2164 -> 0 | AV65: =OpCo1!AV2164 -> 0 | AW65: =OpCo1!AW2164 -> 0 | AX65: =OpCo1!AX2164 -> 0 | AY65: =OpCo1!AY2164 -> 0 | AZ65: =OpCo1!AZ2164 -> 0 | BA65: =OpCo1!BA2164 -> 0 | BB65: =OpCo1!BB2164 -> 0 | BC65: =OpCo1!BC2164 -> 0 | BD65: =OpCo1!BD2164 -> 0 | BE65: =OpCo1!BE2164 -> 0 | BF65: =OpCo1!BF2164 -> 0 | BG65: =OpCo1!BG2164 -> 0 | BH65: =OpCo1!BH2164 -> 0 | BI65: =OpCo1!BI2164 -> 0 | BJ65: =OpCo1!BJ2164 -> 0 | BK65: =OpCo1!BK2164 -> 0 | BL65: =OpCo1!BL2164 -> 0 | BM65: =OpCo1!BM2164 -> 0 | BN65: =OpCo1!BN2164 -> 0 | BO65: =OpCo1!BO2164 -> 0 | BP65: =OpCo1!BP2164 -> 0 | BQ65: =OpCo1!BQ2164 -> 0 | BR65: =OpCo1!BR2164 -> 0 | BS65: =OpCo1!BS2164 -> 0 | BT65: =OpCo1!BT2164 -> 0
D66: Loan interest received | F66: £000 | G66: =IF($I$4,SYS_Admin!$D$117,SYS_Admin!$D$116) -> Nominal | M66: =OpCo1!M545 -> 0 | N66: =OpCo1!N545 -> 0 | O66: =OpCo1!O545 -> 0 | P66: =OpCo1!P545 -> 0 | Q66: =OpCo1!Q545 -> 0 | R66: =OpCo1!R545 -> 0 | S66: =OpCo1!S545 -> 0 | T66: =OpCo1!T545 -> 0 | U66: =OpCo1!U545 -> 0 | V66: =OpCo1!V545 -> 0 | W66: =OpCo1!W545 -> 0 | X66: =OpCo1!X545 -> 0 | Y66: =OpCo1!Y545 -> 0 | Z66: =OpCo1!Z545 -> 0 | AA66: =OpCo1!AA545 -> 0 | AB66: =OpCo1!AB545 -> 0 | AC66: =OpCo1!AC545 -> 0 | AD66: =OpCo1!AD545 -> 0 | AE66: =OpCo1!AE545 -> 0 | AF66: =OpCo1!AF545 -> 0 | AG66: =OpCo1!AG545 -> 0 | AH66: =OpCo1!AH545 -> 0 | AI66: =OpCo1!AI545 -> 0 | AJ66: =OpCo1!AJ545 -> 0 | AK66: =OpCo1!AK545 -> 0 | AL66: =OpCo1!AL545 -> 0 | AM66: =OpCo1!AM545 -> 0 | AN66: =OpCo1!AN545 -> 0 | AO66: =OpCo1!AO545 -> 0 | AP66: =OpCo1!AP545 -> 0 | AQ66: =OpCo1!AQ545 -> 0 | AR66: =OpCo1!AR545 -> 0 | AS66: =OpCo1!AS545 -> 0 | AT66: =OpCo1!AT545 -> 0 | AU66: =OpCo1!AU545 -> 0 | AV66: =OpCo1!AV545 -> 0 | AW66: =OpCo1!AW545 -> 0 | AX66: =OpCo1!AX545 -> 0 | AY66: =OpCo1!AY545 -> 0 | AZ66: =OpCo1!AZ545 -> 0 | BA66: =OpCo1!BA545 -> 0 | BB66: =OpCo1!BB545 -> 0 | BC66: =OpCo1!BC545 -> 0 | BD66: =OpCo1!BD545 -> 0 | BE66: =OpCo1!BE545 -> 0 | BF66: =OpCo1!BF545 -> 0 | BG66: =OpCo1!BG545 -> 0 | BH66: =OpCo1!BH545 -> 0 | BI66: =OpCo1!BI545 -> 0 | BJ66: =OpCo1!BJ545 -> 0 | BK66: =OpCo1!BK545 -> 0 | BL66: =OpCo1!BL545 -> 0 | BM66: =OpCo1!BM545 -> 0 | BN66: =OpCo1!BN545 -> 0 | BO66: =OpCo1!BO545 -> 0 | BP66: =OpCo1!BP545 -> 0 | BQ66: =OpCo1!BQ545 -> 0 | BR66: =OpCo1!BR545 -> 0 | BS66: =OpCo1!BS545 -> 0 | BT66: =OpCo1!BT545 -> 0
D67: Finance income/(costs) | F67: £000 | G67: =IF($I$4,SYS_Admin!$D$117,SYS_Admin!$D$116) -> Nominal | M67: =SUM(M61:M63,M66) -> 0 | N67: =SUM(N61:N63,N66) -> 0 | O67: 0 | P67: 0 | Q67: 0 | R67: 0 | S67: 0 | T67: 0 | U67: 0 | V67: 0 | W67: 0 | X67: 0 | Y67: 0 | Z67: 0 | AA67: 0 | AB67: 0 | AC67: 0 | AD67: 0 | AE67: 0 | AF67: 0 | AG67: 0 | AH67: 0 | AI67: 0 | AJ67: 0 | AK67: 0 | AL67: 0 | AM67: 0 | AN67: 0 | AO67: 0 | AP67: 0 | AQ67: 0 | AR67: 0 | AS67: 0 | AT67: 0 | AU67: 0 | AV67: 0 | AW67: 0 | AX67: 0 | AY67: 0 | AZ67: 0 | BA67: 0 | BB67: 0 | BC67: 0 | BD67: 0 | BE67: 0 | BF67: 0 | BG67: 0 | BH67: 0 | BI67: 0 | BJ67: 0 | BK67: 0 | BL67: 0 | BM67: 0 | BN67: 0 | BO67: 0 | BP67: 0 | BQ67: 0 | BR67: 0 | BS67: 0 | BT67: 0
D69: Pre-tax margin | F69: £000 | G69: =IF($I$4,SYS_Admin!$D$117,SYS_Admin!$D$116) -> Nominal | M69: =M58+M67 -> 0 | N69: =N58+N67 -> 0 | O69: 0 | P69: 0 | Q69: 0 | R69: 0 | S69: 0 | T69: 0 | U69: 0 | V69: 0 | W69: 0 | X69: 0 | Y69: 0 | Z69: 0 | AA69: 0 | AB69: 0 | AC69: 0 | AD69: 0 | AE69: 0 | AF69: 0 | AG69: 0 | AH69: 0 | AI69: 0 | AJ69: 0 | AK69: 0 | AL69: 0 | AM69: 0 | AN69: 0 | AO69: 0 | AP69: 0 | AQ69: 0 | AR69: 0 | AS69: 0 | AT69: 0 | AU69: 0 | AV69: 0 | AW69: 0 | AX69: 0 | AY69: 0 | AZ69: 0 | BA69: 0 | BB69: 0 | BC69: 0 | BD69: 0 | BE69: 0 | BF69: 0 | BG69: 0 | BH69: 0 | BI69: 0 | BJ69: 0 | BK69: 0 | BL69: 0 | BM69: 0 | BN69: 0 | BO69: 0 | BP69: 0 | BQ69: 0 | BR69: 0 | BS69: 0 | BT69: 0
D70: Pre-tax margin % of revenue | F70: % | M70: =IFERROR(M69/M25,0) -> 0 | N70: =IFERROR(N69/N25,0) -> 0 | O70: 0 | P70: 0 | Q70: 0 | R70: 0 | S70: 0 | T70: 0 | U70: 0 | V70: 0 | W70: 0 | X70: 0 | Y70: 0 | Z70: 0 | AA70: 0 | AB70: 0 | AC70: 0 | AD70: 0 | AE70: 0 | AF70: 0 | AG70: 0 | AH70: 0 | AI70: 0 | AJ70: 0 | AK70: 0 | AL70: 0 | AM70: 0 | AN70: 0 | AO70: 0 | AP70: 0 | AQ70: 0 | AR70: 0 | AS70: 0 | AT70: 0 | AU70: 0 | AV70: 0 | AW70: 0 | AX70: 0 | AY70: 0 | AZ70: 0 | BA70: 0 | BB70: 0 | BC70: 0 | BD70: 0 | BE70: 0 | BF70: 0 | BG70: 0 | BH70: 0 | BI70: 0 | BJ70: 0 | BK70: 0 | BL70: 0 | BM70: 0 | BN70: 0 | BO70: 0 | BP70: 0 | BQ70: 0 | BR70: 0 | BS70: 0 | BT70: 0
D72: Business rates | F72: £000 | G72: =IF($I$4,SYS_Admin!$D$117,SYS_Admin!$D$116) -> Nominal | M72: =OpCo1!M2483 -> 0 | N72: =OpCo1!N2483 -> 0 | O72: =OpCo1!O2483 -> 0 | P72: =OpCo1!P2483 -> 0 | Q72: =OpCo1!Q2483 -> 0 | R72: =OpCo1!R2483 -> 0 | S72: =OpCo1!S2483 -> 0 | T72: =OpCo1!T2483 -> 0 | U72: =OpCo1!U2483 -> 0 | V72: =OpCo1!V2483 -> 0 | W72: =OpCo1!W2483 -> 0 | X72: =OpCo1!X2483 -> 0 | Y72: =OpCo1!Y2483 -> 0 | Z72: =OpCo1!Z2483 -> 0 | AA72: =OpCo1!AA2483 -> 0 | AB72: =OpCo1!AB2483 -> 0 | AC72: =OpCo1!AC2483 -> 0 | AD72: =OpCo1!AD2483 -> 0 | AE72: =OpCo1!AE2483 -> 0 | AF72: =OpCo1!AF2483 -> 0 | AG72: =OpCo1!AG2483 -> 0 | AH72: =OpCo1!AH2483 -> 0 | AI72: =OpCo1!AI2483 -> 0 | AJ72: =OpCo1!AJ2483 -> 0 | AK72: =OpCo1!AK2483 -> 0 | AL72: =OpCo1!AL2483 -> 0 | AM72: =OpCo1!AM2483 -> 0 | AN72: =OpCo1!AN2483 -> 0 | AO72: =OpCo1!AO2483 -> 0 | AP72: =OpCo1!AP2483 -> 0 | AQ72: =OpCo1!AQ2483 -> 0 | AR72: =OpCo1!AR2483 -> 0 | AS72: =OpCo1!AS2483 -> 0 | AT72: =OpCo1!AT2483 -> 0 | AU72: =OpCo1!AU2483 -> 0 | AV72: =OpCo1!AV2483 -> 0 | AW72: =OpCo1!AW2483 -> 0 | AX72: =OpCo1!AX2483 -> 0 | AY72: =OpCo1!AY2483 -> 0 | AZ72: =OpCo1!AZ2483 -> 0 | BA72: =OpCo1!BA2483 -> 0 | BB72: =OpCo1!BB2483 -> 0 | BC72: =OpCo1!BC2483 -> 0 | BD72: =OpCo1!BD2483 -> 0 | BE72: =OpCo1!BE2483 -> 0 | BF72: =OpCo1!BF2483 -> 0 | BG72: =OpCo1!BG2483 -> 0 | BH72: =OpCo1!BH2483 -> 0 | BI72: =OpCo1!BI2483 -> 0 | BJ72: =OpCo1!BJ2483 -> 0 | BK72: =OpCo1!BK2483 -> 0 | BL72: =OpCo1!BL2483 -> 0 | BM72: =OpCo1!BM2483 -> 0 | BN72: =OpCo1!BN2483 -> 0 | BO72: =OpCo1!BO2483 -> 0 | BP72: =OpCo1!BP2483 -> 0 | BQ72: =OpCo1!BQ2483 -> 0 | BR72: =OpCo1!BR2483 -> 0 | BS72: =OpCo1!BS2483 -> 0 | BT72: =OpCo1!BT2483 -> 0
D73: Corporation tax | F73: £000 | G73: =IF($I$4,SYS_Admin!$D$117,SYS_Admin!$D$116) -> Nominal | M73: =OpCo1!M3254 -> 0 | N73: =OpCo1!N3254 -> 0 | O73: =OpCo1!O3254 -> 0 | P73: =OpCo1!P3254 -> 0 | Q73: =OpCo1!Q3254 -> 0 | R73: =OpCo1!R3254 -> 0 | S73: =OpCo1!S3254 -> 0 | T73: =OpCo1!T3254 -> 0 | U73: =OpCo1!U3254 -> 0 | V73: =OpCo1!V3254 -> 0 | W73: =OpCo1!W3254 -> 0 | X73: =OpCo1!X3254 -> 0 | Y73: =OpCo1!Y3254 -> 0 | Z73: =OpCo1!Z3254 -> 0 | AA73: =OpCo1!AA3254 -> 0 | AB73: =OpCo1!AB3254 -> 0 | AC73: =OpCo1!AC3254 -> 0 | AD73: =OpCo1!AD3254 -> 0 | AE73: =OpCo1!AE3254 -> 0 | AF73: =OpCo1!AF3254 -> 0 | AG73: =OpCo1!AG3254 -> 0 | AH73: =OpCo1!AH3254 -> 0 | AI73: =OpCo1!AI3254 -> 0 | AJ73: =OpCo1!AJ3254 -> 0 | AK73: =OpCo1!AK3254 -> 0 | AL73: =OpCo1!AL3254 -> 0 | AM73: =OpCo1!AM3254 -> 0 | AN73: =OpCo1!AN3254 -> 0 | AO73: =OpCo1!AO3254 -> 0 | AP73: =OpCo1!AP3254 -> 0 | AQ73: =OpCo1!AQ3254 -> 0 | AR73: =OpCo1!AR3254 -> 0 | AS73: =OpCo1!AS3254 -> 0 | AT73: =OpCo1!AT3254 -> 0 | AU73: =OpCo1!AU3254 -> 0 | AV73: =OpCo1!AV3254 -> 0 | AW73: =OpCo1!AW3254 -> 0 | AX73: =OpCo1!AX3254 -> 0 | AY73: =OpCo1!AY3254 -> 0 | AZ73: =OpCo1!AZ3254 -> 0 | BA73: =OpCo1!BA3254 -> 0 | BB73: =OpCo1!BB3254 -> 0 | BC73: =OpCo1!BC3254 -> 0 | BD73: =OpCo1!BD3254 -> 0 | BE73: =OpCo1!BE3254 -> 0 | BF73: =OpCo1!BF3254 -> 0 | BG73: =OpCo1!BG3254 -> 0 | BH73: =OpCo1!BH3254 -> 0 | BI73: =OpCo1!BI3254 -> 0 | BJ73: =OpCo1!BJ3254 -> 0 | BK73: =OpCo1!BK3254 -> 0 | BL73: =OpCo1!BL3254 -> 0 | BM73: =OpCo1!BM3254 -> 0 | BN73: =OpCo1!BN3254 -> 0 | BO73: =OpCo1!BO3254 -> 0 | BP73: =OpCo1!BP3254 -> 0 | BQ73: =OpCo1!BQ3254 -> 0 | BR73: =OpCo1!BR3254 -> 0 | BS73: =OpCo1!BS3254 -> 0 | BT73: =OpCo1!BT3254 -> 0
D74: Movement in deferred tax | F74: £000 | G74: =IF($I$4,SYS_Admin!$D$117,SYS_Admin!$D$116) -> Nominal | M74: =OpCo1!M3438 -> 0 | N74: =OpCo1!N3438 -> 0 | O74: =OpCo1!O3438 -> 0 | P74: =OpCo1!P3438 -> 0 | Q74: =OpCo1!Q3438 -> 0 | R74: =OpCo1!R3438 -> 0 | S74: =OpCo1!S3438 -> 0 | T74: =OpCo1!T3438 -> 0 | U74: =OpCo1!U3438 -> 0 | V74: =OpCo1!V3438 -> 0 | W74: =OpCo1!W3438 -> 0 | X74: =OpCo1!X3438 -> 0 | Y74: =OpCo1!Y3438 -> 0 | Z74: =OpCo1!Z3438 -> 0 | AA74: =OpCo1!AA3438 -> 0 | AB74: =OpCo1!AB3438 -> 0 | AC74: =OpCo1!AC3438 -> 0 | AD74: =OpCo1!AD3438 -> 0 | AE74: =OpCo1!AE3438 -> 0 | AF74: =OpCo1!AF3438 -> 0 | AG74: =OpCo1!AG3438 -> 0 | AH74: =OpCo1!AH3438 -> 0 | AI74: =OpCo1!AI3438 -> 0 | AJ74: =OpCo1!AJ3438 -> 0 | AK74: =OpCo1!AK3438 -> 0 | AL74: =OpCo1!AL3438 -> 0 | AM74: =OpCo1!AM3438 -> 0 | AN74: =OpCo1!AN3438 -> 0 | AO74: =OpCo1!AO3438 -> 0 | AP74: =OpCo1!AP3438 -> 0 | AQ74: =OpCo1!AQ3438 -> 0 | AR74: =OpCo1!AR3438 -> 0 | AS74: =OpCo1!AS3438 -> 0 | AT74: =OpCo1!AT3438 -> 0 | AU74: =OpCo1!AU3438 -> 0 | AV74: =OpCo1!AV3438 -> 0 | AW74: =OpCo1!AW3438 -> 0 | AX74: =OpCo1!AX3438 -> 0 | AY74: =OpCo1!AY3438 -> 0 | AZ74: =OpCo1!AZ3438 -> 0 | BA74: =OpCo1!BA3438 -> 0 | BB74: =OpCo1!BB3438 -> 0 | BC74: =OpCo1!BC3438 -> 0 | BD74: =OpCo1!BD3438 -> 0 | BE74: =OpCo1!BE3438 -> 0 | BF74: =OpCo1!BF3438 -> 0 | BG74: =OpCo1!BG3438 -> 0 | BH74: =OpCo1!BH3438 -> 0 | BI74: =OpCo1!BI3438 -> 0 | BJ74: =OpCo1!BJ3438 -> 0 | BK74: =OpCo1!BK3438 -> 0 | BL74: =OpCo1!BL3438 -> 0 | BM74: =OpCo1!BM3438 -> 0 | BN74: =OpCo1!BN3438 -> 0 | BO74: =OpCo1!BO3438 -> 0 | BP74: =OpCo1!BP3438 -> 0 | BQ74: =OpCo1!BQ3438 -> 0 | BR74: =OpCo1!BR3438 -> 0 | BS74: =OpCo1!BS3438 -> 0 | BT74: =OpCo1!BT3438 -> 0
D76: In period accounting profit / (loss) | F76: £000 | G76: =IF($I$4,SYS_Admin!$D$117,SYS_Admin!$D$116) -> Nominal | M76: =M69+SUM(M72:M74) -> 0 | N76: =N69+SUM(N72:N74) -> 0 | O76: 0 | P76: 0 | Q76: 0 | R76: 0 | S76: 0 | T76: 0 | U76: 0 | V76: 0 | W76: 0 | X76: 0 | Y76: 0 | Z76: 0 | AA76: 0 | AB76: 0 | AC76: 0 | AD76: 0 | AE76: 0 | AF76: 0 | AG76: 0 | AH76: 0 | AI76: 0 | AJ76: 0 | AK76: 0 | AL76: 0 | AM76: 0 | AN76: 0 | AO76: 0 | AP76: 0 | AQ76: 0 | AR76: 0 | AS76: 0 | AT76: 0 | AU76: 0 | AV76: 0 | AW76: 0 | AX76: 0 | AY76: 0 | AZ76: 0 | BA76: 0 | BB76: 0 | BC76: 0 | BD76: 0 | BE76: 0 | BF76: 0 | BG76: 0 | BH76: 0 | BI76: 0 | BJ76: 0 | BK76: 0 | BL76: 0 | BM76: 0 | BN76: 0 | BO76: 0 | BP76: 0 | BQ76: 0 | BR76: 0 | BS76: 0 | BT76: 0
D77: In period accounting profit / (loss) % of revenue | F77: % | M77: =IFERROR(M76/M25,0) -> 0 | N77: =IFERROR(N76/N25,0) -> 0 | O77: 0 | P77: 0 | Q77: 0 | R77: 0 | S77: 0 | T77: 0 | U77: 0 | V77: 0 | W77: 0 | X77: 0 | Y77: 0 | Z77: 0 | AA77: 0 | AB77: 0 | AC77: 0 | AD77: 0 | AE77: 0 | AF77: 0 | AG77: 0 | AH77: 0 | AI77: 0 | AJ77: 0 | AK77: 0 | AL77: 0 | AM77: 0 | AN77: 0 | AO77: 0 | AP77: 0 | AQ77: 0 | AR77: 0 | AS77: 0 | AT77: 0 | AU77: 0 | AV77: 0 | AW77: 0 | AX77: 0 | AY77: 0 | AZ77: 0 | BA77: 0 | BB77: 0 | BC77: 0 | BD77: 0 | BE77: 0 | BF77: 0 | BG77: 0 | BH77: 0 | BI77: 0 | BJ77: 0 | BK77: 0 | BL77: 0 | BM77: 0 | BN77: 0 | BO77: 0 | BP77: 0 | BQ77: 0 | BR77: 0 | BS77: 0 | BT77: 0
D79: b/f P&L Account | F79: £000 | G79: =IF($I$4,SYS_Admin!$D$117,SYS_Admin!$D$116) -> Nominal | M79: =L83 -> 0 | N79: =M83 -> 0 | O79: 0 | P79: 0 | Q79: 0 | R79: 0 | S79: 0 | T79: 0 | U79: 0 | V79: 0 | W79: 0 | X79: 0 | Y79: 0 | Z79: 0 | AA79: 0 | AB79: 0 | AC79: 0 | AD79: 0 | AE79: 0 | AF79: 0 | AG79: 0 | AH79: 0 | AI79: 0 | AJ79: 0 | AK79: 0 | AL79: 0 | AM79: 0 | AN79: 0 | AO79: 0 | AP79: 0 | AQ79: 0 | AR79: 0 | AS79: 0 | AT79: 0 | AU79: 0 | AV79: 0 | AW79: 0 | AX79: 0 | AY79: 0 | AZ79: 0 | BA79: 0 | BB79: 0 | BC79: 0 | BD79: 0 | BE79: 0 | BF79: 0 | BG79: 0 | BH79: 0 | BI79: 0 | BJ79: 0 | BK79: 0 | BL79: 0 | BM79: 0 | BN79: 0 | BO79: 0 | BP79: 0 | BQ79: 0 | BR79: 0 | BS79: 0 | BT79: 0
D80: In period accounting profit / (loss) | F80: £000 | G80: =IF($I$4,SYS_Admin!$D$117,SYS_Admin!$D$116) -> Nominal | M80: =M76 -> 0 | N80: =N76 -> 0 | O80: 0 | P80: 0 | Q80: 0 | R80: 0 | S80: 0 | T80: 0 | U80: 0 | V80: 0 | W80: 0 | X80: 0 | Y80: 0 | Z80: 0 | AA80: 0 | AB80: 0 | AC80: 0 | AD80: 0 | AE80: 0 | AF80: 0 | AG80: 0 | AH80: 0 | AI80: 0 | AJ80: 0 | AK80: 0 | AL80: 0 | AM80: 0 | AN80: 0 | AO80: 0 | AP80: 0 | AQ80: 0 | AR80: 0 | AS80: 0 | AT80: 0 | AU80: 0 | AV80: 0 | AW80: 0 | AX80: 0 | AY80: 0 | AZ80: 0 | BA80: 0 | BB80: 0 | BC80: 0 | BD80: 0 | BE80: 0 | BF80: 0 | BG80: 0 | BH80: 0 | BI80: 0 | BJ80: 0 | BK80: 0 | BL80: 0 | BM80: 0 | BN80: 0 | BO80: 0 | BP80: 0 | BQ80: 0 | BR80: 0 | BS80: 0 | BT80: 0
D81: Final write off of share capital | F81: £000 | G81: =IF($I$4,SYS_Admin!$D$117,SYS_Admin!$D$116) -> Nominal | M81: =-OpCo1!M3609 -> 0 | N81: =-OpCo1!N3609 -> 0 | O81: =-OpCo1!O3609 -> 0 | P81: =-OpCo1!P3609 -> 0 | Q81: =-OpCo1!Q3609 -> 0 | R81: =-OpCo1!R3609 -> 0 | S81: =-OpCo1!S3609 -> 0 | T81: =-OpCo1!T3609 -> 0 | U81: =-OpCo1!U3609 -> 0 | V81: =-OpCo1!V3609 -> 0 | W81: =-OpCo1!W3609 -> 0 | X81: =-OpCo1!X3609 -> 0 | Y81: =-OpCo1!Y3609 -> 0 | Z81: =-OpCo1!Z3609 -> 0 | AA81: =-OpCo1!AA3609 -> 0 | AB81: =-OpCo1!AB3609 -> 0 | AC81: =-OpCo1!AC3609 -> 0 | AD81: =-OpCo1!AD3609 -> 0 | AE81: =-OpCo1!AE3609 -> 0 | AF81: =-OpCo1!AF3609 -> 0 | AG81: =-OpCo1!AG3609 -> 0 | AH81: =-OpCo1!AH3609 -> 0 | AI81: =-OpCo1!AI3609 -> 0 | AJ81: =-OpCo1!AJ3609 -> 0 | AK81: =-OpCo1!AK3609 -> 0 | AL81: =-OpCo1!AL3609 -> 0 | AM81: =-OpCo1!AM3609 -> 0 | AN81: =-OpCo1!AN3609 -> 0 | AO81: =-OpCo1!AO3609 -> 0 | AP81: =-OpCo1!AP3609 -> 0 | AQ81: =-OpCo1!AQ3609 -> 0 | AR81: =-OpCo1!AR3609 -> 0 | AS81: =-OpCo1!AS3609 -> 0 | AT81: =-OpCo1!AT3609 -> 0 | AU81: =-OpCo1!AU3609 -> 0 | AV81: =-OpCo1!AV3609 -> 0 | AW81: =-OpCo1!AW3609 -> 0 | AX81: =-OpCo1!AX3609 -> 0 | AY81: =-OpCo1!AY3609 -> 0 | AZ81: =-OpCo1!AZ3609 -> 0 | BA81: =-OpCo1!BA3609 -> 0 | BB81: =-OpCo1!BB3609 -> 0 | BC81: =-OpCo1!BC3609 -> 0 | BD81: =-OpCo1!BD3609 -> 0 | BE81: =-OpCo1!BE3609 -> 0 | BF81: =-OpCo1!BF3609 -> 0 | BG81: =-OpCo1!BG3609 -> 0 | BH81: =-OpCo1!BH3609 -> 0 | BI81: =-OpCo1!BI3609 -> 0 | BJ81: =-OpCo1!BJ3609 -> 0 | BK81: =-OpCo1!BK3609 -> 0 | BL81: =-OpCo1!BL3609 -> 0 | BM81: =-OpCo1!BM3609 -> 0 | BN81: =-OpCo1!BN3609 -> 0 | BO81: =-OpCo1!BO3609 -> 0 | BP81: =-OpCo1!BP3609 -> 0 | BQ81: =-OpCo1!BQ3609 -> 0 | BR81: =-OpCo1!BR3609 -> 0 | BS81: =-OpCo1!BS3609 -> 0 | BT81: =-OpCo1!BT3609 -> 0
D82: Distributions made | F82: £000 | G82: =IF($I$4,SYS_Admin!$D$117,SYS_Admin!$D$116) -> Nominal | M82: =OpCo1!M3681 -> 0 | N82: =OpCo1!N3681 -> 0 | O82: =OpCo1!O3681 -> 0 | P82: =OpCo1!P3681 -> 0 | Q82: =OpCo1!Q3681 -> 0 | R82: =OpCo1!R3681 -> 0 | S82: =OpCo1!S3681 -> 0 | T82: =OpCo1!T3681 -> 0 | U82: =OpCo1!U3681 -> 0 | V82: =OpCo1!V3681 -> 0 | W82: =OpCo1!W3681 -> 0 | X82: =OpCo1!X3681 -> 0 | Y82: =OpCo1!Y3681 -> 0 | Z82: =OpCo1!Z3681 -> 0 | AA82: =OpCo1!AA3681 -> 0 | AB82: =OpCo1!AB3681 -> 0 | AC82: =OpCo1!AC3681 -> 0 | AD82: =OpCo1!AD3681 -> 0 | AE82: =OpCo1!AE3681 -> 0 | AF82: =OpCo1!AF3681 -> 0 | AG82: =OpCo1!AG3681 -> 0 | AH82: =OpCo1!AH3681 -> 0 | AI82: =OpCo1!AI3681 -> 0 | AJ82: =OpCo1!AJ3681 -> 0 | AK82: =OpCo1!AK3681 -> 0 | AL82: =OpCo1!AL3681 -> 0 | AM82: =OpCo1!AM3681 -> 0 | AN82: =OpCo1!AN3681 -> 0 | AO82: =OpCo1!AO3681 -> 0 | AP82: =OpCo1!AP3681 -> 0 | AQ82: =OpCo1!AQ3681 -> 0 | AR82: =OpCo1!AR3681 -> 0 | AS82: =OpCo1!AS3681 -> 0 | AT82: =OpCo1!AT3681 -> 0 | AU82: =OpCo1!AU3681 -> 0 | AV82: =OpCo1!AV3681 -> 0 | AW82: =OpCo1!AW3681 -> 0 | AX82: =OpCo1!AX3681 -> 0 | AY82: =OpCo1!AY3681 -> 0 | AZ82: =OpCo1!AZ3681 -> 0 | BA82: =OpCo1!BA3681 -> 0 | BB82: =OpCo1!BB3681 -> 0 | BC82: =OpCo1!BC3681 -> 0 | BD82: =OpCo1!BD3681 -> 0 | BE82: =OpCo1!BE3681 -> 0 | BF82: =OpCo1!BF3681 -> 0 | BG82: =OpCo1!BG3681 -> 0 | BH82: =OpCo1!BH3681 -> 0 | BI82: =OpCo1!BI3681 -> 0 | BJ82: =OpCo1!BJ3681 -> 0 | BK82: =OpCo1!BK3681 -> 0 | BL82: =OpCo1!BL3681 -> 0 | BM82: =OpCo1!BM3681 -> 0 | BN82: =OpCo1!BN3681 -> 0 | BO82: =OpCo1!BO3681 -> 0 | BP82: =OpCo1!BP3681 -> 0 | BQ82: =OpCo1!BQ3681 -> 0 | BR82: =OpCo1!BR3681 -> 0 | BS82: =OpCo1!BS3681 -> 0 | BT82: =OpCo1!BT3681 -> 0
D83: c/f P&L Account | F83: £000 | G83: =IF($I$4,SYS_Admin!$D$117,SYS_Admin!$D$116) -> Nominal | M83: =SUM(M79:M82) -> 0 | N83: =SUM(N79:N82) -> 0 | O83: 0 | P83: 0 | Q83: 0 | R83: 0 | S83: 0 | T83: 0 | U83: 0 | V83: 0 | W83: 0 | X83: 0 | Y83: 0 | Z83: 0 | AA83: 0 | AB83: 0 | AC83: 0 | AD83: 0 | AE83: 0 | AF83: 0 | AG83: 0 | AH83: 0 | AI83: 0 | AJ83: 0 | AK83: 0 | AL83: 0 | AM83: 0 | AN83: 0 | AO83: 0 | AP83: 0 | AQ83: 0 | AR83: 0 | AS83: 0 | AT83: 0 | AU83: 0 | AV83: 0 | AW83: 0 | AX83: 0 | AY83: 0 | AZ83: 0 | BA83: 0 | BB83: 0 | BC83: 0 | BD83: 0 | BE83: 0 | BF83: 0 | BG83: 0 | BH83: 0 | BI83: 0 | BJ83: 0 | BK83: 0 | BL83: 0 | BM83: 0 | BN83: 0 | BO83: 0 | BP83: 0 | BQ83: 0 | BR83: 0 | BS83: 0 | BT83: 0
C85: =MAX(C$11:C84)+1 -> 2 | D85: STATEMENT OF FINANCIAL POSITION
D87: LONG TERM ASSETS
D89: Property, plant and equipment | F89: £000 | G89: =IF($I$4,SYS_Admin!$D$117,SYS_Admin!$D$116) -> Nominal | M89: =SUM(M90:M95) -> 0 | N89: =SUM(N90:N95) -> 0 | O89: 0 | P89: 0 | Q89: 0 | R89: 0 | S89: 0 | T89: 0 | U89: 0 | V89: 0 | W89: 0 | X89: 0 | Y89: 0 | Z89: 0 | AA89: 0 | AB89: 0 | AC89: 0 | AD89: 0 | AE89: 0 | AF89: 0 | AG89: 0 | AH89: 0 | AI89: 0 | AJ89: 0 | AK89: 0 | AL89: 0 | AM89: 0 | AN89: 0 | AO89: 0 | AP89: 0 | AQ89: 0 | AR89: 0 | AS89: 0 | AT89: 0 | AU89: 0 | AV89: 0 | AW89: 0 | AX89: 0 | AY89: 0 | AZ89: 0 | BA89: 0 | BB89: 0 | BC89: 0 | BD89: 0 | BE89: 0 | BF89: 0 | BG89: 0 | BH89: 0 | BI89: 0 | BJ89: 0 | BK89: 0 | BL89: 0 | BM89: 0 | BN89: 0 | BO89: 0 | BP89: 0 | BQ89: 0 | BR89: 0 | BS89: 0 | BT89: 0
D90: Fixed assets | F90: £000 | G90: =IF($I$4,SYS_Admin!$D$117,SYS_Admin!$D$116) -> Nominal | M90: =OpCo1!M176 -> 0 | N90: =OpCo1!N176 -> 0 | O90: =OpCo1!O176 -> 0 | P90: =OpCo1!P176 -> 0 | Q90: =OpCo1!Q176 -> 0 | R90: =OpCo1!R176 -> 0 | S90: =OpCo1!S176 -> 0 | T90: =OpCo1!T176 -> 0 | U90: =OpCo1!U176 -> 0 | V90: =OpCo1!V176 -> 0 | W90: =OpCo1!W176 -> 0 | X90: =OpCo1!X176 -> 0 | Y90: =OpCo1!Y176 -> 0 | Z90: =OpCo1!Z176 -> 0 | AA90: =OpCo1!AA176 -> 0 | AB90: =OpCo1!AB176 -> 0 | AC90: =OpCo1!AC176 -> 0 | AD90: =OpCo1!AD176 -> 0 | AE90: =OpCo1!AE176 -> 0 | AF90: =OpCo1!AF176 -> 0 | AG90: =OpCo1!AG176 -> 0 | AH90: =OpCo1!AH176 -> 0 | AI90: =OpCo1!AI176 -> 0 | AJ90: =OpCo1!AJ176 -> 0 | AK90: =OpCo1!AK176 -> 0 | AL90: =OpCo1!AL176 -> 0 | AM90: =OpCo1!AM176 -> 0 | AN90: =OpCo1!AN176 -> 0 | AO90: =OpCo1!AO176 -> 0 | AP90: =OpCo1!AP176 -> 0 | AQ90: =OpCo1!AQ176 -> 0 | AR90: =OpCo1!AR176 -> 0 | AS90: =OpCo1!AS176 -> 0 | AT90: =OpCo1!AT176 -> 0 | AU90: =OpCo1!AU176 -> 0 | AV90: =OpCo1!AV176 -> 0 | AW90: =OpCo1!AW176 -> 0 | AX90: =OpCo1!AX176 -> 0 | AY90: =OpCo1!AY176 -> 0 | AZ90: =OpCo1!AZ176 -> 0 | BA90: =OpCo1!BA176 -> 0 | BB90: =OpCo1!BB176 -> 0 | BC90: =OpCo1!BC176 -> 0 | BD90: =OpCo1!BD176 -> 0 | BE90: =OpCo1!BE176 -> 0 | BF90: =OpCo1!BF176 -> 0 | BG90: =OpCo1!BG176 -> 0 | BH90: =OpCo1!BH176 -> 0 | BI90: =OpCo1!BI176 -> 0 | BJ90: =OpCo1!BJ176 -> 0 | BK90: =OpCo1!BK176 -> 0 | BL90: =OpCo1!BL176 -> 0 | BM90: =OpCo1!BM176 -> 0 | BN90: =OpCo1!BN176 -> 0 | BO90: =OpCo1!BO176 -> 0 | BP90: =OpCo1!BP176 -> 0 | BQ90: =OpCo1!BQ176 -> 0 | BR90: =OpCo1!BR176 -> 0 | BS90: =OpCo1!BS176 -> 0 | BT90: =OpCo1!BT176 -> 0
D91: Irrecoverable VAT on fixed assets | F91: £000 | G91: =IF($I$4,SYS_Admin!$D$117,SYS_Admin!$D$116) -> Nominal | M91: =OpCo1!M2869 -> 0 | N91: =OpCo1!N2869 -> 0 | O91: =OpCo1!O2869 -> 0 | P91: =OpCo1!P2869 -> 0 | Q91: =OpCo1!Q2869 -> 0 | R91: =OpCo1!R2869 -> 0 | S91: =OpCo1!S2869 -> 0 | T91: =OpCo1!T2869 -> 0 | U91: =OpCo1!U2869 -> 0 | V91: =OpCo1!V2869 -> 0 | W91: =OpCo1!W2869 -> 0 | X91: =OpCo1!X2869 -> 0 | Y91: =OpCo1!Y2869 -> 0 | Z91: =OpCo1!Z2869 -> 0 | AA91: =OpCo1!AA2869 -> 0 | AB91: =OpCo1!AB2869 -> 0 | AC91: =OpCo1!AC2869 -> 0 | AD91: =OpCo1!AD2869 -> 0 | AE91: =OpCo1!AE2869 -> 0 | AF91: =OpCo1!AF2869 -> 0 | AG91: =OpCo1!AG2869 -> 0 | AH91: =OpCo1!AH2869 -> 0 | AI91: =OpCo1!AI2869 -> 0 | AJ91: =OpCo1!AJ2869 -> 0 | AK91: =OpCo1!AK2869 -> 0 | AL91: =OpCo1!AL2869 -> 0 | AM91: =OpCo1!AM2869 -> 0 | AN91: =OpCo1!AN2869 -> 0 | AO91: =OpCo1!AO2869 -> 0 | AP91: =OpCo1!AP2869 -> 0 | AQ91: =OpCo1!AQ2869 -> 0 | AR91: =OpCo1!AR2869 -> 0 | AS91: =OpCo1!AS2869 -> 0 | AT91: =OpCo1!AT2869 -> 0 | AU91: =OpCo1!AU2869 -> 0 | AV91: =OpCo1!AV2869 -> 0 | AW91: =OpCo1!AW2869 -> 0 | AX91: =OpCo1!AX2869 -> 0 | AY91: =OpCo1!AY2869 -> 0 | AZ91: =OpCo1!AZ2869 -> 0 | BA91: =OpCo1!BA2869 -> 0 | BB91: =OpCo1!BB2869 -> 0 | BC91: =OpCo1!BC2869 -> 0 | BD91: =OpCo1!BD2869 -> 0 | BE91: =OpCo1!BE2869 -> 0 | BF91: =OpCo1!BF2869 -> 0 | BG91: =OpCo1!BG2869 -> 0 | BH91: =OpCo1!BH2869 -> 0 | BI91: =OpCo1!BI2869 -> 0 | BJ91: =OpCo1!BJ2869 -> 0 | BK91: =OpCo1!BK2869 -> 0 | BL91: =OpCo1!BL2869 -> 0 | BM91: =OpCo1!BM2869 -> 0 | BN91: =OpCo1!BN2869 -> 0 | BO91: =OpCo1!BO2869 -> 0 | BP91: =OpCo1!BP2869 -> 0 | BQ91: =OpCo1!BQ2869 -> 0 | BR91: =OpCo1!BR2869 -> 0 | BS91: =OpCo1!BS2869 -> 0 | BT91: =OpCo1!BT2869 -> 0
D92: Offset for grant received against capex | F92: £000 | G92: =IF($I$4,SYS_Admin!$D$117,SYS_Admin!$D$116) -> Nominal | M92: =-OpCo1!M630 -> 0 | N92: =-OpCo1!N630 -> 0 | O92: =-OpCo1!O630 -> 0 | P92: =-OpCo1!P630 -> 0 | Q92: =-OpCo1!Q630 -> 0 | R92: =-OpCo1!R630 -> 0 | S92: =-OpCo1!S630 -> 0 | T92: =-OpCo1!T630 -> 0 | U92: =-OpCo1!U630 -> 0 | V92: =-OpCo1!V630 -> 0 | W92: =-OpCo1!W630 -> 0 | X92: =-OpCo1!X630 -> 0 | Y92: =-OpCo1!Y630 -> 0 | Z92: =-OpCo1!Z630 -> 0 | AA92: =-OpCo1!AA630 -> 0 | AB92: =-OpCo1!AB630 -> 0 | AC92: =-OpCo1!AC630 -> 0 | AD92: =-OpCo1!AD630 -> 0 | AE92: =-OpCo1!AE630 -> 0 | AF92: =-OpCo1!AF630 -> 0 | AG92: =-OpCo1!AG630 -> 0 | AH92: =-OpCo1!AH630 -> 0 | AI92: =-OpCo1!AI630 -> 0 | AJ92: =-OpCo1!AJ630 -> 0 | AK92: =-OpCo1!AK630 -> 0 | AL92: =-OpCo1!AL630 -> 0 | AM92: =-OpCo1!AM630 -> 0 | AN92: =-OpCo1!AN630 -> 0 | AO92: =-OpCo1!AO630 -> 0 | AP92: =-OpCo1!AP630 -> 0 | AQ92: =-OpCo1!AQ630 -> 0 | AR92: =-OpCo1!AR630 -> 0 | AS92: =-OpCo1!AS630 -> 0 | AT92: =-OpCo1!AT630 -> 0 | AU92: =-OpCo1!AU630 -> 0 | AV92: =-OpCo1!AV630 -> 0 | AW92: =-OpCo1!AW630 -> 0 | AX92: =-OpCo1!AX630 -> 0 | AY92: =-OpCo1!AY630 -> 0 | AZ92: =-OpCo1!AZ630 -> 0 | BA92: =-OpCo1!BA630 -> 0 | BB92: =-OpCo1!BB630 -> 0 | BC92: =-OpCo1!BC630 -> 0 | BD92: =-OpCo1!BD630 -> 0 | BE92: =-OpCo1!BE630 -> 0 | BF92: =-OpCo1!BF630 -> 0 | BG92: =-OpCo1!BG630 -> 0 | BH92: =-OpCo1!BH630 -> 0 | BI92: =-OpCo1!BI630 -> 0 | BJ92: =-OpCo1!BJ630 -> 0 | BK92: =-OpCo1!BK630 -> 0 | BL92: =-OpCo1!BL630 -> 0 | BM92: =-OpCo1!BM630 -> 0 | BN92: =-OpCo1!BN630 -> 0 | BO92: =-OpCo1!BO630 -> 0 | BP92: =-OpCo1!BP630 -> 0 | BQ92: =-OpCo1!BQ630 -> 0 | BR92: =-OpCo1!BR630 -> 0 | BS92: =-OpCo1!BS630 -> 0 | BT92: =-OpCo1!BT630 -> 0
D93: Leased assets capitalised | F93: £000 | G93: =IF($I$4,SYS_Admin!$D$117,SYS_Admin!$D$116) -> Nominal | M93: =OpCo1!M1212 -> 0 | N93: =OpCo1!N1212 -> 0 | O93: =OpCo1!O1212 -> 0 | P93: =OpCo1!P1212 -> 0 | Q93: =OpCo1!Q1212 -> 0 | R93: =OpCo1!R1212 -> 0 | S93: =OpCo1!S1212 -> 0 | T93: =OpCo1!T1212 -> 0 | U93: =OpCo1!U1212 -> 0 | V93: =OpCo1!V1212 -> 0 | W93: =OpCo1!W1212 -> 0 | X93: =OpCo1!X1212 -> 0 | Y93: =OpCo1!Y1212 -> 0 | Z93: =OpCo1!Z1212 -> 0 | AA93: =OpCo1!AA1212 -> 0 | AB93: =OpCo1!AB1212 -> 0 | AC93: =OpCo1!AC1212 -> 0 | AD93: =OpCo1!AD1212 -> 0 | AE93: =OpCo1!AE1212 -> 0 | AF93: =OpCo1!AF1212 -> 0 | AG93: =OpCo1!AG1212 -> 0 | AH93: =OpCo1!AH1212 -> 0 | AI93: =OpCo1!AI1212 -> 0 | AJ93: =OpCo1!AJ1212 -> 0 | AK93: =OpCo1!AK1212 -> 0 | AL93: =OpCo1!AL1212 -> 0 | AM93: =OpCo1!AM1212 -> 0 | AN93: =OpCo1!AN1212 -> 0 | AO93: =OpCo1!AO1212 -> 0 | AP93: =OpCo1!AP1212 -> 0 | AQ93: =OpCo1!AQ1212 -> 0 | AR93: =OpCo1!AR1212 -> 0 | AS93: =OpCo1!AS1212 -> 0 | AT93: =OpCo1!AT1212 -> 0 | AU93: =OpCo1!AU1212 -> 0 | AV93: =OpCo1!AV1212 -> 0 | AW93: =OpCo1!AW1212 -> 0 | AX93: =OpCo1!AX1212 -> 0 | AY93: =OpCo1!AY1212 -> 0 | AZ93: =OpCo1!AZ1212 -> 0 | BA93: =OpCo1!BA1212 -> 0 | BB93: =OpCo1!BB1212 -> 0 | BC93: =OpCo1!BC1212 -> 0 | BD93: =OpCo1!BD1212 -> 0 | BE93: =OpCo1!BE1212 -> 0 | BF93: =OpCo1!BF1212 -> 0 | BG93: =OpCo1!BG1212 -> 0 | BH93: =OpCo1!BH1212 -> 0 | BI93: =OpCo1!BI1212 -> 0 | BJ93: =OpCo1!BJ1212 -> 0 | BK93: =OpCo1!BK1212 -> 0 | BL93: =OpCo1!BL1212 -> 0 | BM93: =OpCo1!BM1212 -> 0 | BN93: =OpCo1!BN1212 -> 0 | BO93: =OpCo1!BO1212 -> 0 | BP93: =OpCo1!BP1212 -> 0 | BQ93: =OpCo1!BQ1212 -> 0 | BR93: =OpCo1!BR1212 -> 0 | BS93: =OpCo1!BS1212 -> 0 | BT93: =OpCo1!BT1212 -> 0
D94: Adjustment for leased assets | F94: £000 | G94: =IF($I$4,SYS_Admin!$D$117,SYS_Admin!$D$116) -> Nominal | M94: =OpCo1!M1201 -> 0 | N94: =OpCo1!N1201 -> 0 | O94: =OpCo1!O1201 -> 0 | P94: =OpCo1!P1201 -> 0 | Q94: =OpCo1!Q1201 -> 0 | R94: =OpCo1!R1201 -> 0 | S94: =OpCo1!S1201 -> 0 | T94: =OpCo1!T1201 -> 0 | U94: =OpCo1!U1201 -> 0 | V94: =OpCo1!V1201 -> 0 | W94: =OpCo1!W1201 -> 0 | X94: =OpCo1!X1201 -> 0 | Y94: =OpCo1!Y1201 -> 0 | Z94: =OpCo1!Z1201 -> 0 | AA94: =OpCo1!AA1201 -> 0 | AB94: =OpCo1!AB1201 -> 0 | AC94: =OpCo1!AC1201 -> 0 | AD94: =OpCo1!AD1201 -> 0 | AE94: =OpCo1!AE1201 -> 0 | AF94: =OpCo1!AF1201 -> 0 | AG94: =OpCo1!AG1201 -> 0 | AH94: =OpCo1!AH1201 -> 0 | AI94: =OpCo1!AI1201 -> 0 | AJ94: =OpCo1!AJ1201 -> 0 | AK94: =OpCo1!AK1201 -> 0 | AL94: =OpCo1!AL1201 -> 0 | AM94: =OpCo1!AM1201 -> 0 | AN94: =OpCo1!AN1201 -> 0 | AO94: =OpCo1!AO1201 -> 0 | AP94: =OpCo1!AP1201 -> 0 | AQ94: =OpCo1!AQ1201 -> 0 | AR94: =OpCo1!AR1201 -> 0 | AS94: =OpCo1!AS1201 -> 0 | AT94: =OpCo1!AT1201 -> 0 | AU94: =OpCo1!AU1201 -> 0 | AV94: =OpCo1!AV1201 -> 0 | AW94: =OpCo1!AW1201 -> 0 | AX94: =OpCo1!AX1201 -> 0 | AY94: =OpCo1!AY1201 -> 0 | AZ94: =OpCo1!AZ1201 -> 0 | BA94: =OpCo1!BA1201 -> 0 | BB94: =OpCo1!BB1201 -> 0 | BC94: =OpCo1!BC1201 -> 0 | BD94: =OpCo1!BD1201 -> 0 | BE94: =OpCo1!BE1201 -> 0 | BF94: =OpCo1!BF1201 -> 0 | BG94: =OpCo1!BG1201 -> 0 | BH94: =OpCo1!BH1201 -> 0 | BI94: =OpCo1!BI1201 -> 0 | BJ94: =OpCo1!BJ1201 -> 0 | BK94: =OpCo1!BK1201 -> 0 | BL94: =OpCo1!BL1201 -> 0 | BM94: =OpCo1!BM1201 -> 0 | BN94: =OpCo1!BN1201 -> 0 | BO94: =OpCo1!BO1201 -> 0 | BP94: =OpCo1!BP1201 -> 0 | BQ94: =OpCo1!BQ1201 -> 0 | BR94: =OpCo1!BR1201 -> 0 | BS94: =OpCo1!BS1201 -> 0 | BT94: =OpCo1!BT1201 -> 0
D95: Interest capitalised | F95: £000 | G95: =IF($I$4,SYS_Admin!$D$117,SYS_Admin!$D$116) -> Nominal | M95: =OpCo1!M2175 -> 0 | N95: =OpCo1!N2175 -> 0 | O95: =OpCo1!O2175 -> 0 | P95: =OpCo1!P2175 -> 0 | Q95: =OpCo1!Q2175 -> 0 | R95: =OpCo1!R2175 -> 0 | S95: =OpCo1!S2175 -> 0 | T95: =OpCo1!T2175 -> 0 | U95: =OpCo1!U2175 -> 0 | V95: =OpCo1!V2175 -> 0 | W95: =OpCo1!W2175 -> 0 | X95: =OpCo1!X2175 -> 0 | Y95: =OpCo1!Y2175 -> 0 | Z95: =OpCo1!Z2175 -> 0 | AA95: =OpCo1!AA2175 -> 0 | AB95: =OpCo1!AB2175 -> 0 | AC95: =OpCo1!AC2175 -> 0 | AD95: =OpCo1!AD2175 -> 0 | AE95: =OpCo1!AE2175 -> 0 | AF95: =OpCo1!AF2175 -> 0 | AG95: =OpCo1!AG2175 -> 0 | AH95: =OpCo1!AH2175 -> 0 | AI95: =OpCo1!AI2175 -> 0 | AJ95: =OpCo1!AJ2175 -> 0 | AK95: =OpCo1!AK2175 -> 0 | AL95: =OpCo1!AL2175 -> 0 | AM95: =OpCo1!AM2175 -> 0 | AN95: =OpCo1!AN2175 -> 0 | AO95: =OpCo1!AO2175 -> 0 | AP95: =OpCo1!AP2175 -> 0 | AQ95: =OpCo1!AQ2175 -> 0 | AR95: =OpCo1!AR2175 -> 0 | AS95: =OpCo1!AS2175 -> 0 | AT95: =OpCo1!AT2175 -> 0 | AU95: =OpCo1!AU2175 -> 0 | AV95: =OpCo1!AV2175 -> 0 | AW95: =OpCo1!AW2175 -> 0 | AX95: =OpCo1!AX2175 -> 0 | AY95: =OpCo1!AY2175 -> 0 | AZ95: =OpCo1!AZ2175 -> 0 | BA95: =OpCo1!BA2175 -> 0 | BB95: =OpCo1!BB2175 -> 0 | BC95: =OpCo1!BC2175 -> 0 | BD95: =OpCo1!BD2175 -> 0 | BE95: =OpCo1!BE2175 -> 0 | BF95: =OpCo1!BF2175 -> 0 | BG95: =OpCo1!BG2175 -> 0 | BH95: =OpCo1!BH2175 -> 0 | BI95: =OpCo1!BI2175 -> 0 | BJ95: =OpCo1!BJ2175 -> 0 | BK95: =OpCo1!BK2175 -> 0 | BL95: =OpCo1!BL2175 -> 0 | BM95: =OpCo1!BM2175 -> 0 | BN95: =OpCo1!BN2175 -> 0 | BO95: =OpCo1!BO2175 -> 0 | BP95: =OpCo1!BP2175 -> 0 | BQ95: =OpCo1!BQ2175 -> 0 | BR95: =OpCo1!BR2175 -> 0 | BS95: =OpCo1!BS2175 -> 0 | BT95: =OpCo1!BT2175 -> 0
D97: Deferred tax asset | F97: £000 | G97: =IF($I$4,SYS_Admin!$D$117,SYS_Admin!$D$116) -> Nominal | M97: =OpCo1!M3436 -> 0 | N97: =OpCo1!N3436 -> 0 | O97: =OpCo1!O3436 -> 0 | P97: =OpCo1!P3436 -> 0 | Q97: =OpCo1!Q3436 -> 0 | R97: =OpCo1!R3436 -> 0 | S97: =OpCo1!S3436 -> 0 | T97: =OpCo1!T3436 -> 0 | U97: =OpCo1!U3436 -> 0 | V97: =OpCo1!V3436 -> 0 | W97: =OpCo1!W3436 -> 0 | X97: =OpCo1!X3436 -> 0 | Y97: =OpCo1!Y3436 -> 0 | Z97: =OpCo1!Z3436 -> 0 | AA97: =OpCo1!AA3436 -> 0 | AB97: =OpCo1!AB3436 -> 0 | AC97: =OpCo1!AC3436 -> 0 | AD97: =OpCo1!AD3436 -> 0 | AE97: =OpCo1!AE3436 -> 0 | AF97: =OpCo1!AF3436 -> 0 | AG97: =OpCo1!AG3436 -> 0 | AH97: =OpCo1!AH3436 -> 0 | AI97: =OpCo1!AI3436 -> 0 | AJ97: =OpCo1!AJ3436 -> 0 | AK97: =OpCo1!AK3436 -> 0 | AL97: =OpCo1!AL3436 -> 0 | AM97: =OpCo1!AM3436 -> 0 | AN97: =OpCo1!AN3436 -> 0 | AO97: =OpCo1!AO3436 -> 0 | AP97: =OpCo1!AP3436 -> 0 | AQ97: =OpCo1!AQ3436 -> 0 | AR97: =OpCo1!AR3436 -> 0 | AS97: =OpCo1!AS3436 -> 0 | AT97: =OpCo1!AT3436 -> 0 | AU97: =OpCo1!AU3436 -> 0 | AV97: =OpCo1!AV3436 -> 0 | AW97: =OpCo1!AW3436 -> 0 | AX97: =OpCo1!AX3436 -> 0 | AY97: =OpCo1!AY3436 -> 0 | AZ97: =OpCo1!AZ3436 -> 0 | BA97: =OpCo1!BA3436 -> 0 | BB97: =OpCo1!BB3436 -> 0 | BC97: =OpCo1!BC3436 -> 0 | BD97: =OpCo1!BD3436 -> 0 | BE97: =OpCo1!BE3436 -> 0 | BF97: =OpCo1!BF3436 -> 0 | BG97: =OpCo1!BG3436 -> 0 | BH97: =OpCo1!BH3436 -> 0 | BI97: =OpCo1!BI3436 -> 0 | BJ97: =OpCo1!BJ3436 -> 0 | BK97: =OpCo1!BK3436 -> 0 | BL97: =OpCo1!BL3436 -> 0 | BM97: =OpCo1!BM3436 -> 0 | BN97: =OpCo1!BN3436 -> 0 | BO97: =OpCo1!BO3436 -> 0 | BP97: =OpCo1!BP3436 -> 0 | BQ97: =OpCo1!BQ3436 -> 0 | BR97: =OpCo1!BR3436 -> 0 | BS97: =OpCo1!BS3436 -> 0 | BT97: =OpCo1!BT3436 -> 0
D98: Long term assets | F98: £000 | G98: =IF($I$4,SYS_Admin!$D$117,SYS_Admin!$D$116) -> Nominal | M98: =SUM(M89,M97:M97) -> 0 | N98: =SUM(N89,N97:N97) -> 0 | O98: 0 | P98: 0 | Q98: 0 | R98: 0 | S98: 0 | T98: 0 | U98: 0 | V98: 0 | W98: 0 | X98: 0 | Y98: 0 | Z98: 0 | AA98: 0 | AB98: 0 | AC98: 0 | AD98: 0 | AE98: 0 | AF98: 0 | AG98: 0 | AH98: 0 | AI98: 0 | AJ98: 0 | AK98: 0 | AL98: 0 | AM98: 0 | AN98: 0 | AO98: 0 | AP98: 0 | AQ98: 0 | AR98: 0 | AS98: 0 | AT98: 0 | AU98: 0 | AV98: 0 | AW98: 0 | AX98: 0 | AY98: 0 | AZ98: 0 | BA98: 0 | BB98: 0 | BC98: 0 | BD98: 0 | BE98: 0 | BF98: 0 | BG98: 0 | BH98: 0 | BI98: 0 | BJ98: 0 | BK98: 0 | BL98: 0 | BM98: 0 | BN98: 0 | BO98: 0 | BP98: 0 | BQ98: 0 | BR98: 0 | BS98: 0 | BT98: 0
D100: CURRENT ASSETS
D102: Trade receivables | F102: £000 | G102: =IF($I$4,SYS_Admin!$D$117,SYS_Admin!$D$116) -> Nominal | M102: =SUM(M103:M110) -> 0 | N102: =SUM(N103:N110) -> 0 | O102: 0 | P102: 0 | Q102: 0 | R102: 0 | S102: 0 | T102: 0 | U102: 0 | V102: 0 | W102: 0 | X102: 0 | Y102: 0 | Z102: 0 | AA102: 0 | AB102: 0 | AC102: 0 | AD102: 0 | AE102: 0 | AF102: 0 | AG102: 0 | AH102: 0 | AI102: 0 | AJ102: 0 | AK102: 0 | AL102: 0 | AM102: 0 | AN102: 0 | AO102: 0 | AP102: 0 | AQ102: 0 | AR102: 0 | AS102: 0 | AT102: 0 | AU102: 0 | AV102: 0 | AW102: 0 | AX102: 0 | AY102: 0 | AZ102: 0 | BA102: 0 | BB102: 0 | BC102: 0 | BD102: 0 | BE102: 0 | BF102: 0 | BG102: 0 | BH102: 0 | BI102: 0 | BJ102: 0 | BK102: 0 | BL102: 0 | BM102: 0 | BN102: 0 | BO102: 0 | BP102: 0 | BQ102: 0 | BR102: 0 | BS102: 0 | BT102: 0
D103: Private network income | F103: £000 | G103: =IF($I$4,SYS_Admin!$D$117,SYS_Admin!$D$116) -> Nominal | M103: =OpCo1!M256 -> 0 | N103: =OpCo1!N256 -> 0 | O103: =OpCo1!O256 -> 0 | P103: =OpCo1!P256 -> 0 | Q103: =OpCo1!Q256 -> 0 | R103: =OpCo1!R256 -> 0 | S103: =OpCo1!S256 -> 0 | T103: =OpCo1!T256 -> 0 | U103: =OpCo1!U256 -> 0 | V103: =OpCo1!V256 -> 0 | W103: =OpCo1!W256 -> 0 | X103: =OpCo1!X256 -> 0 | Y103: =OpCo1!Y256 -> 0 | Z103: =OpCo1!Z256 -> 0 | AA103: =OpCo1!AA256 -> 0 | AB103: =OpCo1!AB256 -> 0 | AC103: =OpCo1!AC256 -> 0 | AD103: =OpCo1!AD256 -> 0 | AE103: =OpCo1!AE256 -> 0 | AF103: =OpCo1!AF256 -> 0 | AG103: =OpCo1!AG256 -> 0 | AH103: =OpCo1!AH256 -> 0 | AI103: =OpCo1!AI256 -> 0 | AJ103: =OpCo1!AJ256 -> 0 | AK103: =OpCo1!AK256 -> 0 | AL103: =OpCo1!AL256 -> 0 | AM103: =OpCo1!AM256 -> 0 | AN103: =OpCo1!AN256 -> 0 | AO103: =OpCo1!AO256 -> 0 | AP103: =OpCo1!AP256 -> 0 | AQ103: =OpCo1!AQ256 -> 0 | AR103: =OpCo1!AR256 -> 0 | AS103: =OpCo1!AS256 -> 0 | AT103: =OpCo1!AT256 -> 0 | AU103: =OpCo1!AU256 -> 0 | AV103: =OpCo1!AV256 -> 0 | AW103: =OpCo1!AW256 -> 0 | AX103: =OpCo1!AX256 -> 0 | AY103: =OpCo1!AY256 -> 0 | AZ103: =OpCo1!AZ256 -> 0 | BA103: =OpCo1!BA256 -> 0 | BB103: =OpCo1!BB256 -> 0 | BC103: =OpCo1!BC256 -> 0 | BD103: =OpCo1!BD256 -> 0 | BE103: =OpCo1!BE256 -> 0 | BF103: =OpCo1!BF256 -> 0 | BG103: =OpCo1!BG256 -> 0 | BH103: =OpCo1!BH256 -> 0 | BI103: =OpCo1!BI256 -> 0 | BJ103: =OpCo1!BJ256 -> 0 | BK103: =OpCo1!BK256 -> 0 | BL103: =OpCo1!BL256 -> 0 | BM103: =OpCo1!BM256 -> 0 | BN103: =OpCo1!BN256 -> 0 | BO103: =OpCo1!BO256 -> 0 | BP103: =OpCo1!BP256 -> 0 | BQ103: =OpCo1!BQ256 -> 0 | BR103: =OpCo1!BR256 -> 0 | BS103: =OpCo1!BS256 -> 0 | BT103: =OpCo1!BT256 -> 0
D104: National grid exports | F104: £000 | G104: =IF($I$4,SYS_Admin!$D$117,SYS_Admin!$D$116) -> Nominal | M104: =OpCo1!M272 -> 0 | N104: =OpCo1!N272 -> 0 | O104: =OpCo1!O272 -> 0 | P104: =OpCo1!P272 -> 0 | Q104: =OpCo1!Q272 -> 0 | R104: =OpCo1!R272 -> 0 | S104: =OpCo1!S272 -> 0 | T104: =OpCo1!T272 -> 0 | U104: =OpCo1!U272 -> 0 | V104: =OpCo1!V272 -> 0 | W104: =OpCo1!W272 -> 0 | X104: =OpCo1!X272 -> 0 | Y104: =OpCo1!Y272 -> 0 | Z104: =OpCo1!Z272 -> 0 | AA104: =OpCo1!AA272 -> 0 | AB104: =OpCo1!AB272 -> 0 | AC104: =OpCo1!AC272 -> 0 | AD104: =OpCo1!AD272 -> 0 | AE104: =OpCo1!AE272 -> 0 | AF104: =OpCo1!AF272 -> 0 | AG104: =OpCo1!AG272 -> 0 | AH104: =OpCo1!AH272 -> 0 | AI104: =OpCo1!AI272 -> 0 | AJ104: =OpCo1!AJ272 -> 0 | AK104: =OpCo1!AK272 -> 0 | AL104: =OpCo1!AL272 -> 0 | AM104: =OpCo1!AM272 -> 0 | AN104: =OpCo1!AN272 -> 0 | AO104: =OpCo1!AO272 -> 0 | AP104: =OpCo1!AP272 -> 0 | AQ104: =OpCo1!AQ272 -> 0 | AR104: =OpCo1!AR272 -> 0 | AS104: =OpCo1!AS272 -> 0 | AT104: =OpCo1!AT272 -> 0 | AU104: =OpCo1!AU272 -> 0 | AV104: =OpCo1!AV272 -> 0 | AW104: =OpCo1!AW272 -> 0 | AX104: =OpCo1!AX272 -> 0 | AY104: =OpCo1!AY272 -> 0 | AZ104: =OpCo1!AZ272 -> 0 | BA104: =OpCo1!BA272 -> 0 | BB104: =OpCo1!BB272 -> 0 | BC104: =OpCo1!BC272 -> 0 | BD104: =OpCo1!BD272 -> 0 | BE104: =OpCo1!BE272 -> 0 | BF104: =OpCo1!BF272 -> 0 | BG104: =OpCo1!BG272 -> 0 | BH104: =OpCo1!BH272 -> 0 | BI104: =OpCo1!BI272 -> 0 | BJ104: =OpCo1!BJ272 -> 0 | BK104: =OpCo1!BK272 -> 0 | BL104: =OpCo1!BL272 -> 0 | BM104: =OpCo1!BM272 -> 0 | BN104: =OpCo1!BN272 -> 0 | BO104: =OpCo1!BO272 -> 0 | BP104: =OpCo1!BP272 -> 0 | BQ104: =OpCo1!BQ272 -> 0 | BR104: =OpCo1!BR272 -> 0 | BS104: =OpCo1!BS272 -> 0 | BT104: =OpCo1!BT272 -> 0
D105: Energy efficiency income | F105: £000 | G105: =IF($I$4,SYS_Admin!$D$117,SYS_Admin!$D$116) -> Nominal | M105: =OpCo1!M330 -> 0 | N105: =OpCo1!N330 -> 0 | O105: =OpCo1!O330 -> 0 | P105: =OpCo1!P330 -> 0 | Q105: =OpCo1!Q330 -> 0 | R105: =OpCo1!R330 -> 0 | S105: =OpCo1!S330 -> 0 | T105: =OpCo1!T330 -> 0 | U105: =OpCo1!U330 -> 0 | V105: =OpCo1!V330 -> 0 | W105: =OpCo1!W330 -> 0 | X105: =OpCo1!X330 -> 0 | Y105: =OpCo1!Y330 -> 0 | Z105: =OpCo1!Z330 -> 0 | AA105: =OpCo1!AA330 -> 0 | AB105: =OpCo1!AB330 -> 0 | AC105: =OpCo1!AC330 -> 0 | AD105: =OpCo1!AD330 -> 0 | AE105: =OpCo1!AE330 -> 0 | AF105: =OpCo1!AF330 -> 0 | AG105: =OpCo1!AG330 -> 0 | AH105: =OpCo1!AH330 -> 0 | AI105: =OpCo1!AI330 -> 0 | AJ105: =OpCo1!AJ330 -> 0 | AK105: =OpCo1!AK330 -> 0 | AL105: =OpCo1!AL330 -> 0 | AM105: =OpCo1!AM330 -> 0 | AN105: =OpCo1!AN330 -> 0 | AO105: =OpCo1!AO330 -> 0 | AP105: =OpCo1!AP330 -> 0 | AQ105: =OpCo1!AQ330 -> 0 | AR105: =OpCo1!AR330 -> 0 | AS105: =OpCo1!AS330 -> 0 | AT105: =OpCo1!AT330 -> 0 | AU105: =OpCo1!AU330 -> 0 | AV105: =OpCo1!AV330 -> 0 | AW105: =OpCo1!AW330 -> 0 | AX105: =OpCo1!AX330 -> 0 | AY105: =OpCo1!AY330 -> 0 | AZ105: =OpCo1!AZ330 -> 0 | BA105: =OpCo1!BA330 -> 0 | BB105: =OpCo1!BB330 -> 0 | BC105: =OpCo1!BC330 -> 0 | BD105: =OpCo1!BD330 -> 0 | BE105: =OpCo1!BE330 -> 0 | BF105: =OpCo1!BF330 -> 0 | BG105: =OpCo1!BG330 -> 0 | BH105: =OpCo1!BH330 -> 0 | BI105: =OpCo1!BI330 -> 0 | BJ105: =OpCo1!BJ330 -> 0 | BK105: =OpCo1!BK330 -> 0 | BL105: =OpCo1!BL330 -> 0 | BM105: =OpCo1!BM330 -> 0 | BN105: =OpCo1!BN330 -> 0 | BO105: =OpCo1!BO330 -> 0 | BP105: =OpCo1!BP330 -> 0 | BQ105: =OpCo1!BQ330 -> 0 | BR105: =OpCo1!BR330 -> 0 | BS105: =OpCo1!BS330 -> 0 | BT105: =OpCo1!BT330 -> 0
D106: I/C Sales | F106: £000 | G106: =IF($I$4,SYS_Admin!$D$117,SYS_Admin!$D$116) -> Nominal | M106: =OpCo1!M491 -> 0 | N106: =OpCo1!N491 -> 0 | O106: =OpCo1!O491 -> 0 | P106: =OpCo1!P491 -> 0 | Q106: =OpCo1!Q491 -> 0 | R106: =OpCo1!R491 -> 0 | S106: =OpCo1!S491 -> 0 | T106: =OpCo1!T491 -> 0 | U106: =OpCo1!U491 -> 0 | V106: =OpCo1!V491 -> 0 | W106: =OpCo1!W491 -> 0 | X106: =OpCo1!X491 -> 0 | Y106: =OpCo1!Y491 -> 0 | Z106: =OpCo1!Z491 -> 0 | AA106: =OpCo1!AA491 -> 0 | AB106: =OpCo1!AB491 -> 0 | AC106: =OpCo1!AC491 -> 0 | AD106: =OpCo1!AD491 -> 0 | AE106: =OpCo1!AE491 -> 0 | AF106: =OpCo1!AF491 -> 0 | AG106: =OpCo1!AG491 -> 0 | AH106: =OpCo1!AH491 -> 0 | AI106: =OpCo1!AI491 -> 0 | AJ106: =OpCo1!AJ491 -> 0 | AK106: =OpCo1!AK491 -> 0 | AL106: =OpCo1!AL491 -> 0 | AM106: =OpCo1!AM491 -> 0 | AN106: =OpCo1!AN491 -> 0 | AO106: =OpCo1!AO491 -> 0 | AP106: =OpCo1!AP491 -> 0 | AQ106: =OpCo1!AQ491 -> 0 | AR106: =OpCo1!AR491 -> 0 | AS106: =OpCo1!AS491 -> 0 | AT106: =OpCo1!AT491 -> 0 | AU106: =OpCo1!AU491 -> 0 | AV106: =OpCo1!AV491 -> 0 | AW106: =OpCo1!AW491 -> 0 | AX106: =OpCo1!AX491 -> 0 | AY106: =OpCo1!AY491 -> 0 | AZ106: =OpCo1!AZ491 -> 0 | BA106: =OpCo1!BA491 -> 0 | BB106: =OpCo1!BB491 -> 0 | BC106: =OpCo1!BC491 -> 0 | BD106: =OpCo1!BD491 -> 0 | BE106: =OpCo1!BE491 -> 0 | BF106: =OpCo1!BF491 -> 0 | BG106: =OpCo1!BG491 -> 0 | BH106: =OpCo1!BH491 -> 0 | BI106: =OpCo1!BI491 -> 0 | BJ106: =OpCo1!BJ491 -> 0 | BK106: =OpCo1!BK491 -> 0 | BL106: =OpCo1!BL491 -> 0 | BM106: =OpCo1!BM491 -> 0 | BN106: =OpCo1!BN491 -> 0 | BO106: =OpCo1!BO491 -> 0 | BP106: =OpCo1!BP491 -> 0 | BQ106: =OpCo1!BQ491 -> 0 | BR106: =OpCo1!BR491 -> 0 | BS106: =OpCo1!BS491 -> 0 | BT106: =OpCo1!BT491 -> 0
D107: Sale of assets to lessor | F107: £000 | G107: =IF($I$4,SYS_Admin!$D$117,SYS_Admin!$D$116) -> Nominal | M107: =OpCo1!M1183 -> 0 | N107: =OpCo1!N1183 -> 0 | O107: =OpCo1!O1183 -> 0 | P107: =OpCo1!P1183 -> 0 | Q107: =OpCo1!Q1183 -> 0 | R107: =OpCo1!R1183 -> 0 | S107: =OpCo1!S1183 -> 0 | T107: =OpCo1!T1183 -> 0 | U107: =OpCo1!U1183 -> 0 | V107: =OpCo1!V1183 -> 0 | W107: =OpCo1!W1183 -> 0 | X107: =OpCo1!X1183 -> 0 | Y107: =OpCo1!Y1183 -> 0 | Z107: =OpCo1!Z1183 -> 0 | AA107: =OpCo1!AA1183 -> 0 | AB107: =OpCo1!AB1183 -> 0 | AC107: =OpCo1!AC1183 -> 0 | AD107: =OpCo1!AD1183 -> 0 | AE107: =OpCo1!AE1183 -> 0 | AF107: =OpCo1!AF1183 -> 0 | AG107: =OpCo1!AG1183 -> 0 | AH107: =OpCo1!AH1183 -> 0 | AI107: =OpCo1!AI1183 -> 0 | AJ107: =OpCo1!AJ1183 -> 0 | AK107: =OpCo1!AK1183 -> 0 | AL107: =OpCo1!AL1183 -> 0 | AM107: =OpCo1!AM1183 -> 0 | AN107: =OpCo1!AN1183 -> 0 | AO107: =OpCo1!AO1183 -> 0 | AP107: =OpCo1!AP1183 -> 0 | AQ107: =OpCo1!AQ1183 -> 0 | AR107: =OpCo1!AR1183 -> 0 | AS107: =OpCo1!AS1183 -> 0 | AT107: =OpCo1!AT1183 -> 0 | AU107: =OpCo1!AU1183 -> 0 | AV107: =OpCo1!AV1183 -> 0 | AW107: =OpCo1!AW1183 -> 0 | AX107: =OpCo1!AX1183 -> 0 | AY107: =OpCo1!AY1183 -> 0 | AZ107: =OpCo1!AZ1183 -> 0 | BA107: =OpCo1!BA1183 -> 0 | BB107: =OpCo1!BB1183 -> 0 | BC107: =OpCo1!BC1183 -> 0 | BD107: =OpCo1!BD1183 -> 0 | BE107: =OpCo1!BE1183 -> 0 | BF107: =OpCo1!BF1183 -> 0 | BG107: =OpCo1!BG1183 -> 0 | BH107: =OpCo1!BH1183 -> 0 | BI107: =OpCo1!BI1183 -> 0 | BJ107: =OpCo1!BJ1183 -> 0 | BK107: =OpCo1!BK1183 -> 0 | BL107: =OpCo1!BL1183 -> 0 | BM107: =OpCo1!BM1183 -> 0 | BN107: =OpCo1!BN1183 -> 0 | BO107: =OpCo1!BO1183 -> 0 | BP107: =OpCo1!BP1183 -> 0 | BQ107: =OpCo1!BQ1183 -> 0 | BR107: =OpCo1!BR1183 -> 0 | BS107: =OpCo1!BS1183 -> 0 | BT107: =OpCo1!BT1183 -> 0
D108: Other income | F108: £000 | G108: =IF($I$4,SYS_Admin!$D$117,SYS_Admin!$D$116) -> Nominal | M108: =OpCo1!M388 -> 0 | N108: =OpCo1!N388 -> 0 | O108: =OpCo1!O388 -> 0 | P108: =OpCo1!P388 -> 0 | Q108: =OpCo1!Q388 -> 0 | R108: =OpCo1!R388 -> 0 | S108: =OpCo1!S388 -> 0 | T108: =OpCo1!T388 -> 0 | U108: =OpCo1!U388 -> 0 | V108: =OpCo1!V388 -> 0 | W108: =OpCo1!W388 -> 0 | X108: =OpCo1!X388 -> 0 | Y108: =OpCo1!Y388 -> 0 | Z108: =OpCo1!Z388 -> 0 | AA108: =OpCo1!AA388 -> 0 | AB108: =OpCo1!AB388 -> 0 | AC108: =OpCo1!AC388 -> 0 | AD108: =OpCo1!AD388 -> 0 | AE108: =OpCo1!AE388 -> 0 | AF108: =OpCo1!AF388 -> 0 | AG108: =OpCo1!AG388 -> 0 | AH108: =OpCo1!AH388 -> 0 | AI108: =OpCo1!AI388 -> 0 | AJ108: =OpCo1!AJ388 -> 0 | AK108: =OpCo1!AK388 -> 0 | AL108: =OpCo1!AL388 -> 0 | AM108: =OpCo1!AM388 -> 0 | AN108: =OpCo1!AN388 -> 0 | AO108: =OpCo1!AO388 -> 0 | AP108: =OpCo1!AP388 -> 0 | AQ108: =OpCo1!AQ388 -> 0 | AR108: =OpCo1!AR388 -> 0 | AS108: =OpCo1!AS388 -> 0 | AT108: =OpCo1!AT388 -> 0 | AU108: =OpCo1!AU388 -> 0 | AV108: =OpCo1!AV388 -> 0 | AW108: =OpCo1!AW388 -> 0 | AX108: =OpCo1!AX388 -> 0 | AY108: =OpCo1!AY388 -> 0 | AZ108: =OpCo1!AZ388 -> 0 | BA108: =OpCo1!BA388 -> 0 | BB108: =OpCo1!BB388 -> 0 | BC108: =OpCo1!BC388 -> 0 | BD108: =OpCo1!BD388 -> 0 | BE108: =OpCo1!BE388 -> 0 | BF108: =OpCo1!BF388 -> 0 | BG108: =OpCo1!BG388 -> 0 | BH108: =OpCo1!BH388 -> 0 | BI108: =OpCo1!BI388 -> 0 | BJ108: =OpCo1!BJ388 -> 0 | BK108: =OpCo1!BK388 -> 0 | BL108: =OpCo1!BL388 -> 0 | BM108: =OpCo1!BM388 -> 0 | BN108: =OpCo1!BN388 -> 0 | BO108: =OpCo1!BO388 -> 0 | BP108: =OpCo1!BP388 -> 0 | BQ108: =OpCo1!BQ388 -> 0 | BR108: =OpCo1!BR388 -> 0 | BS108: =OpCo1!BS388 -> 0 | BT108: =OpCo1!BT388 -> 0
D109: VAT receivable from customers | F109: £000 | G109: =IF($I$4,SYS_Admin!$D$117,SYS_Admin!$D$116) -> Nominal | M109: =OpCo1!M2824 -> 0 | N109: =OpCo1!N2824 -> 0 | O109: =OpCo1!O2824 -> 0 | P109: =OpCo1!P2824 -> 0 | Q109: =OpCo1!Q2824 -> 0 | R109: =OpCo1!R2824 -> 0 | S109: =OpCo1!S2824 -> 0 | T109: =OpCo1!T2824 -> 0 | U109: =OpCo1!U2824 -> 0 | V109: =OpCo1!V2824 -> 0 | W109: =OpCo1!W2824 -> 0 | X109: =OpCo1!X2824 -> 0 | Y109: =OpCo1!Y2824 -> 0 | Z109: =OpCo1!Z2824 -> 0 | AA109: =OpCo1!AA2824 -> 0 | AB109: =OpCo1!AB2824 -> 0 | AC109: =OpCo1!AC2824 -> 0 | AD109: =OpCo1!AD2824 -> 0 | AE109: =OpCo1!AE2824 -> 0 | AF109: =OpCo1!AF2824 -> 0 | AG109: =OpCo1!AG2824 -> 0 | AH109: =OpCo1!AH2824 -> 0 | AI109: =OpCo1!AI2824 -> 0 | AJ109: =OpCo1!AJ2824 -> 0 | AK109: =OpCo1!AK2824 -> 0 | AL109: =OpCo1!AL2824 -> 0 | AM109: =OpCo1!AM2824 -> 0 | AN109: =OpCo1!AN2824 -> 0 | AO109: =OpCo1!AO2824 -> 0 | AP109: =OpCo1!AP2824 -> 0 | AQ109: =OpCo1!AQ2824 -> 0 | AR109: =OpCo1!AR2824 -> 0 | AS109: =OpCo1!AS2824 -> 0 | AT109: =OpCo1!AT2824 -> 0 | AU109: =OpCo1!AU2824 -> 0 | AV109: =OpCo1!AV2824 -> 0 | AW109: =OpCo1!AW2824 -> 0 | AX109: =OpCo1!AX2824 -> 0 | AY109: =OpCo1!AY2824 -> 0 | AZ109: =OpCo1!AZ2824 -> 0 | BA109: =OpCo1!BA2824 -> 0 | BB109: =OpCo1!BB2824 -> 0 | BC109: =OpCo1!BC2824 -> 0 | BD109: =OpCo1!BD2824 -> 0 | BE109: =OpCo1!BE2824 -> 0 | BF109: =OpCo1!BF2824 -> 0 | BG109: =OpCo1!BG2824 -> 0 | BH109: =OpCo1!BH2824 -> 0 | BI109: =OpCo1!BI2824 -> 0 | BJ109: =OpCo1!BJ2824 -> 0 | BK109: =OpCo1!BK2824 -> 0 | BL109: =OpCo1!BL2824 -> 0 | BM109: =OpCo1!BM2824 -> 0 | BN109: =OpCo1!BN2824 -> 0 | BO109: =OpCo1!BO2824 -> 0 | BP109: =OpCo1!BP2824 -> 0 | BQ109: =OpCo1!BQ2824 -> 0 | BR109: =OpCo1!BR2824 -> 0 | BS109: =OpCo1!BS2824 -> 0 | BT109: =OpCo1!BT2824 -> 0
D110: VAT receivable from HMRC | F110: £000 | G110: =IF($I$4,SYS_Admin!$D$117,SYS_Admin!$D$116) -> Nominal | M110: =IF(OpCo1!M2810>0,OpCo1!M2810,0) -> 0 | N110: =IF(OpCo1!N2810>0,OpCo1!N2810,0) -> 0 | O110: =IF(OpCo1!O2810>0,OpCo1!O2810,0) -> 0 | P110: =IF(OpCo1!P2810>0,OpCo1!P2810,0) -> 0 | Q110: =IF(OpCo1!Q2810>0,OpCo1!Q2810,0) -> 0 | R110: =IF(OpCo1!R2810>0,OpCo1!R2810,0) -> 0 | S110: =IF(OpCo1!S2810>0,OpCo1!S2810,0) -> 0 | T110: =IF(OpCo1!T2810>0,OpCo1!T2810,0) -> 0 | U110: =IF(OpCo1!U2810>0,OpCo1!U2810,0) -> 0 | V110: =IF(OpCo1!V2810>0,OpCo1!V2810,0) -> 0 | W110: =IF(OpCo1!W2810>0,OpCo1!W2810,0) -> 0 | X110: =IF(OpCo1!X2810>0,OpCo1!X2810,0) -> 0 | Y110: =IF(OpCo1!Y2810>0,OpCo1!Y2810,0) -> 0 | Z110: =IF(OpCo1!Z2810>0,OpCo1!Z2810,0) -> 0 | AA110: =IF(OpCo1!AA2810>0,OpCo1!AA2810,0) -> 0 | AB110: =IF(OpCo1!AB2810>0,OpCo1!AB2810,0) -> 0 | AC110: =IF(OpCo1!AC2810>0,OpCo1!AC2810,0) -> 0 | AD110: =IF(OpCo1!AD2810>0,OpCo1!AD2810,0) -> 0 | AE110: =IF(OpCo1!AE2810>0,OpCo1!AE2810,0) -> 0 | AF110: =IF(OpCo1!AF2810>0,OpCo1!AF2810,0) -> 0 | AG110: =IF(OpCo1!AG2810>0,OpCo1!AG2810,0) -> 0 | AH110: =IF(OpCo1!AH2810>0,OpCo1!AH2810,0) -> 0 | AI110: =IF(OpCo1!AI2810>0,OpCo1!AI2810,0) -> 0 | AJ110: =IF(OpCo1!AJ2810>0,OpCo1!AJ2810,0) -> 0 | AK110: =IF(OpCo1!AK2810>0,OpCo1!AK2810,0) -> 0 | AL110: =IF(OpCo1!AL2810>0,OpCo1!AL2810,0) -> 0 | AM110: =IF(OpCo1!AM2810>0,OpCo1!AM2810,0) -> 0 | AN110: =IF(OpCo1!AN2810>0,OpCo1!AN2810,0) -> 0 | AO110: =IF(OpCo1!AO2810>0,OpCo1!AO2810,0) -> 0 | AP110: =IF(OpCo1!AP2810>0,OpCo1!AP2810,0) -> 0 | AQ110: =IF(OpCo1!AQ2810>0,OpCo1!AQ2810,0) -> 0 | AR110: =IF(OpCo1!AR2810>0,OpCo1!AR2810,0) -> 0 | AS110: =IF(OpCo1!AS2810>0,OpCo1!AS2810,0) -> 0 | AT110: =IF(OpCo1!AT2810>0,OpCo1!AT2810,0) -> 0 | AU110: =IF(OpCo1!AU2810>0,OpCo1!AU2810,0) -> 0 | AV110: =IF(OpCo1!AV2810>0,OpCo1!AV2810,0) -> 0 | AW110: =IF(OpCo1!AW2810>0,OpCo1!AW2810,0) -> 0 | AX110: =IF(OpCo1!AX2810>0,OpCo1!AX2810,0) -> 0 | AY110: =IF(OpCo1!AY2810>0,OpCo1!AY2810,0) -> 0 | AZ110: =IF(OpCo1!AZ2810>0,OpCo1!AZ2810,0) -> 0 | BA110: =IF(OpCo1!BA2810>0,OpCo1!BA2810,0) -> 0 | BB110: =IF(OpCo1!BB2810>0,OpCo1!BB2810,0) -> 0 | BC110: =IF(OpCo1!BC2810>0,OpCo1!BC2810,0) -> 0 | BD110: =IF(OpCo1!BD2810>0,OpCo1!BD2810,0) -> 0 | BE110: =IF(OpCo1!BE2810>0,OpCo1!BE2810,0) -> 0 | BF110: =IF(OpCo1!BF2810>0,OpCo1!BF2810,0) -> 0 | BG110: =IF(OpCo1!BG2810>0,OpCo1!BG2810,0) -> 0 | BH110: =IF(OpCo1!BH2810>0,OpCo1!BH2810,0) -> 0 | BI110: =IF(OpCo1!BI2810>0,OpCo1!BI2810,0) -> 0 | BJ110: =IF(OpCo1!BJ2810>0,OpCo1!BJ2810,0) -> 0 | BK110: =IF(OpCo1!BK2810>0,OpCo1!BK2810,0) -> 0 | BL110: =IF(OpCo1!BL2810>0,OpCo1!BL2810,0) -> 0 | BM110: =IF(OpCo1!BM2810>0,OpCo1!BM2810,0) -> 0 | BN110: =IF(OpCo1!BN2810>0,OpCo1!BN2810,0) -> 0 | BO110: =IF(OpCo1!BO2810>0,OpCo1!BO2810,0) -> 0 | BP110: =IF(OpCo1!BP2810>0,OpCo1!BP2810,0) -> 0 | BQ110: =IF(OpCo1!BQ2810>0,OpCo1!BQ2810,0) -> 0 | BR110: =IF(OpCo1!BR2810>0,OpCo1!BR2810,0) -> 0 | BS110: =IF(OpCo1!BS2810>0,OpCo1!BS2810,0) -> 0 | BT110: =IF(OpCo1!BT2810>0,OpCo1!BT2810,0) -> 0
D112: Free cash | F112: £000 | G112: =IF($I$4,SYS_Admin!$D$117,SYS_Admin!$D$116) -> Nominal | M112: =M216 -> 0 | N112: =N216 -> 0 | O112: 0 | P112: 0 | Q112: 0 | R112: 0 | S112: 0 | T112: 0 | U112: 0 | V112: 0 | W112: 0 | X112: 0 | Y112: 0 | Z112: 0 | AA112: 0 | AB112: 0 | AC112: 0 | AD112: 0 | AE112: 0 | AF112: 0 | AG112: 0 | AH112: 0 | AI112: 0 | AJ112: 0 | AK112: 0 | AL112: 0 | AM112: 0 | AN112: 0 | AO112: 0 | AP112: 0 | AQ112: 0 | AR112: 0 | AS112: 0 | AT112: 0 | AU112: 0 | AV112: 0 | AW112: 0 | AX112: 0 | AY112: 0 | AZ112: 0 | BA112: 0 | BB112: 0 | BC112: 0 | BD112: 0 | BE112: 0 | BF112: 0 | BG112: 0 | BH112: 0 | BI112: 0 | BJ112: 0 | BK112: 0 | BL112: 0 | BM112: 0 | BN112: 0 | BO112: 0 | BP112: 0 | BQ112: 0 | BR112: 0 | BS112: 0 | BT112: 0
D113: Restricted cash | F113: £000 | G113: =IF($I$4,SYS_Admin!$D$117,SYS_Admin!$D$116) -> Nominal | M113: =M221 -> 0 | N113: =N221 -> 0 | O113: 0 | P113: 0 | Q113: 0 | R113: 0 | S113: 0 | T113: 0 | U113: 0 | V113: 0 | W113: 0 | X113: 0 | Y113: 0 | Z113: 0 | AA113: 0 | AB113: 0 | AC113: 0 | AD113: 0 | AE113: 0 | AF113: 0 | AG113: 0 | AH113: 0 | AI113: 0 | AJ113: 0 | AK113: 0 | AL113: 0 | AM113: 0 | AN113: 0 | AO113: 0 | AP113: 0 | AQ113: 0 | AR113: 0 | AS113: 0 | AT113: 0 | AU113: 0 | AV113: 0 | AW113: 0 | AX113: 0 | AY113: 0 | AZ113: 0 | BA113: 0 | BB113: 0 | BC113: 0 | BD113: 0 | BE113: 0 | BF113: 0 | BG113: 0 | BH113: 0 | BI113: 0 | BJ113: 0 | BK113: 0 | BL113: 0 | BM113: 0 | BN113: 0 | BO113: 0 | BP113: 0 | BQ113: 0 | BR113: 0 | BS113: 0 | BT113: 0
D114: Short term assets | F114: £000 | G114: =IF($I$4,SYS_Admin!$D$117,SYS_Admin!$D$116) -> Nominal | M114: =SUM(M102,M112:M113) -> 0 | N114: =SUM(N102,N112:N113) -> 0 | O114: 0 | P114: 0 | Q114: 0 | R114: 0 | S114: 0 | T114: 0 | U114: 0 | V114: 0 | W114: 0 | X114: 0 | Y114: 0 | Z114: 0 | AA114: 0 | AB114: 0 | AC114: 0 | AD114: 0 | AE114: 0 | AF114: 0 | AG114: 0 | AH114: 0 | AI114: 0 | AJ114: 0 | AK114: 0 | AL114: 0 | AM114: 0 | AN114: 0 | AO114: 0 | AP114: 0 | AQ114: 0 | AR114: 0 | AS114: 0 | AT114: 0 | AU114: 0 | AV114: 0 | AW114: 0 | AX114: 0 | AY114: 0 | AZ114: 0 | BA114: 0 | BB114: 0 | BC114: 0 | BD114: 0 | BE114: 0 | BF114: 0 | BG114: 0 | BH114: 0 | BI114: 0 | BJ114: 0 | BK114: 0 | BL114: 0 | BM114: 0 | BN114: 0 | BO114: 0 | BP114: 0 | BQ114: 0 | BR114: 0 | BS114: 0 | BT114: 0
D116: CURRENT LIABILITIES
D118: Trade payables | F118: £000 | G118: =IF($I$4,SYS_Admin!$D$117,SYS_Admin!$D$116) -> Nominal | M118: =SUM(M119:M136) -> 0 | N118: =SUM(N119:N136) -> 0 | O118: 0 | P118: 0 | Q118: 0 | R118: 0 | S118: 0 | T118: 0 | U118: 0 | V118: 0 | W118: 0 | X118: 0 | Y118: 0 | Z118: 0 | AA118: 0 | AB118: 0 | AC118: 0 | AD118: 0 | AE118: 0 | AF118: 0 | AG118: 0 | AH118: 0 | AI118: 0 | AJ118: 0 | AK118: 0 | AL118: 0 | AM118: 0 | AN118: 0 | AO118: 0 | AP118: 0 | AQ118: 0 | AR118: 0 | AS118: 0 | AT118: 0 | AU118: 0 | AV118: 0 | AW118: 0 | AX118: 0 | AY118: 0 | AZ118: 0 | BA118: 0 | BB118: 0 | BC118: 0 | BD118: 0 | BE118: 0 | BF118: 0 | BG118: 0 | BH118: 0 | BI118: 0 | BJ118: 0 | BK118: 0 | BL118: 0 | BM118: 0 | BN118: 0 | BO118: 0 | BP118: 0 | BQ118: 0 | BR118: 0 | BS118: 0 | BT118: 0
D119: Purchase of fixed assets | F119: £000 | G119: =IF($I$4,SYS_Admin!$D$117,SYS_Admin!$D$116) -> Nominal | M119: =OpCo1!M181 -> 0 | N119: =OpCo1!N181 -> 0 | O119: =OpCo1!O181 -> 0 | P119: =OpCo1!P181 -> 0 | Q119: =OpCo1!Q181 -> 0 | R119: =OpCo1!R181 -> 0 | S119: =OpCo1!S181 -> 0 | T119: =OpCo1!T181 -> 0 | U119: =OpCo1!U181 -> 0 | V119: =OpCo1!V181 -> 0 | W119: =OpCo1!W181 -> 0 | X119: =OpCo1!X181 -> 0 | Y119: =OpCo1!Y181 -> 0 | Z119: =OpCo1!Z181 -> 0 | AA119: =OpCo1!AA181 -> 0 | AB119: =OpCo1!AB181 -> 0 | AC119: =OpCo1!AC181 -> 0 | AD119: =OpCo1!AD181 -> 0 | AE119: =OpCo1!AE181 -> 0 | AF119: =OpCo1!AF181 -> 0 | AG119: =OpCo1!AG181 -> 0 | AH119: =OpCo1!AH181 -> 0 | AI119: =OpCo1!AI181 -> 0 | AJ119: =OpCo1!AJ181 -> 0 | AK119: =OpCo1!AK181 -> 0 | AL119: =OpCo1!AL181 -> 0 | AM119: =OpCo1!AM181 -> 0 | AN119: =OpCo1!AN181 -> 0 | AO119: =OpCo1!AO181 -> 0 | AP119: =OpCo1!AP181 -> 0 | AQ119: =OpCo1!AQ181 -> 0 | AR119: =OpCo1!AR181 -> 0 | AS119: =OpCo1!AS181 -> 0 | AT119: =OpCo1!AT181 -> 0 | AU119: =OpCo1!AU181 -> 0 | AV119: =OpCo1!AV181 -> 0 | AW119: =OpCo1!AW181 -> 0 | AX119: =OpCo1!AX181 -> 0 | AY119: =OpCo1!AY181 -> 0 | AZ119: =OpCo1!AZ181 -> 0 | BA119: =OpCo1!BA181 -> 0 | BB119: =OpCo1!BB181 -> 0 | BC119: =OpCo1!BC181 -> 0 | BD119: =OpCo1!BD181 -> 0 | BE119: =OpCo1!BE181 -> 0 | BF119: =OpCo1!BF181 -> 0 | BG119: =OpCo1!BG181 -> 0 | BH119: =OpCo1!BH181 -> 0 | BI119: =OpCo1!BI181 -> 0 | BJ119: =OpCo1!BJ181 -> 0 | BK119: =OpCo1!BK181 -> 0 | BL119: =OpCo1!BL181 -> 0 | BM119: =OpCo1!BM181 -> 0 | BN119: =OpCo1!BN181 -> 0 | BO119: =OpCo1!BO181 -> 0 | BP119: =OpCo1!BP181 -> 0 | BQ119: =OpCo1!BQ181 -> 0 | BR119: =OpCo1!BR181 -> 0 | BS119: =OpCo1!BS181 -> 0 | BT119: =OpCo1!BT181 -> 0
D120: Irrecoverable VAT on fixed assets payable | F120: £000 | G120: =IF($I$4,SYS_Admin!$D$117,SYS_Admin!$D$116) -> Nominal | M120: =OpCo1!M2874 -> 0 | N120: =OpCo1!N2874 -> 0 | O120: =OpCo1!O2874 -> 0 | P120: =OpCo1!P2874 -> 0 | Q120: =OpCo1!Q2874 -> 0 | R120: =OpCo1!R2874 -> 0 | S120: =OpCo1!S2874 -> 0 | T120: =OpCo1!T2874 -> 0 | U120: =OpCo1!U2874 -> 0 | V120: =OpCo1!V2874 -> 0 | W120: =OpCo1!W2874 -> 0 | X120: =OpCo1!X2874 -> 0 | Y120: =OpCo1!Y2874 -> 0 | Z120: =OpCo1!Z2874 -> 0 | AA120: =OpCo1!AA2874 -> 0 | AB120: =OpCo1!AB2874 -> 0 | AC120: =OpCo1!AC2874 -> 0 | AD120: =OpCo1!AD2874 -> 0 | AE120: =OpCo1!AE2874 -> 0 | AF120: =OpCo1!AF2874 -> 0 | AG120: =OpCo1!AG2874 -> 0 | AH120: =OpCo1!AH2874 -> 0 | AI120: =OpCo1!AI2874 -> 0 | AJ120: =OpCo1!AJ2874 -> 0 | AK120: =OpCo1!AK2874 -> 0 | AL120: =OpCo1!AL2874 -> 0 | AM120: =OpCo1!AM2874 -> 0 | AN120: =OpCo1!AN2874 -> 0 | AO120: =OpCo1!AO2874 -> 0 | AP120: =OpCo1!AP2874 -> 0 | AQ120: =OpCo1!AQ2874 -> 0 | AR120: =OpCo1!AR2874 -> 0 | AS120: =OpCo1!AS2874 -> 0 | AT120: =OpCo1!AT2874 -> 0 | AU120: =OpCo1!AU2874 -> 0 | AV120: =OpCo1!AV2874 -> 0 | AW120: =OpCo1!AW2874 -> 0 | AX120: =OpCo1!AX2874 -> 0 | AY120: =OpCo1!AY2874 -> 0 | AZ120: =OpCo1!AZ2874 -> 0 | BA120: =OpCo1!BA2874 -> 0 | BB120: =OpCo1!BB2874 -> 0 | BC120: =OpCo1!BC2874 -> 0 | BD120: =OpCo1!BD2874 -> 0 | BE120: =OpCo1!BE2874 -> 0 | BF120: =OpCo1!BF2874 -> 0 | BG120: =OpCo1!BG2874 -> 0 | BH120: =OpCo1!BH2874 -> 0 | BI120: =OpCo1!BI2874 -> 0 | BJ120: =OpCo1!BJ2874 -> 0 | BK120: =OpCo1!BK2874 -> 0 | BL120: =OpCo1!BL2874 -> 0 | BM120: =OpCo1!BM2874 -> 0 | BN120: =OpCo1!BN2874 -> 0 | BO120: =OpCo1!BO2874 -> 0 | BP120: =OpCo1!BP2874 -> 0 | BQ120: =OpCo1!BQ2874 -> 0 | BR120: =OpCo1!BR2874 -> 0 | BS120: =OpCo1!BS2874 -> 0 | BT120: =OpCo1!BT2874 -> 0
D121: Adjustment for leased assets | F121: £000 | G121: =IF($I$4,SYS_Admin!$D$117,SYS_Admin!$D$116) -> Nominal | M121: =OpCo1!M1206 -> 0 | N121: =OpCo1!N1206 -> 0 | O121: =OpCo1!O1206 -> 0 | P121: =OpCo1!P1206 -> 0 | Q121: =OpCo1!Q1206 -> 0 | R121: =OpCo1!R1206 -> 0 | S121: =OpCo1!S1206 -> 0 | T121: =OpCo1!T1206 -> 0 | U121: =OpCo1!U1206 -> 0 | V121: =OpCo1!V1206 -> 0 | W121: =OpCo1!W1206 -> 0 | X121: =OpCo1!X1206 -> 0 | Y121: =OpCo1!Y1206 -> 0 | Z121: =OpCo1!Z1206 -> 0 | AA121: =OpCo1!AA1206 -> 0 | AB121: =OpCo1!AB1206 -> 0 | AC121: =OpCo1!AC1206 -> 0 | AD121: =OpCo1!AD1206 -> 0 | AE121: =OpCo1!AE1206 -> 0 | AF121: =OpCo1!AF1206 -> 0 | AG121: =OpCo1!AG1206 -> 0 | AH121: =OpCo1!AH1206 -> 0 | AI121: =OpCo1!AI1206 -> 0 | AJ121: =OpCo1!AJ1206 -> 0 | AK121: =OpCo1!AK1206 -> 0 | AL121: =OpCo1!AL1206 -> 0 | AM121: =OpCo1!AM1206 -> 0 | AN121: =OpCo1!AN1206 -> 0 | AO121: =OpCo1!AO1206 -> 0 | AP121: =OpCo1!AP1206 -> 0 | AQ121: =OpCo1!AQ1206 -> 0 | AR121: =OpCo1!AR1206 -> 0 | AS121: =OpCo1!AS1206 -> 0 | AT121: =OpCo1!AT1206 -> 0 | AU121: =OpCo1!AU1206 -> 0 | AV121: =OpCo1!AV1206 -> 0 | AW121: =OpCo1!AW1206 -> 0 | AX121: =OpCo1!AX1206 -> 0 | AY121: =OpCo1!AY1206 -> 0 | AZ121: =OpCo1!AZ1206 -> 0 | BA121: =OpCo1!BA1206 -> 0 | BB121: =OpCo1!BB1206 -> 0 | BC121: =OpCo1!BC1206 -> 0 | BD121: =OpCo1!BD1206 -> 0 | BE121: =OpCo1!BE1206 -> 0 | BF121: =OpCo1!BF1206 -> 0 | BG121: =OpCo1!BG1206 -> 0 | BH121: =OpCo1!BH1206 -> 0 | BI121: =OpCo1!BI1206 -> 0 | BJ121: =OpCo1!BJ1206 -> 0 | BK121: =OpCo1!BK1206 -> 0 | BL121: =OpCo1!BL1206 -> 0 | BM121: =OpCo1!BM1206 -> 0 | BN121: =OpCo1!BN1206 -> 0 | BO121: =OpCo1!BO1206 -> 0 | BP121: =OpCo1!BP1206 -> 0 | BQ121: =OpCo1!BQ1206 -> 0 | BR121: =OpCo1!BR1206 -> 0 | BS121: =OpCo1!BS1206 -> 0 | BT121: =OpCo1!BT1206 -> 0
D122: O&M | F122: £000 | G122: =IF($I$4,SYS_Admin!$D$117,SYS_Admin!$D$116) -> Nominal | M122: =OpCo1!M195 -> 0 | N122: =OpCo1!N195 -> 0 | O122: =OpCo1!O195 -> 0 | P122: =OpCo1!P195 -> 0 | Q122: =OpCo1!Q195 -> 0 | R122: =OpCo1!R195 -> 0 | S122: =OpCo1!S195 -> 0 | T122: =OpCo1!T195 -> 0 | U122: =OpCo1!U195 -> 0 | V122: =OpCo1!V195 -> 0 | W122: =OpCo1!W195 -> 0 | X122: =OpCo1!X195 -> 0 | Y122: =OpCo1!Y195 -> 0 | Z122: =OpCo1!Z195 -> 0 | AA122: =OpCo1!AA195 -> 0 | AB122: =OpCo1!AB195 -> 0 | AC122: =OpCo1!AC195 -> 0 | AD122: =OpCo1!AD195 -> 0 | AE122: =OpCo1!AE195 -> 0 | AF122: =OpCo1!AF195 -> 0 | AG122: =OpCo1!AG195 -> 0 | AH122: =OpCo1!AH195 -> 0 | AI122: =OpCo1!AI195 -> 0 | AJ122: =OpCo1!AJ195 -> 0 | AK122: =OpCo1!AK195 -> 0 | AL122: =OpCo1!AL195 -> 0 | AM122: =OpCo1!AM195 -> 0 | AN122: =OpCo1!AN195 -> 0 | AO122: =OpCo1!AO195 -> 0 | AP122: =OpCo1!AP195 -> 0 | AQ122: =OpCo1!AQ195 -> 0 | AR122: =OpCo1!AR195 -> 0 | AS122: =OpCo1!AS195 -> 0 | AT122: =OpCo1!AT195 -> 0 | AU122: =OpCo1!AU195 -> 0 | AV122: =OpCo1!AV195 -> 0 | AW122: =OpCo1!AW195 -> 0 | AX122: =OpCo1!AX195 -> 0 | AY122: =OpCo1!AY195 -> 0 | AZ122: =OpCo1!AZ195 -> 0 | BA122: =OpCo1!BA195 -> 0 | BB122: =OpCo1!BB195 -> 0 | BC122: =OpCo1!BC195 -> 0 | BD122: =OpCo1!BD195 -> 0 | BE122: =OpCo1!BE195 -> 0 | BF122: =OpCo1!BF195 -> 0 | BG122: =OpCo1!BG195 -> 0 | BH122: =OpCo1!BH195 -> 0 | BI122: =OpCo1!BI195 -> 0 | BJ122: =OpCo1!BJ195 -> 0 | BK122: =OpCo1!BK195 -> 0 | BL122: =OpCo1!BL195 -> 0 | BM122: =OpCo1!BM195 -> 0 | BN122: =OpCo1!BN195 -> 0 | BO122: =OpCo1!BO195 -> 0 | BP122: =OpCo1!BP195 -> 0 | BQ122: =OpCo1!BQ195 -> 0 | BR122: =OpCo1!BR195 -> 0 | BS122: =OpCo1!BS195 -> 0 | BT122: =OpCo1!BT195 -> 0
D123: Irrecoverable O&M VAT payable | F123: £000 | G123: =IF($I$4,SYS_Admin!$D$117,SYS_Admin!$D$116) -> Nominal | M123: =OpCo1!M2888 -> 0 | N123: =OpCo1!N2888 -> 0 | O123: =OpCo1!O2888 -> 0 | P123: =OpCo1!P2888 -> 0 | Q123: =OpCo1!Q2888 -> 0 | R123: =OpCo1!R2888 -> 0 | S123: =OpCo1!S2888 -> 0 | T123: =OpCo1!T2888 -> 0 | U123: =OpCo1!U2888 -> 0 | V123: =OpCo1!V2888 -> 0 | W123: =OpCo1!W2888 -> 0 | X123: =OpCo1!X2888 -> 0 | Y123: =OpCo1!Y2888 -> 0 | Z123: =OpCo1!Z2888 -> 0 | AA123: =OpCo1!AA2888 -> 0 | AB123: =OpCo1!AB2888 -> 0 | AC123: =OpCo1!AC2888 -> 0 | AD123: =OpCo1!AD2888 -> 0 | AE123: =OpCo1!AE2888 -> 0 | AF123: =OpCo1!AF2888 -> 0 | AG123: =OpCo1!AG2888 -> 0 | AH123: =OpCo1!AH2888 -> 0 | AI123: =OpCo1!AI2888 -> 0 | AJ123: =OpCo1!AJ2888 -> 0 | AK123: =OpCo1!AK2888 -> 0 | AL123: =OpCo1!AL2888 -> 0 | AM123: =OpCo1!AM2888 -> 0 | AN123: =OpCo1!AN2888 -> 0 | AO123: =OpCo1!AO2888 -> 0 | AP123: =OpCo1!AP2888 -> 0 | AQ123: =OpCo1!AQ2888 -> 0 | AR123: =OpCo1!AR2888 -> 0 | AS123: =OpCo1!AS2888 -> 0 | AT123: =OpCo1!AT2888 -> 0 | AU123: =OpCo1!AU2888 -> 0 | AV123: =OpCo1!AV2888 -> 0 | AW123: =OpCo1!AW2888 -> 0 | AX123: =OpCo1!AX2888 -> 0 | AY123: =OpCo1!AY2888 -> 0 | AZ123: =OpCo1!AZ2888 -> 0 | BA123: =OpCo1!BA2888 -> 0 | BB123: =OpCo1!BB2888 -> 0 | BC123: =OpCo1!BC2888 -> 0 | BD123: =OpCo1!BD2888 -> 0 | BE123: =OpCo1!BE2888 -> 0 | BF123: =OpCo1!BF2888 -> 0 | BG123: =OpCo1!BG2888 -> 0 | BH123: =OpCo1!BH2888 -> 0 | BI123: =OpCo1!BI2888 -> 0 | BJ123: =OpCo1!BJ2888 -> 0 | BK123: =OpCo1!BK2888 -> 0 | BL123: =OpCo1!BL2888 -> 0 | BM123: =OpCo1!BM2888 -> 0 | BN123: =OpCo1!BN2888 -> 0 | BO123: =OpCo1!BO2888 -> 0 | BP123: =OpCo1!BP2888 -> 0 | BQ123: =OpCo1!BQ2888 -> 0 | BR123: =OpCo1!BR2888 -> 0 | BS123: =OpCo1!BS2888 -> 0 | BT123: =OpCo1!BT2888 -> 0
D124: Fuel | F124: £000 | G124: =IF($I$4,SYS_Admin!$D$117,SYS_Admin!$D$116) -> Nominal | M124: =OpCo1!M209 -> 0 | N124: =OpCo1!N209 -> 0 | O124: =OpCo1!O209 -> 0 | P124: =OpCo1!P209 -> 0 | Q124: =OpCo1!Q209 -> 0 | R124: =OpCo1!R209 -> 0 | S124: =OpCo1!S209 -> 0 | T124: =OpCo1!T209 -> 0 | U124: =OpCo1!U209 -> 0 | V124: =OpCo1!V209 -> 0 | W124: =OpCo1!W209 -> 0 | X124: =OpCo1!X209 -> 0 | Y124: =OpCo1!Y209 -> 0 | Z124: =OpCo1!Z209 -> 0 | AA124: =OpCo1!AA209 -> 0 | AB124: =OpCo1!AB209 -> 0 | AC124: =OpCo1!AC209 -> 0 | AD124: =OpCo1!AD209 -> 0 | AE124: =OpCo1!AE209 -> 0 | AF124: =OpCo1!AF209 -> 0 | AG124: =OpCo1!AG209 -> 0 | AH124: =OpCo1!AH209 -> 0 | AI124: =OpCo1!AI209 -> 0 | AJ124: =OpCo1!AJ209 -> 0 | AK124: =OpCo1!AK209 -> 0 | AL124: =OpCo1!AL209 -> 0 | AM124: =OpCo1!AM209 -> 0 | AN124: =OpCo1!AN209 -> 0 | AO124: =OpCo1!AO209 -> 0 | AP124: =OpCo1!AP209 -> 0 | AQ124: =OpCo1!AQ209 -> 0 | AR124: =OpCo1!AR209 -> 0 | AS124: =OpCo1!AS209 -> 0 | AT124: =OpCo1!AT209 -> 0 | AU124: =OpCo1!AU209 -> 0 | AV124: =OpCo1!AV209 -> 0 | AW124: =OpCo1!AW209 -> 0 | AX124: =OpCo1!AX209 -> 0 | AY124: =OpCo1!AY209 -> 0 | AZ124: =OpCo1!AZ209 -> 0 | BA124: =OpCo1!BA209 -> 0 | BB124: =OpCo1!BB209 -> 0 | BC124: =OpCo1!BC209 -> 0 | BD124: =OpCo1!BD209 -> 0 | BE124: =OpCo1!BE209 -> 0 | BF124: =OpCo1!BF209 -> 0 | BG124: =OpCo1!BG209 -> 0 | BH124: =OpCo1!BH209 -> 0 | BI124: =OpCo1!BI209 -> 0 | BJ124: =OpCo1!BJ209 -> 0 | BK124: =OpCo1!BK209 -> 0 | BL124: =OpCo1!BL209 -> 0 | BM124: =OpCo1!BM209 -> 0 | BN124: =OpCo1!BN209 -> 0 | BO124: =OpCo1!BO209 -> 0 | BP124: =OpCo1!BP209 -> 0 | BQ124: =OpCo1!BQ209 -> 0 | BR124: =OpCo1!BR209 -> 0 | BS124: =OpCo1!BS209 -> 0 | BT124: =OpCo1!BT209 -> 0
D125: Irrecoverable Fuel VAT payable | F125: £000 | G125: =IF($I$4,SYS_Admin!$D$117,SYS_Admin!$D$116) -> Nominal | M125: =OpCo1!M2902 -> 0 | N125: =OpCo1!N2902 -> 0 | O125: =OpCo1!O2902 -> 0 | P125: =OpCo1!P2902 -> 0 | Q125: =OpCo1!Q2902 -> 0 | R125: =OpCo1!R2902 -> 0 | S125: =OpCo1!S2902 -> 0 | T125: =OpCo1!T2902 -> 0 | U125: =OpCo1!U2902 -> 0 | V125: =OpCo1!V2902 -> 0 | W125: =OpCo1!W2902 -> 0 | X125: =OpCo1!X2902 -> 0 | Y125: =OpCo1!Y2902 -> 0 | Z125: =OpCo1!Z2902 -> 0 | AA125: =OpCo1!AA2902 -> 0 | AB125: =OpCo1!AB2902 -> 0 | AC125: =OpCo1!AC2902 -> 0 | AD125: =OpCo1!AD2902 -> 0 | AE125: =OpCo1!AE2902 -> 0 | AF125: =OpCo1!AF2902 -> 0 | AG125: =OpCo1!AG2902 -> 0 | AH125: =OpCo1!AH2902 -> 0 | AI125: =OpCo1!AI2902 -> 0 | AJ125: =OpCo1!AJ2902 -> 0 | AK125: =OpCo1!AK2902 -> 0 | AL125: =OpCo1!AL2902 -> 0 | AM125: =OpCo1!AM2902 -> 0 | AN125: =OpCo1!AN2902 -> 0 | AO125: =OpCo1!AO2902 -> 0 | AP125: =OpCo1!AP2902 -> 0 | AQ125: =OpCo1!AQ2902 -> 0 | AR125: =OpCo1!AR2902 -> 0 | AS125: =OpCo1!AS2902 -> 0 | AT125: =OpCo1!AT2902 -> 0 | AU125: =OpCo1!AU2902 -> 0 | AV125: =OpCo1!AV2902 -> 0 | AW125: =OpCo1!AW2902 -> 0 | AX125: =OpCo1!AX2902 -> 0 | AY125: =OpCo1!AY2902 -> 0 | AZ125: =OpCo1!AZ2902 -> 0 | BA125: =OpCo1!BA2902 -> 0 | BB125: =OpCo1!BB2902 -> 0 | BC125: =OpCo1!BC2902 -> 0 | BD125: =OpCo1!BD2902 -> 0 | BE125: =OpCo1!BE2902 -> 0 | BF125: =OpCo1!BF2902 -> 0 | BG125: =OpCo1!BG2902 -> 0 | BH125: =OpCo1!BH2902 -> 0 | BI125: =OpCo1!BI2902 -> 0 | BJ125: =OpCo1!BJ2902 -> 0 | BK125: =OpCo1!BK2902 -> 0 | BL125: =OpCo1!BL2902 -> 0 | BM125: =OpCo1!BM2902 -> 0 | BN125: =OpCo1!BN2902 -> 0 | BO125: =OpCo1!BO2902 -> 0 | BP125: =OpCo1!BP2902 -> 0 | BQ125: =OpCo1!BQ2902 -> 0 | BR125: =OpCo1!BR2902 -> 0 | BS125: =OpCo1!BS2902 -> 0 | BT125: =OpCo1!BT2902 -> 0
D126: CCL | F126: £000 | G126: =IF($I$4,SYS_Admin!$D$117,SYS_Admin!$D$116) -> Nominal | M126: =OpCo1!M223 -> 0 | N126: =OpCo1!N223 -> 0 | O126: =OpCo1!O223 -> 0 | P126: =OpCo1!P223 -> 0 | Q126: =OpCo1!Q223 -> 0 | R126: =OpCo1!R223 -> 0 | S126: =OpCo1!S223 -> 0 | T126: =OpCo1!T223 -> 0 | U126: =OpCo1!U223 -> 0 | V126: =OpCo1!V223 -> 0 | W126: =OpCo1!W223 -> 0 | X126: =OpCo1!X223 -> 0 | Y126: =OpCo1!Y223 -> 0 | Z126: =OpCo1!Z223 -> 0 | AA126: =OpCo1!AA223 -> 0 | AB126: =OpCo1!AB223 -> 0 | AC126: =OpCo1!AC223 -> 0 | AD126: =OpCo1!AD223 -> 0 | AE126: =OpCo1!AE223 -> 0 | AF126: =OpCo1!AF223 -> 0 | AG126: =OpCo1!AG223 -> 0 | AH126: =OpCo1!AH223 -> 0 | AI126: =OpCo1!AI223 -> 0 | AJ126: =OpCo1!AJ223 -> 0 | AK126: =OpCo1!AK223 -> 0 | AL126: =OpCo1!AL223 -> 0 | AM126: =OpCo1!AM223 -> 0 | AN126: =OpCo1!AN223 -> 0 | AO126: =OpCo1!AO223 -> 0 | AP126: =OpCo1!AP223 -> 0 | AQ126: =OpCo1!AQ223 -> 0 | AR126: =OpCo1!AR223 -> 0 | AS126: =OpCo1!AS223 -> 0 | AT126: =OpCo1!AT223 -> 0 | AU126: =OpCo1!AU223 -> 0 | AV126: =OpCo1!AV223 -> 0 | AW126: =OpCo1!AW223 -> 0 | AX126: =OpCo1!AX223 -> 0 | AY126: =OpCo1!AY223 -> 0 | AZ126: =OpCo1!AZ223 -> 0 | BA126: =OpCo1!BA223 -> 0 | BB126: =OpCo1!BB223 -> 0 | BC126: =OpCo1!BC223 -> 0 | BD126: =OpCo1!BD223 -> 0 | BE126: =OpCo1!BE223 -> 0 | BF126: =OpCo1!BF223 -> 0 | BG126: =OpCo1!BG223 -> 0 | BH126: =OpCo1!BH223 -> 0 | BI126: =OpCo1!BI223 -> 0 | BJ126: =OpCo1!BJ223 -> 0 | BK126: =OpCo1!BK223 -> 0 | BL126: =OpCo1!BL223 -> 0 | BM126: =OpCo1!BM223 -> 0 | BN126: =OpCo1!BN223 -> 0 | BO126: =OpCo1!BO223 -> 0 | BP126: =OpCo1!BP223 -> 0 | BQ126: =OpCo1!BQ223 -> 0 | BR126: =OpCo1!BR223 -> 0 | BS126: =OpCo1!BS223 -> 0 | BT126: =OpCo1!BT223 -> 0
D127: I/C purchases | F127: £000 | G127: =IF($I$4,SYS_Admin!$D$117,SYS_Admin!$D$116) -> Nominal | M127: =OpCo1!M507 -> 0 | N127: =OpCo1!N507 -> 0 | O127: =OpCo1!O507 -> 0 | P127: =OpCo1!P507 -> 0 | Q127: =OpCo1!Q507 -> 0 | R127: =OpCo1!R507 -> 0 | S127: =OpCo1!S507 -> 0 | T127: =OpCo1!T507 -> 0 | U127: =OpCo1!U507 -> 0 | V127: =OpCo1!V507 -> 0 | W127: =OpCo1!W507 -> 0 | X127: =OpCo1!X507 -> 0 | Y127: =OpCo1!Y507 -> 0 | Z127: =OpCo1!Z507 -> 0 | AA127: =OpCo1!AA507 -> 0 | AB127: =OpCo1!AB507 -> 0 | AC127: =OpCo1!AC507 -> 0 | AD127: =OpCo1!AD507 -> 0 | AE127: =OpCo1!AE507 -> 0 | AF127: =OpCo1!AF507 -> 0 | AG127: =OpCo1!AG507 -> 0 | AH127: =OpCo1!AH507 -> 0 | AI127: =OpCo1!AI507 -> 0 | AJ127: =OpCo1!AJ507 -> 0 | AK127: =OpCo1!AK507 -> 0 | AL127: =OpCo1!AL507 -> 0 | AM127: =OpCo1!AM507 -> 0 | AN127: =OpCo1!AN507 -> 0 | AO127: =OpCo1!AO507 -> 0 | AP127: =OpCo1!AP507 -> 0 | AQ127: =OpCo1!AQ507 -> 0 | AR127: =OpCo1!AR507 -> 0 | AS127: =OpCo1!AS507 -> 0 | AT127: =OpCo1!AT507 -> 0 | AU127: =OpCo1!AU507 -> 0 | AV127: =OpCo1!AV507 -> 0 | AW127: =OpCo1!AW507 -> 0 | AX127: =OpCo1!AX507 -> 0 | AY127: =OpCo1!AY507 -> 0 | AZ127: =OpCo1!AZ507 -> 0 | BA127: =OpCo1!BA507 -> 0 | BB127: =OpCo1!BB507 -> 0 | BC127: =OpCo1!BC507 -> 0 | BD127: =OpCo1!BD507 -> 0 | BE127: =OpCo1!BE507 -> 0 | BF127: =OpCo1!BF507 -> 0 | BG127: =OpCo1!BG507 -> 0 | BH127: =OpCo1!BH507 -> 0 | BI127: =OpCo1!BI507 -> 0 | BJ127: =OpCo1!BJ507 -> 0 | BK127: =OpCo1!BK507 -> 0 | BL127: =OpCo1!BL507 -> 0 | BM127: =OpCo1!BM507 -> 0 | BN127: =OpCo1!BN507 -> 0 | BO127: =OpCo1!BO507 -> 0 | BP127: =OpCo1!BP507 -> 0 | BQ127: =OpCo1!BQ507 -> 0 | BR127: =OpCo1!BR507 -> 0 | BS127: =OpCo1!BS507 -> 0 | BT127: =OpCo1!BT507 -> 0
D128: Irrecoverable I/C VAT payable | F128: £000 | G128: =IF($I$4,SYS_Admin!$D$117,SYS_Admin!$D$116) -> Nominal | M128: =OpCo1!M2916 -> 0 | N128: =OpCo1!N2916 -> 0 | O128: =OpCo1!O2916 -> 0 | P128: =OpCo1!P2916 -> 0 | Q128: =OpCo1!Q2916 -> 0 | R128: =OpCo1!R2916 -> 0 | S128: =OpCo1!S2916 -> 0 | T128: =OpCo1!T2916 -> 0 | U128: =OpCo1!U2916 -> 0 | V128: =OpCo1!V2916 -> 0 | W128: =OpCo1!W2916 -> 0 | X128: =OpCo1!X2916 -> 0 | Y128: =OpCo1!Y2916 -> 0 | Z128: =OpCo1!Z2916 -> 0 | AA128: =OpCo1!AA2916 -> 0 | AB128: =OpCo1!AB2916 -> 0 | AC128: =OpCo1!AC2916 -> 0 | AD128: =OpCo1!AD2916 -> 0 | AE128: =OpCo1!AE2916 -> 0 | AF128: =OpCo1!AF2916 -> 0 | AG128: =OpCo1!AG2916 -> 0 | AH128: =OpCo1!AH2916 -> 0 | AI128: =OpCo1!AI2916 -> 0 | AJ128: =OpCo1!AJ2916 -> 0 | AK128: =OpCo1!AK2916 -> 0 | AL128: =OpCo1!AL2916 -> 0 | AM128: =OpCo1!AM2916 -> 0 | AN128: =OpCo1!AN2916 -> 0 | AO128: =OpCo1!AO2916 -> 0 | AP128: =OpCo1!AP2916 -> 0 | AQ128: =OpCo1!AQ2916 -> 0 | AR128: =OpCo1!AR2916 -> 0 | AS128: =OpCo1!AS2916 -> 0 | AT128: =OpCo1!AT2916 -> 0 | AU128: =OpCo1!AU2916 -> 0 | AV128: =OpCo1!AV2916 -> 0 | AW128: =OpCo1!AW2916 -> 0 | AX128: =OpCo1!AX2916 -> 0 | AY128: =OpCo1!AY2916 -> 0 | AZ128: =OpCo1!AZ2916 -> 0 | BA128: =OpCo1!BA2916 -> 0 | BB128: =OpCo1!BB2916 -> 0 | BC128: =OpCo1!BC2916 -> 0 | BD128: =OpCo1!BD2916 -> 0 | BE128: =OpCo1!BE2916 -> 0 | BF128: =OpCo1!BF2916 -> 0 | BG128: =OpCo1!BG2916 -> 0 | BH128: =OpCo1!BH2916 -> 0 | BI128: =OpCo1!BI2916 -> 0 | BJ128: =OpCo1!BJ2916 -> 0 | BK128: =OpCo1!BK2916 -> 0 | BL128: =OpCo1!BL2916 -> 0 | BM128: =OpCo1!BM2916 -> 0 | BN128: =OpCo1!BN2916 -> 0 | BO128: =OpCo1!BO2916 -> 0 | BP128: =OpCo1!BP2916 -> 0 | BQ128: =OpCo1!BQ2916 -> 0 | BR128: =OpCo1!BR2916 -> 0 | BS128: =OpCo1!BS2916 -> 0 | BT128: =OpCo1!BT2916 -> 0
D129: Re-purchase of assets from lessor | F129: £000 | G129: =IF($I$4,SYS_Admin!$D$117,SYS_Admin!$D$116) -> Nominal | M129: =OpCo1!M1190 -> 0 | N129: =OpCo1!N1190 -> 0 | O129: =OpCo1!O1190 -> 0 | P129: =OpCo1!P1190 -> 0 | Q129: =OpCo1!Q1190 -> 0 | R129: =OpCo1!R1190 -> 0 | S129: =OpCo1!S1190 -> 0 | T129: =OpCo1!T1190 -> 0 | U129: =OpCo1!U1190 -> 0 | V129: =OpCo1!V1190 -> 0 | W129: =OpCo1!W1190 -> 0 | X129: =OpCo1!X1190 -> 0 | Y129: =OpCo1!Y1190 -> 0 | Z129: =OpCo1!Z1190 -> 0 | AA129: =OpCo1!AA1190 -> 0 | AB129: =OpCo1!AB1190 -> 0 | AC129: =OpCo1!AC1190 -> 0 | AD129: =OpCo1!AD1190 -> 0 | AE129: =OpCo1!AE1190 -> 0 | AF129: =OpCo1!AF1190 -> 0 | AG129: =OpCo1!AG1190 -> 0 | AH129: =OpCo1!AH1190 -> 0 | AI129: =OpCo1!AI1190 -> 0 | AJ129: =OpCo1!AJ1190 -> 0 | AK129: =OpCo1!AK1190 -> 0 | AL129: =OpCo1!AL1190 -> 0 | AM129: =OpCo1!AM1190 -> 0 | AN129: =OpCo1!AN1190 -> 0 | AO129: =OpCo1!AO1190 -> 0 | AP129: =OpCo1!AP1190 -> 0 | AQ129: =OpCo1!AQ1190 -> 0 | AR129: =OpCo1!AR1190 -> 0 | AS129: =OpCo1!AS1190 -> 0 | AT129: =OpCo1!AT1190 -> 0 | AU129: =OpCo1!AU1190 -> 0 | AV129: =OpCo1!AV1190 -> 0 | AW129: =OpCo1!AW1190 -> 0 | AX129: =OpCo1!AX1190 -> 0 | AY129: =OpCo1!AY1190 -> 0 | AZ129: =OpCo1!AZ1190 -> 0 | BA129: =OpCo1!BA1190 -> 0 | BB129: =OpCo1!BB1190 -> 0 | BC129: =OpCo1!BC1190 -> 0 | BD129: =OpCo1!BD1190 -> 0 | BE129: =OpCo1!BE1190 -> 0 | BF129: =OpCo1!BF1190 -> 0 | BG129: =OpCo1!BG1190 -> 0 | BH129: =OpCo1!BH1190 -> 0 | BI129: =OpCo1!BI1190 -> 0 | BJ129: =OpCo1!BJ1190 -> 0 | BK129: =OpCo1!BK1190 -> 0 | BL129: =OpCo1!BL1190 -> 0 | BM129: =OpCo1!BM1190 -> 0 | BN129: =OpCo1!BN1190 -> 0 | BO129: =OpCo1!BO1190 -> 0 | BP129: =OpCo1!BP1190 -> 0 | BQ129: =OpCo1!BQ1190 -> 0 | BR129: =OpCo1!BR1190 -> 0 | BS129: =OpCo1!BS1190 -> 0 | BT129: =OpCo1!BT1190 -> 0
D130: Business rates | F130: £000 | G130: =IF($I$4,SYS_Admin!$D$117,SYS_Admin!$D$116) -> Nominal | M130: =OpCo1!M2485 -> 0 | N130: =OpCo1!N2485 -> 0 | O130: =OpCo1!O2485 -> 0 | P130: =OpCo1!P2485 -> 0 | Q130: =OpCo1!Q2485 -> 0 | R130: =OpCo1!R2485 -> 0 | S130: =OpCo1!S2485 -> 0 | T130: =OpCo1!T2485 -> 0 | U130: =OpCo1!U2485 -> 0 | V130: =OpCo1!V2485 -> 0 | W130: =OpCo1!W2485 -> 0 | X130: =OpCo1!X2485 -> 0 | Y130: =OpCo1!Y2485 -> 0 | Z130: =OpCo1!Z2485 -> 0 | AA130: =OpCo1!AA2485 -> 0 | AB130: =OpCo1!AB2485 -> 0 | AC130: =OpCo1!AC2485 -> 0 | AD130: =OpCo1!AD2485 -> 0 | AE130: =OpCo1!AE2485 -> 0 | AF130: =OpCo1!AF2485 -> 0 | AG130: =OpCo1!AG2485 -> 0 | AH130: =OpCo1!AH2485 -> 0 | AI130: =OpCo1!AI2485 -> 0 | AJ130: =OpCo1!AJ2485 -> 0 | AK130: =OpCo1!AK2485 -> 0 | AL130: =OpCo1!AL2485 -> 0 | AM130: =OpCo1!AM2485 -> 0 | AN130: =OpCo1!AN2485 -> 0 | AO130: =OpCo1!AO2485 -> 0 | AP130: =OpCo1!AP2485 -> 0 | AQ130: =OpCo1!AQ2485 -> 0 | AR130: =OpCo1!AR2485 -> 0 | AS130: =OpCo1!AS2485 -> 0 | AT130: =OpCo1!AT2485 -> 0 | AU130: =OpCo1!AU2485 -> 0 | AV130: =OpCo1!AV2485 -> 0 | AW130: =OpCo1!AW2485 -> 0 | AX130: =OpCo1!AX2485 -> 0 | AY130: =OpCo1!AY2485 -> 0 | AZ130: =OpCo1!AZ2485 -> 0 | BA130: =OpCo1!BA2485 -> 0 | BB130: =OpCo1!BB2485 -> 0 | BC130: =OpCo1!BC2485 -> 0 | BD130: =OpCo1!BD2485 -> 0 | BE130: =OpCo1!BE2485 -> 0 | BF130: =OpCo1!BF2485 -> 0 | BG130: =OpCo1!BG2485 -> 0 | BH130: =OpCo1!BH2485 -> 0 | BI130: =OpCo1!BI2485 -> 0 | BJ130: =OpCo1!BJ2485 -> 0 | BK130: =OpCo1!BK2485 -> 0 | BL130: =OpCo1!BL2485 -> 0 | BM130: =OpCo1!BM2485 -> 0 | BN130: =OpCo1!BN2485 -> 0 | BO130: =OpCo1!BO2485 -> 0 | BP130: =OpCo1!BP2485 -> 0 | BQ130: =OpCo1!BQ2485 -> 0 | BR130: =OpCo1!BR2485 -> 0 | BS130: =OpCo1!BS2485 -> 0 | BT130: =OpCo1!BT2485 -> 0
D131: Corporation tax | F131: £000 | G131: =IF($I$4,SYS_Admin!$D$117,SYS_Admin!$D$116) -> Nominal | M131: =OpCo1!M3256 -> 0 | N131: =OpCo1!N3256 -> 0 | O131: =OpCo1!O3256 -> 0 | P131: =OpCo1!P3256 -> 0 | Q131: =OpCo1!Q3256 -> 0 | R131: =OpCo1!R3256 -> 0 | S131: =OpCo1!S3256 -> 0 | T131: =OpCo1!T3256 -> 0 | U131: =OpCo1!U3256 -> 0 | V131: =OpCo1!V3256 -> 0 | W131: =OpCo1!W3256 -> 0 | X131: =OpCo1!X3256 -> 0 | Y131: =OpCo1!Y3256 -> 0 | Z131: =OpCo1!Z3256 -> 0 | AA131: =OpCo1!AA3256 -> 0 | AB131: =OpCo1!AB3256 -> 0 | AC131: =OpCo1!AC3256 -> 0 | AD131: =OpCo1!AD3256 -> 0 | AE131: =OpCo1!AE3256 -> 0 | AF131: =OpCo1!AF3256 -> 0 | AG131: =OpCo1!AG3256 -> 0 | AH131: =OpCo1!AH3256 -> 0 | AI131: =OpCo1!AI3256 -> 0 | AJ131: =OpCo1!AJ3256 -> 0 | AK131: =OpCo1!AK3256 -> 0 | AL131: =OpCo1!AL3256 -> 0 | AM131: =OpCo1!AM3256 -> 0 | AN131: =OpCo1!AN3256 -> 0 | AO131: =OpCo1!AO3256 -> 0 | AP131: =OpCo1!AP3256 -> 0 | AQ131: =OpCo1!AQ3256 -> 0 | AR131: =OpCo1!AR3256 -> 0 | AS131: =OpCo1!AS3256 -> 0 | AT131: =OpCo1!AT3256 -> 0 | AU131: =OpCo1!AU3256 -> 0 | AV131: =OpCo1!AV3256 -> 0 | AW131: =OpCo1!AW3256 -> 0 | AX131: =OpCo1!AX3256 -> 0 | AY131: =OpCo1!AY3256 -> 0 | AZ131: =OpCo1!AZ3256 -> 0 | BA131: =OpCo1!BA3256 -> 0 | BB131: =OpCo1!BB3256 -> 0 | BC131: =OpCo1!BC3256 -> 0 | BD131: =OpCo1!BD3256 -> 0 | BE131: =OpCo1!BE3256 -> 0 | BF131: =OpCo1!BF3256 -> 0 | BG131: =OpCo1!BG3256 -> 0 | BH131: =OpCo1!BH3256 -> 0 | BI131: =OpCo1!BI3256 -> 0 | BJ131: =OpCo1!BJ3256 -> 0 | BK131: =OpCo1!BK3256 -> 0 | BL131: =OpCo1!BL3256 -> 0 | BM131: =OpCo1!BM3256 -> 0 | BN131: =OpCo1!BN3256 -> 0 | BO131: =OpCo1!BO3256 -> 0 | BP131: =OpCo1!BP3256 -> 0 | BQ131: =OpCo1!BQ3256 -> 0 | BR131: =OpCo1!BR3256 -> 0 | BS131: =OpCo1!BS3256 -> 0 | BT131: =OpCo1!BT3256 -> 0
D132: VAT payable to customers | F132: £000 | G132: =IF($I$4,SYS_Admin!$D$117,SYS_Admin!$D$116) -> Nominal | M132: =OpCo1!M2838 -> 0 | N132: =OpCo1!N2838 -> 0 | O132: =OpCo1!O2838 -> 0 | P132: =OpCo1!P2838 -> 0 | Q132: =OpCo1!Q2838 -> 0 | R132: =OpCo1!R2838 -> 0 | S132: =OpCo1!S2838 -> 0 | T132: =OpCo1!T2838 -> 0 | U132: =OpCo1!U2838 -> 0 | V132: =OpCo1!V2838 -> 0 | W132: =OpCo1!W2838 -> 0 | X132: =OpCo1!X2838 -> 0 | Y132: =OpCo1!Y2838 -> 0 | Z132: =OpCo1!Z2838 -> 0 | AA132: =OpCo1!AA2838 -> 0 | AB132: =OpCo1!AB2838 -> 0 | AC132: =OpCo1!AC2838 -> 0 | AD132: =OpCo1!AD2838 -> 0 | AE132: =OpCo1!AE2838 -> 0 | AF132: =OpCo1!AF2838 -> 0 | AG132: =OpCo1!AG2838 -> 0 | AH132: =OpCo1!AH2838 -> 0 | AI132: =OpCo1!AI2838 -> 0 | AJ132: =OpCo1!AJ2838 -> 0 | AK132: =OpCo1!AK2838 -> 0 | AL132: =OpCo1!AL2838 -> 0 | AM132: =OpCo1!AM2838 -> 0 | AN132: =OpCo1!AN2838 -> 0 | AO132: =OpCo1!AO2838 -> 0 | AP132: =OpCo1!AP2838 -> 0 | AQ132: =OpCo1!AQ2838 -> 0 | AR132: =OpCo1!AR2838 -> 0 | AS132: =OpCo1!AS2838 -> 0 | AT132: =OpCo1!AT2838 -> 0 | AU132: =OpCo1!AU2838 -> 0 | AV132: =OpCo1!AV2838 -> 0 | AW132: =OpCo1!AW2838 -> 0 | AX132: =OpCo1!AX2838 -> 0 | AY132: =OpCo1!AY2838 -> 0 | AZ132: =OpCo1!AZ2838 -> 0 | BA132: =OpCo1!BA2838 -> 0 | BB132: =OpCo1!BB2838 -> 0 | BC132: =OpCo1!BC2838 -> 0 | BD132: =OpCo1!BD2838 -> 0 | BE132: =OpCo1!BE2838 -> 0 | BF132: =OpCo1!BF2838 -> 0 | BG132: =OpCo1!BG2838 -> 0 | BH132: =OpCo1!BH2838 -> 0 | BI132: =OpCo1!BI2838 -> 0 | BJ132: =OpCo1!BJ2838 -> 0 | BK132: =OpCo1!BK2838 -> 0 | BL132: =OpCo1!BL2838 -> 0 | BM132: =OpCo1!BM2838 -> 0 | BN132: =OpCo1!BN2838 -> 0 | BO132: =OpCo1!BO2838 -> 0 | BP132: =OpCo1!BP2838 -> 0 | BQ132: =OpCo1!BQ2838 -> 0 | BR132: =OpCo1!BR2838 -> 0 | BS132: =OpCo1!BS2838 -> 0 | BT132: =OpCo1!BT2838 -> 0
D133: VAT payable to HMRC | F133: £000 | G133: =IF($I$4,SYS_Admin!$D$117,SYS_Admin!$D$116) -> Nominal | M133: =IF(OpCo1!M2810<0,OpCo1!M2810,0) -> 0 | N133: =IF(OpCo1!N2810<0,OpCo1!N2810,0) -> 0 | O133: =IF(OpCo1!O2810<0,OpCo1!O2810,0) -> 0 | P133: =IF(OpCo1!P2810<0,OpCo1!P2810,0) -> 0 | Q133: =IF(OpCo1!Q2810<0,OpCo1!Q2810,0) -> 0 | R133: =IF(OpCo1!R2810<0,OpCo1!R2810,0) -> 0 | S133: =IF(OpCo1!S2810<0,OpCo1!S2810,0) -> 0 | T133: =IF(OpCo1!T2810<0,OpCo1!T2810,0) -> 0 | U133: =IF(OpCo1!U2810<0,OpCo1!U2810,0) -> 0 | V133: =IF(OpCo1!V2810<0,OpCo1!V2810,0) -> 0 | W133: =IF(OpCo1!W2810<0,OpCo1!W2810,0) -> 0 | X133: =IF(OpCo1!X2810<0,OpCo1!X2810,0) -> 0 | Y133: =IF(OpCo1!Y2810<0,OpCo1!Y2810,0) -> 0 | Z133: =IF(OpCo1!Z2810<0,OpCo1!Z2810,0) -> 0 | AA133: =IF(OpCo1!AA2810<0,OpCo1!AA2810,0) -> 0 | AB133: =IF(OpCo1!AB2810<0,OpCo1!AB2810,0) -> 0 | AC133: =IF(OpCo1!AC2810<0,OpCo1!AC2810,0) -> 0 | AD133: =IF(OpCo1!AD2810<0,OpCo1!AD2810,0) -> 0 | AE133: =IF(OpCo1!AE2810<0,OpCo1!AE2810,0) -> 0 | AF133: =IF(OpCo1!AF2810<0,OpCo1!AF2810,0) -> 0 | AG133: =IF(OpCo1!AG2810<0,OpCo1!AG2810,0) -> 0 | AH133: =IF(OpCo1!AH2810<0,OpCo1!AH2810,0) -> 0 | AI133: =IF(OpCo1!AI2810<0,OpCo1!AI2810,0) -> 0 | AJ133: =IF(OpCo1!AJ2810<0,OpCo1!AJ2810,0) -> 0 | AK133: =IF(OpCo1!AK2810<0,OpCo1!AK2810,0) -> 0 | AL133: =IF(OpCo1!AL2810<0,OpCo1!AL2810,0) -> 0 | AM133: =IF(OpCo1!AM2810<0,OpCo1!AM2810,0) -> 0 | AN133: =IF(OpCo1!AN2810<0,OpCo1!AN2810,0) -> 0 | AO133: =IF(OpCo1!AO2810<0,OpCo1!AO2810,0) -> 0 | AP133: =IF(OpCo1!AP2810<0,OpCo1!AP2810,0) -> 0 | AQ133: =IF(OpCo1!AQ2810<0,OpCo1!AQ2810,0) -> 0 | AR133: =IF(OpCo1!AR2810<0,OpCo1!AR2810,0) -> 0 | AS133: =IF(OpCo1!AS2810<0,OpCo1!AS2810,0) -> 0 | AT133: =IF(OpCo1!AT2810<0,OpCo1!AT2810,0) -> 0 | AU133: =IF(OpCo1!AU2810<0,OpCo1!AU2810,0) -> 0 | AV133: =IF(OpCo1!AV2810<0,OpCo1!AV2810,0) -> 0 | AW133: =IF(OpCo1!AW2810<0,OpCo1!AW2810,0) -> 0 | AX133: =IF(OpCo1!AX2810<0,OpCo1!AX2810,0) -> 0 | AY133: =IF(OpCo1!AY2810<0,OpCo1!AY2810,0) -> 0 | AZ133: =IF(OpCo1!AZ2810<0,OpCo1!AZ2810,0) -> 0 | BA133: =IF(OpCo1!BA2810<0,OpCo1!BA2810,0) -> 0 | BB133: =IF(OpCo1!BB2810<0,OpCo1!BB2810,0) -> 0 | BC133: =IF(OpCo1!BC2810<0,OpCo1!BC2810,0) -> 0 | BD133: =IF(OpCo1!BD2810<0,OpCo1!BD2810,0) -> 0 | BE133: =IF(OpCo1!BE2810<0,OpCo1!BE2810,0) -> 0 | BF133: =IF(OpCo1!BF2810<0,OpCo1!BF2810,0) -> 0 | BG133: =IF(OpCo1!BG2810<0,OpCo1!BG2810,0) -> 0 | BH133: =IF(OpCo1!BH2810<0,OpCo1!BH2810,0) -> 0 | BI133: =IF(OpCo1!BI2810<0,OpCo1!BI2810,0) -> 0 | BJ133: =IF(OpCo1!BJ2810<0,OpCo1!BJ2810,0) -> 0 | BK133: =IF(OpCo1!BK2810<0,OpCo1!BK2810,0) -> 0 | BL133: =IF(OpCo1!BL2810<0,OpCo1!BL2810,0) -> 0 | BM133: =IF(OpCo1!BM2810<0,OpCo1!BM2810,0) -> 0 | BN133: =IF(OpCo1!BN2810<0,OpCo1!BN2810,0) -> 0 | BO133: =IF(OpCo1!BO2810<0,OpCo1!BO2810,0) -> 0 | BP133: =IF(OpCo1!BP2810<0,OpCo1!BP2810,0) -> 0 | BQ133: =IF(OpCo1!BQ2810<0,OpCo1!BQ2810,0) -> 0 | BR133: =IF(OpCo1!BR2810<0,OpCo1!BR2810,0) -> 0 | BS133: =IF(OpCo1!BS2810<0,OpCo1!BS2810,0) -> 0 | BT133: =IF(OpCo1!BT2810<0,OpCo1!BT2810,0) -> 0
D134: Loan interest payable | F134: £000 | G134: =IF($I$4,SYS_Admin!$D$117,SYS_Admin!$D$116) -> Nominal | M134: =OpCo1!M2184+OpCo1!M3542 -> 0 | N134: =OpCo1!N2184+OpCo1!N3542 -> 0 | O134: =OpCo1!O2184+OpCo1!O3542 -> 0 | P134: =OpCo1!P2184+OpCo1!P3542 -> 0 | Q134: =OpCo1!Q2184+OpCo1!Q3542 -> 0 | R134: =OpCo1!R2184+OpCo1!R3542 -> 0 | S134: =OpCo1!S2184+OpCo1!S3542 -> 0 | T134: =OpCo1!T2184+OpCo1!T3542 -> 0 | U134: =OpCo1!U2184+OpCo1!U3542 -> 0 | V134: =OpCo1!V2184+OpCo1!V3542 -> 0 | W134: =OpCo1!W2184+OpCo1!W3542 -> 0 | X134: =OpCo1!X2184+OpCo1!X3542 -> 0 | Y134: =OpCo1!Y2184+OpCo1!Y3542 -> 0 | Z134: =OpCo1!Z2184+OpCo1!Z3542 -> 0 | AA134: =OpCo1!AA2184+OpCo1!AA3542 -> 0 | AB134: =OpCo1!AB2184+OpCo1!AB3542 -> 0 | AC134: =OpCo1!AC2184+OpCo1!AC3542 -> 0 | AD134: =OpCo1!AD2184+OpCo1!AD3542 -> 0 | AE134: =OpCo1!AE2184+OpCo1!AE3542 -> 0 | AF134: =OpCo1!AF2184+OpCo1!AF3542 -> 0 | AG134: =OpCo1!AG2184+OpCo1!AG3542 -> 0 | AH134: =OpCo1!AH2184+OpCo1!AH3542 -> 0 | AI134: =OpCo1!AI2184+OpCo1!AI3542 -> 0 | AJ134: =OpCo1!AJ2184+OpCo1!AJ3542 -> 0 | AK134: =OpCo1!AK2184+OpCo1!AK3542 -> 0 | AL134: =OpCo1!AL2184+OpCo1!AL3542 -> 0 | AM134: =OpCo1!AM2184+OpCo1!AM3542 -> 0 | AN134: =OpCo1!AN2184+OpCo1!AN3542 -> 0 | AO134: =OpCo1!AO2184+OpCo1!AO3542 -> 0 | AP134: =OpCo1!AP2184+OpCo1!AP3542 -> 0 | AQ134: =OpCo1!AQ2184+OpCo1!AQ3542 -> 0 | AR134: =OpCo1!AR2184+OpCo1!AR3542 -> 0 | AS134: =OpCo1!AS2184+OpCo1!AS3542 -> 0 | AT134: =OpCo1!AT2184+OpCo1!AT3542 -> 0 | AU134: =OpCo1!AU2184+OpCo1!AU3542 -> 0 | AV134: =OpCo1!AV2184+OpCo1!AV3542 -> 0 | AW134: =OpCo1!AW2184+OpCo1!AW3542 -> 0 | AX134: =OpCo1!AX2184+OpCo1!AX3542 -> 0 | AY134: =OpCo1!AY2184+OpCo1!AY3542 -> 0 | AZ134: =OpCo1!AZ2184+OpCo1!AZ3542 -> 0 | BA134: =OpCo1!BA2184+OpCo1!BA3542 -> 0 | BB134: =OpCo1!BB2184+OpCo1!BB3542 -> 0 | BC134: =OpCo1!BC2184+OpCo1!BC3542 -> 0 | BD134: =OpCo1!BD2184+OpCo1!BD3542 -> 0 | BE134: =OpCo1!BE2184+OpCo1!BE3542 -> 0 | BF134: =OpCo1!BF2184+OpCo1!BF3542 -> 0 | BG134: =OpCo1!BG2184+OpCo1!BG3542 -> 0 | BH134: =OpCo1!BH2184+OpCo1!BH3542 -> 0 | BI134: =OpCo1!BI2184+OpCo1!BI3542 -> 0 | BJ134: =OpCo1!BJ2184+OpCo1!BJ3542 -> 0 | BK134: =OpCo1!BK2184+OpCo1!BK3542 -> 0 | BL134: =OpCo1!BL2184+OpCo1!BL3542 -> 0 | BM134: =OpCo1!BM2184+OpCo1!BM3542 -> 0 | BN134: =OpCo1!BN2184+OpCo1!BN3542 -> 0 | BO134: =OpCo1!BO2184+OpCo1!BO3542 -> 0 | BP134: =OpCo1!BP2184+OpCo1!BP3542 -> 0 | BQ134: =OpCo1!BQ2184+OpCo1!BQ3542 -> 0 | BR134: =OpCo1!BR2184+OpCo1!BR3542 -> 0 | BS134: =OpCo1!BS2184+OpCo1!BS3542 -> 0 | BT134: =OpCo1!BT2184+OpCo1!BT3542 -> 0
D135: Loan fees payable | F135: £000 | G135: =IF($I$4,SYS_Admin!$D$117,SYS_Admin!$D$116) -> Nominal | M135: =OpCo1!M2170 -> 0 | N135: =OpCo1!N2170 -> 0 | O135: =OpCo1!O2170 -> 0 | P135: =OpCo1!P2170 -> 0 | Q135: =OpCo1!Q2170 -> 0 | R135: =OpCo1!R2170 -> 0 | S135: =OpCo1!S2170 -> 0 | T135: =OpCo1!T2170 -> 0 | U135: =OpCo1!U2170 -> 0 | V135: =OpCo1!V2170 -> 0 | W135: =OpCo1!W2170 -> 0 | X135: =OpCo1!X2170 -> 0 | Y135: =OpCo1!Y2170 -> 0 | Z135: =OpCo1!Z2170 -> 0 | AA135: =OpCo1!AA2170 -> 0 | AB135: =OpCo1!AB2170 -> 0 | AC135: =OpCo1!AC2170 -> 0 | AD135: =OpCo1!AD2170 -> 0 | AE135: =OpCo1!AE2170 -> 0 | AF135: =OpCo1!AF2170 -> 0 | AG135: =OpCo1!AG2170 -> 0 | AH135: =OpCo1!AH2170 -> 0 | AI135: =OpCo1!AI2170 -> 0 | AJ135: =OpCo1!AJ2170 -> 0 | AK135: =OpCo1!AK2170 -> 0 | AL135: =OpCo1!AL2170 -> 0 | AM135: =OpCo1!AM2170 -> 0 | AN135: =OpCo1!AN2170 -> 0 | AO135: =OpCo1!AO2170 -> 0 | AP135: =OpCo1!AP2170 -> 0 | AQ135: =OpCo1!AQ2170 -> 0 | AR135: =OpCo1!AR2170 -> 0 | AS135: =OpCo1!AS2170 -> 0 | AT135: =OpCo1!AT2170 -> 0 | AU135: =OpCo1!AU2170 -> 0 | AV135: =OpCo1!AV2170 -> 0 | AW135: =OpCo1!AW2170 -> 0 | AX135: =OpCo1!AX2170 -> 0 | AY135: =OpCo1!AY2170 -> 0 | AZ135: =OpCo1!AZ2170 -> 0 | BA135: =OpCo1!BA2170 -> 0 | BB135: =OpCo1!BB2170 -> 0 | BC135: =OpCo1!BC2170 -> 0 | BD135: =OpCo1!BD2170 -> 0 | BE135: =OpCo1!BE2170 -> 0 | BF135: =OpCo1!BF2170 -> 0 | BG135: =OpCo1!BG2170 -> 0 | BH135: =OpCo1!BH2170 -> 0 | BI135: =OpCo1!BI2170 -> 0 | BJ135: =OpCo1!BJ2170 -> 0 | BK135: =OpCo1!BK2170 -> 0 | BL135: =OpCo1!BL2170 -> 0 | BM135: =OpCo1!BM2170 -> 0 | BN135: =OpCo1!BN2170 -> 0 | BO135: =OpCo1!BO2170 -> 0 | BP135: =OpCo1!BP2170 -> 0 | BQ135: =OpCo1!BQ2170 -> 0 | BR135: =OpCo1!BR2170 -> 0 | BS135: =OpCo1!BS2170 -> 0 | BT135: =OpCo1!BT2170 -> 0
D136: Lease charge payable | F136: £000 | G136: =IF($I$4,SYS_Admin!$D$117,SYS_Admin!$D$116) -> Nominal | M136: =OpCo1!M1178 -> 0 | N136: =OpCo1!N1178 -> 0 | O136: =OpCo1!O1178 -> 0 | P136: =OpCo1!P1178 -> 0 | Q136: =OpCo1!Q1178 -> 0 | R136: =OpCo1!R1178 -> 0 | S136: =OpCo1!S1178 -> 0 | T136: =OpCo1!T1178 -> 0 | U136: =OpCo1!U1178 -> 0 | V136: =OpCo1!V1178 -> 0 | W136: =OpCo1!W1178 -> 0 | X136: =OpCo1!X1178 -> 0 | Y136: =OpCo1!Y1178 -> 0 | Z136: =OpCo1!Z1178 -> 0 | AA136: =OpCo1!AA1178 -> 0 | AB136: =OpCo1!AB1178 -> 0 | AC136: =OpCo1!AC1178 -> 0 | AD136: =OpCo1!AD1178 -> 0 | AE136: =OpCo1!AE1178 -> 0 | AF136: =OpCo1!AF1178 -> 0 | AG136: =OpCo1!AG1178 -> 0 | AH136: =OpCo1!AH1178 -> 0 | AI136: =OpCo1!AI1178 -> 0 | AJ136: =OpCo1!AJ1178 -> 0 | AK136: =OpCo1!AK1178 -> 0 | AL136: =OpCo1!AL1178 -> 0 | AM136: =OpCo1!AM1178 -> 0 | AN136: =OpCo1!AN1178 -> 0 | AO136: =OpCo1!AO1178 -> 0 | AP136: =OpCo1!AP1178 -> 0 | AQ136: =OpCo1!AQ1178 -> 0 | AR136: =OpCo1!AR1178 -> 0 | AS136: =OpCo1!AS1178 -> 0 | AT136: =OpCo1!AT1178 -> 0 | AU136: =OpCo1!AU1178 -> 0 | AV136: =OpCo1!AV1178 -> 0 | AW136: =OpCo1!AW1178 -> 0 | AX136: =OpCo1!AX1178 -> 0 | AY136: =OpCo1!AY1178 -> 0 | AZ136: =OpCo1!AZ1178 -> 0 | BA136: =OpCo1!BA1178 -> 0 | BB136: =OpCo1!BB1178 -> 0 | BC136: =OpCo1!BC1178 -> 0 | BD136: =OpCo1!BD1178 -> 0 | BE136: =OpCo1!BE1178 -> 0 | BF136: =OpCo1!BF1178 -> 0 | BG136: =OpCo1!BG1178 -> 0 | BH136: =OpCo1!BH1178 -> 0 | BI136: =OpCo1!BI1178 -> 0 | BJ136: =OpCo1!BJ1178 -> 0 | BK136: =OpCo1!BK1178 -> 0 | BL136: =OpCo1!BL1178 -> 0 | BM136: =OpCo1!BM1178 -> 0 | BN136: =OpCo1!BN1178 -> 0 | BO136: =OpCo1!BO1178 -> 0 | BP136: =OpCo1!BP1178 -> 0 | BQ136: =OpCo1!BQ1178 -> 0 | BR136: =OpCo1!BR1178 -> 0 | BS136: =OpCo1!BS1178 -> 0 | BT136: =OpCo1!BT1178 -> 0
D138: Overdraft | F138: £000 | G138: =IF($I$4,SYS_Admin!$D$117,SYS_Admin!$D$116) -> Nominal | M138: =-OpCo1!M3537 -> 0 | N138: =-OpCo1!N3537 -> 0 | O138: =-OpCo1!O3537 -> 0 | P138: =-OpCo1!P3537 -> 0 | Q138: =-OpCo1!Q3537 -> 0 | R138: =-OpCo1!R3537 -> 0 | S138: =-OpCo1!S3537 -> 0 | T138: =-OpCo1!T3537 -> 0 | U138: =-OpCo1!U3537 -> 0 | V138: =-OpCo1!V3537 -> 0 | W138: =-OpCo1!W3537 -> 0 | X138: =-OpCo1!X3537 -> 0 | Y138: =-OpCo1!Y3537 -> 0 | Z138: =-OpCo1!Z3537 -> 0 | AA138: =-OpCo1!AA3537 -> 0 | AB138: =-OpCo1!AB3537 -> 0 | AC138: =-OpCo1!AC3537 -> 0 | AD138: =-OpCo1!AD3537 -> 0 | AE138: =-OpCo1!AE3537 -> 0 | AF138: =-OpCo1!AF3537 -> 0 | AG138: =-OpCo1!AG3537 -> 0 | AH138: =-OpCo1!AH3537 -> 0 | AI138: =-OpCo1!AI3537 -> 0 | AJ138: =-OpCo1!AJ3537 -> 0 | AK138: =-OpCo1!AK3537 -> 0 | AL138: =-OpCo1!AL3537 -> 0 | AM138: =-OpCo1!AM3537 -> 0 | AN138: =-OpCo1!AN3537 -> 0 | AO138: =-OpCo1!AO3537 -> 0 | AP138: =-OpCo1!AP3537 -> 0 | AQ138: =-OpCo1!AQ3537 -> 0 | AR138: =-OpCo1!AR3537 -> 0 | AS138: =-OpCo1!AS3537 -> 0 | AT138: =-OpCo1!AT3537 -> 0 | AU138: =-OpCo1!AU3537 -> 0 | AV138: =-OpCo1!AV3537 -> 0 | AW138: =-OpCo1!AW3537 -> 0 | AX138: =-OpCo1!AX3537 -> 0 | AY138: =-OpCo1!AY3537 -> 0 | AZ138: =-OpCo1!AZ3537 -> 0 | BA138: =-OpCo1!BA3537 -> 0 | BB138: =-OpCo1!BB3537 -> 0 | BC138: =-OpCo1!BC3537 -> 0 | BD138: =-OpCo1!BD3537 -> 0 | BE138: =-OpCo1!BE3537 -> 0 | BF138: =-OpCo1!BF3537 -> 0 | BG138: =-OpCo1!BG3537 -> 0 | BH138: =-OpCo1!BH3537 -> 0 | BI138: =-OpCo1!BI3537 -> 0 | BJ138: =-OpCo1!BJ3537 -> 0 | BK138: =-OpCo1!BK3537 -> 0 | BL138: =-OpCo1!BL3537 -> 0 | BM138: =-OpCo1!BM3537 -> 0 | BN138: =-OpCo1!BN3537 -> 0 | BO138: =-OpCo1!BO3537 -> 0 | BP138: =-OpCo1!BP3537 -> 0 | BQ138: =-OpCo1!BQ3537 -> 0 | BR138: =-OpCo1!BR3537 -> 0 | BS138: =-OpCo1!BS3537 -> 0 | BT138: =-OpCo1!BT3537 -> 0
D139: Short term liabilities | F139: £000 | G139: =IF($I$4,SYS_Admin!$D$117,SYS_Admin!$D$116) -> Nominal | M139: =M138+M118 -> 0 | N139: =N138+N118 -> 0 | O139: 0 | P139: 0 | Q139: 0 | R139: 0 | S139: 0 | T139: 0 | U139: 0 | V139: 0 | W139: 0 | X139: 0 | Y139: 0 | Z139: 0 | AA139: 0 | AB139: 0 | AC139: 0 | AD139: 0 | AE139: 0 | AF139: 0 | AG139: 0 | AH139: 0 | AI139: 0 | AJ139: 0 | AK139: 0 | AL139: 0 | AM139: 0 | AN139: 0 | AO139: 0 | AP139: 0 | AQ139: 0 | AR139: 0 | AS139: 0 | AT139: 0 | AU139: 0 | AV139: 0 | AW139: 0 | AX139: 0 | AY139: 0 | AZ139: 0 | BA139: 0 | BB139: 0 | BC139: 0 | BD139: 0 | BE139: 0 | BF139: 0 | BG139: 0 | BH139: 0 | BI139: 0 | BJ139: 0 | BK139: 0 | BL139: 0 | BM139: 0 | BN139: 0 | BO139: 0 | BP139: 0 | BQ139: 0 | BR139: 0 | BS139: 0 | BT139: 0
D141: NON-CURRENT LIABILITIES
D143: Finance lease obligations | F143: £000 | G143: =IF($I$4,SYS_Admin!$D$117,SYS_Admin!$D$116) -> Nominal | M143: =OpCo1!M1172 -> 0 | N143: =OpCo1!N1172 -> 0 | O143: =OpCo1!O1172 -> 0 | P143: =OpCo1!P1172 -> 0 | Q143: =OpCo1!Q1172 -> 0 | R143: =OpCo1!R1172 -> 0 | S143: =OpCo1!S1172 -> 0 | T143: =OpCo1!T1172 -> 0 | U143: =OpCo1!U1172 -> 0 | V143: =OpCo1!V1172 -> 0 | W143: =OpCo1!W1172 -> 0 | X143: =OpCo1!X1172 -> 0 | Y143: =OpCo1!Y1172 -> 0 | Z143: =OpCo1!Z1172 -> 0 | AA143: =OpCo1!AA1172 -> 0 | AB143: =OpCo1!AB1172 -> 0 | AC143: =OpCo1!AC1172 -> 0 | AD143: =OpCo1!AD1172 -> 0 | AE143: =OpCo1!AE1172 -> 0 | AF143: =OpCo1!AF1172 -> 0 | AG143: =OpCo1!AG1172 -> 0 | AH143: =OpCo1!AH1172 -> 0 | AI143: =OpCo1!AI1172 -> 0 | AJ143: =OpCo1!AJ1172 -> 0 | AK143: =OpCo1!AK1172 -> 0 | AL143: =OpCo1!AL1172 -> 0 | AM143: =OpCo1!AM1172 -> 0 | AN143: =OpCo1!AN1172 -> 0 | AO143: =OpCo1!AO1172 -> 0 | AP143: =OpCo1!AP1172 -> 0 | AQ143: =OpCo1!AQ1172 -> 0 | AR143: =OpCo1!AR1172 -> 0 | AS143: =OpCo1!AS1172 -> 0 | AT143: =OpCo1!AT1172 -> 0 | AU143: =OpCo1!AU1172 -> 0 | AV143: =OpCo1!AV1172 -> 0 | AW143: =OpCo1!AW1172 -> 0 | AX143: =OpCo1!AX1172 -> 0 | AY143: =OpCo1!AY1172 -> 0 | AZ143: =OpCo1!AZ1172 -> 0 | BA143: =OpCo1!BA1172 -> 0 | BB143: =OpCo1!BB1172 -> 0 | BC143: =OpCo1!BC1172 -> 0 | BD143: =OpCo1!BD1172 -> 0 | BE143: =OpCo1!BE1172 -> 0 | BF143: =OpCo1!BF1172 -> 0 | BG143: =OpCo1!BG1172 -> 0 | BH143: =OpCo1!BH1172 -> 0 | BI143: =OpCo1!BI1172 -> 0 | BJ143: =OpCo1!BJ1172 -> 0 | BK143: =OpCo1!BK1172 -> 0 | BL143: =OpCo1!BL1172 -> 0 | BM143: =OpCo1!BM1172 -> 0 | BN143: =OpCo1!BN1172 -> 0 | BO143: =OpCo1!BO1172 -> 0 | BP143: =OpCo1!BP1172 -> 0 | BQ143: =OpCo1!BQ1172 -> 0 | BR143: =OpCo1!BR1172 -> 0 | BS143: =OpCo1!BS1172 -> 0 | BT143: =OpCo1!BT1172 -> 0
D144: Loans payable | F144: £000 | G144: =IF($I$4,SYS_Admin!$D$117,SYS_Admin!$D$116) -> Nominal | M144: =SUM(M145:M146) -> 0 | N144: =SUM(N145:N146) -> 0 | O144: 0 | P144: 0 | Q144: 0 | R144: 0 | S144: 0 | T144: 0 | U144: 0 | V144: 0 | W144: 0 | X144: 0 | Y144: 0 | Z144: 0 | AA144: 0 | AB144: 0 | AC144: 0 | AD144: 0 | AE144: 0 | AF144: 0 | AG144: 0 | AH144: 0 | AI144: 0 | AJ144: 0 | AK144: 0 | AL144: 0 | AM144: 0 | AN144: 0 | AO144: 0 | AP144: 0 | AQ144: 0 | AR144: 0 | AS144: 0 | AT144: 0 | AU144: 0 | AV144: 0 | AW144: 0 | AX144: 0 | AY144: 0 | AZ144: 0 | BA144: 0 | BB144: 0 | BC144: 0 | BD144: 0 | BE144: 0 | BF144: 0 | BG144: 0 | BH144: 0 | BI144: 0 | BJ144: 0 | BK144: 0 | BL144: 0 | BM144: 0 | BN144: 0 | BO144: 0 | BP144: 0 | BQ144: 0 | BR144: 0 | BS144: 0 | BT144: 0
D145: Loans payable | F145: £000 | G145: =IF($I$4,SYS_Admin!$D$117,SYS_Admin!$D$116) -> Nominal | M145: =OpCo1!M2160 -> 0 | N145: =OpCo1!N2160 -> 0 | O145: =OpCo1!O2160 -> 0 | P145: =OpCo1!P2160 -> 0 | Q145: =OpCo1!Q2160 -> 0 | R145: =OpCo1!R2160 -> 0 | S145: =OpCo1!S2160 -> 0 | T145: =OpCo1!T2160 -> 0 | U145: =OpCo1!U2160 -> 0 | V145: =OpCo1!V2160 -> 0 | W145: =OpCo1!W2160 -> 0 | X145: =OpCo1!X2160 -> 0 | Y145: =OpCo1!Y2160 -> 0 | Z145: =OpCo1!Z2160 -> 0 | AA145: =OpCo1!AA2160 -> 0 | AB145: =OpCo1!AB2160 -> 0 | AC145: =OpCo1!AC2160 -> 0 | AD145: =OpCo1!AD2160 -> 0 | AE145: =OpCo1!AE2160 -> 0 | AF145: =OpCo1!AF2160 -> 0 | AG145: =OpCo1!AG2160 -> 0 | AH145: =OpCo1!AH2160 -> 0 | AI145: =OpCo1!AI2160 -> 0 | AJ145: =OpCo1!AJ2160 -> 0 | AK145: =OpCo1!AK2160 -> 0 | AL145: =OpCo1!AL2160 -> 0 | AM145: =OpCo1!AM2160 -> 0 | AN145: =OpCo1!AN2160 -> 0 | AO145: =OpCo1!AO2160 -> 0 | AP145: =OpCo1!AP2160 -> 0 | AQ145: =OpCo1!AQ2160 -> 0 | AR145: =OpCo1!AR2160 -> 0 | AS145: =OpCo1!AS2160 -> 0 | AT145: =OpCo1!AT2160 -> 0 | AU145: =OpCo1!AU2160 -> 0 | AV145: =OpCo1!AV2160 -> 0 | AW145: =OpCo1!AW2160 -> 0 | AX145: =OpCo1!AX2160 -> 0 | AY145: =OpCo1!AY2160 -> 0 | AZ145: =OpCo1!AZ2160 -> 0 | BA145: =OpCo1!BA2160 -> 0 | BB145: =OpCo1!BB2160 -> 0 | BC145: =OpCo1!BC2160 -> 0 | BD145: =OpCo1!BD2160 -> 0 | BE145: =OpCo1!BE2160 -> 0 | BF145: =OpCo1!BF2160 -> 0 | BG145: =OpCo1!BG2160 -> 0 | BH145: =OpCo1!BH2160 -> 0 | BI145: =OpCo1!BI2160 -> 0 | BJ145: =OpCo1!BJ2160 -> 0 | BK145: =OpCo1!BK2160 -> 0 | BL145: =OpCo1!BL2160 -> 0 | BM145: =OpCo1!BM2160 -> 0 | BN145: =OpCo1!BN2160 -> 0 | BO145: =OpCo1!BO2160 -> 0 | BP145: =OpCo1!BP2160 -> 0 | BQ145: =OpCo1!BQ2160 -> 0 | BR145: =OpCo1!BR2160 -> 0 | BS145: =OpCo1!BS2160 -> 0 | BT145: =OpCo1!BT2160 -> 0
D146: Fees capitalised | F146: £000 | G146: =IF($I$4,SYS_Admin!$D$117,SYS_Admin!$D$116) -> Nominal | M146: =OpCo1!M2165 -> 0 | N146: =OpCo1!N2165 -> 0 | O146: =OpCo1!O2165 -> 0 | P146: =OpCo1!P2165 -> 0 | Q146: =OpCo1!Q2165 -> 0 | R146: =OpCo1!R2165 -> 0 | S146: =OpCo1!S2165 -> 0 | T146: =OpCo1!T2165 -> 0 | U146: =OpCo1!U2165 -> 0 | V146: =OpCo1!V2165 -> 0 | W146: =OpCo1!W2165 -> 0 | X146: =OpCo1!X2165 -> 0 | Y146: =OpCo1!Y2165 -> 0 | Z146: =OpCo1!Z2165 -> 0 | AA146: =OpCo1!AA2165 -> 0 | AB146: =OpCo1!AB2165 -> 0 | AC146: =OpCo1!AC2165 -> 0 | AD146: =OpCo1!AD2165 -> 0 | AE146: =OpCo1!AE2165 -> 0 | AF146: =OpCo1!AF2165 -> 0 | AG146: =OpCo1!AG2165 -> 0 | AH146: =OpCo1!AH2165 -> 0 | AI146: =OpCo1!AI2165 -> 0 | AJ146: =OpCo1!AJ2165 -> 0 | AK146: =OpCo1!AK2165 -> 0 | AL146: =OpCo1!AL2165 -> 0 | AM146: =OpCo1!AM2165 -> 0 | AN146: =OpCo1!AN2165 -> 0 | AO146: =OpCo1!AO2165 -> 0 | AP146: =OpCo1!AP2165 -> 0 | AQ146: =OpCo1!AQ2165 -> 0 | AR146: =OpCo1!AR2165 -> 0 | AS146: =OpCo1!AS2165 -> 0 | AT146: =OpCo1!AT2165 -> 0 | AU146: =OpCo1!AU2165 -> 0 | AV146: =OpCo1!AV2165 -> 0 | AW146: =OpCo1!AW2165 -> 0 | AX146: =OpCo1!AX2165 -> 0 | AY146: =OpCo1!AY2165 -> 0 | AZ146: =OpCo1!AZ2165 -> 0 | BA146: =OpCo1!BA2165 -> 0 | BB146: =OpCo1!BB2165 -> 0 | BC146: =OpCo1!BC2165 -> 0 | BD146: =OpCo1!BD2165 -> 0 | BE146: =OpCo1!BE2165 -> 0 | BF146: =OpCo1!BF2165 -> 0 | BG146: =OpCo1!BG2165 -> 0 | BH146: =OpCo1!BH2165 -> 0 | BI146: =OpCo1!BI2165 -> 0 | BJ146: =OpCo1!BJ2165 -> 0 | BK146: =OpCo1!BK2165 -> 0 | BL146: =OpCo1!BL2165 -> 0 | BM146: =OpCo1!BM2165 -> 0 | BN146: =OpCo1!BN2165 -> 0 | BO146: =OpCo1!BO2165 -> 0 | BP146: =OpCo1!BP2165 -> 0 | BQ146: =OpCo1!BQ2165 -> 0 | BR146: =OpCo1!BR2165 -> 0 | BS146: =OpCo1!BS2165 -> 0 | BT146: =OpCo1!BT2165 -> 0
D147: Deferred tax liability | F147: £000 | G147: =IF($I$4,SYS_Admin!$D$117,SYS_Admin!$D$116) -> Nominal | M147: =OpCo1!M3437 -> 0 | N147: =OpCo1!N3437 -> 0 | O147: =OpCo1!O3437 -> 0 | P147: =OpCo1!P3437 -> 0 | Q147: =OpCo1!Q3437 -> 0 | R147: =OpCo1!R3437 -> 0 | S147: =OpCo1!S3437 -> 0 | T147: =OpCo1!T3437 -> 0 | U147: =OpCo1!U3437 -> 0 | V147: =OpCo1!V3437 -> 0 | W147: =OpCo1!W3437 -> 0 | X147: =OpCo1!X3437 -> 0 | Y147: =OpCo1!Y3437 -> 0 | Z147: =OpCo1!Z3437 -> 0 | AA147: =OpCo1!AA3437 -> 0 | AB147: =OpCo1!AB3437 -> 0 | AC147: =OpCo1!AC3437 -> 0 | AD147: =OpCo1!AD3437 -> 0 | AE147: =OpCo1!AE3437 -> 0 | AF147: =OpCo1!AF3437 -> 0 | AG147: =OpCo1!AG3437 -> 0 | AH147: =OpCo1!AH3437 -> 0 | AI147: =OpCo1!AI3437 -> 0 | AJ147: =OpCo1!AJ3437 -> 0 | AK147: =OpCo1!AK3437 -> 0 | AL147: =OpCo1!AL3437 -> 0 | AM147: =OpCo1!AM3437 -> 0 | AN147: =OpCo1!AN3437 -> 0 | AO147: =OpCo1!AO3437 -> 0 | AP147: =OpCo1!AP3437 -> 0 | AQ147: =OpCo1!AQ3437 -> 0 | AR147: =OpCo1!AR3437 -> 0 | AS147: =OpCo1!AS3437 -> 0 | AT147: =OpCo1!AT3437 -> 0 | AU147: =OpCo1!AU3437 -> 0 | AV147: =OpCo1!AV3437 -> 0 | AW147: =OpCo1!AW3437 -> 0 | AX147: =OpCo1!AX3437 -> 0 | AY147: =OpCo1!AY3437 -> 0 | AZ147: =OpCo1!AZ3437 -> 0 | BA147: =OpCo1!BA3437 -> 0 | BB147: =OpCo1!BB3437 -> 0 | BC147: =OpCo1!BC3437 -> 0 | BD147: =OpCo1!BD3437 -> 0 | BE147: =OpCo1!BE3437 -> 0 | BF147: =OpCo1!BF3437 -> 0 | BG147: =OpCo1!BG3437 -> 0 | BH147: =OpCo1!BH3437 -> 0 | BI147: =OpCo1!BI3437 -> 0 | BJ147: =OpCo1!BJ3437 -> 0 | BK147: =OpCo1!BK3437 -> 0 | BL147: =OpCo1!BL3437 -> 0 | BM147: =OpCo1!BM3437 -> 0 | BN147: =OpCo1!BN3437 -> 0 | BO147: =OpCo1!BO3437 -> 0 | BP147: =OpCo1!BP3437 -> 0 | BQ147: =OpCo1!BQ3437 -> 0 | BR147: =OpCo1!BR3437 -> 0 | BS147: =OpCo1!BS3437 -> 0 | BT147: =OpCo1!BT3437 -> 0
D149: NET ASSETS | F149: £000 | G149: =IF($I$4,SYS_Admin!$D$117,SYS_Admin!$D$116) -> Nominal | M149: =SUM(M98,M114,M139,M143:M144,M147) -> 0 | N149: =SUM(N98,N114,N139,N143:N144,N147) -> 0 | O149: 0 | P149: 0 | Q149: 0 | R149: 0 | S149: 0 | T149: 0 | U149: 0 | V149: 0 | W149: 0 | X149: 0 | Y149: 0 | Z149: 0 | AA149: 0 | AB149: 0 | AC149: 0 | AD149: 0 | AE149: 0 | AF149: 0 | AG149: 0 | AH149: 0 | AI149: 0 | AJ149: 0 | AK149: 0 | AL149: 0 | AM149: 0 | AN149: 0 | AO149: 0 | AP149: 0 | AQ149: 0 | AR149: 0 | AS149: 0 | AT149: 0 | AU149: 0 | AV149: 0 | AW149: 0 | AX149: 0 | AY149: 0 | AZ149: 0 | BA149: 0 | BB149: 0 | BC149: 0 | BD149: 0 | BE149: 0 | BF149: 0 | BG149: 0 | BH149: 0 | BI149: 0 | BJ149: 0 | BK149: 0 | BL149: 0 | BM149: 0 | BN149: 0 | BO149: 0 | BP149: 0 | BQ149: 0 | BR149: 0 | BS149: 0 | BT149: 0
D151: EQUITY
D153: Profit and loss account | F153: £000 | G153: =IF($I$4,SYS_Admin!$D$117,SYS_Admin!$D$116) -> Nominal | M153: =M83 -> 0 | N153: =N83 -> 0 | O153: 0 | P153: 0 | Q153: 0 | R153: 0 | S153: 0 | T153: 0 | U153: 0 | V153: 0 | W153: 0 | X153: 0 | Y153: 0 | Z153: 0 | AA153: 0 | AB153: 0 | AC153: 0 | AD153: 0 | AE153: 0 | AF153: 0 | AG153: 0 | AH153: 0 | AI153: 0 | AJ153: 0 | AK153: 0 | AL153: 0 | AM153: 0 | AN153: 0 | AO153: 0 | AP153: 0 | AQ153: 0 | AR153: 0 | AS153: 0 | AT153: 0 | AU153: 0 | AV153: 0 | AW153: 0 | AX153: 0 | AY153: 0 | AZ153: 0 | BA153: 0 | BB153: 0 | BC153: 0 | BD153: 0 | BE153: 0 | BF153: 0 | BG153: 0 | BH153: 0 | BI153: 0 | BJ153: 0 | BK153: 0 | BL153: 0 | BM153: 0 | BN153: 0 | BO153: 0 | BP153: 0 | BQ153: 0 | BR153: 0 | BS153: 0 | BT153: 0
D154: Share capital | F154: £000 | G154: =IF($I$4,SYS_Admin!$D$117,SYS_Admin!$D$116) -> Nominal | M154: =OpCo1!M3610 -> 0 | N154: =OpCo1!N3610 -> 0 | O154: =OpCo1!O3610 -> 0 | P154: =OpCo1!P3610 -> 0 | Q154: =OpCo1!Q3610 -> 0 | R154: =OpCo1!R3610 -> 0 | S154: =OpCo1!S3610 -> 0 | T154: =OpCo1!T3610 -> 0 | U154: =OpCo1!U3610 -> 0 | V154: =OpCo1!V3610 -> 0 | W154: =OpCo1!W3610 -> 0 | X154: =OpCo1!X3610 -> 0 | Y154: =OpCo1!Y3610 -> 0 | Z154: =OpCo1!Z3610 -> 0 | AA154: =OpCo1!AA3610 -> 0 | AB154: =OpCo1!AB3610 -> 0 | AC154: =OpCo1!AC3610 -> 0 | AD154: =OpCo1!AD3610 -> 0 | AE154: =OpCo1!AE3610 -> 0 | AF154: =OpCo1!AF3610 -> 0 | AG154: =OpCo1!AG3610 -> 0 | AH154: =OpCo1!AH3610 -> 0 | AI154: =OpCo1!AI3610 -> 0 | AJ154: =OpCo1!AJ3610 -> 0 | AK154: =OpCo1!AK3610 -> 0 | AL154: =OpCo1!AL3610 -> 0 | AM154: =OpCo1!AM3610 -> 0 | AN154: =OpCo1!AN3610 -> 0 | AO154: =OpCo1!AO3610 -> 0 | AP154: =OpCo1!AP3610 -> 0 | AQ154: =OpCo1!AQ3610 -> 0 | AR154: =OpCo1!AR3610 -> 0 | AS154: =OpCo1!AS3610 -> 0 | AT154: =OpCo1!AT3610 -> 0 | AU154: =OpCo1!AU3610 -> 0 | AV154: =OpCo1!AV3610 -> 0 | AW154: =OpCo1!AW3610 -> 0 | AX154: =OpCo1!AX3610 -> 0 | AY154: =OpCo1!AY3610 -> 0 | AZ154: =OpCo1!AZ3610 -> 0 | BA154: =OpCo1!BA3610 -> 0 | BB154: =OpCo1!BB3610 -> 0 | BC154: =OpCo1!BC3610 -> 0 | BD154: =OpCo1!BD3610 -> 0 | BE154: =OpCo1!BE3610 -> 0 | BF154: =OpCo1!BF3610 -> 0 | BG154: =OpCo1!BG3610 -> 0 | BH154: =OpCo1!BH3610 -> 0 | BI154: =OpCo1!BI3610 -> 0 | BJ154: =OpCo1!BJ3610 -> 0 | BK154: =OpCo1!BK3610 -> 0 | BL154: =OpCo1!BL3610 -> 0 | BM154: =OpCo1!BM3610 -> 0 | BN154: =OpCo1!BN3610 -> 0 | BO154: =OpCo1!BO3610 -> 0 | BP154: =OpCo1!BP3610 -> 0 | BQ154: =OpCo1!BQ3610 -> 0 | BR154: =OpCo1!BR3610 -> 0 | BS154: =OpCo1!BS3610 -> 0 | BT154: =OpCo1!BT3610 -> 0
D156: EQUITY | F156: £000 | G156: =IF($I$4,SYS_Admin!$D$117,SYS_Admin!$D$116) -> Nominal | M156: =SUM(M153:M154) -> 0 | N156: =SUM(N153:N154) -> 0 | O156: 0 | P156: 0 | Q156: 0 | R156: 0 | S156: 0 | T156: 0 | U156: 0 | V156: 0 | W156: 0 | X156: 0 | Y156: 0 | Z156: 0 | AA156: 0 | AB156: 0 | AC156: 0 | AD156: 0 | AE156: 0 | AF156: 0 | AG156: 0 | AH156: 0 | AI156: 0 | AJ156: 0 | AK156: 0 | AL156: 0 | AM156: 0 | AN156: 0 | AO156: 0 | AP156: 0 | AQ156: 0 | AR156: 0 | AS156: 0 | AT156: 0 | AU156: 0 | AV156: 0 | AW156: 0 | AX156: 0 | AY156: 0 | AZ156: 0 | BA156: 0 | BB156: 0 | BC156: 0 | BD156: 0 | BE156: 0 | BF156: 0 | BG156: 0 | BH156: 0 | BI156: 0 | BJ156: 0 | BK156: 0 | BL156: 0 | BM156: 0 | BN156: 0 | BO156: 0 | BP156: 0 | BQ156: 0 | BR156: 0 | BS156: 0 | BT156: 0
D158: Does balance sheet balance? | F158: Check | I158: =SUM(M158:BT158) -> 0 | M158: =1*(ABS(M149-M156)>dcTolerance) -> 0 | N158: =1*(ABS(N149-N156)>dcTolerance) -> 0 | O158: 0 | P158: 0 | Q158: 0 | R158: 0 | S158: 0 | T158: 0 | U158: 0 | V158: 0 | W158: 0 | X158: 0 | Y158: 0 | Z158: 0 | AA158: 0 | AB158: 0 | AC158: 0 | AD158: 0 | AE158: 0 | AF158: 0 | AG158: 0 | AH158: 0 | AI158: 0 | AJ158: 0 | AK158: 0 | AL158: 0 | AM158: 0 | AN158: 0 | AO158: 0 | AP158: 0 | AQ158: 0 | AR158: 0 | AS158: 0 | AT158: 0 | AU158: 0 | AV158: 0 | AW158: 0 | AX158: 0 | AY158: 0 | AZ158: 0 | BA158: 0 | BB158: 0 | BC158: 0 | BD158: 0 | BE158: 0 | BF158: 0 | BG158: 0 | BH158: 0 | BI158: 0 | BJ158: 0 | BK158: 0 | BL158: 0 | BM158: 0 | BN158: 0 | BO158: 0 | BP158: 0 | BQ158: 0 | BR158: 0 | BS158: 0 | BT158: 0
D159: Cash below zero? | F159: Check | J159: =SUM(M159:BT159) -> 0 | M159: =IF(M216<-dcTolerance,1,0) -> 0 | N159: =IF(N216<-dcTolerance,1,0) -> 0 | O159: 0 | P159: 0 | Q159: 0 | R159: 0 | S159: 0 | T159: 0 | U159: 0 | V159: 0 | W159: 0 | X159: 0 | Y159: 0 | Z159: 0 | AA159: 0 | AB159: 0 | AC159: 0 | AD159: 0 | AE159: 0 | AF159: 0 | AG159: 0 | AH159: 0 | AI159: 0 | AJ159: 0 | AK159: 0 | AL159: 0 | AM159: 0 | AN159: 0 | AO159: 0 | AP159: 0 | AQ159: 0 | AR159: 0 | AS159: 0 | AT159: 0 | AU159: 0 | AV159: 0 | AW159: 0 | AX159: 0 | AY159: 0 | AZ159: 0 | BA159: 0 | BB159: 0 | BC159: 0 | BD159: 0 | BE159: 0 | BF159: 0 | BG159: 0 | BH159: 0 | BI159: 0 | BJ159: 0 | BK159: 0 | BL159: 0 | BM159: 0 | BN159: 0 | BO159: 0 | BP159: 0 | BQ159: 0 | BR159: 0 | BS159: 0 | BT159: 0
C161: =MAX(C$11:C159)+1 -> 3 | D161: STATEMENT OF CASH FLOWS
D163: Cash income from operations | F163: £000 | G163: =IF($I$4,SYS_Admin!$D$117,SYS_Admin!$D$116) -> Nominal | M163: =SUM(M164:M169) -> 0 | N163: =SUM(N164:N169) -> 0 | O163: 0 | P163: 0 | Q163: 0 | R163: 0 | S163: 0 | T163: 0 | U163: 0 | V163: 0 | W163: 0 | X163: 0 | Y163: 0 | Z163: 0 | AA163: 0 | AB163: 0 | AC163: 0 | AD163: 0 | AE163: 0 | AF163: 0 | AG163: 0 | AH163: 0 | AI163: 0 | AJ163: 0 | AK163: 0 | AL163: 0 | AM163: 0 | AN163: 0 | AO163: 0 | AP163: 0 | AQ163: 0 | AR163: 0 | AS163: 0 | AT163: 0 | AU163: 0 | AV163: 0 | AW163: 0 | AX163: 0 | AY163: 0 | AZ163: 0 | BA163: 0 | BB163: 0 | BC163: 0 | BD163: 0 | BE163: 0 | BF163: 0 | BG163: 0 | BH163: 0 | BI163: 0 | BJ163: 0 | BK163: 0 | BL163: 0 | BM163: 0 | BN163: 0 | BO163: 0 | BP163: 0 | BQ163: 0 | BR163: 0 | BS163: 0 | BT163: 0
D164: Private network income | F164: £000 | G164: =IF($I$4,SYS_Admin!$D$117,SYS_Admin!$D$116) -> Nominal | M164: =-OpCo1!M255 -> 0 | N164: =-OpCo1!N255 -> 0 | O164: =-OpCo1!O255 -> 0 | P164: =-OpCo1!P255 -> 0 | Q164: =-OpCo1!Q255 -> 0 | R164: =-OpCo1!R255 -> 0 | S164: =-OpCo1!S255 -> 0 | T164: =-OpCo1!T255 -> 0 | U164: =-OpCo1!U255 -> 0 | V164: =-OpCo1!V255 -> 0 | W164: =-OpCo1!W255 -> 0 | X164: =-OpCo1!X255 -> 0 | Y164: =-OpCo1!Y255 -> 0 | Z164: =-OpCo1!Z255 -> 0 | AA164: =-OpCo1!AA255 -> 0 | AB164: =-OpCo1!AB255 -> 0 | AC164: =-OpCo1!AC255 -> 0 | AD164: =-OpCo1!AD255 -> 0 | AE164: =-OpCo1!AE255 -> 0 | AF164: =-OpCo1!AF255 -> 0 | AG164: =-OpCo1!AG255 -> 0 | AH164: =-OpCo1!AH255 -> 0 | AI164: =-OpCo1!AI255 -> 0 | AJ164: =-OpCo1!AJ255 -> 0 | AK164: =-OpCo1!AK255 -> 0 | AL164: =-OpCo1!AL255 -> 0 | AM164: =-OpCo1!AM255 -> 0 | AN164: =-OpCo1!AN255 -> 0 | AO164: =-OpCo1!AO255 -> 0 | AP164: =-OpCo1!AP255 -> 0 | AQ164: =-OpCo1!AQ255 -> 0 | AR164: =-OpCo1!AR255 -> 0 | AS164: =-OpCo1!AS255 -> 0 | AT164: =-OpCo1!AT255 -> 0 | AU164: =-OpCo1!AU255 -> 0 | AV164: =-OpCo1!AV255 -> 0 | AW164: =-OpCo1!AW255 -> 0 | AX164: =-OpCo1!AX255 -> 0 | AY164: =-OpCo1!AY255 -> 0 | AZ164: =-OpCo1!AZ255 -> 0 | BA164: =-OpCo1!BA255 -> 0 | BB164: =-OpCo1!BB255 -> 0 | BC164: =-OpCo1!BC255 -> 0 | BD164: =-OpCo1!BD255 -> 0 | BE164: =-OpCo1!BE255 -> 0 | BF164: =-OpCo1!BF255 -> 0 | BG164: =-OpCo1!BG255 -> 0 | BH164: =-OpCo1!BH255 -> 0 | BI164: =-OpCo1!BI255 -> 0 | BJ164: =-OpCo1!BJ255 -> 0 | BK164: =-OpCo1!BK255 -> 0 | BL164: =-OpCo1!BL255 -> 0 | BM164: =-OpCo1!BM255 -> 0 | BN164: =-OpCo1!BN255 -> 0 | BO164: =-OpCo1!BO255 -> 0 | BP164: =-OpCo1!BP255 -> 0 | BQ164: =-OpCo1!BQ255 -> 0 | BR164: =-OpCo1!BR255 -> 0 | BS164: =-OpCo1!BS255 -> 0 | BT164: =-OpCo1!BT255 -> 0
D165: National grid exports | F165: £000 | G165: =IF($I$4,SYS_Admin!$D$117,SYS_Admin!$D$116) -> Nominal | M165: =-OpCo1!M271 -> 0 | N165: =-OpCo1!N271 -> 0 | O165: =-OpCo1!O271 -> 0 | P165: =-OpCo1!P271 -> 0 | Q165: =-OpCo1!Q271 -> 0 | R165: =-OpCo1!R271 -> 0 | S165: =-OpCo1!S271 -> 0 | T165: =-OpCo1!T271 -> 0 | U165: =-OpCo1!U271 -> 0 | V165: =-OpCo1!V271 -> 0 | W165: =-OpCo1!W271 -> 0 | X165: =-OpCo1!X271 -> 0 | Y165: =-OpCo1!Y271 -> 0 | Z165: =-OpCo1!Z271 -> 0 | AA165: =-OpCo1!AA271 -> 0 | AB165: =-OpCo1!AB271 -> 0 | AC165: =-OpCo1!AC271 -> 0 | AD165: =-OpCo1!AD271 -> 0 | AE165: =-OpCo1!AE271 -> 0 | AF165: =-OpCo1!AF271 -> 0 | AG165: =-OpCo1!AG271 -> 0 | AH165: =-OpCo1!AH271 -> 0 | AI165: =-OpCo1!AI271 -> 0 | AJ165: =-OpCo1!AJ271 -> 0 | AK165: =-OpCo1!AK271 -> 0 | AL165: =-OpCo1!AL271 -> 0 | AM165: =-OpCo1!AM271 -> 0 | AN165: =-OpCo1!AN271 -> 0 | AO165: =-OpCo1!AO271 -> 0 | AP165: =-OpCo1!AP271 -> 0 | AQ165: =-OpCo1!AQ271 -> 0 | AR165: =-OpCo1!AR271 -> 0 | AS165: =-OpCo1!AS271 -> 0 | AT165: =-OpCo1!AT271 -> 0 | AU165: =-OpCo1!AU271 -> 0 | AV165: =-OpCo1!AV271 -> 0 | AW165: =-OpCo1!AW271 -> 0 | AX165: =-OpCo1!AX271 -> 0 | AY165: =-OpCo1!AY271 -> 0 | AZ165: =-OpCo1!AZ271 -> 0 | BA165: =-OpCo1!BA271 -> 0 | BB165: =-OpCo1!BB271 -> 0 | BC165: =-OpCo1!BC271 -> 0 | BD165: =-OpCo1!BD271 -> 0 | BE165: =-OpCo1!BE271 -> 0 | BF165: =-OpCo1!BF271 -> 0 | BG165: =-OpCo1!BG271 -> 0 | BH165: =-OpCo1!BH271 -> 0 | BI165: =-OpCo1!BI271 -> 0 | BJ165: =-OpCo1!BJ271 -> 0 | BK165: =-OpCo1!BK271 -> 0 | BL165: =-OpCo1!BL271 -> 0 | BM165: =-OpCo1!BM271 -> 0 | BN165: =-OpCo1!BN271 -> 0 | BO165: =-OpCo1!BO271 -> 0 | BP165: =-OpCo1!BP271 -> 0 | BQ165: =-OpCo1!BQ271 -> 0 | BR165: =-OpCo1!BR271 -> 0 | BS165: =-OpCo1!BS271 -> 0 | BT165: =-OpCo1!BT271 -> 0
D166: Energy efficiency income | F166: £000 | G166: =IF($I$4,SYS_Admin!$D$117,SYS_Admin!$D$116) -> Nominal | M166: =-OpCo1!M329 -> 0 | N166: =-OpCo1!N329 -> 0 | O166: =-OpCo1!O329 -> 0 | P166: =-OpCo1!P329 -> 0 | Q166: =-OpCo1!Q329 -> 0 | R166: =-OpCo1!R329 -> 0 | S166: =-OpCo1!S329 -> 0 | T166: =-OpCo1!T329 -> 0 | U166: =-OpCo1!U329 -> 0 | V166: =-OpCo1!V329 -> 0 | W166: =-OpCo1!W329 -> 0 | X166: =-OpCo1!X329 -> 0 | Y166: =-OpCo1!Y329 -> 0 | Z166: =-OpCo1!Z329 -> 0 | AA166: =-OpCo1!AA329 -> 0 | AB166: =-OpCo1!AB329 -> 0 | AC166: =-OpCo1!AC329 -> 0 | AD166: =-OpCo1!AD329 -> 0 | AE166: =-OpCo1!AE329 -> 0 | AF166: =-OpCo1!AF329 -> 0 | AG166: =-OpCo1!AG329 -> 0 | AH166: =-OpCo1!AH329 -> 0 | AI166: =-OpCo1!AI329 -> 0 | AJ166: =-OpCo1!AJ329 -> 0 | AK166: =-OpCo1!AK329 -> 0 | AL166: =-OpCo1!AL329 -> 0 | AM166: =-OpCo1!AM329 -> 0 | AN166: =-OpCo1!AN329 -> 0 | AO166: =-OpCo1!AO329 -> 0 | AP166: =-OpCo1!AP329 -> 0 | AQ166: =-OpCo1!AQ329 -> 0 | AR166: =-OpCo1!AR329 -> 0 | AS166: =-OpCo1!AS329 -> 0 | AT166: =-OpCo1!AT329 -> 0 | AU166: =-OpCo1!AU329 -> 0 | AV166: =-OpCo1!AV329 -> 0 | AW166: =-OpCo1!AW329 -> 0 | AX166: =-OpCo1!AX329 -> 0 | AY166: =-OpCo1!AY329 -> 0 | AZ166: =-OpCo1!AZ329 -> 0 | BA166: =-OpCo1!BA329 -> 0 | BB166: =-OpCo1!BB329 -> 0 | BC166: =-OpCo1!BC329 -> 0 | BD166: =-OpCo1!BD329 -> 0 | BE166: =-OpCo1!BE329 -> 0 | BF166: =-OpCo1!BF329 -> 0 | BG166: =-OpCo1!BG329 -> 0 | BH166: =-OpCo1!BH329 -> 0 | BI166: =-OpCo1!BI329 -> 0 | BJ166: =-OpCo1!BJ329 -> 0 | BK166: =-OpCo1!BK329 -> 0 | BL166: =-OpCo1!BL329 -> 0 | BM166: =-OpCo1!BM329 -> 0 | BN166: =-OpCo1!BN329 -> 0 | BO166: =-OpCo1!BO329 -> 0 | BP166: =-OpCo1!BP329 -> 0 | BQ166: =-OpCo1!BQ329 -> 0 | BR166: =-OpCo1!BR329 -> 0 | BS166: =-OpCo1!BS329 -> 0 | BT166: =-OpCo1!BT329 -> 0
A167: =SYS_Admin!$G$815 -> IC Paid | D167: Inter-company sales | F167: £000 | G167: =IF($I$4,SYS_Admin!$D$117,SYS_Admin!$D$116) -> Nominal | M167: =-OpCo1!M490 -> 0 | N167: =-OpCo1!N490 -> 0 | O167: =-OpCo1!O490 -> 0 | P167: =-OpCo1!P490 -> 0 | Q167: =-OpCo1!Q490 -> 0 | R167: =-OpCo1!R490 -> 0 | S167: =-OpCo1!S490 -> 0 | T167: =-OpCo1!T490 -> 0 | U167: =-OpCo1!U490 -> 0 | V167: =-OpCo1!V490 -> 0 | W167: =-OpCo1!W490 -> 0 | X167: =-OpCo1!X490 -> 0 | Y167: =-OpCo1!Y490 -> 0 | Z167: =-OpCo1!Z490 -> 0 | AA167: =-OpCo1!AA490 -> 0 | AB167: =-OpCo1!AB490 -> 0 | AC167: =-OpCo1!AC490 -> 0 | AD167: =-OpCo1!AD490 -> 0 | AE167: =-OpCo1!AE490 -> 0 | AF167: =-OpCo1!AF490 -> 0 | AG167: =-OpCo1!AG490 -> 0 | AH167: =-OpCo1!AH490 -> 0 | AI167: =-OpCo1!AI490 -> 0 | AJ167: =-OpCo1!AJ490 -> 0 | AK167: =-OpCo1!AK490 -> 0 | AL167: =-OpCo1!AL490 -> 0 | AM167: =-OpCo1!AM490 -> 0 | AN167: =-OpCo1!AN490 -> 0 | AO167: =-OpCo1!AO490 -> 0 | AP167: =-OpCo1!AP490 -> 0 | AQ167: =-OpCo1!AQ490 -> 0 | AR167: =-OpCo1!AR490 -> 0 | AS167: =-OpCo1!AS490 -> 0 | AT167: =-OpCo1!AT490 -> 0 | AU167: =-OpCo1!AU490 -> 0 | AV167: =-OpCo1!AV490 -> 0 | AW167: =-OpCo1!AW490 -> 0 | AX167: =-OpCo1!AX490 -> 0 | AY167: =-OpCo1!AY490 -> 0 | AZ167: =-OpCo1!AZ490 -> 0 | BA167: =-OpCo1!BA490 -> 0 | BB167: =-OpCo1!BB490 -> 0 | BC167: =-OpCo1!BC490 -> 0 | BD167: =-OpCo1!BD490 -> 0 | BE167: =-OpCo1!BE490 -> 0 | BF167: =-OpCo1!BF490 -> 0 | BG167: =-OpCo1!BG490 -> 0 | BH167: =-OpCo1!BH490 -> 0 | BI167: =-OpCo1!BI490 -> 0 | BJ167: =-OpCo1!BJ490 -> 0 | BK167: =-OpCo1!BK490 -> 0 | BL167: =-OpCo1!BL490 -> 0 | BM167: =-OpCo1!BM490 -> 0 | BN167: =-OpCo1!BN490 -> 0 | BO167: =-OpCo1!BO490 -> 0 | BP167: =-OpCo1!BP490 -> 0 | BQ167: =-OpCo1!BQ490 -> 0 | BR167: =-OpCo1!BR490 -> 0 | BS167: =-OpCo1!BS490 -> 0 | BT167: =-OpCo1!BT490 -> 0
D168: Other income | F168: £000 | G168: =IF($I$4,SYS_Admin!$D$117,SYS_Admin!$D$116) -> Nominal | M168: =-OpCo1!M387 -> 0 | N168: =-OpCo1!N387 -> 0 | O168: =-OpCo1!O387 -> 0 | P168: =-OpCo1!P387 -> 0 | Q168: =-OpCo1!Q387 -> 0 | R168: =-OpCo1!R387 -> 0 | S168: =-OpCo1!S387 -> 0 | T168: =-OpCo1!T387 -> 0 | U168: =-OpCo1!U387 -> 0 | V168: =-OpCo1!V387 -> 0 | W168: =-OpCo1!W387 -> 0 | X168: =-OpCo1!X387 -> 0 | Y168: =-OpCo1!Y387 -> 0 | Z168: =-OpCo1!Z387 -> 0 | AA168: =-OpCo1!AA387 -> 0 | AB168: =-OpCo1!AB387 -> 0 | AC168: =-OpCo1!AC387 -> 0 | AD168: =-OpCo1!AD387 -> 0 | AE168: =-OpCo1!AE387 -> 0 | AF168: =-OpCo1!AF387 -> 0 | AG168: =-OpCo1!AG387 -> 0 | AH168: =-OpCo1!AH387 -> 0 | AI168: =-OpCo1!AI387 -> 0 | AJ168: =-OpCo1!AJ387 -> 0 | AK168: =-OpCo1!AK387 -> 0 | AL168: =-OpCo1!AL387 -> 0 | AM168: =-OpCo1!AM387 -> 0 | AN168: =-OpCo1!AN387 -> 0 | AO168: =-OpCo1!AO387 -> 0 | AP168: =-OpCo1!AP387 -> 0 | AQ168: =-OpCo1!AQ387 -> 0 | AR168: =-OpCo1!AR387 -> 0 | AS168: =-OpCo1!AS387 -> 0 | AT168: =-OpCo1!AT387 -> 0 | AU168: =-OpCo1!AU387 -> 0 | AV168: =-OpCo1!AV387 -> 0 | AW168: =-OpCo1!AW387 -> 0 | AX168: =-OpCo1!AX387 -> 0 | AY168: =-OpCo1!AY387 -> 0 | AZ168: =-OpCo1!AZ387 -> 0 | BA168: =-OpCo1!BA387 -> 0 | BB168: =-OpCo1!BB387 -> 0 | BC168: =-OpCo1!BC387 -> 0 | BD168: =-OpCo1!BD387 -> 0 | BE168: =-OpCo1!BE387 -> 0 | BF168: =-OpCo1!BF387 -> 0 | BG168: =-OpCo1!BG387 -> 0 | BH168: =-OpCo1!BH387 -> 0 | BI168: =-OpCo1!BI387 -> 0 | BJ168: =-OpCo1!BJ387 -> 0 | BK168: =-OpCo1!BK387 -> 0 | BL168: =-OpCo1!BL387 -> 0 | BM168: =-OpCo1!BM387 -> 0 | BN168: =-OpCo1!BN387 -> 0 | BO168: =-OpCo1!BO387 -> 0 | BP168: =-OpCo1!BP387 -> 0 | BQ168: =-OpCo1!BQ387 -> 0 | BR168: =-OpCo1!BR387 -> 0 | BS168: =-OpCo1!BS387 -> 0 | BT168: =-OpCo1!BT387 -> 0
A169: =SYS_Admin!$G$816 -> Taxes Paid | D169: VAT from customers | F169: £000 | G169: =IF($I$4,SYS_Admin!$D$117,SYS_Admin!$D$116) -> Nominal | M169: =-OpCo1!M2823 -> 0 | N169: =-OpCo1!N2823 -> 0 | O169: =-OpCo1!O2823 -> 0 | P169: =-OpCo1!P2823 -> 0 | Q169: =-OpCo1!Q2823 -> 0 | R169: =-OpCo1!R2823 -> 0 | S169: =-OpCo1!S2823 -> 0 | T169: =-OpCo1!T2823 -> 0 | U169: =-OpCo1!U2823 -> 0 | V169: =-OpCo1!V2823 -> 0 | W169: =-OpCo1!W2823 -> 0 | X169: =-OpCo1!X2823 -> 0 | Y169: =-OpCo1!Y2823 -> 0 | Z169: =-OpCo1!Z2823 -> 0 | AA169: =-OpCo1!AA2823 -> 0 | AB169: =-OpCo1!AB2823 -> 0 | AC169: =-OpCo1!AC2823 -> 0 | AD169: =-OpCo1!AD2823 -> 0 | AE169: =-OpCo1!AE2823 -> 0 | AF169: =-OpCo1!AF2823 -> 0 | AG169: =-OpCo1!AG2823 -> 0 | AH169: =-OpCo1!AH2823 -> 0 | AI169: =-OpCo1!AI2823 -> 0 | AJ169: =-OpCo1!AJ2823 -> 0 | AK169: =-OpCo1!AK2823 -> 0 | AL169: =-OpCo1!AL2823 -> 0 | AM169: =-OpCo1!AM2823 -> 0 | AN169: =-OpCo1!AN2823 -> 0 | AO169: =-OpCo1!AO2823 -> 0 | AP169: =-OpCo1!AP2823 -> 0 | AQ169: =-OpCo1!AQ2823 -> 0 | AR169: =-OpCo1!AR2823 -> 0 | AS169: =-OpCo1!AS2823 -> 0 | AT169: =-OpCo1!AT2823 -> 0 | AU169: =-OpCo1!AU2823 -> 0 | AV169: =-OpCo1!AV2823 -> 0 | AW169: =-OpCo1!AW2823 -> 0 | AX169: =-OpCo1!AX2823 -> 0 | AY169: =-OpCo1!AY2823 -> 0 | AZ169: =-OpCo1!AZ2823 -> 0 | BA169: =-OpCo1!BA2823 -> 0 | BB169: =-OpCo1!BB2823 -> 0 | BC169: =-OpCo1!BC2823 -> 0 | BD169: =-OpCo1!BD2823 -> 0 | BE169: =-OpCo1!BE2823 -> 0 | BF169: =-OpCo1!BF2823 -> 0 | BG169: =-OpCo1!BG2823 -> 0 | BH169: =-OpCo1!BH2823 -> 0 | BI169: =-OpCo1!BI2823 -> 0 | BJ169: =-OpCo1!BJ2823 -> 0 | BK169: =-OpCo1!BK2823 -> 0 | BL169: =-OpCo1!BL2823 -> 0 | BM169: =-OpCo1!BM2823 -> 0 | BN169: =-OpCo1!BN2823 -> 0 | BO169: =-OpCo1!BO2823 -> 0 | BP169: =-OpCo1!BP2823 -> 0 | BQ169: =-OpCo1!BQ2823 -> 0 | BR169: =-OpCo1!BR2823 -> 0 | BS169: =-OpCo1!BS2823 -> 0 | BT169: =-OpCo1!BT2823 -> 0
D171: Cash expenditure from operations | F171: £000 | G171: =IF($I$4,SYS_Admin!$D$117,SYS_Admin!$D$116) -> Nominal | M171: =SUM(M172:M182) -> 0 | N171: =SUM(N172:N182) -> 0 | O171: 0 | P171: 0 | Q171: 0 | R171: 0 | S171: 0 | T171: 0 | U171: 0 | V171: 0 | W171: 0 | X171: 0 | Y171: 0 | Z171: 0 | AA171: 0 | AB171: 0 | AC171: 0 | AD171: 0 | AE171: 0 | AF171: 0 | AG171: 0 | AH171: 0 | AI171: 0 | AJ171: 0 | AK171: 0 | AL171: 0 | AM171: 0 | AN171: 0 | AO171: 0 | AP171: 0 | AQ171: 0 | AR171: 0 | AS171: 0 | AT171: 0 | AU171: 0 | AV171: 0 | AW171: 0 | AX171: 0 | AY171: 0 | AZ171: 0 | BA171: 0 | BB171: 0 | BC171: 0 | BD171: 0 | BE171: 0 | BF171: 0 | BG171: 0 | BH171: 0 | BI171: 0 | BJ171: 0 | BK171: 0 | BL171: 0 | BM171: 0 | BN171: 0 | BO171: 0 | BP171: 0 | BQ171: 0 | BR171: 0 | BS171: 0 | BT171: 0
D172: O&M | F172: £000 | G172: =IF($I$4,SYS_Admin!$D$117,SYS_Admin!$D$116) -> Nominal | M172: =-OpCo1!M194 -> 0 | N172: =-OpCo1!N194 -> 0 | O172: =-OpCo1!O194 -> 0 | P172: =-OpCo1!P194 -> 0 | Q172: =-OpCo1!Q194 -> 0 | R172: =-OpCo1!R194 -> 0 | S172: =-OpCo1!S194 -> 0 | T172: =-OpCo1!T194 -> 0 | U172: =-OpCo1!U194 -> 0 | V172: =-OpCo1!V194 -> 0 | W172: =-OpCo1!W194 -> 0 | X172: =-OpCo1!X194 -> 0 | Y172: =-OpCo1!Y194 -> 0 | Z172: =-OpCo1!Z194 -> 0 | AA172: =-OpCo1!AA194 -> 0 | AB172: =-OpCo1!AB194 -> 0 | AC172: =-OpCo1!AC194 -> 0 | AD172: =-OpCo1!AD194 -> 0 | AE172: =-OpCo1!AE194 -> 0 | AF172: =-OpCo1!AF194 -> 0 | AG172: =-OpCo1!AG194 -> 0 | AH172: =-OpCo1!AH194 -> 0 | AI172: =-OpCo1!AI194 -> 0 | AJ172: =-OpCo1!AJ194 -> 0 | AK172: =-OpCo1!AK194 -> 0 | AL172: =-OpCo1!AL194 -> 0 | AM172: =-OpCo1!AM194 -> 0 | AN172: =-OpCo1!AN194 -> 0 | AO172: =-OpCo1!AO194 -> 0 | AP172: =-OpCo1!AP194 -> 0 | AQ172: =-OpCo1!AQ194 -> 0 | AR172: =-OpCo1!AR194 -> 0 | AS172: =-OpCo1!AS194 -> 0 | AT172: =-OpCo1!AT194 -> 0 | AU172: =-OpCo1!AU194 -> 0 | AV172: =-OpCo1!AV194 -> 0 | AW172: =-OpCo1!AW194 -> 0 | AX172: =-OpCo1!AX194 -> 0 | AY172: =-OpCo1!AY194 -> 0 | AZ172: =-OpCo1!AZ194 -> 0 | BA172: =-OpCo1!BA194 -> 0 | BB172: =-OpCo1!BB194 -> 0 | BC172: =-OpCo1!BC194 -> 0 | BD172: =-OpCo1!BD194 -> 0 | BE172: =-OpCo1!BE194 -> 0 | BF172: =-OpCo1!BF194 -> 0 | BG172: =-OpCo1!BG194 -> 0 | BH172: =-OpCo1!BH194 -> 0 | BI172: =-OpCo1!BI194 -> 0 | BJ172: =-OpCo1!BJ194 -> 0 | BK172: =-OpCo1!BK194 -> 0 | BL172: =-OpCo1!BL194 -> 0 | BM172: =-OpCo1!BM194 -> 0 | BN172: =-OpCo1!BN194 -> 0 | BO172: =-OpCo1!BO194 -> 0 | BP172: =-OpCo1!BP194 -> 0 | BQ172: =-OpCo1!BQ194 -> 0 | BR172: =-OpCo1!BR194 -> 0 | BS172: =-OpCo1!BS194 -> 0 | BT172: =-OpCo1!BT194 -> 0
A173: =SYS_Admin!$G$816 -> Taxes Paid | D173: Irrecoverable VAT on O&M | F173: £000 | G173: =IF($I$4,SYS_Admin!$D$117,SYS_Admin!$D$116) -> Nominal | M173: =-OpCo1!M2887 -> 0 | N173: =-OpCo1!N2887 -> 0 | O173: =-OpCo1!O2887 -> 0 | P173: =-OpCo1!P2887 -> 0 | Q173: =-OpCo1!Q2887 -> 0 | R173: =-OpCo1!R2887 -> 0 | S173: =-OpCo1!S2887 -> 0 | T173: =-OpCo1!T2887 -> 0 | U173: =-OpCo1!U2887 -> 0 | V173: =-OpCo1!V2887 -> 0 | W173: =-OpCo1!W2887 -> 0 | X173: =-OpCo1!X2887 -> 0 | Y173: =-OpCo1!Y2887 -> 0 | Z173: =-OpCo1!Z2887 -> 0 | AA173: =-OpCo1!AA2887 -> 0 | AB173: =-OpCo1!AB2887 -> 0 | AC173: =-OpCo1!AC2887 -> 0 | AD173: =-OpCo1!AD2887 -> 0 | AE173: =-OpCo1!AE2887 -> 0 | AF173: =-OpCo1!AF2887 -> 0 | AG173: =-OpCo1!AG2887 -> 0 | AH173: =-OpCo1!AH2887 -> 0 | AI173: =-OpCo1!AI2887 -> 0 | AJ173: =-OpCo1!AJ2887 -> 0 | AK173: =-OpCo1!AK2887 -> 0 | AL173: =-OpCo1!AL2887 -> 0 | AM173: =-OpCo1!AM2887 -> 0 | AN173: =-OpCo1!AN2887 -> 0 | AO173: =-OpCo1!AO2887 -> 0 | AP173: =-OpCo1!AP2887 -> 0 | AQ173: =-OpCo1!AQ2887 -> 0 | AR173: =-OpCo1!AR2887 -> 0 | AS173: =-OpCo1!AS2887 -> 0 | AT173: =-OpCo1!AT2887 -> 0 | AU173: =-OpCo1!AU2887 -> 0 | AV173: =-OpCo1!AV2887 -> 0 | AW173: =-OpCo1!AW2887 -> 0 | AX173: =-OpCo1!AX2887 -> 0 | AY173: =-OpCo1!AY2887 -> 0 | AZ173: =-OpCo1!AZ2887 -> 0 | BA173: =-OpCo1!BA2887 -> 0 | BB173: =-OpCo1!BB2887 -> 0 | BC173: =-OpCo1!BC2887 -> 0 | BD173: =-OpCo1!BD2887 -> 0 | BE173: =-OpCo1!BE2887 -> 0 | BF173: =-OpCo1!BF2887 -> 0 | BG173: =-OpCo1!BG2887 -> 0 | BH173: =-OpCo1!BH2887 -> 0 | BI173: =-OpCo1!BI2887 -> 0 | BJ173: =-OpCo1!BJ2887 -> 0 | BK173: =-OpCo1!BK2887 -> 0 | BL173: =-OpCo1!BL2887 -> 0 | BM173: =-OpCo1!BM2887 -> 0 | BN173: =-OpCo1!BN2887 -> 0 | BO173: =-OpCo1!BO2887 -> 0 | BP173: =-OpCo1!BP2887 -> 0 | BQ173: =-OpCo1!BQ2887 -> 0 | BR173: =-OpCo1!BR2887 -> 0 | BS173: =-OpCo1!BS2887 -> 0 | BT173: =-OpCo1!BT2887 -> 0
D174: Fuel | F174: £000 | G174: =IF($I$4,SYS_Admin!$D$117,SYS_Admin!$D$116) -> Nominal | M174: =-OpCo1!M208 -> 0 | N174: =-OpCo1!N208 -> 0 | O174: =-OpCo1!O208 -> 0 | P174: =-OpCo1!P208 -> 0 | Q174: =-OpCo1!Q208 -> 0 | R174: =-OpCo1!R208 -> 0 | S174: =-OpCo1!S208 -> 0 | T174: =-OpCo1!T208 -> 0 | U174: =-OpCo1!U208 -> 0 | V174: =-OpCo1!V208 -> 0 | W174: =-OpCo1!W208 -> 0 | X174: =-OpCo1!X208 -> 0 | Y174: =-OpCo1!Y208 -> 0 | Z174: =-OpCo1!Z208 -> 0 | AA174: =-OpCo1!AA208 -> 0 | AB174: =-OpCo1!AB208 -> 0 | AC174: =-OpCo1!AC208 -> 0 | AD174: =-OpCo1!AD208 -> 0 | AE174: =-OpCo1!AE208 -> 0 | AF174: =-OpCo1!AF208 -> 0 | AG174: =-OpCo1!AG208 -> 0 | AH174: =-OpCo1!AH208 -> 0 | AI174: =-OpCo1!AI208 -> 0 | AJ174: =-OpCo1!AJ208 -> 0 | AK174: =-OpCo1!AK208 -> 0 | AL174: =-OpCo1!AL208 -> 0 | AM174: =-OpCo1!AM208 -> 0 | AN174: =-OpCo1!AN208 -> 0 | AO174: =-OpCo1!AO208 -> 0 | AP174: =-OpCo1!AP208 -> 0 | AQ174: =-OpCo1!AQ208 -> 0 | AR174: =-OpCo1!AR208 -> 0 | AS174: =-OpCo1!AS208 -> 0 | AT174: =-OpCo1!AT208 -> 0 | AU174: =-OpCo1!AU208 -> 0 | AV174: =-OpCo1!AV208 -> 0 | AW174: =-OpCo1!AW208 -> 0 | AX174: =-OpCo1!AX208 -> 0 | AY174: =-OpCo1!AY208 -> 0 | AZ174: =-OpCo1!AZ208 -> 0 | BA174: =-OpCo1!BA208 -> 0 | BB174: =-OpCo1!BB208 -> 0 | BC174: =-OpCo1!BC208 -> 0 | BD174: =-OpCo1!BD208 -> 0 | BE174: =-OpCo1!BE208 -> 0 | BF174: =-OpCo1!BF208 -> 0 | BG174: =-OpCo1!BG208 -> 0 | BH174: =-OpCo1!BH208 -> 0 | BI174: =-OpCo1!BI208 -> 0 | BJ174: =-OpCo1!BJ208 -> 0 | BK174: =-OpCo1!BK208 -> 0 | BL174: =-OpCo1!BL208 -> 0 | BM174: =-OpCo1!BM208 -> 0 | BN174: =-OpCo1!BN208 -> 0 | BO174: =-OpCo1!BO208 -> 0 | BP174: =-OpCo1!BP208 -> 0 | BQ174: =-OpCo1!BQ208 -> 0 | BR174: =-OpCo1!BR208 -> 0 | BS174: =-OpCo1!BS208 -> 0 | BT174: =-OpCo1!BT208 -> 0
A175: =SYS_Admin!$G$816 -> Taxes Paid | D175: Irrecoverable VAT on fuel | F175: £000 | G175: =IF($I$4,SYS_Admin!$D$117,SYS_Admin!$D$116) -> Nominal | M175: =-OpCo1!M2901 -> 0 | N175: =-OpCo1!N2901 -> 0 | O175: =-OpCo1!O2901 -> 0 | P175: =-OpCo1!P2901 -> 0 | Q175: =-OpCo1!Q2901 -> 0 | R175: =-OpCo1!R2901 -> 0 | S175: =-OpCo1!S2901 -> 0 | T175: =-OpCo1!T2901 -> 0 | U175: =-OpCo1!U2901 -> 0 | V175: =-OpCo1!V2901 -> 0 | W175: =-OpCo1!W2901 -> 0 | X175: =-OpCo1!X2901 -> 0 | Y175: =-OpCo1!Y2901 -> 0 | Z175: =-OpCo1!Z2901 -> 0 | AA175: =-OpCo1!AA2901 -> 0 | AB175: =-OpCo1!AB2901 -> 0 | AC175: =-OpCo1!AC2901 -> 0 | AD175: =-OpCo1!AD2901 -> 0 | AE175: =-OpCo1!AE2901 -> 0 | AF175: =-OpCo1!AF2901 -> 0 | AG175: =-OpCo1!AG2901 -> 0 | AH175: =-OpCo1!AH2901 -> 0 | AI175: =-OpCo1!AI2901 -> 0 | AJ175: =-OpCo1!AJ2901 -> 0 | AK175: =-OpCo1!AK2901 -> 0 | AL175: =-OpCo1!AL2901 -> 0 | AM175: =-OpCo1!AM2901 -> 0 | AN175: =-OpCo1!AN2901 -> 0 | AO175: =-OpCo1!AO2901 -> 0 | AP175: =-OpCo1!AP2901 -> 0 | AQ175: =-OpCo1!AQ2901 -> 0 | AR175: =-OpCo1!AR2901 -> 0 | AS175: =-OpCo1!AS2901 -> 0 | AT175: =-OpCo1!AT2901 -> 0 | AU175: =-OpCo1!AU2901 -> 0 | AV175: =-OpCo1!AV2901 -> 0 | AW175: =-OpCo1!AW2901 -> 0 | AX175: =-OpCo1!AX2901 -> 0 | AY175: =-OpCo1!AY2901 -> 0 | AZ175: =-OpCo1!AZ2901 -> 0 | BA175: =-OpCo1!BA2901 -> 0 | BB175: =-OpCo1!BB2901 -> 0 | BC175: =-OpCo1!BC2901 -> 0 | BD175: =-OpCo1!BD2901 -> 0 | BE175: =-OpCo1!BE2901 -> 0 | BF175: =-OpCo1!BF2901 -> 0 | BG175: =-OpCo1!BG2901 -> 0 | BH175: =-OpCo1!BH2901 -> 0 | BI175: =-OpCo1!BI2901 -> 0 | BJ175: =-OpCo1!BJ2901 -> 0 | BK175: =-OpCo1!BK2901 -> 0 | BL175: =-OpCo1!BL2901 -> 0 | BM175: =-OpCo1!BM2901 -> 0 | BN175: =-OpCo1!BN2901 -> 0 | BO175: =-OpCo1!BO2901 -> 0 | BP175: =-OpCo1!BP2901 -> 0 | BQ175: =-OpCo1!BQ2901 -> 0 | BR175: =-OpCo1!BR2901 -> 0 | BS175: =-OpCo1!BS2901 -> 0 | BT175: =-OpCo1!BT2901 -> 0
A176: =SYS_Admin!$G$816 -> Taxes Paid | D176: Recoverable VAT payable to suppliers | F176: £000 | G176: =IF($I$4,SYS_Admin!$D$117,SYS_Admin!$D$116) -> Nominal | M176: =-OpCo1!M2837 -> 0 | N176: =-OpCo1!N2837 -> 0 | O176: =-OpCo1!O2837 -> 0 | P176: =-OpCo1!P2837 -> 0 | Q176: =-OpCo1!Q2837 -> 0 | R176: =-OpCo1!R2837 -> 0 | S176: =-OpCo1!S2837 -> 0 | T176: =-OpCo1!T2837 -> 0 | U176: =-OpCo1!U2837 -> 0 | V176: =-OpCo1!V2837 -> 0 | W176: =-OpCo1!W2837 -> 0 | X176: =-OpCo1!X2837 -> 0 | Y176: =-OpCo1!Y2837 -> 0 | Z176: =-OpCo1!Z2837 -> 0 | AA176: =-OpCo1!AA2837 -> 0 | AB176: =-OpCo1!AB2837 -> 0 | AC176: =-OpCo1!AC2837 -> 0 | AD176: =-OpCo1!AD2837 -> 0 | AE176: =-OpCo1!AE2837 -> 0 | AF176: =-OpCo1!AF2837 -> 0 | AG176: =-OpCo1!AG2837 -> 0 | AH176: =-OpCo1!AH2837 -> 0 | AI176: =-OpCo1!AI2837 -> 0 | AJ176: =-OpCo1!AJ2837 -> 0 | AK176: =-OpCo1!AK2837 -> 0 | AL176: =-OpCo1!AL2837 -> 0 | AM176: =-OpCo1!AM2837 -> 0 | AN176: =-OpCo1!AN2837 -> 0 | AO176: =-OpCo1!AO2837 -> 0 | AP176: =-OpCo1!AP2837 -> 0 | AQ176: =-OpCo1!AQ2837 -> 0 | AR176: =-OpCo1!AR2837 -> 0 | AS176: =-OpCo1!AS2837 -> 0 | AT176: =-OpCo1!AT2837 -> 0 | AU176: =-OpCo1!AU2837 -> 0 | AV176: =-OpCo1!AV2837 -> 0 | AW176: =-OpCo1!AW2837 -> 0 | AX176: =-OpCo1!AX2837 -> 0 | AY176: =-OpCo1!AY2837 -> 0 | AZ176: =-OpCo1!AZ2837 -> 0 | BA176: =-OpCo1!BA2837 -> 0 | BB176: =-OpCo1!BB2837 -> 0 | BC176: =-OpCo1!BC2837 -> 0 | BD176: =-OpCo1!BD2837 -> 0 | BE176: =-OpCo1!BE2837 -> 0 | BF176: =-OpCo1!BF2837 -> 0 | BG176: =-OpCo1!BG2837 -> 0 | BH176: =-OpCo1!BH2837 -> 0 | BI176: =-OpCo1!BI2837 -> 0 | BJ176: =-OpCo1!BJ2837 -> 0 | BK176: =-OpCo1!BK2837 -> 0 | BL176: =-OpCo1!BL2837 -> 0 | BM176: =-OpCo1!BM2837 -> 0 | BN176: =-OpCo1!BN2837 -> 0 | BO176: =-OpCo1!BO2837 -> 0 | BP176: =-OpCo1!BP2837 -> 0 | BQ176: =-OpCo1!BQ2837 -> 0 | BR176: =-OpCo1!BR2837 -> 0 | BS176: =-OpCo1!BS2837 -> 0 | BT176: =-OpCo1!BT2837 -> 0
D177: CCL | F177: £000 | G177: =IF($I$4,SYS_Admin!$D$117,SYS_Admin!$D$116) -> Nominal | M177: =-OpCo1!M222 -> 0 | N177: =-OpCo1!N222 -> 0 | O177: =-OpCo1!O222 -> 0 | P177: =-OpCo1!P222 -> 0 | Q177: =-OpCo1!Q222 -> 0 | R177: =-OpCo1!R222 -> 0 | S177: =-OpCo1!S222 -> 0 | T177: =-OpCo1!T222 -> 0 | U177: =-OpCo1!U222 -> 0 | V177: =-OpCo1!V222 -> 0 | W177: =-OpCo1!W222 -> 0 | X177: =-OpCo1!X222 -> 0 | Y177: =-OpCo1!Y222 -> 0 | Z177: =-OpCo1!Z222 -> 0 | AA177: =-OpCo1!AA222 -> 0 | AB177: =-OpCo1!AB222 -> 0 | AC177: =-OpCo1!AC222 -> 0 | AD177: =-OpCo1!AD222 -> 0 | AE177: =-OpCo1!AE222 -> 0 | AF177: =-OpCo1!AF222 -> 0 | AG177: =-OpCo1!AG222 -> 0 | AH177: =-OpCo1!AH222 -> 0 | AI177: =-OpCo1!AI222 -> 0 | AJ177: =-OpCo1!AJ222 -> 0 | AK177: =-OpCo1!AK222 -> 0 | AL177: =-OpCo1!AL222 -> 0 | AM177: =-OpCo1!AM222 -> 0 | AN177: =-OpCo1!AN222 -> 0 | AO177: =-OpCo1!AO222 -> 0 | AP177: =-OpCo1!AP222 -> 0 | AQ177: =-OpCo1!AQ222 -> 0 | AR177: =-OpCo1!AR222 -> 0 | AS177: =-OpCo1!AS222 -> 0 | AT177: =-OpCo1!AT222 -> 0 | AU177: =-OpCo1!AU222 -> 0 | AV177: =-OpCo1!AV222 -> 0 | AW177: =-OpCo1!AW222 -> 0 | AX177: =-OpCo1!AX222 -> 0 | AY177: =-OpCo1!AY222 -> 0 | AZ177: =-OpCo1!AZ222 -> 0 | BA177: =-OpCo1!BA222 -> 0 | BB177: =-OpCo1!BB222 -> 0 | BC177: =-OpCo1!BC222 -> 0 | BD177: =-OpCo1!BD222 -> 0 | BE177: =-OpCo1!BE222 -> 0 | BF177: =-OpCo1!BF222 -> 0 | BG177: =-OpCo1!BG222 -> 0 | BH177: =-OpCo1!BH222 -> 0 | BI177: =-OpCo1!BI222 -> 0 | BJ177: =-OpCo1!BJ222 -> 0 | BK177: =-OpCo1!BK222 -> 0 | BL177: =-OpCo1!BL222 -> 0 | BM177: =-OpCo1!BM222 -> 0 | BN177: =-OpCo1!BN222 -> 0 | BO177: =-OpCo1!BO222 -> 0 | BP177: =-OpCo1!BP222 -> 0 | BQ177: =-OpCo1!BQ222 -> 0 | BR177: =-OpCo1!BR222 -> 0 | BS177: =-OpCo1!BS222 -> 0 | BT177: =-OpCo1!BT222 -> 0
A178: =SYS_Admin!$G$815 -> IC Paid | D178: I/C purchases | F178: £000 | G178: =IF($I$4,SYS_Admin!$D$117,SYS_Admin!$D$116) -> Nominal | M178: =-OpCo1!M506 -> 0 | N178: =-OpCo1!N506 -> 0 | O178: =-OpCo1!O506 -> 0 | P178: =-OpCo1!P506 -> 0 | Q178: =-OpCo1!Q506 -> 0 | R178: =-OpCo1!R506 -> 0 | S178: =-OpCo1!S506 -> 0 | T178: =-OpCo1!T506 -> 0 | U178: =-OpCo1!U506 -> 0 | V178: =-OpCo1!V506 -> 0 | W178: =-OpCo1!W506 -> 0 | X178: =-OpCo1!X506 -> 0 | Y178: =-OpCo1!Y506 -> 0 | Z178: =-OpCo1!Z506 -> 0 | AA178: =-OpCo1!AA506 -> 0 | AB178: =-OpCo1!AB506 -> 0 | AC178: =-OpCo1!AC506 -> 0 | AD178: =-OpCo1!AD506 -> 0 | AE178: =-OpCo1!AE506 -> 0 | AF178: =-OpCo1!AF506 -> 0 | AG178: =-OpCo1!AG506 -> 0 | AH178: =-OpCo1!AH506 -> 0 | AI178: =-OpCo1!AI506 -> 0 | AJ178: =-OpCo1!AJ506 -> 0 | AK178: =-OpCo1!AK506 -> 0 | AL178: =-OpCo1!AL506 -> 0 | AM178: =-OpCo1!AM506 -> 0 | AN178: =-OpCo1!AN506 -> 0 | AO178: =-OpCo1!AO506 -> 0 | AP178: =-OpCo1!AP506 -> 0 | AQ178: =-OpCo1!AQ506 -> 0 | AR178: =-OpCo1!AR506 -> 0 | AS178: =-OpCo1!AS506 -> 0 | AT178: =-OpCo1!AT506 -> 0 | AU178: =-OpCo1!AU506 -> 0 | AV178: =-OpCo1!AV506 -> 0 | AW178: =-OpCo1!AW506 -> 0 | AX178: =-OpCo1!AX506 -> 0 | AY178: =-OpCo1!AY506 -> 0 | AZ178: =-OpCo1!AZ506 -> 0 | BA178: =-OpCo1!BA506 -> 0 | BB178: =-OpCo1!BB506 -> 0 | BC178: =-OpCo1!BC506 -> 0 | BD178: =-OpCo1!BD506 -> 0 | BE178: =-OpCo1!BE506 -> 0 | BF178: =-OpCo1!BF506 -> 0 | BG178: =-OpCo1!BG506 -> 0 | BH178: =-OpCo1!BH506 -> 0 | BI178: =-OpCo1!BI506 -> 0 | BJ178: =-OpCo1!BJ506 -> 0 | BK178: =-OpCo1!BK506 -> 0 | BL178: =-OpCo1!BL506 -> 0 | BM178: =-OpCo1!BM506 -> 0 | BN178: =-OpCo1!BN506 -> 0 | BO178: =-OpCo1!BO506 -> 0 | BP178: =-OpCo1!BP506 -> 0 | BQ178: =-OpCo1!BQ506 -> 0 | BR178: =-OpCo1!BR506 -> 0 | BS178: =-OpCo1!BS506 -> 0 | BT178: =-OpCo1!BT506 -> 0
A179: =SYS_Admin!$G$816 -> Taxes Paid | D179: Irrecoverable VAT on I/C purchases | F179: £000 | G179: =IF($I$4,SYS_Admin!$D$117,SYS_Admin!$D$116) -> Nominal | M179: =-OpCo1!M2915 -> 0 | N179: =-OpCo1!N2915 -> 0 | O179: =-OpCo1!O2915 -> 0 | P179: =-OpCo1!P2915 -> 0 | Q179: =-OpCo1!Q2915 -> 0 | R179: =-OpCo1!R2915 -> 0 | S179: =-OpCo1!S2915 -> 0 | T179: =-OpCo1!T2915 -> 0 | U179: =-OpCo1!U2915 -> 0 | V179: =-OpCo1!V2915 -> 0 | W179: =-OpCo1!W2915 -> 0 | X179: =-OpCo1!X2915 -> 0 | Y179: =-OpCo1!Y2915 -> 0 | Z179: =-OpCo1!Z2915 -> 0 | AA179: =-OpCo1!AA2915 -> 0 | AB179: =-OpCo1!AB2915 -> 0 | AC179: =-OpCo1!AC2915 -> 0 | AD179: =-OpCo1!AD2915 -> 0 | AE179: =-OpCo1!AE2915 -> 0 | AF179: =-OpCo1!AF2915 -> 0 | AG179: =-OpCo1!AG2915 -> 0 | AH179: =-OpCo1!AH2915 -> 0 | AI179: =-OpCo1!AI2915 -> 0 | AJ179: =-OpCo1!AJ2915 -> 0 | AK179: =-OpCo1!AK2915 -> 0 | AL179: =-OpCo1!AL2915 -> 0 | AM179: =-OpCo1!AM2915 -> 0 | AN179: =-OpCo1!AN2915 -> 0 | AO179: =-OpCo1!AO2915 -> 0 | AP179: =-OpCo1!AP2915 -> 0 | AQ179: =-OpCo1!AQ2915 -> 0 | AR179: =-OpCo1!AR2915 -> 0 | AS179: =-OpCo1!AS2915 -> 0 | AT179: =-OpCo1!AT2915 -> 0 | AU179: =-OpCo1!AU2915 -> 0 | AV179: =-OpCo1!AV2915 -> 0 | AW179: =-OpCo1!AW2915 -> 0 | AX179: =-OpCo1!AX2915 -> 0 | AY179: =-OpCo1!AY2915 -> 0 | AZ179: =-OpCo1!AZ2915 -> 0 | BA179: =-OpCo1!BA2915 -> 0 | BB179: =-OpCo1!BB2915 -> 0 | BC179: =-OpCo1!BC2915 -> 0 | BD179: =-OpCo1!BD2915 -> 0 | BE179: =-OpCo1!BE2915 -> 0 | BF179: =-OpCo1!BF2915 -> 0 | BG179: =-OpCo1!BG2915 -> 0 | BH179: =-OpCo1!BH2915 -> 0 | BI179: =-OpCo1!BI2915 -> 0 | BJ179: =-OpCo1!BJ2915 -> 0 | BK179: =-OpCo1!BK2915 -> 0 | BL179: =-OpCo1!BL2915 -> 0 | BM179: =-OpCo1!BM2915 -> 0 | BN179: =-OpCo1!BN2915 -> 0 | BO179: =-OpCo1!BO2915 -> 0 | BP179: =-OpCo1!BP2915 -> 0 | BQ179: =-OpCo1!BQ2915 -> 0 | BR179: =-OpCo1!BR2915 -> 0 | BS179: =-OpCo1!BS2915 -> 0 | BT179: =-OpCo1!BT2915 -> 0
A180: =SYS_Admin!$G$816 -> Taxes Paid | D180: VAT received / (paid) to HMRC | F180: £000 | G180: =IF($I$4,SYS_Admin!$D$117,SYS_Admin!$D$116) -> Nominal | M180: =-OpCo1!M2809 -> 0 | N180: =-OpCo1!N2809 -> 0 | O180: =-OpCo1!O2809 -> 0 | P180: =-OpCo1!P2809 -> 0 | Q180: =-OpCo1!Q2809 -> 0 | R180: =-OpCo1!R2809 -> 0 | S180: =-OpCo1!S2809 -> 0 | T180: =-OpCo1!T2809 -> 0 | U180: =-OpCo1!U2809 -> 0 | V180: =-OpCo1!V2809 -> 0 | W180: =-OpCo1!W2809 -> 0 | X180: =-OpCo1!X2809 -> 0 | Y180: =-OpCo1!Y2809 -> 0 | Z180: =-OpCo1!Z2809 -> 0 | AA180: =-OpCo1!AA2809 -> 0 | AB180: =-OpCo1!AB2809 -> 0 | AC180: =-OpCo1!AC2809 -> 0 | AD180: =-OpCo1!AD2809 -> 0 | AE180: =-OpCo1!AE2809 -> 0 | AF180: =-OpCo1!AF2809 -> 0 | AG180: =-OpCo1!AG2809 -> 0 | AH180: =-OpCo1!AH2809 -> 0 | AI180: =-OpCo1!AI2809 -> 0 | AJ180: =-OpCo1!AJ2809 -> 0 | AK180: =-OpCo1!AK2809 -> 0 | AL180: =-OpCo1!AL2809 -> 0 | AM180: =-OpCo1!AM2809 -> 0 | AN180: =-OpCo1!AN2809 -> 0 | AO180: =-OpCo1!AO2809 -> 0 | AP180: =-OpCo1!AP2809 -> 0 | AQ180: =-OpCo1!AQ2809 -> 0 | AR180: =-OpCo1!AR2809 -> 0 | AS180: =-OpCo1!AS2809 -> 0 | AT180: =-OpCo1!AT2809 -> 0 | AU180: =-OpCo1!AU2809 -> 0 | AV180: =-OpCo1!AV2809 -> 0 | AW180: =-OpCo1!AW2809 -> 0 | AX180: =-OpCo1!AX2809 -> 0 | AY180: =-OpCo1!AY2809 -> 0 | AZ180: =-OpCo1!AZ2809 -> 0 | BA180: =-OpCo1!BA2809 -> 0 | BB180: =-OpCo1!BB2809 -> 0 | BC180: =-OpCo1!BC2809 -> 0 | BD180: =-OpCo1!BD2809 -> 0 | BE180: =-OpCo1!BE2809 -> 0 | BF180: =-OpCo1!BF2809 -> 0 | BG180: =-OpCo1!BG2809 -> 0 | BH180: =-OpCo1!BH2809 -> 0 | BI180: =-OpCo1!BI2809 -> 0 | BJ180: =-OpCo1!BJ2809 -> 0 | BK180: =-OpCo1!BK2809 -> 0 | BL180: =-OpCo1!BL2809 -> 0 | BM180: =-OpCo1!BM2809 -> 0 | BN180: =-OpCo1!BN2809 -> 0 | BO180: =-OpCo1!BO2809 -> 0 | BP180: =-OpCo1!BP2809 -> 0 | BQ180: =-OpCo1!BQ2809 -> 0 | BR180: =-OpCo1!BR2809 -> 0 | BS180: =-OpCo1!BS2809 -> 0 | BT180: =-OpCo1!BT2809 -> 0
A181: =SYS_Admin!$G$816 -> Taxes Paid | D181: Business rates | F181: £000 | G181: =IF($I$4,SYS_Admin!$D$117,SYS_Admin!$D$116) -> Nominal | M181: =-OpCo1!M2484 -> 0 | N181: =-OpCo1!N2484 -> 0 | O181: =-OpCo1!O2484 -> 0 | P181: =-OpCo1!P2484 -> 0 | Q181: =-OpCo1!Q2484 -> 0 | R181: =-OpCo1!R2484 -> 0 | S181: =-OpCo1!S2484 -> 0 | T181: =-OpCo1!T2484 -> 0 | U181: =-OpCo1!U2484 -> 0 | V181: =-OpCo1!V2484 -> 0 | W181: =-OpCo1!W2484 -> 0 | X181: =-OpCo1!X2484 -> 0 | Y181: =-OpCo1!Y2484 -> 0 | Z181: =-OpCo1!Z2484 -> 0 | AA181: =-OpCo1!AA2484 -> 0 | AB181: =-OpCo1!AB2484 -> 0 | AC181: =-OpCo1!AC2484 -> 0 | AD181: =-OpCo1!AD2484 -> 0 | AE181: =-OpCo1!AE2484 -> 0 | AF181: =-OpCo1!AF2484 -> 0 | AG181: =-OpCo1!AG2484 -> 0 | AH181: =-OpCo1!AH2484 -> 0 | AI181: =-OpCo1!AI2484 -> 0 | AJ181: =-OpCo1!AJ2484 -> 0 | AK181: =-OpCo1!AK2484 -> 0 | AL181: =-OpCo1!AL2484 -> 0 | AM181: =-OpCo1!AM2484 -> 0 | AN181: =-OpCo1!AN2484 -> 0 | AO181: =-OpCo1!AO2484 -> 0 | AP181: =-OpCo1!AP2484 -> 0 | AQ181: =-OpCo1!AQ2484 -> 0 | AR181: =-OpCo1!AR2484 -> 0 | AS181: =-OpCo1!AS2484 -> 0 | AT181: =-OpCo1!AT2484 -> 0 | AU181: =-OpCo1!AU2484 -> 0 | AV181: =-OpCo1!AV2484 -> 0 | AW181: =-OpCo1!AW2484 -> 0 | AX181: =-OpCo1!AX2484 -> 0 | AY181: =-OpCo1!AY2484 -> 0 | AZ181: =-OpCo1!AZ2484 -> 0 | BA181: =-OpCo1!BA2484 -> 0 | BB181: =-OpCo1!BB2484 -> 0 | BC181: =-OpCo1!BC2484 -> 0 | BD181: =-OpCo1!BD2484 -> 0 | BE181: =-OpCo1!BE2484 -> 0 | BF181: =-OpCo1!BF2484 -> 0 | BG181: =-OpCo1!BG2484 -> 0 | BH181: =-OpCo1!BH2484 -> 0 | BI181: =-OpCo1!BI2484 -> 0 | BJ181: =-OpCo1!BJ2484 -> 0 | BK181: =-OpCo1!BK2484 -> 0 | BL181: =-OpCo1!BL2484 -> 0 | BM181: =-OpCo1!BM2484 -> 0 | BN181: =-OpCo1!BN2484 -> 0 | BO181: =-OpCo1!BO2484 -> 0 | BP181: =-OpCo1!BP2484 -> 0 | BQ181: =-OpCo1!BQ2484 -> 0 | BR181: =-OpCo1!BR2484 -> 0 | BS181: =-OpCo1!BS2484 -> 0 | BT181: =-OpCo1!BT2484 -> 0
A182: =SYS_Admin!$G$816 -> Taxes Paid | D182: Corporation tax | F182: £000 | G182: =IF($I$4,SYS_Admin!$D$117,SYS_Admin!$D$116) -> Nominal | M182: =-OpCo1!M3255 -> 0 | N182: =-OpCo1!N3255 -> 0 | O182: =-OpCo1!O3255 -> 0 | P182: =-OpCo1!P3255 -> 0 | Q182: =-OpCo1!Q3255 -> 0 | R182: =-OpCo1!R3255 -> 0 | S182: =-OpCo1!S3255 -> 0 | T182: =-OpCo1!T3255 -> 0 | U182: =-OpCo1!U3255 -> 0 | V182: =-OpCo1!V3255 -> 0 | W182: =-OpCo1!W3255 -> 0 | X182: =-OpCo1!X3255 -> 0 | Y182: =-OpCo1!Y3255 -> 0 | Z182: =-OpCo1!Z3255 -> 0 | AA182: =-OpCo1!AA3255 -> 0 | AB182: =-OpCo1!AB3255 -> 0 | AC182: =-OpCo1!AC3255 -> 0 | AD182: =-OpCo1!AD3255 -> 0 | AE182: =-OpCo1!AE3255 -> 0 | AF182: =-OpCo1!AF3255 -> 0 | AG182: =-OpCo1!AG3255 -> 0 | AH182: =-OpCo1!AH3255 -> 0 | AI182: =-OpCo1!AI3255 -> 0 | AJ182: =-OpCo1!AJ3255 -> 0 | AK182: =-OpCo1!AK3255 -> 0 | AL182: =-OpCo1!AL3255 -> 0 | AM182: =-OpCo1!AM3255 -> 0 | AN182: =-OpCo1!AN3255 -> 0 | AO182: =-OpCo1!AO3255 -> 0 | AP182: =-OpCo1!AP3255 -> 0 | AQ182: =-OpCo1!AQ3255 -> 0 | AR182: =-OpCo1!AR3255 -> 0 | AS182: =-OpCo1!AS3255 -> 0 | AT182: =-OpCo1!AT3255 -> 0 | AU182: =-OpCo1!AU3255 -> 0 | AV182: =-OpCo1!AV3255 -> 0 | AW182: =-OpCo1!AW3255 -> 0 | AX182: =-OpCo1!AX3255 -> 0 | AY182: =-OpCo1!AY3255 -> 0 | AZ182: =-OpCo1!AZ3255 -> 0 | BA182: =-OpCo1!BA3255 -> 0 | BB182: =-OpCo1!BB3255 -> 0 | BC182: =-OpCo1!BC3255 -> 0 | BD182: =-OpCo1!BD3255 -> 0 | BE182: =-OpCo1!BE3255 -> 0 | BF182: =-OpCo1!BF3255 -> 0 | BG182: =-OpCo1!BG3255 -> 0 | BH182: =-OpCo1!BH3255 -> 0 | BI182: =-OpCo1!BI3255 -> 0 | BJ182: =-OpCo1!BJ3255 -> 0 | BK182: =-OpCo1!BK3255 -> 0 | BL182: =-OpCo1!BL3255 -> 0 | BM182: =-OpCo1!BM3255 -> 0 | BN182: =-OpCo1!BN3255 -> 0 | BO182: =-OpCo1!BO3255 -> 0 | BP182: =-OpCo1!BP3255 -> 0 | BQ182: =-OpCo1!BQ3255 -> 0 | BR182: =-OpCo1!BR3255 -> 0 | BS182: =-OpCo1!BS3255 -> 0 | BT182: =-OpCo1!BT3255 -> 0
D184: Cash from operations | F184: £000 | G184: =IF($I$4,SYS_Admin!$D$117,SYS_Admin!$D$116) -> Nominal | M184: =SUM(M163,M171) -> 0 | N184: =SUM(N163,N171) -> 0 | O184: 0 | P184: 0 | Q184: 0 | R184: 0 | S184: 0 | T184: 0 | U184: 0 | V184: 0 | W184: 0 | X184: 0 | Y184: 0 | Z184: 0 | AA184: 0 | AB184: 0 | AC184: 0 | AD184: 0 | AE184: 0 | AF184: 0 | AG184: 0 | AH184: 0 | AI184: 0 | AJ184: 0 | AK184: 0 | AL184: 0 | AM184: 0 | AN184: 0 | AO184: 0 | AP184: 0 | AQ184: 0 | AR184: 0 | AS184: 0 | AT184: 0 | AU184: 0 | AV184: 0 | AW184: 0 | AX184: 0 | AY184: 0 | AZ184: 0 | BA184: 0 | BB184: 0 | BC184: 0 | BD184: 0 | BE184: 0 | BF184: 0 | BG184: 0 | BH184: 0 | BI184: 0 | BJ184: 0 | BK184: 0 | BL184: 0 | BM184: 0 | BN184: 0 | BO184: 0 | BP184: 0 | BQ184: 0 | BR184: 0 | BS184: 0 | BT184: 0
D186: Cash for investing activities | F186: £000 | G186: =IF($I$4,SYS_Admin!$D$117,SYS_Admin!$D$116) -> Nominal | M186: =SUM(M187:M191) -> 0 | N186: =SUM(N187:N191) -> 0 | O186: 0 | P186: 0 | Q186: 0 | R186: 0 | S186: 0 | T186: 0 | U186: 0 | V186: 0 | W186: 0 | X186: 0 | Y186: 0 | Z186: 0 | AA186: 0 | AB186: 0 | AC186: 0 | AD186: 0 | AE186: 0 | AF186: 0 | AG186: 0 | AH186: 0 | AI186: 0 | AJ186: 0 | AK186: 0 | AL186: 0 | AM186: 0 | AN186: 0 | AO186: 0 | AP186: 0 | AQ186: 0 | AR186: 0 | AS186: 0 | AT186: 0 | AU186: 0 | AV186: 0 | AW186: 0 | AX186: 0 | AY186: 0 | AZ186: 0 | BA186: 0 | BB186: 0 | BC186: 0 | BD186: 0 | BE186: 0 | BF186: 0 | BG186: 0 | BH186: 0 | BI186: 0 | BJ186: 0 | BK186: 0 | BL186: 0 | BM186: 0 | BN186: 0 | BO186: 0 | BP186: 0 | BQ186: 0 | BR186: 0 | BS186: 0 | BT186: 0
D187: Purchase of fixed assets | F187: £000 | G187: =IF($I$4,SYS_Admin!$D$117,SYS_Admin!$D$116) -> Nominal | M187: =-OpCo1!M180 -> 0 | N187: =-OpCo1!N180 -> 0 | O187: =-OpCo1!O180 -> 0 | P187: =-OpCo1!P180 -> 0 | Q187: =-OpCo1!Q180 -> 0 | R187: =-OpCo1!R180 -> 0 | S187: =-OpCo1!S180 -> 0 | T187: =-OpCo1!T180 -> 0 | U187: =-OpCo1!U180 -> 0 | V187: =-OpCo1!V180 -> 0 | W187: =-OpCo1!W180 -> 0 | X187: =-OpCo1!X180 -> 0 | Y187: =-OpCo1!Y180 -> 0 | Z187: =-OpCo1!Z180 -> 0 | AA187: =-OpCo1!AA180 -> 0 | AB187: =-OpCo1!AB180 -> 0 | AC187: =-OpCo1!AC180 -> 0 | AD187: =-OpCo1!AD180 -> 0 | AE187: =-OpCo1!AE180 -> 0 | AF187: =-OpCo1!AF180 -> 0 | AG187: =-OpCo1!AG180 -> 0 | AH187: =-OpCo1!AH180 -> 0 | AI187: =-OpCo1!AI180 -> 0 | AJ187: =-OpCo1!AJ180 -> 0 | AK187: =-OpCo1!AK180 -> 0 | AL187: =-OpCo1!AL180 -> 0 | AM187: =-OpCo1!AM180 -> 0 | AN187: =-OpCo1!AN180 -> 0 | AO187: =-OpCo1!AO180 -> 0 | AP187: =-OpCo1!AP180 -> 0 | AQ187: =-OpCo1!AQ180 -> 0 | AR187: =-OpCo1!AR180 -> 0 | AS187: =-OpCo1!AS180 -> 0 | AT187: =-OpCo1!AT180 -> 0 | AU187: =-OpCo1!AU180 -> 0 | AV187: =-OpCo1!AV180 -> 0 | AW187: =-OpCo1!AW180 -> 0 | AX187: =-OpCo1!AX180 -> 0 | AY187: =-OpCo1!AY180 -> 0 | AZ187: =-OpCo1!AZ180 -> 0 | BA187: =-OpCo1!BA180 -> 0 | BB187: =-OpCo1!BB180 -> 0 | BC187: =-OpCo1!BC180 -> 0 | BD187: =-OpCo1!BD180 -> 0 | BE187: =-OpCo1!BE180 -> 0 | BF187: =-OpCo1!BF180 -> 0 | BG187: =-OpCo1!BG180 -> 0 | BH187: =-OpCo1!BH180 -> 0 | BI187: =-OpCo1!BI180 -> 0 | BJ187: =-OpCo1!BJ180 -> 0 | BK187: =-OpCo1!BK180 -> 0 | BL187: =-OpCo1!BL180 -> 0 | BM187: =-OpCo1!BM180 -> 0 | BN187: =-OpCo1!BN180 -> 0 | BO187: =-OpCo1!BO180 -> 0 | BP187: =-OpCo1!BP180 -> 0 | BQ187: =-OpCo1!BQ180 -> 0 | BR187: =-OpCo1!BR180 -> 0 | BS187: =-OpCo1!BS180 -> 0 | BT187: =-OpCo1!BT180 -> 0
D188: Irrecoverable VAT on fixed asset purchases | F188: £000 | G188: =IF($I$4,SYS_Admin!$D$117,SYS_Admin!$D$116) -> Nominal | M188: =-OpCo1!M2873 -> 0 | N188: =-OpCo1!N2873 -> 0 | O188: =-OpCo1!O2873 -> 0 | P188: =-OpCo1!P2873 -> 0 | Q188: =-OpCo1!Q2873 -> 0 | R188: =-OpCo1!R2873 -> 0 | S188: =-OpCo1!S2873 -> 0 | T188: =-OpCo1!T2873 -> 0 | U188: =-OpCo1!U2873 -> 0 | V188: =-OpCo1!V2873 -> 0 | W188: =-OpCo1!W2873 -> 0 | X188: =-OpCo1!X2873 -> 0 | Y188: =-OpCo1!Y2873 -> 0 | Z188: =-OpCo1!Z2873 -> 0 | AA188: =-OpCo1!AA2873 -> 0 | AB188: =-OpCo1!AB2873 -> 0 | AC188: =-OpCo1!AC2873 -> 0 | AD188: =-OpCo1!AD2873 -> 0 | AE188: =-OpCo1!AE2873 -> 0 | AF188: =-OpCo1!AF2873 -> 0 | AG188: =-OpCo1!AG2873 -> 0 | AH188: =-OpCo1!AH2873 -> 0 | AI188: =-OpCo1!AI2873 -> 0 | AJ188: =-OpCo1!AJ2873 -> 0 | AK188: =-OpCo1!AK2873 -> 0 | AL188: =-OpCo1!AL2873 -> 0 | AM188: =-OpCo1!AM2873 -> 0 | AN188: =-OpCo1!AN2873 -> 0 | AO188: =-OpCo1!AO2873 -> 0 | AP188: =-OpCo1!AP2873 -> 0 | AQ188: =-OpCo1!AQ2873 -> 0 | AR188: =-OpCo1!AR2873 -> 0 | AS188: =-OpCo1!AS2873 -> 0 | AT188: =-OpCo1!AT2873 -> 0 | AU188: =-OpCo1!AU2873 -> 0 | AV188: =-OpCo1!AV2873 -> 0 | AW188: =-OpCo1!AW2873 -> 0 | AX188: =-OpCo1!AX2873 -> 0 | AY188: =-OpCo1!AY2873 -> 0 | AZ188: =-OpCo1!AZ2873 -> 0 | BA188: =-OpCo1!BA2873 -> 0 | BB188: =-OpCo1!BB2873 -> 0 | BC188: =-OpCo1!BC2873 -> 0 | BD188: =-OpCo1!BD2873 -> 0 | BE188: =-OpCo1!BE2873 -> 0 | BF188: =-OpCo1!BF2873 -> 0 | BG188: =-OpCo1!BG2873 -> 0 | BH188: =-OpCo1!BH2873 -> 0 | BI188: =-OpCo1!BI2873 -> 0 | BJ188: =-OpCo1!BJ2873 -> 0 | BK188: =-OpCo1!BK2873 -> 0 | BL188: =-OpCo1!BL2873 -> 0 | BM188: =-OpCo1!BM2873 -> 0 | BN188: =-OpCo1!BN2873 -> 0 | BO188: =-OpCo1!BO2873 -> 0 | BP188: =-OpCo1!BP2873 -> 0 | BQ188: =-OpCo1!BQ2873 -> 0 | BR188: =-OpCo1!BR2873 -> 0 | BS188: =-OpCo1!BS2873 -> 0 | BT188: =-OpCo1!BT2873 -> 0
D189: Adjustment for leased assets | F189: £000 | G189: =IF($I$4,SYS_Admin!$D$117,SYS_Admin!$D$116) -> Nominal | M189: =-OpCo1!M1205 -> 0 | N189: =-OpCo1!N1205 -> 0 | O189: =-OpCo1!O1205 -> 0 | P189: =-OpCo1!P1205 -> 0 | Q189: =-OpCo1!Q1205 -> 0 | R189: =-OpCo1!R1205 -> 0 | S189: =-OpCo1!S1205 -> 0 | T189: =-OpCo1!T1205 -> 0 | U189: =-OpCo1!U1205 -> 0 | V189: =-OpCo1!V1205 -> 0 | W189: =-OpCo1!W1205 -> 0 | X189: =-OpCo1!X1205 -> 0 | Y189: =-OpCo1!Y1205 -> 0 | Z189: =-OpCo1!Z1205 -> 0 | AA189: =-OpCo1!AA1205 -> 0 | AB189: =-OpCo1!AB1205 -> 0 | AC189: =-OpCo1!AC1205 -> 0 | AD189: =-OpCo1!AD1205 -> 0 | AE189: =-OpCo1!AE1205 -> 0 | AF189: =-OpCo1!AF1205 -> 0 | AG189: =-OpCo1!AG1205 -> 0 | AH189: =-OpCo1!AH1205 -> 0 | AI189: =-OpCo1!AI1205 -> 0 | AJ189: =-OpCo1!AJ1205 -> 0 | AK189: =-OpCo1!AK1205 -> 0 | AL189: =-OpCo1!AL1205 -> 0 | AM189: =-OpCo1!AM1205 -> 0 | AN189: =-OpCo1!AN1205 -> 0 | AO189: =-OpCo1!AO1205 -> 0 | AP189: =-OpCo1!AP1205 -> 0 | AQ189: =-OpCo1!AQ1205 -> 0 | AR189: =-OpCo1!AR1205 -> 0 | AS189: =-OpCo1!AS1205 -> 0 | AT189: =-OpCo1!AT1205 -> 0 | AU189: =-OpCo1!AU1205 -> 0 | AV189: =-OpCo1!AV1205 -> 0 | AW189: =-OpCo1!AW1205 -> 0 | AX189: =-OpCo1!AX1205 -> 0 | AY189: =-OpCo1!AY1205 -> 0 | AZ189: =-OpCo1!AZ1205 -> 0 | BA189: =-OpCo1!BA1205 -> 0 | BB189: =-OpCo1!BB1205 -> 0 | BC189: =-OpCo1!BC1205 -> 0 | BD189: =-OpCo1!BD1205 -> 0 | BE189: =-OpCo1!BE1205 -> 0 | BF189: =-OpCo1!BF1205 -> 0 | BG189: =-OpCo1!BG1205 -> 0 | BH189: =-OpCo1!BH1205 -> 0 | BI189: =-OpCo1!BI1205 -> 0 | BJ189: =-OpCo1!BJ1205 -> 0 | BK189: =-OpCo1!BK1205 -> 0 | BL189: =-OpCo1!BL1205 -> 0 | BM189: =-OpCo1!BM1205 -> 0 | BN189: =-OpCo1!BN1205 -> 0 | BO189: =-OpCo1!BO1205 -> 0 | BP189: =-OpCo1!BP1205 -> 0 | BQ189: =-OpCo1!BQ1205 -> 0 | BR189: =-OpCo1!BR1205 -> 0 | BS189: =-OpCo1!BS1205 -> 0 | BT189: =-OpCo1!BT1205 -> 0
D190: Sale of assets to lessor | F190: £000 | G190: =IF($I$4,SYS_Admin!$D$117,SYS_Admin!$D$116) -> Nominal | M190: =-OpCo1!M1182 -> 0 | N190: =-OpCo1!N1182 -> 0 | O190: =-OpCo1!O1182 -> 0 | P190: =-OpCo1!P1182 -> 0 | Q190: =-OpCo1!Q1182 -> 0 | R190: =-OpCo1!R1182 -> 0 | S190: =-OpCo1!S1182 -> 0 | T190: =-OpCo1!T1182 -> 0 | U190: =-OpCo1!U1182 -> 0 | V190: =-OpCo1!V1182 -> 0 | W190: =-OpCo1!W1182 -> 0 | X190: =-OpCo1!X1182 -> 0 | Y190: =-OpCo1!Y1182 -> 0 | Z190: =-OpCo1!Z1182 -> 0 | AA190: =-OpCo1!AA1182 -> 0 | AB190: =-OpCo1!AB1182 -> 0 | AC190: =-OpCo1!AC1182 -> 0 | AD190: =-OpCo1!AD1182 -> 0 | AE190: =-OpCo1!AE1182 -> 0 | AF190: =-OpCo1!AF1182 -> 0 | AG190: =-OpCo1!AG1182 -> 0 | AH190: =-OpCo1!AH1182 -> 0 | AI190: =-OpCo1!AI1182 -> 0 | AJ190: =-OpCo1!AJ1182 -> 0 | AK190: =-OpCo1!AK1182 -> 0 | AL190: =-OpCo1!AL1182 -> 0 | AM190: =-OpCo1!AM1182 -> 0 | AN190: =-OpCo1!AN1182 -> 0 | AO190: =-OpCo1!AO1182 -> 0 | AP190: =-OpCo1!AP1182 -> 0 | AQ190: =-OpCo1!AQ1182 -> 0 | AR190: =-OpCo1!AR1182 -> 0 | AS190: =-OpCo1!AS1182 -> 0 | AT190: =-OpCo1!AT1182 -> 0 | AU190: =-OpCo1!AU1182 -> 0 | AV190: =-OpCo1!AV1182 -> 0 | AW190: =-OpCo1!AW1182 -> 0 | AX190: =-OpCo1!AX1182 -> 0 | AY190: =-OpCo1!AY1182 -> 0 | AZ190: =-OpCo1!AZ1182 -> 0 | BA190: =-OpCo1!BA1182 -> 0 | BB190: =-OpCo1!BB1182 -> 0 | BC190: =-OpCo1!BC1182 -> 0 | BD190: =-OpCo1!BD1182 -> 0 | BE190: =-OpCo1!BE1182 -> 0 | BF190: =-OpCo1!BF1182 -> 0 | BG190: =-OpCo1!BG1182 -> 0 | BH190: =-OpCo1!BH1182 -> 0 | BI190: =-OpCo1!BI1182 -> 0 | BJ190: =-OpCo1!BJ1182 -> 0 | BK190: =-OpCo1!BK1182 -> 0 | BL190: =-OpCo1!BL1182 -> 0 | BM190: =-OpCo1!BM1182 -> 0 | BN190: =-OpCo1!BN1182 -> 0 | BO190: =-OpCo1!BO1182 -> 0 | BP190: =-OpCo1!BP1182 -> 0 | BQ190: =-OpCo1!BQ1182 -> 0 | BR190: =-OpCo1!BR1182 -> 0 | BS190: =-OpCo1!BS1182 -> 0 | BT190: =-OpCo1!BT1182 -> 0
D191: Re-purchase of assets from lessor | F191: £000 | G191: =IF($I$4,SYS_Admin!$D$117,SYS_Admin!$D$116) -> Nominal | M191: =-OpCo1!M1189 -> 0 | N191: =-OpCo1!N1189 -> 0 | O191: =-OpCo1!O1189 -> 0 | P191: =-OpCo1!P1189 -> 0 | Q191: =-OpCo1!Q1189 -> 0 | R191: =-OpCo1!R1189 -> 0 | S191: =-OpCo1!S1189 -> 0 | T191: =-OpCo1!T1189 -> 0 | U191: =-OpCo1!U1189 -> 0 | V191: =-OpCo1!V1189 -> 0 | W191: =-OpCo1!W1189 -> 0 | X191: =-OpCo1!X1189 -> 0 | Y191: =-OpCo1!Y1189 -> 0 | Z191: =-OpCo1!Z1189 -> 0 | AA191: =-OpCo1!AA1189 -> 0 | AB191: =-OpCo1!AB1189 -> 0 | AC191: =-OpCo1!AC1189 -> 0 | AD191: =-OpCo1!AD1189 -> 0 | AE191: =-OpCo1!AE1189 -> 0 | AF191: =-OpCo1!AF1189 -> 0 | AG191: =-OpCo1!AG1189 -> 0 | AH191: =-OpCo1!AH1189 -> 0 | AI191: =-OpCo1!AI1189 -> 0 | AJ191: =-OpCo1!AJ1189 -> 0 | AK191: =-OpCo1!AK1189 -> 0 | AL191: =-OpCo1!AL1189 -> 0 | AM191: =-OpCo1!AM1189 -> 0 | AN191: =-OpCo1!AN1189 -> 0 | AO191: =-OpCo1!AO1189 -> 0 | AP191: =-OpCo1!AP1189 -> 0 | AQ191: =-OpCo1!AQ1189 -> 0 | AR191: =-OpCo1!AR1189 -> 0 | AS191: =-OpCo1!AS1189 -> 0 | AT191: =-OpCo1!AT1189 -> 0 | AU191: =-OpCo1!AU1189 -> 0 | AV191: =-OpCo1!AV1189 -> 0 | AW191: =-OpCo1!AW1189 -> 0 | AX191: =-OpCo1!AX1189 -> 0 | AY191: =-OpCo1!AY1189 -> 0 | AZ191: =-OpCo1!AZ1189 -> 0 | BA191: =-OpCo1!BA1189 -> 0 | BB191: =-OpCo1!BB1189 -> 0 | BC191: =-OpCo1!BC1189 -> 0 | BD191: =-OpCo1!BD1189 -> 0 | BE191: =-OpCo1!BE1189 -> 0 | BF191: =-OpCo1!BF1189 -> 0 | BG191: =-OpCo1!BG1189 -> 0 | BH191: =-OpCo1!BH1189 -> 0 | BI191: =-OpCo1!BI1189 -> 0 | BJ191: =-OpCo1!BJ1189 -> 0 | BK191: =-OpCo1!BK1189 -> 0 | BL191: =-OpCo1!BL1189 -> 0 | BM191: =-OpCo1!BM1189 -> 0 | BN191: =-OpCo1!BN1189 -> 0 | BO191: =-OpCo1!BO1189 -> 0 | BP191: =-OpCo1!BP1189 -> 0 | BQ191: =-OpCo1!BQ1189 -> 0 | BR191: =-OpCo1!BR1189 -> 0 | BS191: =-OpCo1!BS1189 -> 0 | BT191: =-OpCo1!BT1189 -> 0
D193: Cash for financing activities | F193: £000 | G193: =IF($I$4,SYS_Admin!$D$117,SYS_Admin!$D$116) -> Nominal | M193: =SUM(M194:M210) -> 0 | N193: =SUM(N194:N210) -> 0 | O193: 0 | P193: 0 | Q193: 0 | R193: 0 | S193: 0 | T193: 0 | U193: 0 | V193: 0 | W193: 0 | X193: 0 | Y193: 0 | Z193: 0 | AA193: 0 | AB193: 0 | AC193: 0 | AD193: 0 | AE193: 0 | AF193: 0 | AG193: 0 | AH193: 0 | AI193: 0 | AJ193: 0 | AK193: 0 | AL193: 0 | AM193: 0 | AN193: 0 | AO193: 0 | AP193: 0 | AQ193: 0 | AR193: 0 | AS193: 0 | AT193: 0 | AU193: 0 | AV193: 0 | AW193: 0 | AX193: 0 | AY193: 0 | AZ193: 0 | BA193: 0 | BB193: 0 | BC193: 0 | BD193: 0 | BE193: 0 | BF193: 0 | BG193: 0 | BH193: 0 | BI193: 0 | BJ193: 0 | BK193: 0 | BL193: 0 | BM193: 0 | BN193: 0 | BO193: 0 | BP193: 0 | BQ193: 0 | BR193: 0 | BS193: 0 | BT193: 0
D194: Grant received | F194: £000 | G194: =IF($I$4,SYS_Admin!$D$117,SYS_Admin!$D$116) -> Nominal | M194: =OpCo1!M628 -> 0 | N194: =OpCo1!N628 -> 0 | O194: =OpCo1!O628 -> 0 | P194: =OpCo1!P628 -> 0 | Q194: =OpCo1!Q628 -> 0 | R194: =OpCo1!R628 -> 0 | S194: =OpCo1!S628 -> 0 | T194: =OpCo1!T628 -> 0 | U194: =OpCo1!U628 -> 0 | V194: =OpCo1!V628 -> 0 | W194: =OpCo1!W628 -> 0 | X194: =OpCo1!X628 -> 0 | Y194: =OpCo1!Y628 -> 0 | Z194: =OpCo1!Z628 -> 0 | AA194: =OpCo1!AA628 -> 0 | AB194: =OpCo1!AB628 -> 0 | AC194: =OpCo1!AC628 -> 0 | AD194: =OpCo1!AD628 -> 0 | AE194: =OpCo1!AE628 -> 0 | AF194: =OpCo1!AF628 -> 0 | AG194: =OpCo1!AG628 -> 0 | AH194: =OpCo1!AH628 -> 0 | AI194: =OpCo1!AI628 -> 0 | AJ194: =OpCo1!AJ628 -> 0 | AK194: =OpCo1!AK628 -> 0 | AL194: =OpCo1!AL628 -> 0 | AM194: =OpCo1!AM628 -> 0 | AN194: =OpCo1!AN628 -> 0 | AO194: =OpCo1!AO628 -> 0 | AP194: =OpCo1!AP628 -> 0 | AQ194: =OpCo1!AQ628 -> 0 | AR194: =OpCo1!AR628 -> 0 | AS194: =OpCo1!AS628 -> 0 | AT194: =OpCo1!AT628 -> 0 | AU194: =OpCo1!AU628 -> 0 | AV194: =OpCo1!AV628 -> 0 | AW194: =OpCo1!AW628 -> 0 | AX194: =OpCo1!AX628 -> 0 | AY194: =OpCo1!AY628 -> 0 | AZ194: =OpCo1!AZ628 -> 0 | BA194: =OpCo1!BA628 -> 0 | BB194: =OpCo1!BB628 -> 0 | BC194: =OpCo1!BC628 -> 0 | BD194: =OpCo1!BD628 -> 0 | BE194: =OpCo1!BE628 -> 0 | BF194: =OpCo1!BF628 -> 0 | BG194: =OpCo1!BG628 -> 0 | BH194: =OpCo1!BH628 -> 0 | BI194: =OpCo1!BI628 -> 0 | BJ194: =OpCo1!BJ628 -> 0 | BK194: =OpCo1!BK628 -> 0 | BL194: =OpCo1!BL628 -> 0 | BM194: =OpCo1!BM628 -> 0 | BN194: =OpCo1!BN628 -> 0 | BO194: =OpCo1!BO628 -> 0 | BP194: =OpCo1!BP628 -> 0 | BQ194: =OpCo1!BQ628 -> 0 | BR194: =OpCo1!BR628 -> 0 | BS194: =OpCo1!BS628 -> 0 | BT194: =OpCo1!BT628 -> 0
D195: Loan interest paid | F195: £000 | G195: =IF($I$4,SYS_Admin!$D$117,SYS_Admin!$D$116) -> Nominal | M195: =-OpCo1!M2183 -> 0 | N195: =-OpCo1!N2183 -> 0 | O195: =-OpCo1!O2183 -> 0 | P195: =-OpCo1!P2183 -> 0 | Q195: =-OpCo1!Q2183 -> 0 | R195: =-OpCo1!R2183 -> 0 | S195: =-OpCo1!S2183 -> 0 | T195: =-OpCo1!T2183 -> 0 | U195: =-OpCo1!U2183 -> 0 | V195: =-OpCo1!V2183 -> 0 | W195: =-OpCo1!W2183 -> 0 | X195: =-OpCo1!X2183 -> 0 | Y195: =-OpCo1!Y2183 -> 0 | Z195: =-OpCo1!Z2183 -> 0 | AA195: =-OpCo1!AA2183 -> 0 | AB195: =-OpCo1!AB2183 -> 0 | AC195: =-OpCo1!AC2183 -> 0 | AD195: =-OpCo1!AD2183 -> 0 | AE195: =-OpCo1!AE2183 -> 0 | AF195: =-OpCo1!AF2183 -> 0 | AG195: =-OpCo1!AG2183 -> 0 | AH195: =-OpCo1!AH2183 -> 0 | AI195: =-OpCo1!AI2183 -> 0 | AJ195: =-OpCo1!AJ2183 -> 0 | AK195: =-OpCo1!AK2183 -> 0 | AL195: =-OpCo1!AL2183 -> 0 | AM195: =-OpCo1!AM2183 -> 0 | AN195: =-OpCo1!AN2183 -> 0 | AO195: =-OpCo1!AO2183 -> 0 | AP195: =-OpCo1!AP2183 -> 0 | AQ195: =-OpCo1!AQ2183 -> 0 | AR195: =-OpCo1!AR2183 -> 0 | AS195: =-OpCo1!AS2183 -> 0 | AT195: =-OpCo1!AT2183 -> 0 | AU195: =-OpCo1!AU2183 -> 0 | AV195: =-OpCo1!AV2183 -> 0 | AW195: =-OpCo1!AW2183 -> 0 | AX195: =-OpCo1!AX2183 -> 0 | AY195: =-OpCo1!AY2183 -> 0 | AZ195: =-OpCo1!AZ2183 -> 0 | BA195: =-OpCo1!BA2183 -> 0 | BB195: =-OpCo1!BB2183 -> 0 | BC195: =-OpCo1!BC2183 -> 0 | BD195: =-OpCo1!BD2183 -> 0 | BE195: =-OpCo1!BE2183 -> 0 | BF195: =-OpCo1!BF2183 -> 0 | BG195: =-OpCo1!BG2183 -> 0 | BH195: =-OpCo1!BH2183 -> 0 | BI195: =-OpCo1!BI2183 -> 0 | BJ195: =-OpCo1!BJ2183 -> 0 | BK195: =-OpCo1!BK2183 -> 0 | BL195: =-OpCo1!BL2183 -> 0 | BM195: =-OpCo1!BM2183 -> 0 | BN195: =-OpCo1!BN2183 -> 0 | BO195: =-OpCo1!BO2183 -> 0 | BP195: =-OpCo1!BP2183 -> 0 | BQ195: =-OpCo1!BQ2183 -> 0 | BR195: =-OpCo1!BR2183 -> 0 | BS195: =-OpCo1!BS2183 -> 0 | BT195: =-OpCo1!BT2183 -> 0
D196: Loan principal paid | F196: £000 | G196: =IF($I$4,SYS_Admin!$D$117,SYS_Admin!$D$116) -> Nominal | M196: =-OpCo1!M2159 -> 0 | N196: =-OpCo1!N2159 -> 0 | O196: =-OpCo1!O2159 -> 0 | P196: =-OpCo1!P2159 -> 0 | Q196: =-OpCo1!Q2159 -> 0 | R196: =-OpCo1!R2159 -> 0 | S196: =-OpCo1!S2159 -> 0 | T196: =-OpCo1!T2159 -> 0 | U196: =-OpCo1!U2159 -> 0 | V196: =-OpCo1!V2159 -> 0 | W196: =-OpCo1!W2159 -> 0 | X196: =-OpCo1!X2159 -> 0 | Y196: =-OpCo1!Y2159 -> 0 | Z196: =-OpCo1!Z2159 -> 0 | AA196: =-OpCo1!AA2159 -> 0 | AB196: =-OpCo1!AB2159 -> 0 | AC196: =-OpCo1!AC2159 -> 0 | AD196: =-OpCo1!AD2159 -> 0 | AE196: =-OpCo1!AE2159 -> 0 | AF196: =-OpCo1!AF2159 -> 0 | AG196: =-OpCo1!AG2159 -> 0 | AH196: =-OpCo1!AH2159 -> 0 | AI196: =-OpCo1!AI2159 -> 0 | AJ196: =-OpCo1!AJ2159 -> 0 | AK196: =-OpCo1!AK2159 -> 0 | AL196: =-OpCo1!AL2159 -> 0 | AM196: =-OpCo1!AM2159 -> 0 | AN196: =-OpCo1!AN2159 -> 0 | AO196: =-OpCo1!AO2159 -> 0 | AP196: =-OpCo1!AP2159 -> 0 | AQ196: =-OpCo1!AQ2159 -> 0 | AR196: =-OpCo1!AR2159 -> 0 | AS196: =-OpCo1!AS2159 -> 0 | AT196: =-OpCo1!AT2159 -> 0 | AU196: =-OpCo1!AU2159 -> 0 | AV196: =-OpCo1!AV2159 -> 0 | AW196: =-OpCo1!AW2159 -> 0 | AX196: =-OpCo1!AX2159 -> 0 | AY196: =-OpCo1!AY2159 -> 0 | AZ196: =-OpCo1!AZ2159 -> 0 | BA196: =-OpCo1!BA2159 -> 0 | BB196: =-OpCo1!BB2159 -> 0 | BC196: =-OpCo1!BC2159 -> 0 | BD196: =-OpCo1!BD2159 -> 0 | BE196: =-OpCo1!BE2159 -> 0 | BF196: =-OpCo1!BF2159 -> 0 | BG196: =-OpCo1!BG2159 -> 0 | BH196: =-OpCo1!BH2159 -> 0 | BI196: =-OpCo1!BI2159 -> 0 | BJ196: =-OpCo1!BJ2159 -> 0 | BK196: =-OpCo1!BK2159 -> 0 | BL196: =-OpCo1!BL2159 -> 0 | BM196: =-OpCo1!BM2159 -> 0 | BN196: =-OpCo1!BN2159 -> 0 | BO196: =-OpCo1!BO2159 -> 0 | BP196: =-OpCo1!BP2159 -> 0 | BQ196: =-OpCo1!BQ2159 -> 0 | BR196: =-OpCo1!BR2159 -> 0 | BS196: =-OpCo1!BS2159 -> 0 | BT196: =-OpCo1!BT2159 -> 0
D197: Loan fees paid | F197: £000 | G197: =IF($I$4,SYS_Admin!$D$117,SYS_Admin!$D$116) -> Nominal | M197: =-OpCo1!M2169 -> 0 | N197: =-OpCo1!N2169 -> 0 | O197: =-OpCo1!O2169 -> 0 | P197: =-OpCo1!P2169 -> 0 | Q197: =-OpCo1!Q2169 -> 0 | R197: =-OpCo1!R2169 -> 0 | S197: =-OpCo1!S2169 -> 0 | T197: =-OpCo1!T2169 -> 0 | U197: =-OpCo1!U2169 -> 0 | V197: =-OpCo1!V2169 -> 0 | W197: =-OpCo1!W2169 -> 0 | X197: =-OpCo1!X2169 -> 0 | Y197: =-OpCo1!Y2169 -> 0 | Z197: =-OpCo1!Z2169 -> 0 | AA197: =-OpCo1!AA2169 -> 0 | AB197: =-OpCo1!AB2169 -> 0 | AC197: =-OpCo1!AC2169 -> 0 | AD197: =-OpCo1!AD2169 -> 0 | AE197: =-OpCo1!AE2169 -> 0 | AF197: =-OpCo1!AF2169 -> 0 | AG197: =-OpCo1!AG2169 -> 0 | AH197: =-OpCo1!AH2169 -> 0 | AI197: =-OpCo1!AI2169 -> 0 | AJ197: =-OpCo1!AJ2169 -> 0 | AK197: =-OpCo1!AK2169 -> 0 | AL197: =-OpCo1!AL2169 -> 0 | AM197: =-OpCo1!AM2169 -> 0 | AN197: =-OpCo1!AN2169 -> 0 | AO197: =-OpCo1!AO2169 -> 0 | AP197: =-OpCo1!AP2169 -> 0 | AQ197: =-OpCo1!AQ2169 -> 0 | AR197: =-OpCo1!AR2169 -> 0 | AS197: =-OpCo1!AS2169 -> 0 | AT197: =-OpCo1!AT2169 -> 0 | AU197: =-OpCo1!AU2169 -> 0 | AV197: =-OpCo1!AV2169 -> 0 | AW197: =-OpCo1!AW2169 -> 0 | AX197: =-OpCo1!AX2169 -> 0 | AY197: =-OpCo1!AY2169 -> 0 | AZ197: =-OpCo1!AZ2169 -> 0 | BA197: =-OpCo1!BA2169 -> 0 | BB197: =-OpCo1!BB2169 -> 0 | BC197: =-OpCo1!BC2169 -> 0 | BD197: =-OpCo1!BD2169 -> 0 | BE197: =-OpCo1!BE2169 -> 0 | BF197: =-OpCo1!BF2169 -> 0 | BG197: =-OpCo1!BG2169 -> 0 | BH197: =-OpCo1!BH2169 -> 0 | BI197: =-OpCo1!BI2169 -> 0 | BJ197: =-OpCo1!BJ2169 -> 0 | BK197: =-OpCo1!BK2169 -> 0 | BL197: =-OpCo1!BL2169 -> 0 | BM197: =-OpCo1!BM2169 -> 0 | BN197: =-OpCo1!BN2169 -> 0 | BO197: =-OpCo1!BO2169 -> 0 | BP197: =-OpCo1!BP2169 -> 0 | BQ197: =-OpCo1!BQ2169 -> 0 | BR197: =-OpCo1!BR2169 -> 0 | BS197: =-OpCo1!BS2169 -> 0 | BT197: =-OpCo1!BT2169 -> 0
D198: Lease charge paid | F198: £000 | G198: =IF($I$4,SYS_Admin!$D$117,SYS_Admin!$D$116) -> Nominal | M198: =-SUM(OpCo1!M1171,OpCo1!M1177) -> 0 | N198: =-SUM(OpCo1!N1171,OpCo1!N1177) -> 0 | O198: =-SUM(OpCo1!O1171,OpCo1!O1177) -> 0 | P198: =-SUM(OpCo1!P1171,OpCo1!P1177) -> 0 | Q198: =-SUM(OpCo1!Q1171,OpCo1!Q1177) -> 0 | R198: =-SUM(OpCo1!R1171,OpCo1!R1177) -> 0 | S198: =-SUM(OpCo1!S1171,OpCo1!S1177) -> 0 | T198: =-SUM(OpCo1!T1171,OpCo1!T1177) -> 0 | U198: =-SUM(OpCo1!U1171,OpCo1!U1177) -> 0 | V198: =-SUM(OpCo1!V1171,OpCo1!V1177) -> 0 | W198: =-SUM(OpCo1!W1171,OpCo1!W1177) -> 0 | X198: =-SUM(OpCo1!X1171,OpCo1!X1177) -> 0 | Y198: =-SUM(OpCo1!Y1171,OpCo1!Y1177) -> 0 | Z198: =-SUM(OpCo1!Z1171,OpCo1!Z1177) -> 0 | AA198: =-SUM(OpCo1!AA1171,OpCo1!AA1177) -> 0 | AB198: =-SUM(OpCo1!AB1171,OpCo1!AB1177) -> 0 | AC198: =-SUM(OpCo1!AC1171,OpCo1!AC1177) -> 0 | AD198: =-SUM(OpCo1!AD1171,OpCo1!AD1177) -> 0 | AE198: =-SUM(OpCo1!AE1171,OpCo1!AE1177) -> 0 | AF198: =-SUM(OpCo1!AF1171,OpCo1!AF1177) -> 0 | AG198: =-SUM(OpCo1!AG1171,OpCo1!AG1177) -> 0 | AH198: =-SUM(OpCo1!AH1171,OpCo1!AH1177) -> 0 | AI198: =-SUM(OpCo1!AI1171,OpCo1!AI1177) -> 0 | AJ198: =-SUM(OpCo1!AJ1171,OpCo1!AJ1177) -> 0 | AK198: =-SUM(OpCo1!AK1171,OpCo1!AK1177) -> 0 | AL198: =-SUM(OpCo1!AL1171,OpCo1!AL1177) -> 0 | AM198: =-SUM(OpCo1!AM1171,OpCo1!AM1177) -> 0 | AN198: =-SUM(OpCo1!AN1171,OpCo1!AN1177) -> 0 | AO198: =-SUM(OpCo1!AO1171,OpCo1!AO1177) -> 0 | AP198: =-SUM(OpCo1!AP1171,OpCo1!AP1177) -> 0 | AQ198: =-SUM(OpCo1!AQ1171,OpCo1!AQ1177) -> 0 | AR198: =-SUM(OpCo1!AR1171,OpCo1!AR1177) -> 0 | AS198: =-SUM(OpCo1!AS1171,OpCo1!AS1177) -> 0 | AT198: =-SUM(OpCo1!AT1171,OpCo1!AT1177) -> 0 | AU198: =-SUM(OpCo1!AU1171,OpCo1!AU1177) -> 0 | AV198: =-SUM(OpCo1!AV1171,OpCo1!AV1177) -> 0 | AW198: =-SUM(OpCo1!AW1171,OpCo1!AW1177) -> 0 | AX198: =-SUM(OpCo1!AX1171,OpCo1!AX1177) -> 0 | AY198: =-SUM(OpCo1!AY1171,OpCo1!AY1177) -> 0 | AZ198: =-SUM(OpCo1!AZ1171,OpCo1!AZ1177) -> 0 | BA198: =-SUM(OpCo1!BA1171,OpCo1!BA1177) -> 0 | BB198: =-SUM(OpCo1!BB1171,OpCo1!BB1177) -> 0 | BC198: =-SUM(OpCo1!BC1171,OpCo1!BC1177) -> 0 | BD198: =-SUM(OpCo1!BD1171,OpCo1!BD1177) -> 0 | BE198: =-SUM(OpCo1!BE1171,OpCo1!BE1177) -> 0 | BF198: =-SUM(OpCo1!BF1171,OpCo1!BF1177) -> 0 | BG198: =-SUM(OpCo1!BG1171,OpCo1!BG1177) -> 0 | BH198: =-SUM(OpCo1!BH1171,OpCo1!BH1177) -> 0 | BI198: =-SUM(OpCo1!BI1171,OpCo1!BI1177) -> 0 | BJ198: =-SUM(OpCo1!BJ1171,OpCo1!BJ1177) -> 0 | BK198: =-SUM(OpCo1!BK1171,OpCo1!BK1177) -> 0 | BL198: =-SUM(OpCo1!BL1171,OpCo1!BL1177) -> 0 | BM198: =-SUM(OpCo1!BM1171,OpCo1!BM1177) -> 0 | BN198: =-SUM(OpCo1!BN1171,OpCo1!BN1177) -> 0 | BO198: =-SUM(OpCo1!BO1171,OpCo1!BO1177) -> 0 | BP198: =-SUM(OpCo1!BP1171,OpCo1!BP1177) -> 0 | BQ198: =-SUM(OpCo1!BQ1171,OpCo1!BQ1177) -> 0 | BR198: =-SUM(OpCo1!BR1171,OpCo1!BR1177) -> 0 | BS198: =-SUM(OpCo1!BS1171,OpCo1!BS1177) -> 0 | BT198: =-SUM(OpCo1!BT1171,OpCo1!BT1177) -> 0
D199: Loan principal received | F199: £000 | G199: =IF($I$4,SYS_Admin!$D$117,SYS_Admin!$D$116) -> Nominal | M199: =-OpCo1!M2156 -> 0 | N199: =-OpCo1!N2156 -> 0 | O199: =-OpCo1!O2156 -> 0 | P199: =-OpCo1!P2156 -> 0 | Q199: =-OpCo1!Q2156 -> 0 | R199: =-OpCo1!R2156 -> 0 | S199: =-OpCo1!S2156 -> 0 | T199: =-OpCo1!T2156 -> 0 | U199: =-OpCo1!U2156 -> 0 | V199: =-OpCo1!V2156 -> 0 | W199: =-OpCo1!W2156 -> 0 | X199: =-OpCo1!X2156 -> 0 | Y199: =-OpCo1!Y2156 -> 0 | Z199: =-OpCo1!Z2156 -> 0 | AA199: =-OpCo1!AA2156 -> 0 | AB199: =-OpCo1!AB2156 -> 0 | AC199: =-OpCo1!AC2156 -> 0 | AD199: =-OpCo1!AD2156 -> 0 | AE199: =-OpCo1!AE2156 -> 0 | AF199: =-OpCo1!AF2156 -> 0 | AG199: =-OpCo1!AG2156 -> 0 | AH199: =-OpCo1!AH2156 -> 0 | AI199: =-OpCo1!AI2156 -> 0 | AJ199: =-OpCo1!AJ2156 -> 0 | AK199: =-OpCo1!AK2156 -> 0 | AL199: =-OpCo1!AL2156 -> 0 | AM199: =-OpCo1!AM2156 -> 0 | AN199: =-OpCo1!AN2156 -> 0 | AO199: =-OpCo1!AO2156 -> 0 | AP199: =-OpCo1!AP2156 -> 0 | AQ199: =-OpCo1!AQ2156 -> 0 | AR199: =-OpCo1!AR2156 -> 0 | AS199: =-OpCo1!AS2156 -> 0 | AT199: =-OpCo1!AT2156 -> 0 | AU199: =-OpCo1!AU2156 -> 0 | AV199: =-OpCo1!AV2156 -> 0 | AW199: =-OpCo1!AW2156 -> 0 | AX199: =-OpCo1!AX2156 -> 0 | AY199: =-OpCo1!AY2156 -> 0 | AZ199: =-OpCo1!AZ2156 -> 0 | BA199: =-OpCo1!BA2156 -> 0 | BB199: =-OpCo1!BB2156 -> 0 | BC199: =-OpCo1!BC2156 -> 0 | BD199: =-OpCo1!BD2156 -> 0 | BE199: =-OpCo1!BE2156 -> 0 | BF199: =-OpCo1!BF2156 -> 0 | BG199: =-OpCo1!BG2156 -> 0 | BH199: =-OpCo1!BH2156 -> 0 | BI199: =-OpCo1!BI2156 -> 0 | BJ199: =-OpCo1!BJ2156 -> 0 | BK199: =-OpCo1!BK2156 -> 0 | BL199: =-OpCo1!BL2156 -> 0 | BM199: =-OpCo1!BM2156 -> 0 | BN199: =-OpCo1!BN2156 -> 0 | BO199: =-OpCo1!BO2156 -> 0 | BP199: =-OpCo1!BP2156 -> 0 | BQ199: =-OpCo1!BQ2156 -> 0 | BR199: =-OpCo1!BR2156 -> 0 | BS199: =-OpCo1!BS2156 -> 0 | BT199: =-OpCo1!BT2156 -> 0
D200: Share capital drawn down | F200: £000 | G200: =IF($I$4,SYS_Admin!$D$117,SYS_Admin!$D$116) -> Nominal | M200: =OpCo1!M3608 -> 0 | N200: =OpCo1!N3608 -> 0 | O200: =OpCo1!O3608 -> 0 | P200: =OpCo1!P3608 -> 0 | Q200: =OpCo1!Q3608 -> 0 | R200: =OpCo1!R3608 -> 0 | S200: =OpCo1!S3608 -> 0 | T200: =OpCo1!T3608 -> 0 | U200: =OpCo1!U3608 -> 0 | V200: =OpCo1!V3608 -> 0 | W200: =OpCo1!W3608 -> 0 | X200: =OpCo1!X3608 -> 0 | Y200: =OpCo1!Y3608 -> 0 | Z200: =OpCo1!Z3608 -> 0 | AA200: =OpCo1!AA3608 -> 0 | AB200: =OpCo1!AB3608 -> 0 | AC200: =OpCo1!AC3608 -> 0 | AD200: =OpCo1!AD3608 -> 0 | AE200: =OpCo1!AE3608 -> 0 | AF200: =OpCo1!AF3608 -> 0 | AG200: =OpCo1!AG3608 -> 0 | AH200: =OpCo1!AH3608 -> 0 | AI200: =OpCo1!AI3608 -> 0 | AJ200: =OpCo1!AJ3608 -> 0 | AK200: =OpCo1!AK3608 -> 0 | AL200: =OpCo1!AL3608 -> 0 | AM200: =OpCo1!AM3608 -> 0 | AN200: =OpCo1!AN3608 -> 0 | AO200: =OpCo1!AO3608 -> 0 | AP200: =OpCo1!AP3608 -> 0 | AQ200: =OpCo1!AQ3608 -> 0 | AR200: =OpCo1!AR3608 -> 0 | AS200: =OpCo1!AS3608 -> 0 | AT200: =OpCo1!AT3608 -> 0 | AU200: =OpCo1!AU3608 -> 0 | AV200: =OpCo1!AV3608 -> 0 | AW200: =OpCo1!AW3608 -> 0 | AX200: =OpCo1!AX3608 -> 0 | AY200: =OpCo1!AY3608 -> 0 | AZ200: =OpCo1!AZ3608 -> 0 | BA200: =OpCo1!BA3608 -> 0 | BB200: =OpCo1!BB3608 -> 0 | BC200: =OpCo1!BC3608 -> 0 | BD200: =OpCo1!BD3608 -> 0 | BE200: =OpCo1!BE3608 -> 0 | BF200: =OpCo1!BF3608 -> 0 | BG200: =OpCo1!BG3608 -> 0 | BH200: =OpCo1!BH3608 -> 0 | BI200: =OpCo1!BI3608 -> 0 | BJ200: =OpCo1!BJ3608 -> 0 | BK200: =OpCo1!BK3608 -> 0 | BL200: =OpCo1!BL3608 -> 0 | BM200: =OpCo1!BM3608 -> 0 | BN200: =OpCo1!BN3608 -> 0 | BO200: =OpCo1!BO3608 -> 0 | BP200: =OpCo1!BP3608 -> 0 | BQ200: =OpCo1!BQ3608 -> 0 | BR200: =OpCo1!BR3608 -> 0 | BS200: =OpCo1!BS3608 -> 0 | BT200: =OpCo1!BT3608 -> 0
D201: Dividends paid | F201: £000 | G201: =IF($I$4,SYS_Admin!$D$117,SYS_Admin!$D$116) -> Nominal | M201: =OpCo1!M3681 -> 0 | N201: =OpCo1!N3681 -> 0 | O201: =OpCo1!O3681 -> 0 | P201: =OpCo1!P3681 -> 0 | Q201: =OpCo1!Q3681 -> 0 | R201: =OpCo1!R3681 -> 0 | S201: =OpCo1!S3681 -> 0 | T201: =OpCo1!T3681 -> 0 | U201: =OpCo1!U3681 -> 0 | V201: =OpCo1!V3681 -> 0 | W201: =OpCo1!W3681 -> 0 | X201: =OpCo1!X3681 -> 0 | Y201: =OpCo1!Y3681 -> 0 | Z201: =OpCo1!Z3681 -> 0 | AA201: =OpCo1!AA3681 -> 0 | AB201: =OpCo1!AB3681 -> 0 | AC201: =OpCo1!AC3681 -> 0 | AD201: =OpCo1!AD3681 -> 0 | AE201: =OpCo1!AE3681 -> 0 | AF201: =OpCo1!AF3681 -> 0 | AG201: =OpCo1!AG3681 -> 0 | AH201: =OpCo1!AH3681 -> 0 | AI201: =OpCo1!AI3681 -> 0 | AJ201: =OpCo1!AJ3681 -> 0 | AK201: =OpCo1!AK3681 -> 0 | AL201: =OpCo1!AL3681 -> 0 | AM201: =OpCo1!AM3681 -> 0 | AN201: =OpCo1!AN3681 -> 0 | AO201: =OpCo1!AO3681 -> 0 | AP201: =OpCo1!AP3681 -> 0 | AQ201: =OpCo1!AQ3681 -> 0 | AR201: =OpCo1!AR3681 -> 0 | AS201: =OpCo1!AS3681 -> 0 | AT201: =OpCo1!AT3681 -> 0 | AU201: =OpCo1!AU3681 -> 0 | AV201: =OpCo1!AV3681 -> 0 | AW201: =OpCo1!AW3681 -> 0 | AX201: =OpCo1!AX3681 -> 0 | AY201: =OpCo1!AY3681 -> 0 | AZ201: =OpCo1!AZ3681 -> 0 | BA201: =OpCo1!BA3681 -> 0 | BB201: =OpCo1!BB3681 -> 0 | BC201: =OpCo1!BC3681 -> 0 | BD201: =OpCo1!BD3681 -> 0 | BE201: =OpCo1!BE3681 -> 0 | BF201: =OpCo1!BF3681 -> 0 | BG201: =OpCo1!BG3681 -> 0 | BH201: =OpCo1!BH3681 -> 0 | BI201: =OpCo1!BI3681 -> 0 | BJ201: =OpCo1!BJ3681 -> 0 | BK201: =OpCo1!BK3681 -> 0 | BL201: =OpCo1!BL3681 -> 0 | BM201: =OpCo1!BM3681 -> 0 | BN201: =OpCo1!BN3681 -> 0 | BO201: =OpCo1!BO3681 -> 0 | BP201: =OpCo1!BP3681 -> 0 | BQ201: =OpCo1!BQ3681 -> 0 | BR201: =OpCo1!BR3681 -> 0 | BS201: =OpCo1!BS3681 -> 0 | BT201: =OpCo1!BT3681 -> 0
D202: Overdraft drawn down | F202: £000 | G202: =IF($I$4,SYS_Admin!$D$117,SYS_Admin!$D$116) -> Nominal | M202: =OpCo1!M3535 -> 0 | N202: =OpCo1!N3535 -> 0 | O202: =OpCo1!O3535 -> 0 | P202: =OpCo1!P3535 -> 0 | Q202: =OpCo1!Q3535 -> 0 | R202: =OpCo1!R3535 -> 0 | S202: =OpCo1!S3535 -> 0 | T202: =OpCo1!T3535 -> 0 | U202: =OpCo1!U3535 -> 0 | V202: =OpCo1!V3535 -> 0 | W202: =OpCo1!W3535 -> 0 | X202: =OpCo1!X3535 -> 0 | Y202: =OpCo1!Y3535 -> 0 | Z202: =OpCo1!Z3535 -> 0 | AA202: =OpCo1!AA3535 -> 0 | AB202: =OpCo1!AB3535 -> 0 | AC202: =OpCo1!AC3535 -> 0 | AD202: =OpCo1!AD3535 -> 0 | AE202: =OpCo1!AE3535 -> 0 | AF202: =OpCo1!AF3535 -> 0 | AG202: =OpCo1!AG3535 -> 0 | AH202: =OpCo1!AH3535 -> 0 | AI202: =OpCo1!AI3535 -> 0 | AJ202: =OpCo1!AJ3535 -> 0 | AK202: =OpCo1!AK3535 -> 0 | AL202: =OpCo1!AL3535 -> 0 | AM202: =OpCo1!AM3535 -> 0 | AN202: =OpCo1!AN3535 -> 0 | AO202: =OpCo1!AO3535 -> 0 | AP202: =OpCo1!AP3535 -> 0 | AQ202: =OpCo1!AQ3535 -> 0 | AR202: =OpCo1!AR3535 -> 0 | AS202: =OpCo1!AS3535 -> 0 | AT202: =OpCo1!AT3535 -> 0 | AU202: =OpCo1!AU3535 -> 0 | AV202: =OpCo1!AV3535 -> 0 | AW202: =OpCo1!AW3535 -> 0 | AX202: =OpCo1!AX3535 -> 0 | AY202: =OpCo1!AY3535 -> 0 | AZ202: =OpCo1!AZ3535 -> 0 | BA202: =OpCo1!BA3535 -> 0 | BB202: =OpCo1!BB3535 -> 0 | BC202: =OpCo1!BC3535 -> 0 | BD202: =OpCo1!BD3535 -> 0 | BE202: =OpCo1!BE3535 -> 0 | BF202: =OpCo1!BF3535 -> 0 | BG202: =OpCo1!BG3535 -> 0 | BH202: =OpCo1!BH3535 -> 0 | BI202: =OpCo1!BI3535 -> 0 | BJ202: =OpCo1!BJ3535 -> 0 | BK202: =OpCo1!BK3535 -> 0 | BL202: =OpCo1!BL3535 -> 0 | BM202: =OpCo1!BM3535 -> 0 | BN202: =OpCo1!BN3535 -> 0 | BO202: =OpCo1!BO3535 -> 0 | BP202: =OpCo1!BP3535 -> 0 | BQ202: =OpCo1!BQ3535 -> 0 | BR202: =OpCo1!BR3535 -> 0 | BS202: =OpCo1!BS3535 -> 0 | BT202: =OpCo1!BT3535 -> 0
D203: Overdraft repaid | F203: £000 | G203: =IF($I$4,SYS_Admin!$D$117,SYS_Admin!$D$116) -> Nominal | M203: =OpCo1!M3536 -> 0 | N203: =OpCo1!N3536 -> 0 | O203: =OpCo1!O3536 -> 0 | P203: =OpCo1!P3536 -> 0 | Q203: =OpCo1!Q3536 -> 0 | R203: =OpCo1!R3536 -> 0 | S203: =OpCo1!S3536 -> 0 | T203: =OpCo1!T3536 -> 0 | U203: =OpCo1!U3536 -> 0 | V203: =OpCo1!V3536 -> 0 | W203: =OpCo1!W3536 -> 0 | X203: =OpCo1!X3536 -> 0 | Y203: =OpCo1!Y3536 -> 0 | Z203: =OpCo1!Z3536 -> 0 | AA203: =OpCo1!AA3536 -> 0 | AB203: =OpCo1!AB3536 -> 0 | AC203: =OpCo1!AC3536 -> 0 | AD203: =OpCo1!AD3536 -> 0 | AE203: =OpCo1!AE3536 -> 0 | AF203: =OpCo1!AF3536 -> 0 | AG203: =OpCo1!AG3536 -> 0 | AH203: =OpCo1!AH3536 -> 0 | AI203: =OpCo1!AI3536 -> 0 | AJ203: =OpCo1!AJ3536 -> 0 | AK203: =OpCo1!AK3536 -> 0 | AL203: =OpCo1!AL3536 -> 0 | AM203: =OpCo1!AM3536 -> 0 | AN203: =OpCo1!AN3536 -> 0 | AO203: =OpCo1!AO3536 -> 0 | AP203: =OpCo1!AP3536 -> 0 | AQ203: =OpCo1!AQ3536 -> 0 | AR203: =OpCo1!AR3536 -> 0 | AS203: =OpCo1!AS3536 -> 0 | AT203: =OpCo1!AT3536 -> 0 | AU203: =OpCo1!AU3536 -> 0 | AV203: =OpCo1!AV3536 -> 0 | AW203: =OpCo1!AW3536 -> 0 | AX203: =OpCo1!AX3536 -> 0 | AY203: =OpCo1!AY3536 -> 0 | AZ203: =OpCo1!AZ3536 -> 0 | BA203: =OpCo1!BA3536 -> 0 | BB203: =OpCo1!BB3536 -> 0 | BC203: =OpCo1!BC3536 -> 0 | BD203: =OpCo1!BD3536 -> 0 | BE203: =OpCo1!BE3536 -> 0 | BF203: =OpCo1!BF3536 -> 0 | BG203: =OpCo1!BG3536 -> 0 | BH203: =OpCo1!BH3536 -> 0 | BI203: =OpCo1!BI3536 -> 0 | BJ203: =OpCo1!BJ3536 -> 0 | BK203: =OpCo1!BK3536 -> 0 | BL203: =OpCo1!BL3536 -> 0 | BM203: =OpCo1!BM3536 -> 0 | BN203: =OpCo1!BN3536 -> 0 | BO203: =OpCo1!BO3536 -> 0 | BP203: =OpCo1!BP3536 -> 0 | BQ203: =OpCo1!BQ3536 -> 0 | BR203: =OpCo1!BR3536 -> 0 | BS203: =OpCo1!BS3536 -> 0 | BT203: =OpCo1!BT3536 -> 0
D204: Overdraft interest | F204: £000 | G204: =IF($I$4,SYS_Admin!$D$117,SYS_Admin!$D$116) -> Nominal | M204: =-OpCo1!M3541 -> 0 | N204: =-OpCo1!N3541 -> 0 | O204: =-OpCo1!O3541 -> 0 | P204: =-OpCo1!P3541 -> 0 | Q204: =-OpCo1!Q3541 -> 0 | R204: =-OpCo1!R3541 -> 0 | S204: =-OpCo1!S3541 -> 0 | T204: =-OpCo1!T3541 -> 0 | U204: =-OpCo1!U3541 -> 0 | V204: =-OpCo1!V3541 -> 0 | W204: =-OpCo1!W3541 -> 0 | X204: =-OpCo1!X3541 -> 0 | Y204: =-OpCo1!Y3541 -> 0 | Z204: =-OpCo1!Z3541 -> 0 | AA204: =-OpCo1!AA3541 -> 0 | AB204: =-OpCo1!AB3541 -> 0 | AC204: =-OpCo1!AC3541 -> 0 | AD204: =-OpCo1!AD3541 -> 0 | AE204: =-OpCo1!AE3541 -> 0 | AF204: =-OpCo1!AF3541 -> 0 | AG204: =-OpCo1!AG3541 -> 0 | AH204: =-OpCo1!AH3541 -> 0 | AI204: =-OpCo1!AI3541 -> 0 | AJ204: =-OpCo1!AJ3541 -> 0 | AK204: =-OpCo1!AK3541 -> 0 | AL204: =-OpCo1!AL3541 -> 0 | AM204: =-OpCo1!AM3541 -> 0 | AN204: =-OpCo1!AN3541 -> 0 | AO204: =-OpCo1!AO3541 -> 0 | AP204: =-OpCo1!AP3541 -> 0 | AQ204: =-OpCo1!AQ3541 -> 0 | AR204: =-OpCo1!AR3541 -> 0 | AS204: =-OpCo1!AS3541 -> 0 | AT204: =-OpCo1!AT3541 -> 0 | AU204: =-OpCo1!AU3541 -> 0 | AV204: =-OpCo1!AV3541 -> 0 | AW204: =-OpCo1!AW3541 -> 0 | AX204: =-OpCo1!AX3541 -> 0 | AY204: =-OpCo1!AY3541 -> 0 | AZ204: =-OpCo1!AZ3541 -> 0 | BA204: =-OpCo1!BA3541 -> 0 | BB204: =-OpCo1!BB3541 -> 0 | BC204: =-OpCo1!BC3541 -> 0 | BD204: =-OpCo1!BD3541 -> 0 | BE204: =-OpCo1!BE3541 -> 0 | BF204: =-OpCo1!BF3541 -> 0 | BG204: =-OpCo1!BG3541 -> 0 | BH204: =-OpCo1!BH3541 -> 0 | BI204: =-OpCo1!BI3541 -> 0 | BJ204: =-OpCo1!BJ3541 -> 0 | BK204: =-OpCo1!BK3541 -> 0 | BL204: =-OpCo1!BL3541 -> 0 | BM204: =-OpCo1!BM3541 -> 0 | BN204: =-OpCo1!BN3541 -> 0 | BO204: =-OpCo1!BO3541 -> 0 | BP204: =-OpCo1!BP3541 -> 0 | BQ204: =-OpCo1!BQ3541 -> 0 | BR204: =-OpCo1!BR3541 -> 0 | BS204: =-OpCo1!BS3541 -> 0 | BT204: =-OpCo1!BT3541 -> 0
D205: Cash taken to sinking fund | F205: £000 | G205: =IF($I$4,SYS_Admin!$D$117,SYS_Admin!$D$116) -> Nominal | M205: =-OpCo1!M544 -> 0 | N205: =-OpCo1!N544 -> 0 | O205: =-OpCo1!O544 -> 0 | P205: =-OpCo1!P544 -> 0 | Q205: =-OpCo1!Q544 -> 0 | R205: =-OpCo1!R544 -> 0 | S205: =-OpCo1!S544 -> 0 | T205: =-OpCo1!T544 -> 0 | U205: =-OpCo1!U544 -> 0 | V205: =-OpCo1!V544 -> 0 | W205: =-OpCo1!W544 -> 0 | X205: =-OpCo1!X544 -> 0 | Y205: =-OpCo1!Y544 -> 0 | Z205: =-OpCo1!Z544 -> 0 | AA205: =-OpCo1!AA544 -> 0 | AB205: =-OpCo1!AB544 -> 0 | AC205: =-OpCo1!AC544 -> 0 | AD205: =-OpCo1!AD544 -> 0 | AE205: =-OpCo1!AE544 -> 0 | AF205: =-OpCo1!AF544 -> 0 | AG205: =-OpCo1!AG544 -> 0 | AH205: =-OpCo1!AH544 -> 0 | AI205: =-OpCo1!AI544 -> 0 | AJ205: =-OpCo1!AJ544 -> 0 | AK205: =-OpCo1!AK544 -> 0 | AL205: =-OpCo1!AL544 -> 0 | AM205: =-OpCo1!AM544 -> 0 | AN205: =-OpCo1!AN544 -> 0 | AO205: =-OpCo1!AO544 -> 0 | AP205: =-OpCo1!AP544 -> 0 | AQ205: =-OpCo1!AQ544 -> 0 | AR205: =-OpCo1!AR544 -> 0 | AS205: =-OpCo1!AS544 -> 0 | AT205: =-OpCo1!AT544 -> 0 | AU205: =-OpCo1!AU544 -> 0 | AV205: =-OpCo1!AV544 -> 0 | AW205: =-OpCo1!AW544 -> 0 | AX205: =-OpCo1!AX544 -> 0 | AY205: =-OpCo1!AY544 -> 0 | AZ205: =-OpCo1!AZ544 -> 0 | BA205: =-OpCo1!BA544 -> 0 | BB205: =-OpCo1!BB544 -> 0 | BC205: =-OpCo1!BC544 -> 0 | BD205: =-OpCo1!BD544 -> 0 | BE205: =-OpCo1!BE544 -> 0 | BF205: =-OpCo1!BF544 -> 0 | BG205: =-OpCo1!BG544 -> 0 | BH205: =-OpCo1!BH544 -> 0 | BI205: =-OpCo1!BI544 -> 0 | BJ205: =-OpCo1!BJ544 -> 0 | BK205: =-OpCo1!BK544 -> 0 | BL205: =-OpCo1!BL544 -> 0 | BM205: =-OpCo1!BM544 -> 0 | BN205: =-OpCo1!BN544 -> 0 | BO205: =-OpCo1!BO544 -> 0 | BP205: =-OpCo1!BP544 -> 0 | BQ205: =-OpCo1!BQ544 -> 0 | BR205: =-OpCo1!BR544 -> 0 | BS205: =-OpCo1!BS544 -> 0 | BT205: =-OpCo1!BT544 -> 0
D206: Cash received from sinking fund | F206: £000 | G206: =IF($I$4,SYS_Admin!$D$117,SYS_Admin!$D$116) -> Nominal | M206: =-SUM(OpCo1!M546:M547) -> 0 | N206: =-SUM(OpCo1!N546:N547) -> 0 | O206: =-SUM(OpCo1!O546:O547) -> 0 | P206: =-SUM(OpCo1!P546:P547) -> 0 | Q206: =-SUM(OpCo1!Q546:Q547) -> 0 | R206: =-SUM(OpCo1!R546:R547) -> 0 | S206: =-SUM(OpCo1!S546:S547) -> 0 | T206: =-SUM(OpCo1!T546:T547) -> 0 | U206: =-SUM(OpCo1!U546:U547) -> 0 | V206: =-SUM(OpCo1!V546:V547) -> 0 | W206: =-SUM(OpCo1!W546:W547) -> 0 | X206: =-SUM(OpCo1!X546:X547) -> 0 | Y206: =-SUM(OpCo1!Y546:Y547) -> 0 | Z206: =-SUM(OpCo1!Z546:Z547) -> 0 | AA206: =-SUM(OpCo1!AA546:AA547) -> 0 | AB206: =-SUM(OpCo1!AB546:AB547) -> 0 | AC206: =-SUM(OpCo1!AC546:AC547) -> 0 | AD206: =-SUM(OpCo1!AD546:AD547) -> 0 | AE206: =-SUM(OpCo1!AE546:AE547) -> 0 | AF206: =-SUM(OpCo1!AF546:AF547) -> 0 | AG206: =-SUM(OpCo1!AG546:AG547) -> 0 | AH206: =-SUM(OpCo1!AH546:AH547) -> 0 | AI206: =-SUM(OpCo1!AI546:AI547) -> 0 | AJ206: =-SUM(OpCo1!AJ546:AJ547) -> 0 | AK206: =-SUM(OpCo1!AK546:AK547) -> 0 | AL206: =-SUM(OpCo1!AL546:AL547) -> 0 | AM206: =-SUM(OpCo1!AM546:AM547) -> 0 | AN206: =-SUM(OpCo1!AN546:AN547) -> 0 | AO206: =-SUM(OpCo1!AO546:AO547) -> 0 | AP206: =-SUM(OpCo1!AP546:AP547) -> 0 | AQ206: =-SUM(OpCo1!AQ546:AQ547) -> 0 | AR206: =-SUM(OpCo1!AR546:AR547) -> 0 | AS206: =-SUM(OpCo1!AS546:AS547) -> 0 | AT206: =-SUM(OpCo1!AT546:AT547) -> 0 | AU206: =-SUM(OpCo1!AU546:AU547) -> 0 | AV206: =-SUM(OpCo1!AV546:AV547) -> 0 | AW206: =-SUM(OpCo1!AW546:AW547) -> 0 | AX206: =-SUM(OpCo1!AX546:AX547) -> 0 | AY206: =-SUM(OpCo1!AY546:AY547) -> 0 | AZ206: =-SUM(OpCo1!AZ546:AZ547) -> 0 | BA206: =-SUM(OpCo1!BA546:BA547) -> 0 | BB206: =-SUM(OpCo1!BB546:BB547) -> 0 | BC206: =-SUM(OpCo1!BC546:BC547) -> 0 | BD206: =-SUM(OpCo1!BD546:BD547) -> 0 | BE206: =-SUM(OpCo1!BE546:BE547) -> 0 | BF206: =-SUM(OpCo1!BF546:BF547) -> 0 | BG206: =-SUM(OpCo1!BG546:BG547) -> 0 | BH206: =-SUM(OpCo1!BH546:BH547) -> 0 | BI206: =-SUM(OpCo1!BI546:BI547) -> 0 | BJ206: =-SUM(OpCo1!BJ546:BJ547) -> 0 | BK206: =-SUM(OpCo1!BK546:BK547) -> 0 | BL206: =-SUM(OpCo1!BL546:BL547) -> 0 | BM206: =-SUM(OpCo1!BM546:BM547) -> 0 | BN206: =-SUM(OpCo1!BN546:BN547) -> 0 | BO206: =-SUM(OpCo1!BO546:BO547) -> 0 | BP206: =-SUM(OpCo1!BP546:BP547) -> 0 | BQ206: =-SUM(OpCo1!BQ546:BQ547) -> 0 | BR206: =-SUM(OpCo1!BR546:BR547) -> 0 | BS206: =-SUM(OpCo1!BS546:BS547) -> 0 | BT206: =-SUM(OpCo1!BT546:BT547) -> 0
